Workbook

Sheet Sample Report (hidden)
A2: Date
A3: Hen
A4: Program
A5: Start at 999999
A6: Sequence component 1 | B6: Time 1 | C6: Seqeunce Component 2 | D6: Time 2 | E6: Seqeunce Component 3 | F6: Time 3 | G6: Correct 0 = No 1=Yes | J6: Seqeunce | K6: Time
A7: 12 | B7: 7 | C7: 12 | D7: 42 | E7: 13 | F7: 18 | G7: if 77 new line, if 31 or 41 = yes new line on 77, | J7: =string of Seqeunce compponent 1, 2 & 3 | K7: =time 3
A8: This continues until ther is a 1 on its own to indicate start of summary data
J9: 10-19 =1
A10: Summary Data | J10: 20-29 =2
A11: Correct | B11: Incorrect | C11: Rft | D11: total | E11: Av Correct | F11: Av Incorrect | G11: Percent correct | H11: Time | J11: in this example the seqeunce would be 111
A12: 40 | B12: 33 | C12: 40 | D12: 73 | E12: 23.95 | F12: 15 | G12: 54 | H12: 806

Sheet Summary
A2: Day | B2: Date | C2: Average Response Rate | D2: Target % | E2: RF for non correct sequence | F2: U Value | K2: Block 1 | L2: Block 2 | M2: Block 3 | N2: Block 4 | O2: Block 5 | P2: Block 6
A3: 1 | B3: ='!L82784T.ayl'!B2:C2 -> <date> | C3: =('!L82784T.ayl'!F178/60)/'!L82784T.ayl'!Q3 -> 2.303468208 | D3: ='!L82784T.ayl'!N20/'!L82784T.ayl'!Q3 -> 0 | E3: =SUM('!L82784T.ayl'!L20:Q20)/'!L82784T.ayl'!Q3 -> 1.61849711 | F3: ='!L82784T.ayl'!Q16 -> 0.1525779245 | J3: Average Response Rate | K3: =AVERAGE(C3:C7) -> 2.114959869 | L3: =AVERAGE(C8:C12) -> 2.007804209 | M3: =AVERAGE(C13:C17) -> 2.429560313 | N3: =AVERAGE(C18:C22) -> 2.465718842 | O3: =AVERAGE(C23:C27) -> 2.002801619 | P3: =AVERAGE(C28:C32) -> 1.943560552
A4: 2 | B4: ='!L82890T.ayl'!B2:C2 -> <date> | C4: =('!L82890T.ayl'!F182/60)/'!L82890T.ayl'!Q3 -> 2.255113636 | D4: ='!L82890T.ayl'!N20/'!L82890T.ayl'!Q3 -> 0 | E4: =SUM('!L82890T.ayl'!L20:Q20)/'!L82890T.ayl'!Q3 -> 1.028409091 | F4: ='!L82890T.ayl'!Q16 -> 0.1684221785 | J4: Target % | K4: =AVERAGE(D3:D7) -> 0 | L4: =AVERAGE(D8:D12) -> 0 | M4: =AVERAGE(D13:D17) -> 0 | N4: =AVERAGE(D18:D22) -> 0.002222222222 | O4: =AVERAGE(D23:D27) -> 0.00198019802 | P4: =AVERAGE(D28:D32) -> 0.001047120419
A5: 3 | B5: ='!L829A4T.ayl'!B2:C2 -> <date> | C5: =('!L829A4T.ayl'!F206/60)/'!L829A4T.ayl'!Q3 -> 1.981757877 | D5: ='!L829A4T.ayl'!N20/'!L829A4T.ayl'!Q3 -> 0 | E5: =SUM('!L829A4T.ayl'!L20:Q20)/'!L829A4T.ayl'!Q3 -> 1.437810945 | F5: ='!L829A4T.ayl'!Q16 -> 0.1644021827 | J5: CCRF | K5: =AVERAGE(E3:E7) -> 1.198726934 | L5: =AVERAGE(E8:E12) -> 1.062459078 | M5: =AVERAGE(E13:E17) -> 1.357806253 | N5: =AVERAGE(E18:E22) -> 1.511350017 | O5: =AVERAGE(E23:E27) -> 1.451530272 | P5: =AVERAGE(E28:E32) -> 1.415942219
A6: 4 | B6: ='!L830A5T.ayl'!B2:C2 -> <date> | C6: =('!L830A5T.ayl'!F200/60)/'!L830A5T.ayl'!Q3 -> 2.054209622 | D6: ='!L830A5T.ayl'!N20/'!L830A5T.ayl'!Q3 -> 0 | E6: =SUM('!L830A5T.ayl'!L20:Q20)/'!L830A5T.ayl'!Q3 -> 0.9639175258 | F6: ='!L830A5T.ayl'!Q16 -> 0.1805585262 | J6: U Value | K6: =AVERAGE(F3:F7) -> 0.1699545353 | L6: =AVERAGE(F8:F12) -> 0.1589563665 | M6: =AVERAGE(F13:F17) -> 0.1361341158 | N6: =AVERAGE(F18:F22) -> 0.04109626821 | O6: =AVERAGE(F23:F27) -> 0.01616694321 | P6: =AVERAGE(F28:F32) -> 0.03835359506
A7: 5 | B7: ='!L831A2T.ayl'!B2:C2 -> <date> | C7: =('!L831A2T.ayl'!F206/60)/'!L831A2T.ayl'!Q3 -> 1.98025 | D7: ='!L831A2T.ayl'!N20/'!L831A2T.ayl'!Q3 -> 0 | E7: =SUM('!L831A2T.ayl'!L20:Q20)/'!L831A2T.ayl'!Q3 -> 0.945 | F7: ='!L831A2T.ayl'!Q16 -> 0.1838118644
A8: 6 | B8: ='!L901A4T.ayl'!B2:C2 -> <date> | C8: =('!L901A4T.ayl'!F177/60)/'!L901A4T.ayl'!Q3 -> 2.008382066 | D8: ='!L901A4T.ayl'!N20/'!L901A4T.ayl'!Q3 -> 0 | E8: =SUM('!L901A4T.ayl'!L20:Q20)/'!L901A4T.ayl'!Q3 -> 1.046783626 | F8: ='!L901A4T.ayl'!Q16 -> 0.1953495979
A9: 7 | B9: ='!L90294T.ayl'!B2:C2 -> <date> | C9: =('!L90294T.ayl'!F212/60)/'!L90294T.ayl'!Q3 -> 1.939967638 | D9: ='!L90294T.ayl'!N20/'!L90294T.ayl'!Q3 -> 0 | E9: =SUM('!L90294T.ayl'!L20:Q20)/'!L90294T.ayl'!Q3 -> 0.927184466 | F9: ='!L90294T.ayl'!Q16 -> 0.1506576045 | G9: =K3 -> 2.114959869 | H9: =L3 -> 2.007804209 | I9: 2.429560313 | J9: 2.465718842 | K9: 2.002801619 | L9: 1.943560552 | M9: =K4 -> 0 | N9: =L4 -> 0 | O9: 0 | P9: 0.002222222222 | Q9: 0.00198019802 | R9: 0.001047120419 | S9: =K6 -> 0.1699545353 | T9: =L6 -> 0.1589563665 | U9: 0.1361341158 | V9: 0.04109626821 | W9: 0.01616694321 | X9: 0.03835359506
A10: 8 | B10: ='!L903A4T.ayl'!B2:C2 -> <date> | C10: =('!L903A4T.ayl'!F205/60)/'!L903A4T.ayl'!Q3 -> 2.008961474 | D10: ='!L903A4T.ayl'!N20/'!L903A4T.ayl'!Q3 -> 0 | E10: =SUM('!L903A4T.ayl'!L20:Q20)/'!L903A4T.ayl'!Q3 -> 0.9447236181 | F10: ='!L903A4T.ayl'!Q16 -> 0.1361084786
A11: 9 | B11: ='!L905A4T.ayl'!B2:C2 -> <date> | C11: =('!L905A4T.ayl'!F214/60)/'!L905A4T.ayl'!Q3 -> 1.917307692 | D11: ='!L905A4T.ayl'!N20/'!L905A4T.ayl'!Q3 -> 0 | E11: =SUM('!L905A4T.ayl'!L20:Q20)/'!L905A4T.ayl'!Q3 -> 1.399038462 | F11: ='!L905A4T.ayl'!Q16 -> 0.1470000703
A12: 10 | B12: ='!L906A4T.ayl'!B2:C2 -> <date> | C12: =('!L906A4T.ayl'!F190/60)/'!L906A4T.ayl'!Q3 -> 2.164402174 | D12: ='!L906A4T.ayl'!N20/'!L906A4T.ayl'!Q3 -> 0 | E12: =SUM('!L906A4T.ayl'!L20:Q20)/'!L906A4T.ayl'!Q3 -> 0.9945652174 | F12: ='!L906A4T.ayl'!Q16 -> 0.1656660813
A13: 11 | B13: ='!L907A4T.ayl'!B2:C2 -> <date> | C13: =('!L907A4T.ayl'!F204/60)/'!L907A4T.ayl'!Q3 -> 2.014141414 | D13: ='!L907A4T.ayl'!N20/'!L907A4T.ayl'!Q3 -> 0 | E13: =SUM('!L907A4T.ayl'!L20:Q20)/'!L907A4T.ayl'!Q3 -> 1.454545455 | F13: ='!L907A4T.ayl'!Q16 -> 0.1358602887
A14: 12 | B14: ='!L908A3T.ayl'!B2:C2 -> <date> | C14: =('!L908A3T.ayl'!F213/60)/'!L908A3T.ayl'!Q3 -> 1.929146538 | D14: ='!L908A3T.ayl'!N20/'!L908A3T.ayl'!Q3 -> 0 | E14: =SUM('!L908A3T.ayl'!L20:Q20)/'!L908A3T.ayl'!Q3 -> 1.405797101 | F14: ='!L908A3T.ayl'!Q16 -> 0.1436425277
A15: 13 | B15: ='!L90995T.ayl'!B2:C2 -> <date> | C15: =('!L90995T.ayl'!F203/60)/'!L90995T.ayl'!Q3 -> 2.029864636 | D15: ='!L90995T.ayl'!N20/'!L90995T.ayl'!Q3 -> 0 | E15: =SUM('!L90995T.ayl'!L20:Q20)/'!L90995T.ayl'!Q3 -> 1.461928934 | F15: ='!L90995T.ayl'!Q16 -> 0.1699749006
A16: 14 | B16: ='!L91092T.ayl'!B2:C2 -> <date> | C16: =('!L91092T.ayl'!F106/60)/'!L91092T.ayl'!Q3 -> 3.947833333 | D16: ='!L91092T.ayl'!N20/'!L91092T.ayl'!Q3 -> 0 | E16: =SUM('!L91092T.ayl'!L20:Q20)/'!L91092T.ayl'!Q3 -> 1.45 | F16: ='!L91092T.ayl'!Q16 -> 0.1122395631
A17: 15 | B17: ='!L91191T.ayl'!B2:C2 -> <date> | C17: =('!L91191T.ayl'!F185/60)/'!L91191T.ayl'!Q3 -> 2.226815642 | D17: ='!L91191T.ayl'!N20/'!L91191T.ayl'!Q3 -> 0 | E17: =SUM('!L91191T.ayl'!L20:Q20)/'!L91191T.ayl'!Q3 -> 1.016759777 | F17: ='!L91191T.ayl'!Q16 -> 0.118953299
A18: 16 | B18: ='!L912A5T.ayl'!B2:C2 -> <date> | C18: =('!L912A5T.ayl'!F212/60)/'!L912A5T.ayl'!Q3 -> 1.93802589 | D18: ='!L912A5T.ayl'!N20/'!L912A5T.ayl'!Q3 -> 0 | E18: =SUM('!L912A5T.ayl'!L20:Q20)/'!L912A5T.ayl'!Q3 -> 0.927184466 | F18: ='!L912A5T.ayl'!Q16 -> 0.1116134385
A19: 17 | B19: ='!L91392T.ayl'!B2:C2 -> <date> | C19: =('!L91392T.ayl'!F208/60)/'!L91392T.ayl'!Q3 -> 1.973267327 | D19: ='!L91392T.ayl'!N20/'!L91392T.ayl'!Q3 -> 0 | E19: =SUM('!L91392T.ayl'!L20:Q20)/'!L91392T.ayl'!Q3 -> 0.9356435644 | F19: ='!L91392T.ayl'!Q16 -> 0.03431583897
A20: 18 | B20: ='!L914A1T.ayl'!B2:C2 -> <date> | C20: =('!L914A1T.ayl'!F207/60)/'!L914A1T.ayl'!Q3 -> 1.984245439 | D20: ='!L914A1T.ayl'!N20/'!L914A1T.ayl'!Q3 -> 0 | E20: =SUM('!L914A1T.ayl'!L20:Q20)/'!L914A1T.ayl'!Q3 -> 1.437810945 | F20: ='!L914A1T.ayl'!Q16 -> 0.04001340884
A21: 19 | B21: ='!L915A3T.ayl'!B2:C2 -> <date> | C21: =('!L915A3T.ayl'!F205/60)/'!L915A3T.ayl'!Q3 -> 1.989166667 | D21: ='!L915A3T.ayl'!N20/'!L915A3T.ayl'!Q3 -> 0 | E21: =SUM('!L915A3T.ayl'!L20:Q20)/'!L915A3T.ayl'!Q3 -> 1.445 | F21: ='!L915A3T.ayl'!Q16 -> 0.005972072507
A22: 20 | B22: ='!L916A1T.ayl'!B2:C2 -> <date> | C22: =('!L916A1T.ayl'!F96/60)/'!L916A1T.ayl'!Q3 -> 4.443888889 | D22: ='!L916A1T.ayl'!N20/'!L916A1T.ayl'!Q3 -> 0.01111111111 | E22: =SUM('!L916A1T.ayl'!L20:Q20)/'!L916A1T.ayl'!Q3 -> 2.811111111 | F22: ='!L916A1T.ayl'!Q16 -> 0.01356658226
A23: 21 | B23: ='!L917A4T.ayl'!B2:C2 -> <date> | C23: =('!L917A4T.ayl'!F211/60)/'!L917A4T.ayl'!Q3 -> 1.945772358 | D23: ='!L917A4T.ayl'!N20/'!L917A4T.ayl'!Q3 -> 0 | E23: =SUM('!L917A4T.ayl'!L20:Q20)/'!L917A4T.ayl'!Q3 -> 1.414634146 | F23: ='!L917A4T.ayl'!Q16 -> 0
A24: 22 | B24: ='!L919B1T.ayl'!B2:C2 -> <date> | C24: =('!L919B1T.ayl'!F198/60)/'!L919B1T.ayl'!Q3 -> 2.061744387 | D24: ='!L919B1T.ayl'!N20/'!L919B1T.ayl'!Q3 -> 0 | E24: =SUM('!L919B1T.ayl'!L20:Q20)/'!L919B1T.ayl'!Q3 -> 1.481865285 | F24: ='!L919B1T.ayl'!Q16 -> 0
A25: 23 | B25: ='!L920A0T.ayl'!B2:C2 -> <date> | C25: =('!L920A0T.ayl'!F212/60)/'!L920A0T.ayl'!Q3 -> 1.918042071 | D25: ='!L920A0T.ayl'!N20/'!L920A0T.ayl'!Q3 -> 0 | E25: =SUM('!L920A0T.ayl'!L20:Q20)/'!L920A0T.ayl'!Q3 -> 1.412621359 | F25: ='!L920A0T.ayl'!Q16 -> 0
A26: 24 | B26: ='!L922953..Ta'!B2:C2 -> <date> | C26: =('!L922953..Ta'!F208/60)/'!L922953..Ta'!Q3 -> 1.974339934 | D26: ='!L922953..Ta'!N20/'!L922953..Ta'!Q3 -> 0.009900990099 | E26: =SUM('!L922953..Ta'!L20:Q20)/'!L922953..Ta'!Q3 -> 1.440594059 | F26: ='!L922953..Ta'!Q16 -> 0.02090948409
A27: 25 | B27: ='!L923A53..Ta'!B2:C2 -> <date> | C27: =('!L923A53..Ta'!F195/60)/'!L923A53..Ta'!Q3 -> 2.114109347 | D27: ='!L923A53..Ta'!N20/'!L923A53..Ta'!Q3 -> 0 | E27: =SUM('!L923A53..Ta'!L20:Q20)/'!L923A53..Ta'!Q3 -> 1.507936508 | F27: ='!L923A53..Ta'!Q16 -> 0.05992523193
A28: 26 | B28: ='!L924A03..Ta'!B2:C2 -> <date> | C28: =('!L924A03..Ta'!F197/60)/'!L924A03..Ta'!Q3 -> 2.087958115 | D28: ='!L924A03..Ta'!N20/'!L924A03..Ta'!Q3 -> 0.005235602094 | E28: =SUM('!L924A03..Ta'!L20:Q20)/'!L924A03..Ta'!Q3 -> 1.502617801 | F28: ='!L924A03..Ta'!Q16 -> 0.07391877586
A29: 27 | B29: ='!L925943..Ta'!B2:C2 -> <date> | C29: =('!L925943..Ta'!F200/60)/'!L925943..Ta'!Q3 -> 2.054467354 | D29: ='!L925943..Ta'!N20/'!L925943..Ta'!Q3 -> 0 | E29: =SUM('!L925943..Ta'!L20:Q20)/'!L925943..Ta'!Q3 -> 1.479381443 | F29: ='!L925943..Ta'!Q16 -> 0.03557289036
A30: 28 | B30: ='!L927913..Ta'!B2:C2 -> <date> | C30: =('!L927913..Ta'!F221/60)/'!L927913..Ta'!Q3 -> 1.860155039 | D30: ='!L927913..Ta'!N20/'!L927913..Ta'!Q3 -> 0 | E30: =SUM('!L927913..Ta'!L20:Q20)/'!L927913..Ta'!Q3 -> 1.36744186 | F30: ='!L927913..Ta'!Q16 -> 0.04744404635
A31: 29 | B31: ='!L928923..Ta'!B2:C2 -> <date> | C31: =('!L928923..Ta'!F220/60)/'!L928923..Ta'!Q3 -> 1.869003115 | D31: ='!L928923..Ta'!N20/'!L928923..Ta'!Q3 -> 0 | E31: =SUM('!L928923..Ta'!L20:Q20)/'!L928923..Ta'!Q3 -> 1.369158879 | F31: ='!L928923..Ta'!Q16 -> 0.02934334805
A32: 30 | B32: ='!L929843..Ta'!B2:C2 -> <date> | C32: =('!L929843..Ta'!F222/60)/'!L929843..Ta'!Q3 -> 1.846219136 | D32: ='!L929843..Ta'!N20/'!L929843..Ta'!Q3 -> 0 | E32: =SUM('!L929843..Ta'!L20:Q20)/'!L929843..Ta'!Q3 -> 1.361111111 | F32: ='!L929843..Ta'!Q16 -> 0.005488914669
B33: ='!L930853..Ta'!B2:C2 -> <date> | C33: =('!L930853..Ta'!F219/60)/'!L930853..Ta'!Q3 -> 1.871048513 | D33: ='!L930853..Ta'!N20/'!L930853..Ta'!Q3 -> 0 | E33: =SUM('!L930853..Ta'!L20:Q20)/'!L930853..Ta'!Q3 -> 1.375586854 | F33: ='!L930853..Ta'!Q16 -> 0.02630160159

Sheet Start
F1: Use Folder 51 | H1: Auto Clean Up | J1: Correct sequence
F2: FALSE | H2: TRUE | J2: 211
A4: Working with Folder | G4: Process All/Or Pick A number: ALL or an integer
A5: F:\Possum Chapter\Raw Data\Taylor\phase 1 RLL ANY\ | G5: ALL
A6: Filenames:
A7: !L82784T.ayl | G7: Paint Cells
A8: !L82890T.ayl | G8: FALSE
A9: !L829A4T.ayl
A10: !L830A5T.ayl
A11: !L831A2T.ayl
A12: !L901A4T.ayl
A13: !L90294T.ayl
A14: !L903A4T.ayl
A15: !L905A4T.ayl
A16: !L906A4T.ayl
A17: !L907A4T.ayl
A18: !L908A3T.ayl
A19: !L90995T.ayl
A20: !L91092T.ayl
A21: !L91191T.ayl
A22: !L912A5T.ayl
A23: !L91392T.ayl
A24: !L914A1T.ayl
A25: !L915A3T.ayl
A26: !L916A1T.ayl
A27: !L917A4T.ayl
A28: !L919B1T.ayl
A29: !L920A0T.ayl
A30: !L922953..Ta
A31: !L923A53..Ta
A32: !L924A03..Ta
A33: !L925943..Ta
A34: !L927913..Ta
A35: !L928923..Ta
A36: !L929843..Ta
A37: !L930853..Ta

Sheet !L82784T.ayl
A1: Report for:!L82784T.ayl
A2: Date: | B2: <date>
A3: Hen: | B3: <hen> | F3: Correct Sequence | G3: =Start!J2 -> 211 | P3: Total Sequences in Data | Q3: =4994-COUNTBLANK(L7:L5000) -> 173 | V3: Total Sequences in Block Data | W3: =COUNTA(L7:L35) -> 29 | AA3: Total Sequences in Block Data | AB3: =COUNTA(L36:L64) -> 29 | AF3: Total Sequences in Block Data | AG3: =COUNTA(L65:L92) -> 28 | AK3: Total Sequences in Block Data | AL3: =COUNTA(L93:L121) -> 29 | AP3: Total Sequences in Block Data | AQ3: =COUNTA(L122:L150) -> 29 | AU3: Total Sequences in Block Data | AV3: =COUNTA(L151:L179) -> 29
P4: Total Sequences in Summary | Q4: =SUM(O7:O14) -> 172 | V4: Total Sequences in Block Summary | W4: =SUM(U7:U14) -> 29 | AA4: Total Sequences in Block Summary | AB4: =SUM(Z7:Z14) -> 29 | AF4: Total Sequences in Block Summary | AG4: =SUM(AE7:AE14) -> 28 | AK4: Total Sequences in Block Summary | AL4: =SUM(AJ7:AJ14) -> 29 | AP4: Total Sequences in Block Summary | AQ4: =SUM(AO7:AO14) -> 29 | AU4: Total Sequences in Block Summary | AV4: =SUM(AT7:AT14) -> 28
T5: Block 1 | Y5: Block 2 | AD5: Block 3 | AI5: Block 4 | AN5: Block 5 | AS5: Block 6
A6: Sequence Component 1 | B6: Time 1 | C6: Sequence Component 2 | D6: Time 2 | E6: Sequence Component 3 | F6: Time 3 | G6: Sequence Component 4 | H6: Time 4 | I6: Sequence Component 5 | J6: Time 5 | K6: Correct? 0=No 1=Yes | L6: Sequence | N6: Frequency | P6: Relative Frequency | Q6: Variability | T6: Frequency | V6: Relative Frequency | W6: Variability | Y6: Frequency | AA6: Relative Frequency | AB6: Variability | AD6: Frequency | AF6: Relative Frequency | AG6: Variability | AI6: Frequency | AK6: Relative Frequency | AL6: Variability | AN6: Frequency | AP6: Relative Frequency | AQ6: Variability | AS6: Frequency | AU6: Relative Frequency | AV6: Variability
A7: 21 | B7: 2791 | C7: 22 | D7: 2810 | E7: 13 | F7: 2821 | K7: 0 | L7: 221 | N7: 111 | O7: =COUNTIF($L$7:$L$500,N7) -> 1 | P7: =O7/$Q$4 -> 0.005813953488 | Q7: =IF(P7=0,0,(P7*((LOG(P7))/LOG(2)))) -> -0.04317595788 | T7: =N7 -> 111 | U7: =COUNTIF(L7:L35,T7) -> 1 | V7: =U7/(W4-U11) -> 0.03448275862 | W7: =IF(V7=0,0,(V7*((LOG(V7))/LOG(2)))) -> -0.167516586 | Y7: =N7 -> 111 | Z7: =COUNTIF(L36:L64,Y7) -> 0 | AA7: =Z7/(AB4-Z11) -> 0 | AB7: =IF(AA7=0,0,(AA7*((LOG(AA7))/LOG(2)))) -> 0 | AD7: =N7 -> 111 | AE7: =COUNTIF(L65:L92,AD7) -> 0 | AF7: =AE7/(AG4-AE11) -> 0 | AG7: =IF(AF7=0,0,(AF7*((LOG(AF7))/LOG(2)))) -> 0 | AI7: =N7 -> 111 | AJ7: =COUNTIF(L93:L121,AI7) -> 0 | AK7: =AJ7/(AL4-AJ11) -> 0 | AL7: =IF(AK7=0,0,(AK7*((LOG(AK7))/LOG(2)))) -> 0 | AN7: =N7 -> 111 | AO7: =COUNTIF(L122:L150,AN7) -> 0 | AP7: =AO7/(AQ4-AO11) -> 0 | AQ7: =IF(AP7=0,0,(AP7*((LOG(AP7))/LOG(2)))) -> 0 | AS7: =N7 -> 111 | AT7: =COUNTIF(L151:L179,AS7) -> 0 | AU7: =AT7/(AV4-AT11) -> 0 | AV7: =IF(AU7=0,0,(AU7*((LOG(AU7))/LOG(2)))) -> 0
A8: 21 | B8: 2927 | C8: 22 | D8: 2933 | E8: 24 | F8: 2939 | K8: 0 | L8: 222 | N8: 112 | O8: =COUNTIF($L$7:$L$500,N8) -> 8 | P8: =O8/$Q$4 -> 0.04651162791 | Q8: =IF(P8=0,0,(P8*((LOG(P8))/LOG(2)))) -> -0.2058727793 | T8: =N8 -> 112 | U8: =COUNTIF(L7:L35,T8) -> 1 | V8: =U8/(W4-U11) -> 0.03448275862 | W8: =IF(V8=0,0,(V8*((LOG(V8))/LOG(2)))) -> -0.167516586 | Y8: =N8 -> 112 | Z8: =COUNTIF(L36:L64,Y8) -> 0 | AA8: =Z8/(AB4-Z11) -> 0 | AB8: =IF(AA8=0,0,(AA8*((LOG(AA8))/LOG(2)))) -> 0 | AD8: =N8 -> 112 | AE8: =COUNTIF(L65:L92,AD8) -> 0 | AF8: =AE8/(AG4-AE11) -> 0 | AG8: =IF(AF8=0,0,(AF8*((LOG(AF8))/LOG(2)))) -> 0 | AI8: =N8 -> 112 | AJ8: =COUNTIF(L93:L121,AI8) -> 2 | AK8: =AJ8/(AL4-AJ11) -> 0.06896551724 | AL8: =IF(AK8=0,0,(AK8*((LOG(AK8))/LOG(2)))) -> -0.2660676548 | AN8: =N8 -> 112 | AO8: =COUNTIF(L122:L150,AN8) -> 3 | AP8: =AO8/(AQ4-AO11) -> 0.1034482759 | AQ8: =IF(AP8=0,0,(AP8*((LOG(AP8))/LOG(2)))) -> -0.3385881201 | AS8: =N8 -> 112 | AT8: =COUNTIF(L151:L179,AS8) -> 2 | AU8: =AT8/(AV4-AT11) -> 0.07142857143 | AV8: =IF(AU8=0,0,(AU8*((LOG(AU8))/LOG(2)))) -> -0.271953923
A9: 12 | B9: 3294 | C9: 13 | D9: 3297 | E9: 13 | F9: 3301 | K9: 0 | L9: 111 | N9: 121 | O9: =COUNTIF($L$7:$L$500,N9) -> 0 | P9: =O9/$Q$4 -> 0 | Q9: =IF(P9=0,0,(P9*((LOG(P9))/LOG(2)))) -> 0 | T9: =N9 -> 121 | U9: =COUNTIF(L7:L35,T9) -> 0 | V9: =U9/(W4-U11) -> 0 | W9: =IF(V9=0,0,(V9*((LOG(V9))/LOG(2)))) -> 0 | Y9: =N9 -> 121 | Z9: =COUNTIF(L36:L64,Y9) -> 0 | AA9: =Z9/(AB4-Z11) -> 0 | AB9: =IF(AA9=0,0,(AA9*((LOG(AA9))/LOG(2)))) -> 0 | AD9: =N9 -> 121 | AE9: =COUNTIF(L65:L92,AD9) -> 0 | AF9: =AE9/(AG4-AE11) -> 0 | AG9: =IF(AF9=0,0,(AF9*((LOG(AF9))/LOG(2)))) -> 0 | AI9: =N9 -> 121 | AJ9: =COUNTIF(L93:L121,AI9) -> 0 | AK9: =AJ9/(AL4-AJ11) -> 0 | AL9: =IF(AK9=0,0,(AK9*((LOG(AK9))/LOG(2)))) -> 0 | AN9: =N9 -> 121 | AO9: =COUNTIF(L122:L150,AN9) -> 0 | AP9: =AO9/(AQ4-AO11) -> 0 | AQ9: =IF(AP9=0,0,(AP9*((LOG(AP9))/LOG(2)))) -> 0 | AS9: =N9 -> 121 | AT9: =COUNTIF(L151:L179,AS9) -> 0 | AU9: =AT9/(AV4-AT11) -> 0 | AV9: =IF(AU9=0,0,(AU9*((LOG(AU9))/LOG(2)))) -> 0
A10: 12 | B10: 3439 | C10: 13 | D10: 3445 | E10: 24 | F10: 3458 | K10: 0 | L10: 112 | N10: 122 | O10: =COUNTIF($L$7:$L$500,N10) -> 122 | P10: =O10/$Q$4 -> 0.7093023256 | Q10: =IF(P10=0,0,(P10*((LOG(P10))/LOG(2)))) -> -0.3514787494 | T10: =N10 -> 122 | U10: =COUNTIF(L7:L35,T10) -> 11 | V10: =U10/(W4-U11) -> 0.3793103448 | W10: =IF(V10=0,0,(V10*((LOG(V10))/LOG(2)))) -> -0.5304842463 | Y10: =N10 -> 122 | Z10: =COUNTIF(L36:L64,Y10) -> 24 | AA10: =Z10/(AB4-Z11) -> 0.8275862069 | AB10: =IF(AA10=0,0,(AA10*((LOG(AA10))/LOG(2)))) -> -0.2259463402 | AD10: =N10 -> 122 | AE10: =COUNTIF(L65:L92,AD10) -> 20 | AF10: =AE10/(AG4-AE11) -> 0.7142857143 | AG10: =IF(AF10=0,0,(AF10*((LOG(AF10))/LOG(2)))) -> -0.346733448 | AI10: =N10 -> 122 | AJ10: =COUNTIF(L93:L121,AI10) -> 19 | AK10: =AJ10/(AL4-AJ11) -> 0.6551724138 | AL10: =IF(AK10=0,0,(AK10*((LOG(AK10))/LOG(2)))) -> -0.3996902121 | AN10: =N10 -> 122 | AO10: =COUNTIF(L122:L150,AN10) -> 25 | AP10: =AO10/(AQ4-AO11) -> 0.8620689655 | AQ10: =IF(AP10=0,0,(AP10*((LOG(AP10))/LOG(2)))) -> -0.1845903494 | AS10: =N10 -> 122 | AT10: =COUNTIF(L151:L179,AS10) -> 23 | AU10: =AT10/(AV4-AT11) -> 0.8214285714 | AV10: =IF(AU10=0,0,(AU10*((LOG(AU10))/LOG(2)))) -> -0.2331156506
A11: 12 | B11: 3550 | C11: 24 | D11: 3562 | E11: 24 | F11: 3567 | K11: 0 | L11: 122 | N11: 211 | O11: =COUNTIF($L$7:$L$500,N11) -> 0 | P11: =O11/$Q$4 -> 0 | Q11: =IF(P11=0,0,(P11*((LOG(P11))/LOG(2)))) -> 0 | T11: =N11 -> 211 | U11: =COUNTIF(L7:L35,T11) -> 0 | Y11: =N11 -> 211 | Z11: =COUNTIF(L36:L64,Y11) -> 0 | AD11: =N11 -> 211 | AE11: =COUNTIF(L65:L92,AD11) -> 0 | AI11: =N11 -> 211 | AJ11: =COUNTIF(L93:L121,AI11) -> 0 | AN11: =N11 -> 211 | AO11: =COUNTIF(L122:L150,AN11) -> 0 | AS11: =N11 -> 211 | AT11: =COUNTIF(L151:L179,AS11) -> 0
A12: 21 | B12: 3674 | C12: 22 | D12: 3678 | E12: 24 | F12: 3684 | K12: 0 | L12: 222 | N12: 212 | O12: =COUNTIF($L$7:$L$500,N12) -> 0 | P12: =O12/$Q$4 -> 0 | Q12: =IF(P12=0,0,(P12*((LOG(P12))/LOG(2)))) -> 0 | T12: =N12 -> 212 | U12: =COUNTIF(L7:L35,T12) -> 0 | V12: =U12/(W4-U11) -> 0 | W12: =IF(V12=0,0,(V12*((LOG(V12))/LOG(2)))) -> 0 | Y12: =N12 -> 212 | Z12: =COUNTIF(L36:L64,Y12) -> 0 | AA12: =Z12/(AB4-Z11) -> 0 | AB12: =IF(AA12=0,0,(AA12*((LOG(AA12))/LOG(2)))) -> 0 | AD12: =N12 -> 212 | AE12: =COUNTIF(L65:L92,AD12) -> 0 | AF12: =AE12/(AG4-AE11) -> 0 | AG12: =IF(AF12=0,0,(AF12*((LOG(AF12))/LOG(2)))) -> 0 | AI12: =N12 -> 212 | AJ12: =COUNTIF(L93:L121,AI12) -> 0 | AK12: =AJ12/(AL4-AJ11) -> 0 | AL12: =IF(AK12=0,0,(AK12*((LOG(AK12))/LOG(2)))) -> 0 | AN12: =N12 -> 212 | AO12: =COUNTIF(L122:L150,AN12) -> 0 | AP12: =AO12/(AQ4-AO11) -> 0 | AQ12: =IF(AP12=0,0,(AP12*((LOG(AP12))/LOG(2)))) -> 0 | AS12: =N12 -> 212 | AT12: =COUNTIF(L151:L179,AS12) -> 0 | AU12: =AT12/(AV4-AT11) -> 0 | AV12: =IF(AU12=0,0,(AU12*((LOG(AU12))/LOG(2)))) -> 0
A13: 21 | B13: 3780 | C13: 22 | D13: 3786 | E13: 24 | F13: 3790 | K13: 0 | L13: 222 | N13: 221 | O13: =COUNTIF($L$7:$L$500,N13) -> 1 | P13: =O13/$Q$4 -> 0.005813953488 | Q13: =IF(P13=0,0,(P13*((LOG(P13))/LOG(2)))) -> -0.04317595788 | T13: =N13 -> 221 | U13: =COUNTIF(L7:L35,T13) -> 1 | V13: =U13/(W4-U11) -> 0.03448275862 | W13: =IF(V13=0,0,(V13*((LOG(V13))/LOG(2)))) -> -0.167516586 | Y13: =N13 -> 221 | Z13: =COUNTIF(L36:L64,Y13) -> 0 | AA13: =Z13/(AB4-Z11) -> 0 | AB13: =IF(AA13=0,0,(AA13*((LOG(AA13))/LOG(2)))) -> 0 | AD13: =N13 -> 221 | AE13: =COUNTIF(L65:L92,AD13) -> 0 | AF13: =AE13/(AG4-AE11) -> 0 | AG13: =IF(AF13=0,0,(AF13*((LOG(AF13))/LOG(2)))) -> 0 | AI13: =N13 -> 221 | AJ13: =COUNTIF(L93:L121,AI13) -> 0 | AK13: =AJ13/(AL4-AJ11) -> 0 | AL13: =IF(AK13=0,0,(AK13*((LOG(AK13))/LOG(2)))) -> 0 | AN13: =N13 -> 221 | AO13: =COUNTIF(L122:L150,AN13) -> 0 | AP13: =AO13/(AQ4-AO11) -> 0 | AQ13: =IF(AP13=0,0,(AP13*((LOG(AP13))/LOG(2)))) -> 0 | AS13: =N13 -> 221 | AT13: =COUNTIF(L151:L179,AS13) -> 0 | AU13: =AT13/(AV4-AT11) -> 0 | AV13: =IF(AU13=0,0,(AU13*((LOG(AU13))/LOG(2)))) -> 0
A14: 21 | B14: 3902 | C14: 22 | D14: 3906 | E14: 24 | F14: 3911 | K14: 0 | L14: 222 | N14: 222 | O14: =COUNTIF($L$7:$L$500,N14) -> 40 | P14: =O14/$Q$4 -> 0.2325581395 | Q14: =IF(P14=0,0,(P14*((LOG(P14))/LOG(2)))) -> -0.4893806186 | T14: =N14 -> 222 | U14: =COUNTIF(L7:L35,T14) -> 15 | V14: =U14/(W4-U11) -> 0.5172413793 | W14: =IF(V14=0,0,(V14*((LOG(V14))/LOG(2)))) -> -0.4919433101 | Y14: =N14 -> 222 | Z14: =COUNTIF(L36:L64,Y14) -> 5 | AA14: =Z14/(AB4-Z11) -> 0.1724137931 | AB14: =IF(AA14=0,0,(AA14*((LOG(AA14))/LOG(2)))) -> -0.4372505 | AD14: =N14 -> 222 | AE14: =COUNTIF(L65:L92,AD14) -> 8 | AF14: =AE14/(AG4-AE11) -> 0.2857142857 | AG14: =IF(AF14=0,0,(AF14*((LOG(AF14))/LOG(2)))) -> -0.5163871206 | AI14: =N14 -> 222 | AJ14: =COUNTIF(L93:L121,AI14) -> 8 | AK14: =AJ14/(AL4-AJ11) -> 0.275862069 | AL14: =IF(AK14=0,0,(AK14*((LOG(AK14))/LOG(2)))) -> -0.5125464814 | AN14: =N14 -> 222 | AO14: =COUNTIF(L122:L150,AN14) -> 1 | AP14: =AO14/(AQ4-AO11) -> 0.03448275862 | AQ14: =IF(AP14=0,0,(AP14*((LOG(AP14))/LOG(2)))) -> -0.167516586 | AS14: =N14 -> 222 | AT14: =COUNTIF(L151:L179,AS14) -> 3 | AU14: =AT14/(AV4-AT11) -> 0.1071428571 | AV14: =IF(AU14=0,0,(AU14*((LOG(AU14))/LOG(2)))) -> -0.3452563309
A15: 12 | B15: 4010 | C15: 24 | D15: 4021 | E15: 24 | F15: 4025 | K15: 0 | L15: 122 | P15: =SUM(P7:P14) -> 1 | Q15: =-SUM(Q7:Q14) -> 1.133084063 | V15: =SUM(V7:V14) -> 1 | W15: =-SUM(W7:W14) -> 1.524977314 | AA15: =SUM(AA7:AA14) -> 1 | AB15: =-SUM(AB7:AB14) -> 0.6631968402 | AF15: =SUM(AF7:AF14) -> 1 | AG15: =-SUM(AG7:AG14) -> 0.8631205686 | AK15: =SUM(AK7:AK14) -> 1 | AL15: =-SUM(AL7:AL14) -> 1.178304348 | AP15: =SUM(AP7:AP14) -> 1 | AQ15: =-SUM(AQ7:AQ14) -> 0.6906950556 | AU15: =SUM(AU7:AU14) -> 1 | AV15: =-SUM(AV7:AV14) -> 0.8503259045
A16: 12 | B16: 4121 | C16: 24 | D16: 4135 | E16: 24 | F16: 4139 | K16: 0 | L16: 122 | P16: U= | Q16: =Q15/(LOG(Q4)/LOG(2)) -> 0.1525779245 | V16: U1= | W16: =W15/(LOG(W4)/LOG(2)) -> 0.3139117498 | AA16: U2= | AB16: =AB15/(LOG(AB4)/LOG(2)) -> 0.1365169689 | AF16: U3= | AG16: =AG15/(LOG(AG4)/LOG(2)) -> 0.1795416778 | AK16: U4= | AL16: =AL15/(LOG(AL4)/LOG(2)) -> 0.2425502178 | AP16: U5= | AQ16: =AQ15/(LOG(AQ4)/LOG(2)) -> 0.1421773894 | AU16: U6= | AV16: =AV15/(LOG(AV4)/LOG(2)) -> 0.1768802009
A17: 21 | B17: 4240 | C17: 22 | D17: 4247 | E17: 24 | F17: 4253 | K17: 0 | L17: 222
A18: 21 | B18: 4364 | C18: 22 | D18: 4368 | E18: 24 | F18: 4374 | K18: 0 | L18: 222
A19: 12 | B19: 4502 | C19: 24 | D19: 4509 | E19: 24 | F19: 4513 | K19: 0 | L19: 122 | N19: Total Target Seq
A20: 21 | B20: 4644 | C20: 22 | D20: 4649 | E20: 24 | F20: 4654 | K20: 0 | L20: 222 | N20: =COUNTIF(L7:L179,G3) -> 0 | P20: 29 | Q20: 29 | R20: 28 | S20: 29 | T20: 29 | U20: 29
A21: 21 | B21: 4763 | C21: 22 | D21: 4766 | E21: 24 | F21: 4771 | K21: 0 | L21: 222 | P21: % of reinforcement given in 6 equal intervals based on number of trials
A22: 21 | B22: 4885 | C22: 22 | D22: 4888 | E22: 24 | F22: 4892 | K22: 0 | L22: 222 | P22: %_1 | Q22: %_2 | R22: %_3 | S22: %_4 | T22: %_5 | U22: %_6
A23: 12 | B23: 4986 | C23: 24 | D23: 4998 | E23: 24 | F23: 5002 | K23: 0 | L23: 122 | O23: target sequence | P23: =$G$3 -> 211 | Q23: =$G$3 -> 211 | R23: =$G$3 -> 211 | S23: =$G$3 -> 211 | T23: =$G$3 -> 211 | U23: =$G$3 -> 211
A24: 12 | B24: 5225 | C24: 24 | D24: 5235 | E24: 24 | F24: 5244 | K24: 0 | L24: 122 | O24: total reinforcement | P24: =U11 -> 0 | Q24: =Z11 -> 0 | R24: =AE11 -> 0 | S24: =AJ11 -> 0 | T24: =AO11 -> 0 | U24: =AT11 -> 0
A25: 21 | B25: 5350 | C25: 22 | D25: 5354 | E25: 24 | F25: 5359 | K25: 0 | L25: 222 | O25: % target
A26: 12 | B26: 5457 | C26: 24 | D26: 5471 | E26: 24 | F26: 5476 | K26: 0 | L26: 122 | O26: CCRF
A27: 21 | B27: 5586 | C27: 22 | D27: 5590 | E27: 24 | F27: 5596 | K27: 0 | L27: 222 | O27: % CCRf
A28: 21 | B28: 5705 | C28: 22 | D28: 5708 | E28: 24 | F28: 5715 | K28: 0 | L28: 222 | O28: average response rate | P28: =F35/P20 -> 225.5862069 | Q28: =(F64-F35)/Q20 -> 122.137931 | R28: =(F92-F64)/R20 -> 120.2857143 | S28: =(F121-F92)/S20 -> 128.4137931 | T28: =(F150-F121)/T20 -> 116.3448276 | U28: =(F179-F150)/U20 -> -708.6206897
A29: 12 | B29: 5814 | C29: 24 | D29: 5820 | E29: 24 | F29: 5831 | K29: 0 | L29: 122
A30: 12 | B30: 5926 | C30: 24 | D30: 5935 | E30: 24 | F30: 5941 | K30: 0 | L30: 122
A31: 12 | B31: 6035 | C31: 24 | D31: 6054 | E31: 24 | F31: 6060 | K31: 0 | L31: 122
A32: 21 | B32: 6170 | C32: 22 | D32: 6174 | E32: 24 | F32: 6179 | K32: 0 | L32: 222
A33: 21 | B33: 6296 | C33: 22 | D33: 6301 | E33: 24 | F33: 6307 | K33: 0 | L33: 222
A34: 12 | B34: 6404 | C34: 24 | D34: 6416 | E34: 24 | F34: 6420 | K34: 0 | L34: 122
A35: 21 | B35: 6531 | C35: 22 | D35: 6536 | E35: 24 | F35: 6542 | K35: 0 | L35: 222
A36: 21 | B36: 6689 | C36: 22 | D36: 6693 | E36: 24 | F36: 6699 | K36: 0 | L36: 222
A37: 12 | B37: 6797 | C37: 24 | D37: 6810 | E37: 24 | F37: 6814 | K37: 0 | L37: 122
A38: 21 | B38: 6920 | C38: 22 | D38: 6924 | E38: 24 | F38: 6935 | K38: 0 | L38: 222
A39: 12 | B39: 7031 | C39: 24 | D39: 7043 | E39: 24 | F39: 7050 | K39: 0 | L39: 122
A40: 12 | B40: 7154 | C40: 24 | D40: 7163 | E40: 24 | F40: 7168 | K40: 0 | L40: 122
A41: 21 | B41: 7278 | C41: 22 | D41: 7283 | E41: 24 | F41: 7289 | K41: 0 | L41: 222
A42: 12 | B42: 7433 | C42: 24 | D42: 7443 | E42: 24 | F42: 7447 | K42: 0 | L42: 122
A43: 12 | B43: 7543 | C43: 24 | D43: 7557 | E43: 24 | F43: 7561 | K43: 0 | L43: 122
A44: 12 | B44: 7653 | C44: 24 | D44: 7668 | E44: 24 | F44: 7673 | K44: 0 | L44: 122
A45: 12 | B45: 7767 | C45: 24 | D45: 7776 | E45: 24 | F45: 7783 | K45: 0 | L45: 122
A46: 12 | B46: 7882 | C46: 24 | D46: 7893 | E46: 24 | F46: 7899 | K46: 0 | L46: 122
A47: 12 | B47: 8007 | C47: 24 | D47: 8020 | E47: 24 | F47: 8024 | K47: 0 | L47: 122
A48: 12 | B48: 8119 | C48: 24 | D48: 8128 | E48: 24 | F48: 8132 | K48: 0 | L48: 122
A49: 12 | B49: 8231 | C49: 24 | D49: 8247 | E49: 24 | F49: 8253 | K49: 0 | L49: 122
A50: 12 | B50: 8353 | C50: 24 | D50: 8368 | E50: 24 | F50: 8373 | K50: 0 | L50: 122
A51: 12 | B51: 8470 | C51: 24 | D51: 8482 | E51: 24 | F51: 8486 | K51: 0 | L51: 122
A52: 12 | B52: 8580 | C52: 24 | D52: 8592 | E52: 24 | F52: 8597 | K52: 0 | L52: 122
A53: 12 | B53: 8691 | C53: 24 | D53: 8702 | E53: 24 | F53: 8706 | K53: 0 | L53: 122
A54: 12 | B54: 8802 | C54: 24 | D54: 8811 | E54: 24 | F54: 8819 | K54: 0 | L54: 122
A55: 12 | B55: 8944 | C55: 24 | D55: 8953 | E55: 24 | F55: 8961 | K55: 0 | L55: 122
A56: 12 | B56: 9058 | C56: 24 | D56: 9065 | E56: 24 | F56: 9070 | K56: 0 | L56: 122
A57: 21 | B57: 9179 | C57: 22 | D57: 9183 | E57: 24 | F57: 9190 | K57: 0 | L57: 222
A58: 12 | B58: 9287 | C58: 24 | D58: 9297 | E58: 24 | F58: 9301 | K58: 0 | L58: 122
A59: 12 | B59: 9413 | C59: 24 | D59: 9423 | E59: 24 | F59: 9426 | K59: 0 | L59: 122
A60: 12 | B60: 9523 | C60: 24 | D60: 9531 | E60: 24 | F60: 9545 | K60: 0 | L60: 122
A61: 12 | B61: 9640 | C61: 24 | D61: 9657 | E61: 24 | F61: 9663 | K61: 0 | L61: 122
A62: 21 | B62: 9844 | C62: 22 | D62: 9853 | E62: 24 | F62: 9858 | K62: 0 | L62: 222
A63: 12 | B63: 9957 | C63: 24 | D63: 9966 | E63: 24 | F63: 9972 | K63: 0 | L63: 122
A64: 12 | B64: 10068 | C64: 24 | D64: 10081 | E64: 24 | F64: 10084 | K64: 0 | L64: 122
A65: 12 | B65: 10179 | C65: 24 | D65: 10188 | E65: 24 | F65: 10192 | K65: 0 | L65: 122
A66: 21 | B66: 10302 | C66: 22 | D66: 10308 | E66: 24 | F66: 10314 | K66: 0 | L66: 222
A67: 12 | B67: 10411 | C67: 24 | D67: 10420 | E67: 24 | F67: 10424 | K67: 0 | L67: 122
A68: 12 | B68: 10518 | C68: 24 | D68: 10533 | E68: 24 | F68: 10537 | K68: 0 | L68: 122
A69: 12 | B69: 10631 | C69: 24 | D69: 10643 | E69: 24 | F69: 10647 | K69: 0 | L69: 122
A70: 12 | B70: 10741 | C70: 24 | D70: 10751 | E70: 24 | F70: 10758 | K70: 0 | L70: 122
A71: 12 | B71: 10855 | C71: 24 | D71: 10867 | E71: 24 | F71: 10872 | K71: 0 | L71: 122
A72: 12 | B72: 10967 | C72: 24 | D72: 10977 | E72: 24 | F72: 10982 | K72: 0 | L72: 122
A73: 21 | B73: 11092 | C73: 22 | D73: 11100 | E73: 24 | F73: 11106 | K73: 0 | L73: 222
A74: 12 | B74: 11225 | C74: 24 | D74: 11241 | E74: 24 | F74: 11246 | K74: 0 | L74: 122
A75: 12 | B75: 11336 | C75: 24 | D75: 11344 | E75: 24 | F75: 11350 | K75: 0 | L75: 122
A76: 12 | B76: 11447 | C76: 24 | D76: 11460 | E76: 24 | F76: 11465 | K76: 0 | L76: 122
A77: 12 | B77: 11563 | C77: 24 | D77: 11576 | E77: 24 | F77: 11581 | K77: 0 | L77: 122
A78: 21 | B78: 11725 | C78: 22 | D78: 11729 | E78: 24 | F78: 11732 | K78: 0 | L78: 222
A79: 12 | B79: 11829 | C79: 24 | D79: 11840 | E79: 24 | F79: 11844 | K79: 0 | L79: 122
A80: 12 | B80: 11941 | C80: 24 | D80: 11949 | E80: 24 | F80: 11954 | K80: 0 | L80: 122
A81: 12 | B81: 12049 | C81: 24 | D81: 12068 | E81: 24 | F81: 12076 | K81: 0 | L81: 122
A82: 21 | B82: 12203 | C82: 22 | D82: 12206 | E82: 24 | F82: 12211 | K82: 0 | L82: 222
A83: 21 | B83: 12346 | C83: 22 | D83: 12352 | E83: 24 | F83: 12357 | K83: 0 | L83: 222
A84: 12 | B84: 12451 | C84: 24 | D84: 12462 | E84: 24 | F84: 12466 | K84: 0 | L84: 122
A85: 12 | B85: 12562 | C85: 24 | D85: 12576 | E85: 24 | F85: 12584 | K85: 0 | L85: 122
A86: 21 | B86: 12710 | C86: 22 | D86: 12712 | E86: 24 | F86: 12726 | K86: 0 | L86: 222
A87: 21 | B87: 12855 | C87: 22 | D87: 12859 | E87: 24 | F87: 12864 | K87: 0 | L87: 222
A88: 21 | B88: 12992 | C88: 22 | D88: 12996 | E88: 24 | F88: 13004 | K88: 0 | L88: 222
A89: 12 | B89: 13101 | C89: 24 | D89: 13110 | E89: 24 | F89: 13113 | K89: 0 | L89: 122
A90: 12 | B90: 13209 | C90: 24 | D90: 13221 | E90: 24 | F90: 13226 | K90: 0 | L90: 122
A91: 12 | B91: 13323 | C91: 24 | D91: 13332 | E91: 24 | F91: 13337 | K91: 0 | L91: 122
A92: 12 | B92: 13433 | C92: 24 | D92: 13448 | E92: 24 | F92: 13452 | K92: 0 | L92: 122
A93: 12 | B93: 13543 | C93: 24 | D93: 13555 | E93: 24 | F93: 13563 | K93: 0 | L93: 122
A94: 21 | B94: 13717 | C94: 22 | D94: 13720 | E94: 24 | F94: 13724 | K94: 0 | L94: 222
A95: 12 | B95: 13855 | C95: 24 | D95: 13862 | E95: 24 | F95: 13871 | K95: 0 | L95: 122
A96: 21 | B96: 14017 | C96: 22 | D96: 14025 | E96: 24 | F96: 14035 | K96: 0 | L96: 222
A97: 12 | B97: 14127 | C97: 13 | D97: 14130 | E97: 24 | F97: 14144 | K97: 0 | L97: 112
A98: 12 | B98: 14240 | C98: 24 | D98: 14251 | E98: 24 | F98: 14257 | K98: 0 | L98: 122
A99: 12 | B99: 14370 | C99: 24 | D99: 14381 | E99: 24 | F99: 14393 | K99: 0 | L99: 122
A100: 12 | B100: 14491 | C100: 24 | D100: 14508 | E100: 24 | F100: 14512 | K100: 0 | L100: 122
A101: 12 | B101: 14620 | C101: 24 | D101: 14630 | E101: 24 | F101: 14634 | K101: 0 | L101: 122
A102: 12 | B102: 14726 | C102: 24 | D102: 14738 | E102: 24 | F102: 14743 | K102: 0 | L102: 122
A103: 12 | B103: 14839 | C103: 24 | D103: 14854 | E103: 24 | F103: 14859 | K103: 0 | L103: 122
A104: 21 | B104: 14971 | C104: 22 | D104: 14975 | E104: 24 | F104: 14981 | K104: 0 | L104: 222
A105: 12 | B105: 15075 | C105: 24 | D105: 15088 | E105: 24 | F105: 15092 | K105: 0 | L105: 122
A106: 21 | B106: 15204 | C106: 22 | D106: 15207 | E106: 24 | F106: 15213 | K106: 0 | L106: 222
A107: 12 | B107: 15322 | C107: 24 | D107: 15333 | E107: 24 | F107: 15340 | K107: 0 | L107: 122
A108: 12 | B108: 15440 | C108: 24 | D108: 15449 | E108: 24 | F108: 15454 | K108: 0 | L108: 122
A109: 12 | B109: 15556 | C109: 24 | D109: 15571 | E109: 24 | F109: 15576 | K109: 0 | L109: 122
A110: 12 | B110: 15733 | C110: 24 | D110: 15743 | E110: 24 | F110: 15746 | K110: 0 | L110: 122
A111: 21 | B111: 15855 | C111: 22 | D111: 15859 | E111: 24 | F111: 15865 | K111: 0 | L111: 222
A112: 12 | B112: 15960 | C112: 24 | D112: 15968 | E112: 24 | F112: 15972 | K112: 0 | L112: 122
A113: 12 | B113: 16069 | C113: 13 | D113: 16071 | E113: 24 | F113: 16084 | K113: 0 | L113: 112
A114: 12 | B114: 16179 | C114: 24 | D114: 16189 | E114: 24 | F114: 16194 | K114: 0 | L114: 122
A115: 21 | B115: 16347 | C115: 22 | D115: 16353 | E115: 24 | F115: 16358 | K115: 0 | L115: 222
A116: 12 | B116: 16456 | C116: 24 | D116: 16464 | E116: 24 | F116: 16472 | K116: 0 | L116: 122
A117: 21 | B117: 16576 | C117: 22 | D117: 16579 | E117: 24 | F117: 16584 | K117: 0 | L117: 222
A118: 12 | B118: 16716 | C118: 24 | D118: 16727 | E118: 24 | F118: 16730 | K118: 0 | L118: 122
A119: 12 | B119: 16829 | C119: 24 | D119: 16837 | E119: 24 | F119: 16841 | K119: 0 | L119: 122
A120: 21 | B120: 17053 | C120: 22 | D120: 17055 | E120: 24 | F120: 17061 | K120: 0 | L120: 222
A121: 12 | B121: 17160 | C121: 24 | D121: 17169 | E121: 24 | F121: 17176 | K121: 0 | L121: 122
A122: 12 | B122: 17295 | C122: 24 | D122: 17304 | E122: 24 | F122: 17309 | K122: 0 | L122: 122
A123: 12 | B123: 17403 | C123: 24 | D123: 17416 | E123: 24 | F123: 17419 | K123: 0 | L123: 122
A124: 12 | B124: 17514 | C124: 24 | D124: 17526 | E124: 24 | F124: 17530 | K124: 0 | L124: 122
A125: 12 | B125: 17629 | C125: 24 | D125: 17638 | E125: 24 | F125: 17643 | K125: 0 | L125: 122
A126: 12 | B126: 17737 | C126: 24 | D126: 17749 | E126: 24 | F126: 17753 | K126: 0 | L126: 122
A127: 12 | B127: 17867 | C127: 24 | D127: 17876 | E127: 24 | F127: 17888 | K127: 0 | L127: 122
A128: 12 | B128: 17982 | C128: 24 | D128: 17991 | E128: 24 | F128: 17994 | K128: 0 | L128: 122
A129: 12 | B129: 18090 | C129: 24 | D129: 18099 | E129: 24 | F129: 18103 | K129: 0 | L129: 122
A130: 12 | B130: 18202 | C130: 24 | D130: 18210 | E130: 24 | F130: 18216 | K130: 0 | L130: 122
A131: 12 | B131: 18326 | C131: 24 | D131: 18334 | E131: 24 | F131: 18338 | K131: 0 | L131: 122
A132: 12 | B132: 18436 | C132: 13 | D132: 18439 | E132: 24 | F132: 18450 | K132: 0 | L132: 112
A133: 12 | B133: 18557 | C133: 24 | D133: 18566 | E133: 24 | F133: 18585 | K133: 0 | L133: 122
A134: 12 | B134: 18684 | C134: 24 | D134: 18693 | E134: 24 | F134: 18696 | K134: 0 | L134: 122
A135: 12 | B135: 18797 | C135: 24 | D135: 18807 | E135: 24 | F135: 18811 | K135: 0 | L135: 122
A136: 12 | B136: 18906 | C136: 24 | D136: 18921 | E136: 24 | F136: 18924 | K136: 0 | L136: 122
A137: 12 | B137: 19029 | C137: 24 | D137: 19045 | E137: 24 | F137: 19052 | K137: 0 | L137: 122
A138: 12 | B138: 19149 | C138: 24 | D138: 19157 | E138: 24 | F138: 19165 | K138: 0 | L138: 122
A139: 21 | B139: 19278 | C139: 22 | D139: 19283 | E139: 24 | F139: 19288 | K139: 0 | L139: 222
A140: 12 | B140: 19385 | C140: 13 | D140: 19387 | E140: 24 | F140: 19401 | K140: 0 | L140: 112
A141: 12 | B141: 19497 | C141: 24 | D141: 19509 | E141: 24 | F141: 19512 | K141: 0 | L141: 122
A142: 12 | B142: 19606 | C142: 24 | D142: 19617 | E142: 24 | F142: 19623 | K142: 0 | L142: 122
A143: 12 | B143: 19727 | C143: 24 | D143: 19737 | E143: 24 | F143: 19748 | K143: 0 | L143: 122
A144: 12 | B144: 19841 | C144: 24 | D144: 19852 | E144: 24 | F144: 19855 | K144: 0 | L144: 122
A145: 12 | B145: 19952 | C145: 24 | D145: 19964 | E145: 24 | F145: 19966 | K145: 0 | L145: 122
A146: 12 | B146: 20062 | C146: 24 | D146: 20072 | E146: 24 | F146: 20085 | K146: 0 | L146: 122
A147: 12 | B147: 20182 | C147: 13 | D147: 20187 | E147: 24 | F147: 20200 | K147: 0 | L147: 112
A148: 12 | B148: 20296 | C148: 24 | D148: 20311 | E148: 24 | F148: 20316 | K148: 0 | L148: 122
A149: 12 | B149: 20416 | C149: 24 | D149: 20428 | E149: 24 | F149: 20433 | K149: 0 | L149: 122
A150: 12 | B150: 20528 | C150: 24 | D150: 20543 | E150: 24 | F150: 20550 | K150: 0 | L150: 122
A151: 12 | B151: 20649 | C151: 24 | D151: 20658 | E151: 24 | F151: 20664 | K151: 0 | L151: 122
A152: 12 | B152: 20759 | C152: 13 | D152: 20761 | E152: 24 | F152: 20773 | K152: 0 | L152: 112
A153: 12 | B153: 20884 | C153: 24 | D153: 20893 | E153: 24 | F153: 20900 | K153: 0 | L153: 122
A154: 12 | B154: 20996 | C154: 24 | D154: 21010 | E154: 24 | F154: 21015 | K154: 0 | L154: 122
A155: 12 | B155: 21110 | C155: 13 | D155: 21114 | E155: 24 | F155: 21127 | K155: 0 | L155: 112
A156: 12 | B156: 21270 | C156: 24 | D156: 21280 | E156: 24 | F156: 21284 | K156: 0 | L156: 122
A157: 12 | B157: 21379 | C157: 24 | D157: 21396 | E157: 24 | F157: 21400 | K157: 0 | L157: 122
A158: 12 | B158: 21495 | C158: 24 | D158: 21508 | E158: 24 | F158: 21512 | K158: 0 | L158: 122
A159: 12 | B159: 21606 | C159: 24 | D159: 21609 | E159: 24 | F159: 21622 | K159: 0 | L159: 122
A160: 12 | B160: 21740 | C160: 24 | D160: 21751 | E160: 24 | F160: 21754 | K160: 0 | L160: 122
A161: 12 | B161: 21852 | C161: 24 | D161: 21859 | E161: 24 | F161: 21864 | K161: 0 | L161: 122
A162: 21 | B162: 21992 | C162: 22 | D162: 21998 | E162: 24 | F162: 22004 | K162: 0 | L162: 222
A163: 12 | B163: 22136 | C163: 24 | D163: 22146 | E163: 24 | F163: 22151 | K163: 0 | L163: 122
A164: 12 | B164: 22249 | C164: 24 | D164: 22265 | E164: 24 | F164: 22270 | K164: 0 | L164: 122
A165: 12 | B165: 22385 | C165: 24 | D165: 22396 | E165: 24 | F165: 22401 | K165: 0 | L165: 122
A166: 12 | B166: 22495 | C166: 24 | D166: 22509 | E166: 24 | F166: 22513 | K166: 0 | L166: 122
A167: 12 | B167: 22607 | C167: 24 | D167: 22616 | E167: 24 | F167: 22621 | K167: 0 | L167: 122
A168: 12 | B168: 22718 | C168: 24 | D168: 22730 | E168: 24 | F168: 22734 | K168: 0 | L168: 122
A169: 12 | B169: 22829 | C169: 24 | D169: 22838 | E169: 24 | F169: 22842 | K169: 0 | L169: 122
A170: 12 | B170: 22940 | C170: 24 | D170: 22951 | E170: 24 | F170: 22954 | K170: 0 | L170: 122
A171: 21 | B171: 23059 | C171: 22 | D171: 23063 | E171: 24 | F171: 23070 | K171: 0 | L171: 222
A172: 12 | B172: 23166 | C172: 24 | D172: 23176 | E172: 24 | F172: 23182 | K172: 0 | L172: 122
A173: 21 | B173: 23292 | C173: 22 | D173: 23300 | E173: 24 | F173: 23307 | K173: 0 | L173: 222
A174: 12 | B174: 23404 | C174: 24 | D174: 23418 | E174: 24 | F174: 23422 | K174: 0 | L174: 122
A175: 12 | B175: 23550 | C175: 24 | D175: 23561 | E175: 24 | F175: 23565 | K175: 0 | L175: 122
A176: 12 | B176: 23661 | C176: 24 | D176: 23678 | E176: 24 | F176: 23682 | K176: 0 | L176: 122
A177: 12 | B177: 23779 | C177: 24 | D177: 23793 | E177: 24 | F177: 23799 | K177: 0 | L177: 122
A178: 12 | B178: 23893 | C178: 24 | D178: 23905 | E178: 24 | F178: 23910 | K178: 0 | L178: 122
A179: 12 | B179: 23999 | L179: 1

Sheet !L82890T.ayl
A1: Report for:!L82890T.ayl
A2: Date: | B2: <date>
A3: Hen: | B3: <hen> | F3: Correct Sequence | G3: =Start!J2 -> 211 | P3: Total Sequences in Data | Q3: =4994-COUNTBLANK(L7:L5000) -> 176 | V3: Total Sequences in Block Data | W3: =COUNTA(L7:L35) -> 29 | AA3: Total Sequences in Block Data | AB3: =COUNTA(L36:L65) -> 30 | AF3: Total Sequences in Block Data | AG3: =COUNTA(L66:L94) -> 29 | AK3: Total Sequences in Block Data | AL3: =COUNTA(L95:L123) -> 29 | AP3: Total Sequences in Block Data | AQ3: =COUNTA(L124:L153) -> 30 | AU3: Total Sequences in Block Data | AV3: =COUNTA(L154:L182) -> 29
P4: Total Sequences in Summary | Q4: =SUM(O7:O14) -> 176 | V4: Total Sequences in Block Summary | W4: =SUM(U7:U14) -> 29 | AA4: Total Sequences in Block Summary | AB4: =SUM(Z7:Z14) -> 30 | AF4: Total Sequences in Block Summary | AG4: =SUM(AE7:AE14) -> 29 | AK4: Total Sequences in Block Summary | AL4: =SUM(AJ7:AJ14) -> 29 | AP4: Total Sequences in Block Summary | AQ4: =SUM(AO7:AO14) -> 30 | AU4: Total Sequences in Block Summary | AV4: =SUM(AT7:AT14) -> 29
T5: Block 1 | Y5: Block 2 | AD5: Block 3 | AI5: Block 4 | AN5: Block 5 | AS5: Block 6
A6: Sequence Component 1 | B6: Time 1 | C6: Sequence Component 2 | D6: Time 2 | E6: Sequence Component 3 | F6: Time 3 | G6: Sequence Component 4 | H6: Time 4 | I6: Sequence Component 5 | J6: Time 5 | K6: Correct? 0=No 1=Yes | L6: Sequence | N6: Frequency | P6: Relative Frequency | Q6: Variability | T6: Frequency | V6: Relative Frequency | W6: Variability | Y6: Frequency | AA6: Relative Frequency | AB6: Variability | AD6: Frequency | AF6: Relative Frequency | AG6: Variability | AI6: Frequency | AK6: Relative Frequency | AL6: Variability | AN6: Frequency | AP6: Relative Frequency | AQ6: Variability | AS6: Frequency | AU6: Relative Frequency | AV6: Variability
A7: 12 | B7: 877 | C7: 24 | D7: 902 | E7: 24 | F7: 908 | K7: 0 | L7: 122 | N7: 111 | O7: =COUNTIF($L$7:$L$500,N7) -> 0 | P7: =O7/$Q$4 -> 0 | Q7: =IF(P7=0,0,(P7*((LOG(P7))/LOG(2)))) -> 0 | T7: =N7 -> 111 | U7: =COUNTIF(L7:L35,T7) -> 0 | V7: =U7/(W4-U11) -> 0 | W7: =IF(V7=0,0,(V7*((LOG(V7))/LOG(2)))) -> 0 | Y7: =N7 -> 111 | Z7: =COUNTIF(L36:L65,Y7) -> 0 | AA7: =Z7/(AB4-Z11) -> 0 | AB7: =IF(AA7=0,0,(AA7*((LOG(AA7))/LOG(2)))) -> 0 | AD7: =N7 -> 111 | AE7: =COUNTIF(L66:L94,AD7) -> 0 | AF7: =AE7/(AG4-AE11) -> 0 | AG7: =IF(AF7=0,0,(AF7*((LOG(AF7))/LOG(2)))) -> 0 | AI7: =N7 -> 111 | AJ7: =COUNTIF(L95:L123,AI7) -> 0 | AK7: =AJ7/(AL4-AJ11) -> 0 | AL7: =IF(AK7=0,0,(AK7*((LOG(AK7))/LOG(2)))) -> 0 | AN7: =N7 -> 111 | AO7: =COUNTIF(L124:L153,AN7) -> 0 | AP7: =AO7/(AQ4-AO11) -> 0 | AQ7: =IF(AP7=0,0,(AP7*((LOG(AP7))/LOG(2)))) -> 0 | AS7: =N7 -> 111 | AT7: =COUNTIF(L154:L182,AS7) -> 0 | AU7: =AT7/(AV4-AT11) -> 0 | AV7: =IF(AU7=0,0,(AU7*((LOG(AU7))/LOG(2)))) -> 0
A8: 12 | B8: 1075 | C8: 24 | D8: 1082 | E8: 24 | F8: 1089 | K8: 0 | L8: 122 | N8: 112 | O8: =COUNTIF($L$7:$L$500,N8) -> 17 | P8: =O8/$Q$4 -> 0.09659090909 | Q8: =IF(P8=0,0,(P8*((LOG(P8))/LOG(2)))) -> -0.3257015296 | T8: =N8 -> 112 | U8: =COUNTIF(L7:L35,T8) -> 1 | V8: =U8/(W4-U11) -> 0.03448275862 | W8: =IF(V8=0,0,(V8*((LOG(V8))/LOG(2)))) -> -0.167516586 | Y8: =N8 -> 112 | Z8: =COUNTIF(L36:L65,Y8) -> 0 | AA8: =Z8/(AB4-Z11) -> 0 | AB8: =IF(AA8=0,0,(AA8*((LOG(AA8))/LOG(2)))) -> 0 | AD8: =N8 -> 112 | AE8: =COUNTIF(L66:L94,AD8) -> 4 | AF8: =AE8/(AG4-AE11) -> 0.1379310345 | AG8: =IF(AF8=0,0,(AF8*((LOG(AF8))/LOG(2)))) -> -0.3942042752 | AI8: =N8 -> 112 | AJ8: =COUNTIF(L95:L123,AI8) -> 1 | AK8: =AJ8/(AL4-AJ11) -> 0.03448275862 | AL8: =IF(AK8=0,0,(AK8*((LOG(AK8))/LOG(2)))) -> -0.167516586 | AN8: =N8 -> 112 | AO8: =COUNTIF(L124:L153,AN8) -> 4 | AP8: =AO8/(AQ4-AO11) -> 0.1333333333 | AQ8: =IF(AP8=0,0,(AP8*((LOG(AP8))/LOG(2)))) -> -0.3875854127 | AS8: =N8 -> 112 | AT8: =COUNTIF(L154:L182,AS8) -> 7 | AU8: =AT8/(AV4-AT11) -> 0.2413793103 | AV8: =IF(AU8=0,0,(AU8*((LOG(AU8))/LOG(2)))) -> -0.4949787073
A9: 21 | B9: 1196 | C9: 22 | D9: 1209 | E9: 24 | F9: 1215 | K9: 0 | L9: 222 | N9: 121 | O9: =COUNTIF($L$7:$L$500,N9) -> 0 | P9: =O9/$Q$4 -> 0 | Q9: =IF(P9=0,0,(P9*((LOG(P9))/LOG(2)))) -> 0 | T9: =N9 -> 121 | U9: =COUNTIF(L7:L35,T9) -> 0 | V9: =U9/(W4-U11) -> 0 | W9: =IF(V9=0,0,(V9*((LOG(V9))/LOG(2)))) -> 0 | Y9: =N9 -> 121 | Z9: =COUNTIF(L36:L65,Y9) -> 0 | AA9: =Z9/(AB4-Z11) -> 0 | AB9: =IF(AA9=0,0,(AA9*((LOG(AA9))/LOG(2)))) -> 0 | AD9: =N9 -> 121 | AE9: =COUNTIF(L66:L94,AD9) -> 0 | AF9: =AE9/(AG4-AE11) -> 0 | AG9: =IF(AF9=0,0,(AF9*((LOG(AF9))/LOG(2)))) -> 0 | AI9: =N9 -> 121 | AJ9: =COUNTIF(L95:L123,AI9) -> 0 | AK9: =AJ9/(AL4-AJ11) -> 0 | AL9: =IF(AK9=0,0,(AK9*((LOG(AK9))/LOG(2)))) -> 0 | AN9: =N9 -> 121 | AO9: =COUNTIF(L124:L153,AN9) -> 0 | AP9: =AO9/(AQ4-AO11) -> 0 | AQ9: =IF(AP9=0,0,(AP9*((LOG(AP9))/LOG(2)))) -> 0 | AS9: =N9 -> 121 | AT9: =COUNTIF(L154:L182,AS9) -> 0 | AU9: =AT9/(AV4-AT11) -> 0 | AV9: =IF(AU9=0,0,(AU9*((LOG(AU9))/LOG(2)))) -> 0
A10: 12 | B10: 1318 | C10: 24 | D10: 1328 | E10: 24 | F10: 1336 | K10: 0 | L10: 122 | N10: 122 | O10: =COUNTIF($L$7:$L$500,N10) -> 111 | P10: =O10/$Q$4 -> 0.6306818182 | Q10: =IF(P10=0,0,(P10*((LOG(P10))/LOG(2)))) -> -0.4194133438 | T10: =N10 -> 122 | U10: =COUNTIF(L7:L35,T10) -> 16 | V10: =U10/(W4-U11) -> 0.5517241379 | W10: =IF(V10=0,0,(V10*((LOG(V10))/LOG(2)))) -> -0.4733688249 | Y10: =N10 -> 122 | Z10: =COUNTIF(L36:L65,Y10) -> 22 | AA10: =Z10/(AB4-Z11) -> 0.7333333333 | AB10: =IF(AA10=0,0,(AA10*((LOG(AA10))/LOG(2)))) -> -0.3281365831 | AD10: =N10 -> 122 | AE10: =COUNTIF(L66:L94,AD10) -> 18 | AF10: =AE10/(AG4-AE11) -> 0.6206896552 | AG10: =IF(AF10=0,0,(AF10*((LOG(AF10))/LOG(2)))) -> -0.4270692375 | AI10: =N10 -> 122 | AJ10: =COUNTIF(L95:L123,AI10) -> 19 | AK10: =AJ10/(AL4-AJ11) -> 0.6551724138 | AL10: =IF(AK10=0,0,(AK10*((LOG(AK10))/LOG(2)))) -> -0.3996902121 | AN10: =N10 -> 122 | AO10: =COUNTIF(L124:L153,AN10) -> 18 | AP10: =AO10/(AQ4-AO11) -> 0.6 | AQ10: =IF(AP10=0,0,(AP10*((LOG(AP10))/LOG(2)))) -> -0.4421793565 | AS10: =N10 -> 122 | AT10: =COUNTIF(L154:L182,AS10) -> 18 | AU10: =AT10/(AV4-AT11) -> 0.6206896552 | AV10: =IF(AU10=0,0,(AU10*((LOG(AU10))/LOG(2)))) -> -0.4270692375
A11: 12 | B11: 2138 | C11: 13 | D11: 2142 | E11: 24 | F11: 2150 | K11: 0 | L11: 112 | N11: 211 | O11: =COUNTIF($L$7:$L$500,N11) -> 0 | P11: =O11/$Q$4 -> 0 | Q11: =IF(P11=0,0,(P11*((LOG(P11))/LOG(2)))) -> 0 | T11: =N11 -> 211 | U11: =COUNTIF(L7:L35,T11) -> 0 | Y11: =N11 -> 211 | Z11: =COUNTIF(L36:L65,Y11) -> 0 | AD11: =N11 -> 211 | AE11: =COUNTIF(L66:L94,AD11) -> 0 | AI11: =N11 -> 211 | AJ11: =COUNTIF(L95:L123,AI11) -> 0 | AN11: =N11 -> 211 | AO11: =COUNTIF(L124:L153,AN11) -> 0 | AS11: =N11 -> 211 | AT11: =COUNTIF(L154:L182,AS11) -> 0
A12: 21 | B12: 2262 | C12: 22 | D12: 2268 | E12: 24 | F12: 2280 | K12: 0 | L12: 222 | N12: 212 | O12: =COUNTIF($L$7:$L$500,N12) -> 0 | P12: =O12/$Q$4 -> 0 | Q12: =IF(P12=0,0,(P12*((LOG(P12))/LOG(2)))) -> 0 | T12: =N12 -> 212 | U12: =COUNTIF(L7:L35,T12) -> 0 | V12: =U12/(W4-U11) -> 0 | W12: =IF(V12=0,0,(V12*((LOG(V12))/LOG(2)))) -> 0 | Y12: =N12 -> 212 | Z12: =COUNTIF(L36:L65,Y12) -> 0 | AA12: =Z12/(AB4-Z11) -> 0 | AB12: =IF(AA12=0,0,(AA12*((LOG(AA12))/LOG(2)))) -> 0 | AD12: =N12 -> 212 | AE12: =COUNTIF(L66:L94,AD12) -> 0 | AF12: =AE12/(AG4-AE11) -> 0 | AG12: =IF(AF12=0,0,(AF12*((LOG(AF12))/LOG(2)))) -> 0 | AI12: =N12 -> 212 | AJ12: =COUNTIF(L95:L123,AI12) -> 0 | AK12: =AJ12/(AL4-AJ11) -> 0 | AL12: =IF(AK12=0,0,(AK12*((LOG(AK12))/LOG(2)))) -> 0 | AN12: =N12 -> 212 | AO12: =COUNTIF(L124:L153,AN12) -> 0 | AP12: =AO12/(AQ4-AO11) -> 0 | AQ12: =IF(AP12=0,0,(AP12*((LOG(AP12))/LOG(2)))) -> 0 | AS12: =N12 -> 212 | AT12: =COUNTIF(L154:L182,AS12) -> 0 | AU12: =AT12/(AV4-AT11) -> 0 | AV12: =IF(AU12=0,0,(AU12*((LOG(AU12))/LOG(2)))) -> 0
A13: 21 | B13: 2386 | C13: 22 | D13: 2390 | E13: 24 | F13: 2398 | K13: 0 | L13: 222 | N13: 221 | O13: =COUNTIF($L$7:$L$500,N13) -> 0 | P13: =O13/$Q$4 -> 0 | Q13: =IF(P13=0,0,(P13*((LOG(P13))/LOG(2)))) -> 0 | T13: =N13 -> 221 | U13: =COUNTIF(L7:L35,T13) -> 0 | V13: =U13/(W4-U11) -> 0 | W13: =IF(V13=0,0,(V13*((LOG(V13))/LOG(2)))) -> 0 | Y13: =N13 -> 221 | Z13: =COUNTIF(L36:L65,Y13) -> 0 | AA13: =Z13/(AB4-Z11) -> 0 | AB13: =IF(AA13=0,0,(AA13*((LOG(AA13))/LOG(2)))) -> 0 | AD13: =N13 -> 221 | AE13: =COUNTIF(L66:L94,AD13) -> 0 | AF13: =AE13/(AG4-AE11) -> 0 | AG13: =IF(AF13=0,0,(AF13*((LOG(AF13))/LOG(2)))) -> 0 | AI13: =N13 -> 221 | AJ13: =COUNTIF(L95:L123,AI13) -> 0 | AK13: =AJ13/(AL4-AJ11) -> 0 | AL13: =IF(AK13=0,0,(AK13*((LOG(AK13))/LOG(2)))) -> 0 | AN13: =N13 -> 221 | AO13: =COUNTIF(L124:L153,AN13) -> 0 | AP13: =AO13/(AQ4-AO11) -> 0 | AQ13: =IF(AP13=0,0,(AP13*((LOG(AP13))/LOG(2)))) -> 0 | AS13: =N13 -> 221 | AT13: =COUNTIF(L154:L182,AS13) -> 0 | AU13: =AT13/(AV4-AT11) -> 0 | AV13: =IF(AU13=0,0,(AU13*((LOG(AU13))/LOG(2)))) -> 0
A14: 12 | B14: 2497 | C14: 24 | D14: 2513 | E14: 24 | F14: 2522 | K14: 0 | L14: 122 | N14: 222 | O14: =COUNTIF($L$7:$L$500,N14) -> 48 | P14: =O14/$Q$4 -> 0.2727272727 | Q14: =IF(P14=0,0,(P14*((LOG(P14))/LOG(2)))) -> -0.5112188503 | T14: =N14 -> 222 | U14: =COUNTIF(L7:L35,T14) -> 12 | V14: =U14/(W4-U11) -> 0.4137931034 | W14: =IF(V14=0,0,(V14*((LOG(V14))/LOG(2)))) -> -0.5267662735 | Y14: =N14 -> 222 | Z14: =COUNTIF(L36:L65,Y14) -> 8 | AA14: =Z14/(AB4-Z11) -> 0.2666666667 | AB14: =IF(AA14=0,0,(AA14*((LOG(AA14))/LOG(2)))) -> -0.5085041588 | AD14: =N14 -> 222 | AE14: =COUNTIF(L66:L94,AD14) -> 7 | AF14: =AE14/(AG4-AE11) -> 0.2413793103 | AG14: =IF(AF14=0,0,(AF14*((LOG(AF14))/LOG(2)))) -> -0.4949787073 | AI14: =N14 -> 222 | AJ14: =COUNTIF(L95:L123,AI14) -> 9 | AK14: =AJ14/(AL4-AJ11) -> 0.3103448276 | AL14: =IF(AK14=0,0,(AK14*((LOG(AK14))/LOG(2)))) -> -0.5238794463 | AN14: =N14 -> 222 | AO14: =COUNTIF(L124:L153,AN14) -> 8 | AP14: =AO14/(AQ4-AO11) -> 0.2666666667 | AQ14: =IF(AP14=0,0,(AP14*((LOG(AP14))/LOG(2)))) -> -0.5085041588 | AS14: =N14 -> 222 | AT14: =COUNTIF(L154:L182,AS14) -> 4 | AU14: =AT14/(AV4-AT11) -> 0.1379310345 | AV14: =IF(AU14=0,0,(AU14*((LOG(AU14))/LOG(2)))) -> -0.3942042752
A15: 12 | B15: 2618 | C15: 24 | D15: 2628 | E15: 24 | F15: 2634 | K15: 0 | L15: 122 | P15: =SUM(P7:P14) -> 1 | Q15: =-SUM(Q7:Q14) -> 1.256333724 | V15: =SUM(V7:V14) -> 1 | W15: =-SUM(W7:W14) -> 1.167651684 | AA15: =SUM(AA7:AA14) -> 1 | AB15: =-SUM(AB7:AB14) -> 0.8366407419 | AF15: =SUM(AF7:AF14) -> 1 | AG15: =-SUM(AG7:AG14) -> 1.31625222 | AK15: =SUM(AK7:AK14) -> 1 | AL15: =-SUM(AL7:AL14) -> 1.091086244 | AP15: =SUM(AP7:AP14) -> 1 | AQ15: =-SUM(AQ7:AQ14) -> 1.338268928 | AU15: =SUM(AU7:AU14) -> 1 | AV15: =-SUM(AV7:AV14) -> 1.31625222
A16: 21 | B16: 2741 | C16: 22 | D16: 2745 | E16: 24 | F16: 2751 | K16: 0 | L16: 222 | P16: U= | Q16: =Q15/(LOG(Q4)/LOG(2)) -> 0.1684221785 | V16: U1= | W16: =W15/(LOG(W4)/LOG(2)) -> 0.2403574007 | AA16: U2= | AB16: =AB15/(LOG(AB4)/LOG(2)) -> 0.1705032394 | AF16: U3= | AG16: =AG15/(LOG(AG4)/LOG(2)) -> 0.2709463502 | AK16: U4= | AL16: =AL15/(LOG(AL4)/LOG(2)) -> 0.2245966474 | AP16: U5= | AQ16: =AQ15/(LOG(AQ4)/LOG(2)) -> 0.2727325792 | AU16: U6= | AV16: =AV15/(LOG(AV4)/LOG(2)) -> 0.2709463502
A17: 12 | B17: 2848 | C17: 24 | D17: 2855 | E17: 24 | F17: 2861 | K17: 0 | L17: 122
A18: 12 | B18: 2951 | C18: 24 | D18: 2959 | E18: 24 | F18: 2963 | K18: 0 | L18: 122
A19: 21 | B19: 3077 | C19: 22 | D19: 3082 | E19: 24 | F19: 3087 | K19: 0 | L19: 222 | N19: Total Target Seq
A20: 12 | B20: 3182 | C20: 24 | D20: 3197 | E20: 24 | F20: 3201 | K20: 0 | L20: 122 | N20: =COUNTIF(L7:L182,G3) -> 0 | P20: 29 | Q20: 30 | R20: 29 | S20: 29 | T20: 30 | U20: 29
A21: 21 | B21: 4194 | C21: 22 | D21: 4199 | E21: 24 | F21: 4217 | K21: 0 | L21: 222 | P21: % of reinforcement given in 6 equal intervals based on number of trials
A22: 12 | B22: 4316 | C22: 24 | D22: 4330 | E22: 24 | F22: 4335 | K22: 0 | L22: 122 | P22: %_1 | Q22: %_2 | R22: %_3 | S22: %_4 | T22: %_5 | U22: %_6
A23: 21 | B23: 4493 | C23: 22 | D23: 4496 | E23: 24 | F23: 4501 | K23: 0 | L23: 222 | O23: target sequence | P23: =$G$3 -> 211 | Q23: =$G$3 -> 211 | R23: =$G$3 -> 211 | S23: =$G$3 -> 211 | T23: =$G$3 -> 211 | U23: =$G$3 -> 211
A24: 12 | B24: 4596 | C24: 24 | D24: 4605 | E24: 24 | F24: 4607 | K24: 0 | L24: 122 | O24: total reinforcement | P24: =U11 -> 0 | Q24: =Z11 -> 0 | R24: =AE11 -> 0 | S24: =AJ11 -> 0 | T24: =AO11 -> 0 | U24: =AT11 -> 0
A25: 12 | B25: 4722 | C25: 24 | D25: 4738 | E25: 24 | F25: 4744 | K25: 0 | L25: 122 | O25: % target
A26: 21 | B26: 4848 | C26: 22 | D26: 4855 | E26: 24 | F26: 4860 | K26: 0 | L26: 222 | O26: CCRF
A27: 12 | B27: 4955 | C27: 24 | D27: 4967 | E27: 24 | F27: 4969 | K27: 0 | L27: 122 | O27: % CCRf
A28: 12 | B28: 5064 | C28: 24 | D28: 5078 | E28: 24 | F28: 5082 | K28: 0 | L28: 122 | O28: average response rate | P28: =F35/P20 -> 203.9655172 | Q28: =(F65-F35)/Q20 -> 121.3333333 | R28: =(F94-F65)/R20 -> 118.6551724 | S28: =(F123-F94)/S20 -> 124.9655172 | T28: =(F153-F123)/T20 -> 126.0333333 | U28: =(F182-F153)/U20 -> 117.6896552
A29: 21 | B29: 5211 | C29: 22 | D29: 5217 | E29: 24 | F29: 5223 | K29: 0 | L29: 222
A30: 12 | B30: 5318 | C30: 24 | D30: 5329 | E30: 24 | F30: 5333 | K30: 0 | L30: 122
A31: 12 | B31: 5430 | C31: 24 | D31: 5442 | E31: 24 | F31: 5446 | K31: 0 | L31: 122
A32: 21 | B32: 5548 | C32: 22 | D32: 5555 | E32: 24 | F32: 5559 | K32: 0 | L32: 222
A33: 12 | B33: 5655 | C33: 24 | D33: 5669 | E33: 24 | F33: 5673 | K33: 0 | L33: 122
A34: 21 | B34: 5784 | C34: 22 | D34: 5789 | E34: 24 | F34: 5793 | K34: 0 | L34: 222
A35: 21 | B35: 5897 | C35: 22 | D35: 5901 | E35: 24 | F35: 5915 | K35: 0 | L35: 222
A36: 12 | B36: 6015 | C36: 24 | D36: 6026 | E36: 24 | F36: 6029 | K36: 0 | L36: 122
A37: 21 | B37: 6157 | C37: 22 | D37: 6161 | E37: 24 | F37: 6165 | K37: 0 | L37: 222
A38: 12 | B38: 6258 | C38: 24 | D38: 6268 | E38: 24 | F38: 6271 | K38: 0 | L38: 122
A39: 12 | B39: 6365 | C39: 24 | D39: 6374 | E39: 24 | F39: 6382 | K39: 0 | L39: 122
A40: 21 | B40: 6485 | C40: 22 | D40: 6491 | E40: 24 | F40: 6495 | K40: 0 | L40: 222
A41: 12 | B41: 6594 | C41: 24 | D41: 6609 | E41: 24 | F41: 6619 | K41: 0 | L41: 122
A42: 12 | B42: 6710 | C42: 24 | D42: 6718 | E42: 24 | F42: 6726 | K42: 0 | L42: 122
A43: 12 | B43: 6825 | C43: 24 | D43: 6840 | E43: 24 | F43: 6845 | K43: 0 | L43: 122
A44: 12 | B44: 6939 | C44: 24 | D44: 6953 | E44: 24 | F44: 6956 | K44: 0 | L44: 122
A45: 12 | B45: 7053 | C45: 24 | D45: 7060 | E45: 24 | F45: 7065 | K45: 0 | L45: 122
A46: 12 | B46: 7161 | C46: 24 | D46: 7174 | E46: 24 | F46: 7179 | K46: 0 | L46: 122
A47: 12 | B47: 7275 | C47: 24 | D47: 7283 | E47: 24 | F47: 7297 | K47: 0 | L47: 122
A48: 12 | B48: 7391 | C48: 24 | D48: 7405 | E48: 24 | F48: 7409 | K48: 0 | L48: 122
A49: 21 | B49: 7520 | C49: 22 | D49: 7525 | E49: 24 | F49: 7531 | K49: 0 | L49: 222
A50: 21 | B50: 7813 | C50: 22 | D50: 7816 | E50: 24 | F50: 7821 | K50: 0 | L50: 222
A51: 12 | B51: 7913 | C51: 24 | D51: 7927 | E51: 24 | F51: 7931 | K51: 0 | L51: 122
A52: 12 | B52: 8028 | C52: 24 | D52: 8041 | E52: 24 | F52: 8046 | K52: 0 | L52: 122
A53: 12 | B53: 8140 | C53: 24 | D53: 8159 | E53: 24 | F53: 8162 | K53: 0 | L53: 122
A54: 12 | B54: 8258 | C54: 24 | D54: 8272 | E54: 24 | F54: 8275 | K54: 0 | L54: 122
A55: 21 | B55: 8402 | C55: 22 | D55: 8405 | E55: 24 | F55: 8416 | K55: 0 | L55: 222
A56: 12 | B56: 8513 | C56: 24 | D56: 8525 | E56: 24 | F56: 8529 | K56: 0 | L56: 122
A57: 12 | B57: 8617 | C57: 24 | D57: 8631 | E57: 24 | F57: 8636 | K57: 0 | L57: 122
A58: 12 | B58: 8730 | C58: 24 | D58: 8739 | E58: 24 | F58: 8744 | K58: 0 | L58: 122
A59: 12 | B59: 8838 | C59: 24 | D59: 8850 | E59: 24 | F59: 8855 | K59: 0 | L59: 122
A60: 21 | B60: 8959 | C60: 22 | D60: 8964 | E60: 24 | F60: 8969 | K60: 0 | L60: 222
A61: 21 | B61: 9076 | C61: 22 | D61: 9080 | E61: 24 | F61: 9086 | K61: 0 | L61: 222
A62: 12 | B62: 9178 | C62: 24 | D62: 9187 | E62: 24 | F62: 9193 | K62: 0 | L62: 122
A63: 12 | B63: 9289 | C63: 24 | D63: 9302 | E63: 24 | F63: 9306 | K63: 0 | L63: 122
A64: 21 | B64: 9433 | C64: 22 | D64: 9438 | E64: 24 | F64: 9441 | K64: 0 | L64: 222
A65: 12 | B65: 9534 | C65: 24 | D65: 9550 | E65: 24 | F65: 9555 | K65: 0 | L65: 122
A66: 12 | B66: 9655 | C66: 24 | D66: 9667 | E66: 24 | F66: 9671 | K66: 0 | L66: 122
A67: 21 | B67: 9798 | C67: 22 | D67: 9805 | E67: 24 | F67: 9812 | K67: 0 | L67: 222
A68: 21 | B68: 9933 | C68: 22 | D68: 9938 | E68: 24 | F68: 9942 | K68: 0 | L68: 222
A69: 12 | B69: 10038 | C69: 24 | D69: 10048 | E69: 24 | F69: 10049 | K69: 0 | L69: 122
A70: 21 | B70: 10155 | C70: 22 | D70: 10161 | E70: 24 | F70: 10165 | K70: 0 | L70: 222
A71: 12 | B71: 10264 | C71: 13 | D71: 10267 | E71: 24 | F71: 10275 | K71: 0 | L71: 112
A72: 21 | B72: 10384 | C72: 22 | D72: 10388 | E72: 24 | F72: 10396 | K72: 0 | L72: 222
A73: 12 | B73: 10492 | C73: 24 | D73: 10510 | E73: 24 | F73: 10514 | K73: 0 | L73: 122
A74: 12 | B74: 10612 | C74: 13 | D74: 10618 | E74: 24 | F74: 10631 | K74: 0 | L74: 112
A75: 21 | B75: 10739 | C75: 22 | D75: 10741 | E75: 24 | F75: 10748 | K75: 0 | L75: 222
A76: 12 | B76: 10844 | C76: 24 | D76: 10859 | E76: 24 | F76: 10864 | K76: 0 | L76: 122
A77: 12 | B77: 10969 | C77: 24 | D77: 10979 | E77: 24 | F77: 10991 | K77: 0 | L77: 122
A78: 12 | B78: 11088 | C78: 24 | D78: 11102 | E78: 24 | F78: 11105 | K78: 0 | L78: 122
A79: 12 | B79: 11204 | C79: 24 | D79: 11217 | E79: 24 | F79: 11220 | K79: 0 | L79: 122
A80: 21 | B80: 11368 | C80: 22 | D80: 11371 | E80: 24 | F80: 11375 | K80: 0 | L80: 222
A81: 12 | B81: 11473 | C81: 24 | D81: 11485 | E81: 24 | F81: 11490 | K81: 0 | L81: 122
A82: 12 | B82: 11586 | C82: 24 | D82: 11594 | E82: 24 | F82: 11603 | K82: 0 | L82: 122
A83: 12 | B83: 11700 | C83: 13 | D83: 11704 | E83: 24 | F83: 11715 | K83: 0 | L83: 112
A84: 12 | B84: 11812 | C84: 24 | D84: 11820 | E84: 24 | F84: 11824 | K84: 0 | L84: 122
A85: 12 | B85: 11920 | C85: 24 | D85: 11931 | E85: 24 | F85: 11939 | K85: 0 | L85: 122
A86: 12 | B86: 12036 | C86: 24 | D86: 12046 | E86: 24 | F86: 12053 | K86: 0 | L86: 122
A87: 12 | B87: 12147 | C87: 13 | D87: 12151 | E87: 24 | F87: 12164 | K87: 0 | L87: 112
A88: 21 | B88: 12285 | C88: 22 | D88: 12297 | E88: 24 | F88: 12303 | K88: 0 | L88: 222
A89: 12 | B89: 12414 | C89: 24 | D89: 12430 | E89: 24 | F89: 12437 | K89: 0 | L89: 122
A90: 12 | B90: 12526 | C90: 24 | D90: 12537 | E90: 24 | F90: 12541 | K90: 0 | L90: 122
A91: 12 | B91: 12639 | C91: 24 | D91: 12653 | E91: 24 | F91: 12657 | K91: 0 | L91: 122
A92: 12 | B92: 12756 | C92: 24 | D92: 12763 | E92: 24 | F92: 12768 | K92: 0 | L92: 122
A93: 12 | B93: 12863 | C93: 24 | D93: 12878 | E93: 24 | F93: 12883 | K93: 0 | L93: 122
A94: 12 | B94: 12980 | C94: 24 | D94: 12991 | E94: 24 | F94: 12996 | K94: 0 | L94: 122
A95: 21 | B95: 13327 | C95: 22 | D95: 13334 | E95: 24 | F95: 13339 | K95: 0 | L95: 222
A96: 21 | B96: 13443 | C96: 22 | D96: 13449 | E96: 24 | F96: 13455 | K96: 0 | L96: 222
A97: 21 | B97: 13559 | C97: 22 | D97: 13566 | E97: 24 | F97: 13571 | K97: 0 | L97: 222
A98: 21 | B98: 13673 | C98: 22 | D98: 13678 | E98: 24 | F98: 13682 | K98: 0 | L98: 222
A99: 12 | B99: 13793 | C99: 24 | D99: 13796 | E99: 24 | F99: 13802 | K99: 0 | L99: 122
A100: 12 | B100: 13898 | C100: 24 | D100: 13911 | E100: 24 | F100: 13915 | K100: 0 | L100: 122
A101: 21 | B101: 14028 | C101: 22 | D101: 14034 | E101: 24 | F101: 14044 | K101: 0 | L101: 222
A102: 12 | B102: 14140 | C102: 24 | D102: 14153 | E102: 24 | F102: 14156 | K102: 0 | L102: 122
A103: 21 | B103: 14282 | C103: 22 | D103: 14287 | E103: 24 | F103: 14295 | K103: 0 | L103: 222
A104: 12 | B104: 14394 | C104: 24 | D104: 14407 | E104: 24 | F104: 14411 | K104: 0 | L104: 122
A105: 12 | B105: 14507 | C105: 24 | D105: 14518 | E105: 24 | F105: 14522 | K105: 0 | L105: 122
A106: 12 | B106: 14619 | C106: 24 | D106: 14631 | E106: 24 | F106: 14634 | K106: 0 | L106: 122
A107: 12 | B107: 14730 | C107: 24 | D107: 14741 | E107: 24 | F107: 14746 | K107: 0 | L107: 122
A108: 21 | B108: 14847 | C108: 22 | D108: 14853 | E108: 24 | F108: 14857 | K108: 0 | L108: 222
A109: 12 | B109: 14953 | C109: 24 | D109: 14965 | E109: 24 | F109: 14967 | K109: 0 | L109: 122
A110: 12 | B110: 15062 | C110: 24 | D110: 15072 | E110: 24 | F110: 15077 | K110: 0 | L110: 122
A111: 12 | B111: 15172 | C111: 24 | D111: 15183 | E111: 24 | F111: 15187 | K111: 0 | L111: 122
A112: 12 | B112: 15286 | C112: 24 | D112: 15294 | E112: 24 | F112: 15297 | K112: 0 | L112: 122
A113: 21 | B113: 15417 | C113: 22 | D113: 15426 | E113: 24 | F113: 15439 | K113: 0 | L113: 222
A114: 12 | B114: 15577 | C114: 24 | D114: 15593 | E114: 24 | F114: 15599 | K114: 0 | L114: 122
A115: 21 | B115: 15709 | C115: 22 | D115: 15713 | E115: 24 | F115: 15716 | K115: 0 | L115: 222
A116: 12 | B116: 15812 | C116: 24 | D116: 15823 | E116: 24 | F116: 15834 | K116: 0 | L116: 122
A117: 12 | B117: 15930 | C117: 24 | D117: 15943 | E117: 24 | F117: 15947 | K117: 0 | L117: 122
A118: 12 | B118: 16041 | C118: 24 | D118: 16052 | E118: 24 | F118: 16057 | K118: 0 | L118: 122
A119: 12 | B119: 16160 | C119: 24 | D119: 16167 | E119: 24 | F119: 16172 | K119: 0 | L119: 122
A120: 12 | B120: 16264 | C120: 24 | D120: 16274 | E120: 24 | F120: 16285 | K120: 0 | L120: 122
A121: 12 | B121: 16380 | C121: 24 | D121: 16392 | E121: 24 | F121: 16396 | K121: 0 | L121: 122
A122: 12 | B122: 16493 | C122: 24 | D122: 16502 | E122: 24 | F122: 16509 | K122: 0 | L122: 122
A123: 12 | B123: 16602 | C123: 13 | D123: 16606 | E123: 24 | F123: 16620 | K123: 0 | L123: 112
A124: 21 | B124: 16738 | C124: 22 | D124: 16768 | E124: 24 | F124: 16771 | K124: 0 | L124: 222
A125: 21 | B125: 16878 | C125: 22 | D125: 16884 | E125: 24 | F125: 16889 | K125: 0 | L125: 222
A126: 12 | B126: 16978 | C126: 24 | D126: 16988 | E126: 24 | F126: 16992 | K126: 0 | L126: 122
A127: 21 | B127: 17129 | C127: 22 | D127: 17133 | E127: 24 | F127: 17136 | K127: 0 | L127: 222
A128: 12 | B128: 17234 | C128: 24 | D128: 17243 | E128: 24 | F128: 17247 | K128: 0 | L128: 122
A129: 12 | B129: 17346 | C129: 24 | D129: 17358 | E129: 24 | F129: 17366 | K129: 0 | L129: 122
A130: 12 | B130: 17460 | C130: 24 | D130: 17470 | E130: 24 | F130: 17477 | K130: 0 | L130: 122
A131: 21 | B131: 17833 | C131: 22 | D131: 17835 | E131: 24 | F131: 17839 | K131: 0 | L131: 222
A132: 21 | B132: 17947 | C132: 22 | D132: 17951 | E132: 24 | F132: 17955 | K132: 0 | L132: 222
A133: 12 | B133: 18050 | C133: 24 | D133: 18060 | E133: 24 | F133: 18063 | K133: 0 | L133: 122
A134: 12 | B134: 18158 | C134: 24 | D134: 18173 | E134: 24 | F134: 18179 | K134: 0 | L134: 122
A135: 12 | B135: 18273 | C135: 24 | D135: 18288 | E135: 24 | F135: 18293 | K135: 0 | L135: 122
A136: 12 | B136: 18390 | C136: 24 | D136: 18404 | E136: 24 | F136: 18408 | K136: 0 | L136: 122
A137: 12 | B137: 18509 | C137: 24 | D137: 18517 | E137: 24 | F137: 18519 | K137: 0 | L137: 122
A138: 12 | B138: 18615 | C138: 13 | D138: 18617 | E138: 24 | F138: 18626 | K138: 0 | L138: 112
A139: 12 | B139: 18723 | C139: 24 | D139: 18735 | E139: 24 | F139: 18740 | K139: 0 | L139: 122
A140: 12 | B140: 18829 | C140: 24 | D140: 18843 | E140: 24 | F140: 18851 | K140: 0 | L140: 122
A141: 12 | B141: 18949 | C141: 24 | D141: 18958 | E141: 24 | F141: 18965 | K141: 0 | L141: 122
A142: 21 | B142: 19073 | C142: 22 | D142: 19077 | E142: 24 | F142: 19082 | K142: 0 | L142: 222
A143: 12 | B143: 19184 | C143: 24 | D143: 19199 | E143: 24 | F143: 19203 | K143: 0 | L143: 122
A144: 12 | B144: 19300 | C144: 13 | D144: 19302 | E144: 24 | F144: 19312 | K144: 0 | L144: 112
A145: 12 | B145: 19408 | C145: 24 | D145: 19422 | E145: 24 | F145: 19426 | K145: 0 | L145: 122
A146: 21 | B146: 19536 | C146: 22 | D146: 19542 | E146: 24 | F146: 19547 | K146: 0 | L146: 222
A147: 12 | B147: 19643 | C147: 24 | D147: 19655 | E147: 24 | F147: 19656 | K147: 0 | L147: 122
A148: 12 | B148: 19755 | C148: 13 | D148: 19758 | E148: 24 | F148: 19771 | K148: 0 | L148: 112
A149: 12 | B149: 19873 | C149: 24 | D149: 19883 | E149: 24 | F149: 19887 | K149: 0 | L149: 122
A150: 21 | B150: 20053 | C150: 22 | D150: 20056 | E150: 24 | F150: 20060 | K150: 0 | L150: 222
A151: 12 | B151: 20153 | C151: 13 | D151: 20155 | E151: 24 | F151: 20167 | K151: 0 | L151: 112
A152: 12 | B152: 20270 | C152: 24 | D152: 20283 | E152: 24 | F152: 20289 | K152: 0 | L152: 122
A153: 12 | B153: 20384 | C153: 24 | D153: 20397 | E153: 24 | F153: 20401 | K153: 0 | L153: 122
A154: 12 | B154: 20496 | C154: 13 | D154: 20499 | E154: 24 | F154: 20506 | K154: 0 | L154: 112
A155: 12 | B155: 20602 | C155: 13 | D155: 20606 | E155: 24 | F155: 20616 | K155: 0 | L155: 112
A156: 12 | B156: 20710 | C156: 24 | D156: 20722 | E156: 24 | F156: 20724 | K156: 0 | L156: 122
A157: 12 | B157: 20818 | C157: 24 | D157: 20829 | E157: 24 | F157: 20833 | K157: 0 | L157: 122
A158: 12 | B158: 20930 | C158: 13 | D158: 20932 | E158: 24 | F158: 20943 | K158: 0 | L158: 112
A159: 12 | B159: 21040 | C159: 24 | D159: 21048 | E159: 24 | F159: 21055 | K159: 0 | L159: 122
A160: 21 | B160: 21172 | C160: 22 | D160: 21176 | E160: 24 | F160: 21188 | K160: 0 | L160: 222
A161: 21 | B161: 21292 | C161: 22 | D161: 21297 | E161: 24 | F161: 21302 | K161: 0 | L161: 222
A162: 12 | B162: 21398 | C162: 13 | D162: 21402 | E162: 24 | F162: 21413 | K162: 0 | L162: 112
A163: 12 | B163: 21511 | C163: 13 | D163: 21514 | E163: 24 | F163: 21525 | K163: 0 | L163: 112
A164: 12 | B164: 21621 | C164: 13 | D164: 21625 | E164: 24 | F164: 21638 | K164: 0 | L164: 112
A165: 12 | B165: 21732 | C165: 24 | D165: 21739 | E165: 24 | F165: 21750 | K165: 0 | L165: 122
A166: 12 | B166: 21846 | C166: 24 | D166: 21859 | E166: 24 | F166: 21864 | K166: 0 | L166: 122
A167: 12 | B167: 21960 | C167: 13 | D167: 21962 | E167: 24 | F167: 21975 | K167: 0 | L167: 112
A168: 12 | B168: 22072 | C168: 24 | D168: 22084 | E168: 24 | F168: 22092 | K168: 0 | L168: 122
A169: 12 | B169: 22197 | C169: 24 | D169: 22208 | E169: 24 | F169: 22212 | K169: 0 | L169: 122
A170: 12 | B170: 22308 | C170: 24 | D170: 22321 | E170: 24 | F170: 22326 | K170: 0 | L170: 122
A171: 12 | B171: 22434 | C171: 24 | D171: 22442 | E171: 24 | F171: 22449 | K171: 0 | L171: 122
A172: 12 | B172: 22546 | C172: 24 | D172: 22561 | E172: 24 | F172: 22566 | K172: 0 | L172: 122
A173: 12 | B173: 22662 | C173: 24 | D173: 22675 | E173: 24 | F173: 22683 | K173: 0 | L173: 122
A174: 21 | B174: 22799 | C174: 22 | D174: 22808 | E174: 24 | F174: 22814 | K174: 0 | L174: 222
A175: 12 | B175: 22911 | C175: 24 | D175: 22919 | E175: 24 | F175: 22923 | K175: 0 | L175: 122
A176: 12 | B176: 23020 | C176: 24 | D176: 23039 | E176: 24 | F176: 23044 | K176: 0 | L176: 122
A177: 12 | B177: 23145 | C177: 24 | D177: 23152 | E177: 24 | F177: 23156 | K177: 0 | L177: 122
A178: 12 | B178: 23250 | C178: 24 | D178: 23258 | E178: 24 | F178: 23265 | K178: 0 | L178: 122
A179: 12 | B179: 23431 | C179: 24 | D179: 23440 | E179: 24 | F179: 23444 | K179: 0 | L179: 122
A180: 12 | B180: 23550 | C180: 24 | D180: 23558 | E180: 24 | F180: 23567 | K180: 0 | L180: 122
A181: 12 | B181: 23663 | C181: 24 | D181: 23677 | E181: 24 | F181: 23681 | K181: 0 | L181: 122
A182: 21 | B182: 23795 | C182: 22 | D182: 23806 | E182: 24 | F182: 23814 | K182: 0 | L182: 222

Sheet !L829A4T.ayl
A1: Report for:!L829A4T.ayl
A2: Date: | B2: <date>
A3: Hen: | B3: <hen> | F3: Correct Sequence | G3: =Start!J2 -> 211 | P3: Total Sequences in Data | Q3: =4994-COUNTBLANK(L7:L5000) -> 201 | V3: Total Sequences in Block Data | W3: =COUNTA(L7:L40) -> 34 | AA3: Total Sequences in Block Data | AB3: =COUNTA(L41:L73) -> 33 | AF3: Total Sequences in Block Data | AG3: =COUNTA(L74:L107) -> 34 | AK3: Total Sequences in Block Data | AL3: =COUNTA(L108:L140) -> 33 | AP3: Total Sequences in Block Data | AQ3: =COUNTA(L141:L174) -> 34 | AU3: Total Sequences in Block Data | AV3: =COUNTA(L175:L207) -> 33
P4: Total Sequences in Summary | Q4: =SUM(O7:O14) -> 200 | V4: Total Sequences in Block Summary | W4: =SUM(U7:U14) -> 34 | AA4: Total Sequences in Block Summary | AB4: =SUM(Z7:Z14) -> 33 | AF4: Total Sequences in Block Summary | AG4: =SUM(AE7:AE14) -> 34 | AK4: Total Sequences in Block Summary | AL4: =SUM(AJ7:AJ14) -> 33 | AP4: Total Sequences in Block Summary | AQ4: =SUM(AO7:AO14) -> 34 | AU4: Total Sequences in Block Summary | AV4: =SUM(AT7:AT14) -> 32
T5: Block 1 | Y5: Block 2 | AD5: Block 3 | AI5: Block 4 | AN5: Block 5 | AS5: Block 6
A6: Sequence Component 1 | B6: Time 1 | C6: Sequence Component 2 | D6: Time 2 | E6: Sequence Component 3 | F6: Time 3 | G6: Sequence Component 4 | H6: Time 4 | I6: Sequence Component 5 | J6: Time 5 | K6: Correct? 0=No 1=Yes | L6: Sequence | N6: Frequency | P6: Relative Frequency | Q6: Variability | T6: Frequency | V6: Relative Frequency | W6: Variability | Y6: Frequency | AA6: Relative Frequency | AB6: Variability | AD6: Frequency | AF6: Relative Frequency | AG6: Variability | AI6: Frequency | AK6: Relative Frequency | AL6: Variability | AN6: Frequency | AP6: Relative Frequency | AQ6: Variability | AS6: Frequency | AU6: Relative Frequency | AV6: Variability
A7: 21 | B7: 8 | C7: 22 | D7: 14 | E7: 24 | F7: 21 | K7: 0 | L7: 222 | N7: 111 | O7: =COUNTIF($L$7:$L$500,N7) -> 2 | P7: =O7/$Q$4 -> 0.01 | Q7: =IF(P7=0,0,(P7*((LOG(P7))/LOG(2)))) -> -0.0664385619 | T7: =N7 -> 111 | U7: =COUNTIF(L7:L40,T7) -> 0 | V7: =U7/(W4-U11) -> 0 | W7: =IF(V7=0,0,(V7*((LOG(V7))/LOG(2)))) -> 0 | Y7: =N7 -> 111 | Z7: =COUNTIF(L41:L73,Y7) -> 0 | AA7: =Z7/(AB4-Z11) -> 0 | AB7: =IF(AA7=0,0,(AA7*((LOG(AA7))/LOG(2)))) -> 0 | AD7: =N7 -> 111 | AE7: =COUNTIF(L74:L107,AD7) -> 0 | AF7: =AE7/(AG4-AE11) -> 0 | AG7: =IF(AF7=0,0,(AF7*((LOG(AF7))/LOG(2)))) -> 0 | AI7: =N7 -> 111 | AJ7: =COUNTIF(L108:L140,AI7) -> 0 | AK7: =AJ7/(AL4-AJ11) -> 0 | AL7: =IF(AK7=0,0,(AK7*((LOG(AK7))/LOG(2)))) -> 0 | AN7: =N7 -> 111 | AO7: =COUNTIF(L141:L174,AN7) -> 0 | AP7: =AO7/(AQ4-AO11) -> 0 | AQ7: =IF(AP7=0,0,(AP7*((LOG(AP7))/LOG(2)))) -> 0 | AS7: =N7 -> 111 | AT7: =COUNTIF(L175:L207,AS7) -> 2 | AU7: =AT7/(AV4-AT11) -> 0.0625 | AV7: =IF(AU7=0,0,(AU7*((LOG(AU7))/LOG(2)))) -> -0.25
A8: 21 | B8: 121 | C8: 22 | D8: 125 | E8: 24 | F8: 131 | K8: 0 | L8: 222 | N8: 112 | O8: =COUNTIF($L$7:$L$500,N8) -> 31 | P8: =O8/$Q$4 -> 0.155 | Q8: =IF(P8=0,0,(P8*((LOG(P8))/LOG(2)))) -> -0.4168972813 | T8: =N8 -> 112 | U8: =COUNTIF(L7:L40,T8) -> 6 | V8: =U8/(W4-U11) -> 0.1764705882 | W8: =IF(V8=0,0,(V8*((LOG(V8))/LOG(2)))) -> -0.4416177072 | Y8: =N8 -> 112 | Z8: =COUNTIF(L41:L73,Y8) -> 5 | AA8: =Z8/(AB4-Z11) -> 0.1515151515 | AB8: =IF(AA8=0,0,(AA8*((LOG(AA8))/LOG(2)))) -> -0.4124948522 | AD8: =N8 -> 112 | AE8: =COUNTIF(L74:L107,AD8) -> 5 | AF8: =AE8/(AG4-AE11) -> 0.1470588235 | AG8: =IF(AF8=0,0,(AF8*((LOG(AF8))/LOG(2)))) -> -0.4066962862 | AI8: =N8 -> 112 | AJ8: =COUNTIF(L108:L140,AI8) -> 2 | AK8: =AJ8/(AL4-AJ11) -> 0.06060606061 | AL8: =IF(AK8=0,0,(AK8*((LOG(AK8))/LOG(2)))) -> -0.2451147951 | AN8: =N8 -> 112 | AO8: =COUNTIF(L141:L174,AN8) -> 8 | AP8: =AO8/(AQ4-AO11) -> 0.2352941176 | AQ8: =IF(AP8=0,0,(AP8*((LOG(AP8))/LOG(2)))) -> -0.4911677274 | AS8: =N8 -> 112 | AT8: =COUNTIF(L175:L207,AS8) -> 5 | AU8: =AT8/(AV4-AT11) -> 0.15625 | AV8: =IF(AU8=0,0,(AU8*((LOG(AU8))/LOG(2)))) -> -0.4184487352
A9: 12 | B9: 227 | C9: 24 | D9: 234 | E9: 24 | F9: 238 | K9: 0 | L9: 122 | N9: 121 | O9: =COUNTIF($L$7:$L$500,N9) -> 0 | P9: =O9/$Q$4 -> 0 | Q9: =IF(P9=0,0,(P9*((LOG(P9))/LOG(2)))) -> 0 | T9: =N9 -> 121 | U9: =COUNTIF(L7:L40,T9) -> 0 | V9: =U9/(W4-U11) -> 0 | W9: =IF(V9=0,0,(V9*((LOG(V9))/LOG(2)))) -> 0 | Y9: =N9 -> 121 | Z9: =COUNTIF(L41:L73,Y9) -> 0 | AA9: =Z9/(AB4-Z11) -> 0 | AB9: =IF(AA9=0,0,(AA9*((LOG(AA9))/LOG(2)))) -> 0 | AD9: =N9 -> 121 | AE9: =COUNTIF(L74:L107,AD9) -> 0 | AF9: =AE9/(AG4-AE11) -> 0 | AG9: =IF(AF9=0,0,(AF9*((LOG(AF9))/LOG(2)))) -> 0 | AI9: =N9 -> 121 | AJ9: =COUNTIF(L108:L140,AI9) -> 0 | AK9: =AJ9/(AL4-AJ11) -> 0 | AL9: =IF(AK9=0,0,(AK9*((LOG(AK9))/LOG(2)))) -> 0 | AN9: =N9 -> 121 | AO9: =COUNTIF(L141:L174,AN9) -> 0 | AP9: =AO9/(AQ4-AO11) -> 0 | AQ9: =IF(AP9=0,0,(AP9*((LOG(AP9))/LOG(2)))) -> 0 | AS9: =N9 -> 121 | AT9: =COUNTIF(L175:L207,AS9) -> 0 | AU9: =AT9/(AV4-AT11) -> 0 | AV9: =IF(AU9=0,0,(AU9*((LOG(AU9))/LOG(2)))) -> 0
A10: 12 | B10: 336 | C10: 24 | D10: 348 | E10: 24 | F10: 353 | K10: 0 | L10: 122 | N10: 122 | O10: =COUNTIF($L$7:$L$500,N10) -> 138 | P10: =O10/$Q$4 -> 0.69 | Q10: =IF(P10=0,0,(P10*((LOG(P10))/LOG(2)))) -> -0.3693788958 | T10: =N10 -> 122 | U10: =COUNTIF(L7:L40,T10) -> 19 | V10: =U10/(W4-U11) -> 0.5588235294 | W10: =IF(V10=0,0,(V10*((LOG(V10))/LOG(2)))) -> -0.469152095 | Y10: =N10 -> 122 | Z10: =COUNTIF(L41:L73,Y10) -> 26 | AA10: =Z10/(AB4-Z11) -> 0.7878787879 | AB10: =IF(AA10=0,0,(AA10*((LOG(AA10))/LOG(2)))) -> -0.2709943767 | AD10: =N10 -> 122 | AE10: =COUNTIF(L74:L107,AD10) -> 24 | AF10: =AE10/(AG4-AE11) -> 0.7058823529 | AG10: =IF(AF10=0,0,(AF10*((LOG(AF10))/LOG(2)))) -> -0.3547061227 | AI10: =N10 -> 122 | AJ10: =COUNTIF(L108:L140,AI10) -> 23 | AK10: =AJ10/(AL4-AJ11) -> 0.696969697 | AL10: =IF(AK10=0,0,(AK10*((LOG(AK10))/LOG(2)))) -> -0.363004235 | AN10: =N10 -> 122 | AO10: =COUNTIF(L141:L174,AN10) -> 24 | AP10: =AO10/(AQ4-AO11) -> 0.7058823529 | AQ10: =IF(AP10=0,0,(AP10*((LOG(AP10))/LOG(2)))) -> -0.3547061227 | AS10: =N10 -> 122 | AT10: =COUNTIF(L175:L207,AS10) -> 22 | AU10: =AT10/(AV4-AT11) -> 0.6875 | AV10: =IF(AU10=0,0,(AU10*((LOG(AU10))/LOG(2)))) -> -0.3716407622
A11: 12 | B11: 449 | C11: 24 | D11: 458 | E11: 24 | F11: 460 | K11: 0 | L11: 122 | N11: 211 | O11: =COUNTIF($L$7:$L$500,N11) -> 0 | P11: =O11/$Q$4 -> 0 | Q11: =IF(P11=0,0,(P11*((LOG(P11))/LOG(2)))) -> 0 | T11: =N11 -> 211 | U11: =COUNTIF(L7:L40,T11) -> 0 | Y11: =N11 -> 211 | Z11: =COUNTIF(L41:L73,Y11) -> 0 | AD11: =N11 -> 211 | AE11: =COUNTIF(L74:L107,AD11) -> 0 | AI11: =N11 -> 211 | AJ11: =COUNTIF(L108:L140,AI11) -> 0 | AN11: =N11 -> 211 | AO11: =COUNTIF(L141:L174,AN11) -> 0 | AS11: =N11 -> 211 | AT11: =COUNTIF(L175:L207,AS11) -> 0
A12: 21 | B12: 562 | C12: 22 | D12: 566 | E12: 24 | F12: 569 | K12: 0 | L12: 222 | N12: 212 | O12: =COUNTIF($L$7:$L$500,N12) -> 0 | P12: =O12/$Q$4 -> 0 | Q12: =IF(P12=0,0,(P12*((LOG(P12))/LOG(2)))) -> 0 | T12: =N12 -> 212 | U12: =COUNTIF(L7:L40,T12) -> 0 | V12: =U12/(W4-U11) -> 0 | W12: =IF(V12=0,0,(V12*((LOG(V12))/LOG(2)))) -> 0 | Y12: =N12 -> 212 | Z12: =COUNTIF(L41:L73,Y12) -> 0 | AA12: =Z12/(AB4-Z11) -> 0 | AB12: =IF(AA12=0,0,(AA12*((LOG(AA12))/LOG(2)))) -> 0 | AD12: =N12 -> 212 | AE12: =COUNTIF(L74:L107,AD12) -> 0 | AF12: =AE12/(AG4-AE11) -> 0 | AG12: =IF(AF12=0,0,(AF12*((LOG(AF12))/LOG(2)))) -> 0 | AI12: =N12 -> 212 | AJ12: =COUNTIF(L108:L140,AI12) -> 0 | AK12: =AJ12/(AL4-AJ11) -> 0 | AL12: =IF(AK12=0,0,(AK12*((LOG(AK12))/LOG(2)))) -> 0 | AN12: =N12 -> 212 | AO12: =COUNTIF(L141:L174,AN12) -> 0 | AP12: =AO12/(AQ4-AO11) -> 0 | AQ12: =IF(AP12=0,0,(AP12*((LOG(AP12))/LOG(2)))) -> 0 | AS12: =N12 -> 212 | AT12: =COUNTIF(L175:L207,AS12) -> 0 | AU12: =AT12/(AV4-AT11) -> 0 | AV12: =IF(AU12=0,0,(AU12*((LOG(AU12))/LOG(2)))) -> 0
A13: 12 | B13: 666 | C13: 24 | D13: 678 | E13: 24 | F13: 683 | K13: 0 | L13: 122 | N13: 221 | O13: =COUNTIF($L$7:$L$500,N13) -> 0 | P13: =O13/$Q$4 -> 0 | Q13: =IF(P13=0,0,(P13*((LOG(P13))/LOG(2)))) -> 0 | T13: =N13 -> 221 | U13: =COUNTIF(L7:L40,T13) -> 0 | V13: =U13/(W4-U11) -> 0 | W13: =IF(V13=0,0,(V13*((LOG(V13))/LOG(2)))) -> 0 | Y13: =N13 -> 221 | Z13: =COUNTIF(L41:L73,Y13) -> 0 | AA13: =Z13/(AB4-Z11) -> 0 | AB13: =IF(AA13=0,0,(AA13*((LOG(AA13))/LOG(2)))) -> 0 | AD13: =N13 -> 221 | AE13: =COUNTIF(L74:L107,AD13) -> 0 | AF13: =AE13/(AG4-AE11) -> 0 | AG13: =IF(AF13=0,0,(AF13*((LOG(AF13))/LOG(2)))) -> 0 | AI13: =N13 -> 221 | AJ13: =COUNTIF(L108:L140,AI13) -> 0 | AK13: =AJ13/(AL4-AJ11) -> 0 | AL13: =IF(AK13=0,0,(AK13*((LOG(AK13))/LOG(2)))) -> 0 | AN13: =N13 -> 221 | AO13: =COUNTIF(L141:L174,AN13) -> 0 | AP13: =AO13/(AQ4-AO11) -> 0 | AQ13: =IF(AP13=0,0,(AP13*((LOG(AP13))/LOG(2)))) -> 0 | AS13: =N13 -> 221 | AT13: =COUNTIF(L175:L207,AS13) -> 0 | AU13: =AT13/(AV4-AT11) -> 0 | AV13: =IF(AU13=0,0,(AU13*((LOG(AU13))/LOG(2)))) -> 0
A14: 21 | B14: 841 | C14: 22 | D14: 849 | E14: 24 | F14: 854 | K14: 0 | L14: 222 | N14: 222 | O14: =COUNTIF($L$7:$L$500,N14) -> 29 | P14: =O14/$Q$4 -> 0.145 | Q14: =IF(P14=0,0,(P14*((LOG(P14))/LOG(2)))) -> -0.4039519032 | T14: =N14 -> 222 | U14: =COUNTIF(L7:L40,T14) -> 9 | V14: =U14/(W4-U11) -> 0.2647058824 | W14: =IF(V14=0,0,(V14*((LOG(V14))/LOG(2)))) -> -0.5075835458 | Y14: =N14 -> 222 | Z14: =COUNTIF(L41:L73,Y14) -> 2 | AA14: =Z14/(AB4-Z11) -> 0.06060606061 | AB14: =IF(AA14=0,0,(AA14*((LOG(AA14))/LOG(2)))) -> -0.2451147951 | AD14: =N14 -> 222 | AE14: =COUNTIF(L74:L107,AD14) -> 5 | AF14: =AE14/(AG4-AE11) -> 0.1470588235 | AG14: =IF(AF14=0,0,(AF14*((LOG(AF14))/LOG(2)))) -> -0.4066962862 | AI14: =N14 -> 222 | AJ14: =COUNTIF(L108:L140,AI14) -> 8 | AK14: =AJ14/(AL4-AJ11) -> 0.2424242424 | AL14: =IF(AK14=0,0,(AK14*((LOG(AK14))/LOG(2)))) -> -0.4956106956 | AN14: =N14 -> 222 | AO14: =COUNTIF(L141:L174,AN14) -> 2 | AP14: =AO14/(AQ4-AO11) -> 0.05882352941 | AQ14: =IF(AP14=0,0,(AP14*((LOG(AP14))/LOG(2)))) -> -0.2404389907 | AS14: =N14 -> 222 | AT14: =COUNTIF(L175:L207,AS14) -> 3 | AU14: =AT14/(AV4-AT11) -> 0.09375 | AV14: =IF(AU14=0,0,(AU14*((LOG(AU14))/LOG(2)))) -> -0.3201597656
A15: 21 | B15: 958 | C15: 22 | D15: 966 | E15: 24 | F15: 972 | K15: 0 | L15: 222 | P15: =SUM(P7:P14) -> 1 | Q15: =-SUM(Q7:Q14) -> 1.256666642 | V15: =SUM(V7:V14) -> 1 | W15: =-SUM(W7:W14) -> 1.418353348 | AA15: =SUM(AA7:AA14) -> 1 | AB15: =-SUM(AB7:AB14) -> 0.928604024 | AF15: =SUM(AF7:AF14) -> 1 | AG15: =-SUM(AG7:AG14) -> 1.168098695 | AK15: =SUM(AK7:AK14) -> 1 | AL15: =-SUM(AL7:AL14) -> 1.103729726 | AP15: =SUM(AP7:AP14) -> 1 | AQ15: =-SUM(AQ7:AQ14) -> 1.086312841 | AU15: =SUM(AU7:AU14) -> 1 | AV15: =-SUM(AV7:AV14) -> 1.360249263
A16: 12 | B16: 1077 | C16: 24 | D16: 1084 | E16: 24 | F16: 1089 | K16: 0 | L16: 122 | P16: U= | Q16: =Q15/(LOG(Q4)/LOG(2)) -> 0.1644021827 | V16: U1= | W16: =W15/(LOG(W4)/LOG(2)) -> 0.2787938492 | AA16: U2= | AB16: =AB15/(LOG(AB4)/LOG(2)) -> 0.1840863347 | AF16: U3= | AG16: =AG15/(LOG(AG4)/LOG(2)) -> 0.2296033861 | AK16: U4= | AL16: =AL15/(LOG(AL4)/LOG(2)) -> 0.2188032298 | AP16: U5= | AQ16: =AQ15/(LOG(AQ4)/LOG(2)) -> 0.2135274251 | AU16: U6= | AV16: =AV15/(LOG(AV4)/LOG(2)) -> 0.2720498526
A17: 12 | B17: 1183 | C17: 13 | D17: 1186 | E17: 24 | F17: 1197 | K17: 0 | L17: 112
A18: 12 | B18: 1293 | C18: 24 | D18: 1307 | E18: 24 | F18: 1320 | K18: 0 | L18: 122
A19: 12 | B19: 1414 | C19: 13 | D19: 1417 | E19: 24 | F19: 1428 | K19: 0 | L19: 112 | N19: Total Target Seq
A20: 21 | B20: 1568 | C20: 22 | D20: 1571 | E20: 24 | F20: 1577 | K20: 0 | L20: 222 | N20: =COUNTIF(L7:L207,G3) -> 0 | P20: 34 | Q20: 33 | R20: 34 | S20: 33 | T20: 34 | U20: 33
A21: 12 | B21: 1695 | C21: 24 | D21: 1706 | E21: 24 | F21: 1710 | K21: 0 | L21: 122 | P21: % of reinforcement given in 6 equal intervals based on number of trials
A22: 12 | B22: 1807 | C22: 24 | D22: 1818 | E22: 24 | F22: 1827 | K22: 0 | L22: 122 | P22: %_1 | Q22: %_2 | R22: %_3 | S22: %_4 | T22: %_5 | U22: %_6
A23: 12 | B23: 1923 | C23: 13 | D23: 1925 | E23: 24 | F23: 1936 | K23: 0 | L23: 112 | O23: target sequence | P23: =$G$3 -> 211 | Q23: =$G$3 -> 211 | R23: =$G$3 -> 211 | S23: =$G$3 -> 211 | T23: =$G$3 -> 211 | U23: =$G$3 -> 211
A24: 12 | B24: 2033 | C24: 24 | D24: 2046 | E24: 24 | F24: 2051 | K24: 0 | L24: 122 | O24: total reinforcement | P24: =U11 -> 0 | Q24: =Z11 -> 0 | R24: =AE11 -> 0 | S24: =AJ11 -> 0 | T24: =AO11 -> 0 | U24: =AT11 -> 0
A25: 12 | B25: 2144 | C25: 24 | D25: 2156 | E25: 24 | F25: 2160 | K25: 0 | L25: 122 | O25: % target
A26: 21 | B26: 2267 | C26: 22 | D26: 2272 | E26: 24 | F26: 2277 | K26: 0 | L26: 222 | O26: CCRF
A27: 12 | B27: 2373 | C27: 24 | D27: 2386 | E27: 24 | F27: 2403 | K27: 0 | L27: 122 | O27: % CCRf
A28: 21 | B28: 2512 | C28: 22 | D28: 2520 | E28: 24 | F28: 2524 | K28: 0 | L28: 222 | O28: average response rate | P28: =F40/P20 -> 117.4705882 | Q28: =(F73-F40)/Q20 -> 114.6666667 | R28: =(F107-F73)/R20 -> 119.3529412 | S28: =(F140-F107)/S20 -> 119.030303 | T28: =(F174-F140)/T20 -> 125.6470588 | U28: =(F207-F174)/U20 -> -607.1515152
A29: 12 | B29: 2685 | C29: 13 | D29: 2687 | E29: 24 | F29: 2698 | K29: 0 | L29: 112
A30: 12 | B30: 2795 | C30: 24 | D30: 2807 | E30: 24 | F30: 2812 | K30: 0 | L30: 122
A31: 12 | B31: 2908 | C31: 24 | D31: 2918 | E31: 24 | F31: 2922 | K31: 0 | L31: 122
A32: 12 | B32: 3016 | C32: 24 | D32: 3028 | E32: 24 | F32: 3032 | K32: 0 | L32: 122
A33: 12 | B33: 3129 | C33: 24 | D33: 3140 | E33: 24 | F33: 3144 | K33: 0 | L33: 122
A34: 12 | B34: 3239 | C34: 24 | D34: 3247 | E34: 24 | F34: 3250 | K34: 0 | L34: 122
A35: 12 | B35: 3342 | C35: 24 | D35: 3354 | E35: 24 | F35: 3359 | K35: 0 | L35: 122
A36: 12 | B36: 3455 | C36: 24 | D36: 3465 | E36: 24 | F36: 3470 | K36: 0 | L36: 122
A37: 12 | B37: 3641 | C37: 24 | D37: 3648 | E37: 24 | F37: 3651 | K37: 0 | L37: 122
A38: 21 | B38: 3759 | C38: 22 | D38: 3763 | E38: 24 | F38: 3769 | K38: 0 | L38: 222
A39: 12 | B39: 3865 | C39: 13 | D39: 3867 | E39: 24 | F39: 3882 | K39: 0 | L39: 112
A40: 12 | B40: 3981 | C40: 13 | D40: 3985 | E40: 24 | F40: 3994 | K40: 0 | L40: 112
A41: 12 | B41: 4094 | C41: 24 | D41: 4105 | E41: 24 | F41: 4110 | K41: 0 | L41: 122
A42: 12 | B42: 4209 | C42: 24 | D42: 4219 | E42: 24 | F42: 4224 | K42: 0 | L42: 122
A43: 12 | B43: 4319 | C43: 24 | D43: 4332 | E43: 24 | F43: 4337 | K43: 0 | L43: 122
A44: 12 | B44: 4436 | C44: 24 | D44: 4447 | E44: 24 | F44: 4452 | K44: 0 | L44: 122
A45: 12 | B45: 4561 | C45: 24 | D45: 4571 | E45: 24 | F45: 4576 | K45: 0 | L45: 122
A46: 12 | B46: 4674 | C46: 24 | D46: 4685 | E46: 24 | F46: 4689 | K46: 0 | L46: 122
A47: 12 | B47: 4789 | C47: 24 | D47: 4802 | E47: 24 | F47: 4806 | K47: 0 | L47: 122
A48: 12 | B48: 4942 | C48: 24 | D48: 4952 | E48: 24 | F48: 4956 | K48: 0 | L48: 122
A49: 12 | B49: 5052 | C49: 24 | D49: 5061 | E49: 24 | F49: 5066 | K49: 0 | L49: 122
A50: 12 | B50: 5163 | C50: 24 | D50: 5174 | E50: 24 | F50: 5178 | K50: 0 | L50: 122
A51: 21 | B51: 5298 | C51: 22 | D51: 5304 | E51: 24 | F51: 5310 | K51: 0 | L51: 222
A52: 12 | B52: 5443 | C52: 24 | D52: 5452 | E52: 24 | F52: 5454 | K52: 0 | L52: 122
A53: 12 | B53: 5550 | C53: 24 | D53: 5559 | E53: 24 | F53: 5562 | K53: 0 | L53: 122
A54: 12 | B54: 5657 | C54: 24 | D54: 5668 | E54: 24 | F54: 5672 | K54: 0 | L54: 122
A55: 12 | B55: 5768 | C55: 13 | D55: 5770 | E55: 24 | F55: 5780 | K55: 0 | L55: 112
A56: 12 | B56: 5884 | C56: 24 | D56: 5897 | E56: 24 | F56: 5901 | K56: 0 | L56: 122
A57: 12 | B57: 5996 | C57: 24 | D57: 6008 | E57: 24 | F57: 6013 | K57: 0 | L57: 122
A58: 12 | B58: 6113 | C58: 24 | D58: 6121 | E58: 24 | F58: 6125 | K58: 0 | L58: 122
A59: 12 | B59: 6219 | C59: 24 | D59: 6228 | E59: 24 | F59: 6231 | K59: 0 | L59: 122
A60: 21 | B60: 6334 | C60: 22 | D60: 6337 | E60: 24 | F60: 6339 | K60: 0 | L60: 222
A61: 12 | B61: 6433 | C61: 24 | D61: 6445 | E61: 24 | F61: 6452 | K61: 0 | L61: 122
A62: 12 | B62: 6548 | C62: 13 | D62: 6551 | E62: 24 | F62: 6564 | K62: 0 | L62: 112
A63: 12 | B63: 6672 | C63: 13 | D63: 6674 | E63: 24 | F63: 6686 | K63: 0 | L63: 112
A64: 12 | B64: 6778 | C64: 24 | D64: 6792 | E64: 24 | F64: 6794 | K64: 0 | L64: 122
A65: 12 | B65: 6886 | C65: 13 | D65: 6888 | E65: 24 | F65: 6901 | K65: 0 | L65: 112
A66: 12 | B66: 6995 | C66: 24 | D66: 7007 | E66: 24 | F66: 7012 | K66: 0 | L66: 122
A67: 12 | B67: 7104 | C67: 24 | D67: 7116 | E67: 24 | F67: 7121 | K67: 0 | L67: 122
A68: 12 | B68: 7216 | C68: 24 | D68: 7227 | E68: 24 | F68: 7232 | K68: 0 | L68: 122
A69: 12 | B69: 7327 | C69: 24 | D69: 7335 | E69: 24 | F69: 7340 | K69: 0 | L69: 122
A70: 12 | B70: 7437 | C70: 13 | D70: 7439 | E70: 24 | F70: 7453 | K70: 0 | L70: 112
A71: 12 | B71: 7547 | C71: 24 | D71: 7556 | E71: 24 | F71: 7561 | K71: 0 | L71: 122
A72: 12 | B72: 7655 | C72: 24 | D72: 7668 | E72: 24 | F72: 7672 | K72: 0 | L72: 122
A73: 12 | B73: 7764 | C73: 24 | D73: 7774 | E73: 24 | F73: 7778 | K73: 0 | L73: 122
A74: 21 | B74: 7951 | C74: 22 | D74: 7956 | E74: 24 | F74: 7962 | K74: 0 | L74: 222
A75: 12 | B75: 8062 | C75: 24 | D75: 8075 | E75: 24 | F75: 8079 | K75: 0 | L75: 122
A76: 12 | B76: 8178 | C76: 13 | D76: 8180 | E76: 24 | F76: 8195 | K76: 0 | L76: 112
A77: 12 | B77: 8294 | C77: 24 | D77: 8306 | E77: 24 | F77: 8309 | K77: 0 | L77: 122
A78: 12 | B78: 8405 | C78: 24 | D78: 8417 | E78: 24 | F78: 8421 | K78: 0 | L78: 122
A79: 12 | B79: 8518 | C79: 24 | D79: 8525 | E79: 24 | F79: 8529 | K79: 0 | L79: 122
A80: 12 | B80: 8672 | C80: 24 | D80: 8682 | E80: 24 | F80: 8686 | K80: 0 | L80: 122
A81: 12 | B81: 8783 | C81: 24 | D81: 8796 | E81: 24 | F81: 8800 | K81: 0 | L81: 122
A82: 21 | B82: 8907 | C82: 22 | D82: 8909 | E82: 24 | F82: 8911 | K82: 0 | L82: 222
A83: 12 | B83: 9009 | C83: 24 | D83: 9023 | E83: 24 | F83: 9028 | K83: 0 | L83: 122
A84: 12 | B84: 9123 | C84: 24 | D84: 9134 | E84: 24 | F84: 9137 | K84: 0 | L84: 122
A85: 12 | B85: 9233 | C85: 13 | D85: 9237 | E85: 24 | F85: 9253 | K85: 0 | L85: 112
A86: 12 | B86: 9347 | C86: 24 | D86: 9358 | E86: 24 | F86: 9364 | K86: 0 | L86: 122
A87: 12 | B87: 9458 | C87: 13 | D87: 9460 | E87: 24 | F87: 9471 | K87: 0 | L87: 112
A88: 12 | B88: 9571 | C88: 24 | D88: 9583 | E88: 24 | F88: 9589 | K88: 0 | L88: 122
A89: 12 | B89: 9683 | C89: 24 | D89: 9696 | E89: 24 | F89: 9700 | K89: 0 | L89: 122
A90: 12 | B90: 9839 | C90: 13 | D90: 9842 | E90: 24 | F90: 9854 | K90: 0 | L90: 112
A91: 12 | B91: 9951 | C91: 24 | D91: 9971 | E91: 24 | F91: 9978 | K91: 0 | L91: 122
A92: 21 | B92: 10092 | C92: 22 | D92: 10099 | E92: 24 | F92: 10104 | K92: 0 | L92: 222
A93: 12 | B93: 10202 | C93: 24 | D93: 10214 | E93: 24 | F93: 10215 | K93: 0 | L93: 122
A94: 21 | B94: 10318 | C94: 22 | D94: 10321 | E94: 24 | F94: 10326 | K94: 0 | L94: 222
A95: 12 | B95: 10419 | C95: 24 | D95: 10435 | E95: 24 | F95: 10439 | K95: 0 | L95: 122
A96: 12 | B96: 10538 | C96: 24 | D96: 10548 | E96: 24 | F96: 10553 | K96: 0 | L96: 122
A97: 12 | B97: 10649 | C97: 24 | D97: 10660 | E97: 24 | F97: 10665 | K97: 0 | L97: 122
A98: 12 | B98: 10757 | C98: 24 | D98: 10767 | E98: 24 | F98: 10772 | K98: 0 | L98: 122
A99: 12 | B99: 10907 | C99: 24 | D99: 10921 | E99: 24 | F99: 10924 | K99: 0 | L99: 122
A100: 12 | B100: 11021 | C100: 24 | D100: 11031 | E100: 24 | F100: 11035 | K100: 0 | L100: 122
A101: 21 | B101: 11148 | C101: 22 | D101: 11152 | E101: 24 | F101: 11162 | K101: 0 | L101: 222
A102: 12 | B102: 11257 | C102: 24 | D102: 11269 | E102: 24 | F102: 11273 | K102: 0 | L102: 122
A103: 12 | B103: 11368 | C103: 24 | D103: 11378 | E103: 24 | F103: 11387 | K103: 0 | L103: 122
A104: 12 | B104: 11483 | C104: 24 | D104: 11494 | E104: 24 | F104: 11499 | K104: 0 | L104: 122
A105: 12 | B105: 11595 | C105: 13 | D105: 11598 | E105: 24 | F105: 11608 | K105: 0 | L105: 112
A106: 12 | B106: 11702 | C106: 24 | D106: 11714 | E106: 24 | F106: 11719 | K106: 0 | L106: 122
A107: 12 | B107: 11820 | C107: 24 | D107: 11832 | E107: 24 | F107: 11836 | K107: 0 | L107: 122
A108: 21 | B108: 11970 | C108: 22 | D108: 11974 | E108: 24 | F108: 11980 | K108: 0 | L108: 222
A109: 12 | B109: 12075 | C109: 24 | D109: 12088 | E109: 24 | F109: 12093 | K109: 0 | L109: 122
A110: 12 | B110: 12190 | C110: 13 | D110: 12194 | E110: 24 | F110: 12203 | K110: 0 | L110: 112
A111: 21 | B111: 12376 | C111: 22 | D111: 12380 | E111: 24 | F111: 12386 | K111: 0 | L111: 222
A112: 12 | B112: 12479 | C112: 24 | D112: 12487 | E112: 24 | F112: 12494 | K112: 0 | L112: 122
A113: 12 | B113: 12592 | C113: 24 | D113: 12604 | E113: 24 | F113: 12607 | K113: 0 | L113: 122
A114: 12 | B114: 12703 | C114: 24 | D114: 12713 | E114: 24 | F114: 12716 | K114: 0 | L114: 122
A115: 12 | B115: 12810 | C115: 24 | D115: 12821 | E115: 24 | F115: 12826 | K115: 0 | L115: 122
A116: 12 | B116: 12921 | C116: 24 | D116: 12929 | E116: 24 | F116: 12933 | K116: 0 | L116: 122
A117: 12 | B117: 13025 | C117: 24 | D117: 13042 | E117: 24 | F117: 13047 | K117: 0 | L117: 122
A118: 12 | B118: 13142 | C118: 24 | D118: 13156 | E118: 24 | F118: 13161 | K118: 0 | L118: 122
A119: 12 | B119: 13253 | C119: 24 | D119: 13268 | E119: 24 | F119: 13272 | K119: 0 | L119: 122
A120: 12 | B120: 13371 | C120: 24 | D120: 13379 | E120: 24 | F120: 13382 | K120: 0 | L120: 122
A121: 12 | B121: 13479 | C121: 24 | D121: 13490 | E121: 24 | F121: 13494 | K121: 0 | L121: 122
A122: 12 | B122: 13589 | C122: 24 | D122: 13598 | E122: 24 | F122: 13602 | K122: 0 | L122: 122
A123: 12 | B123: 13700 | C123: 24 | D123: 13708 | E123: 24 | F123: 13713 | K123: 0 | L123: 122
A124: 12 | B124: 13825 | C124: 24 | D124: 13837 | E124: 24 | F124: 13842 | K124: 0 | L124: 122
A125: 21 | B125: 13993 | C125: 22 | D125: 13997 | E125: 24 | F125: 14004 | K125: 0 | L125: 222
A126: 21 | B126: 14110 | C126: 22 | D126: 14115 | E126: 24 | F126: 14120 | K126: 0 | L126: 222
A127: 21 | B127: 14227 | C127: 22 | D127: 14231 | E127: 24 | F127: 14236 | K127: 0 | L127: 222
A128: 12 | B128: 14331 | C128: 24 | D128: 14339 | E128: 24 | F128: 14345 | K128: 0 | L128: 122
A129: 21 | B129: 14448 | C129: 22 | D129: 14453 | E129: 24 | F129: 14459 | K129: 0 | L129: 222
A130: 12 | B130: 14594 | C130: 24 | D130: 14607 | E130: 24 | F130: 14610 | K130: 0 | L130: 122
A131: 21 | B131: 14722 | C131: 22 | D131: 14726 | E131: 24 | F131: 14732 | K131: 0 | L131: 222
A132: 12 | B132: 14828 | C132: 24 | D132: 14841 | E132: 24 | F132: 14849 | K132: 0 | L132: 122
A133: 12 | B133: 14945 | C133: 24 | D133: 14956 | E133: 24 | F133: 14960 | K133: 0 | L133: 122
A134: 12 | B134: 15053 | C134: 24 | D134: 15065 | E134: 24 | F134: 15069 | K134: 0 | L134: 122
A135: 12 | B135: 15167 | C135: 24 | D135: 15172 | E135: 24 | F135: 15181 | K135: 0 | L135: 122
A136: 12 | B136: 15278 | C136: 24 | D136: 15289 | E136: 24 | F136: 15292 | K136: 0 | L136: 122
A137: 21 | B137: 15402 | C137: 22 | D137: 15406 | E137: 24 | F137: 15410 | K137: 0 | L137: 222
A138: 12 | B138: 15511 | C138: 24 | D138: 15529 | E138: 24 | F138: 15532 | K138: 0 | L138: 122
A139: 12 | B139: 15631 | C139: 24 | D139: 15644 | E139: 24 | F139: 15649 | K139: 0 | L139: 122
A140: 12 | B140: 15745 | C140: 13 | D140: 15750 | E140: 24 | F140: 15764 | K140: 0 | L140: 112
A141: 12 | B141: 15951 | C141: 24 | D141: 15953 | E141: 24 | F141: 15961 | K141: 0 | L141: 122
A142: 12 | B142: 16056 | C142: 24 | D142: 16065 | E142: 24 | F142: 16068 | K142: 0 | L142: 122
A143: 12 | B143: 16165 | C143: 13 | D143: 16168 | E143: 24 | F143: 16182 | K143: 0 | L143: 112
A144: 12 | B144: 16278 | C144: 24 | D144: 16289 | E144: 24 | F144: 16293 | K144: 0 | L144: 122
A145: 12 | B145: 16389 | C145: 24 | D145: 16402 | E145: 24 | F145: 16406 | K145: 0 | L145: 122
A146: 12 | B146: 16499 | C146: 24 | D146: 16512 | E146: 24 | F146: 16517 | K146: 0 | L146: 122
A147: 12 | B147: 16613 | C147: 24 | D147: 16629 | E147: 24 | F147: 16633 | K147: 0 | L147: 122
A148: 12 | B148: 16726 | C148: 24 | D148: 16738 | E148: 24 | F148: 16742 | K148: 0 | L148: 122
A149: 12 | B149: 16891 | C149: 24 | D149: 16903 | E149: 24 | F149: 16909 | K149: 0 | L149: 122
A150: 12 | B150: 17006 | C150: 24 | D150: 17013 | E150: 24 | F150: 17017 | K150: 0 | L150: 122
A151: 12 | B151: 17112 | C151: 24 | D151: 17121 | E151: 24 | F151: 17125 | K151: 0 | L151: 122
A152: 12 | B152: 17220 | C152: 13 | D152: 17222 | E152: 24 | F152: 17234 | K152: 0 | L152: 112
A153: 12 | B153: 17356 | C153: 24 | D153: 17514 | E153: 24 | F153: 17519 | K153: 0 | L153: 122
A154: 21 | B154: 17656 | C154: 22 | D154: 17661 | E154: 24 | F154: 17669 | K154: 0 | L154: 222
A155: 12 | B155: 17765 | C155: 24 | D155: 17778 | E155: 24 | F155: 17781 | K155: 0 | L155: 122
A156: 12 | B156: 17910 | C156: 24 | D156: 17923 | E156: 24 | F156: 17926 | K156: 0 | L156: 122
A157: 12 | B157: 18026 | C157: 24 | D157: 18038 | E157: 24 | F157: 18041 | K157: 0 | L157: 122
A158: 12 | B158: 18137 | C158: 24 | D158: 18150 | E158: 24 | F158: 18158 | K158: 0 | L158: 122
A159: 12 | B159: 18258 | C159: 24 | D159: 18271 | E159: 24 | F159: 18276 | K159: 0 | L159: 122
A160: 12 | B160: 18383 | C160: 24 | D160: 18396 | E160: 24 | F160: 18400 | K160: 0 | L160: 122
A161: 12 | B161: 18492 | C161: 13 | D161: 18494 | E161: 24 | F161: 18508 | K161: 0 | L161: 112
A162: 12 | B162: 18617 | C162: 24 | D162: 18628 | E162: 24 | F162: 18633 | K162: 0 | L162: 122
A163: 21 | B163: 18743 | C163: 22 | D163: 18749 | E163: 24 | F163: 18755 | K163: 0 | L163: 222
A164: 12 | B164: 18849 | C164: 13 | D164: 18853 | E164: 24 | F164: 18866 | K164: 0 | L164: 112
A165: 12 | B165: 19007 | C165: 24 | D165: 19016 | E165: 24 | F165: 19019 | K165: 0 | L165: 122
A166: 12 | B166: 19118 | C166: 24 | D166: 19132 | E166: 24 | F166: 19136 | K166: 0 | L166: 122
A167: 12 | B167: 19232 | C167: 13 | D167: 19236 | E167: 24 | F167: 19246 | K167: 0 | L167: 112
A168: 12 | B168: 19342 | C168: 13 | D168: 19344 | E168: 24 | F168: 19362 | K168: 0 | L168: 112
A169: 12 | B169: 19458 | C169: 13 | D169: 19461 | E169: 24 | F169: 19476 | K169: 0 | L169: 112
A170: 12 | B170: 19575 | C170: 24 | D170: 19586 | E170: 24 | F170: 19589 | K170: 0 | L170: 122
A171: 12 | B171: 19683 | C171: 24 | D171: 19694 | E171: 24 | F171: 19699 | K171: 0 | L171: 122
A172: 12 | B172: 19795 | C172: 24 | D172: 19806 | E172: 24 | F172: 19810 | K172: 0 | L172: 122
A173: 12 | B173: 19902 | C173: 13 | D173: 19904 | E173: 24 | F173: 19917 | K173: 0 | L173: 112
A174: 12 | B174: 20016 | C174: 24 | D174: 20027 | E174: 24 | F174: 20036 | K174: 0 | L174: 122
A175: 21 | B175: 20143 | C175: 22 | D175: 20148 | E175: 24 | F175: 20153 | K175: 0 | L175: 222
A176: 12 | B176: 20249 | C176: 24 | D176: 20261 | E176: 24 | F176: 20267 | K176: 0 | L176: 122
A177: 12 | B177: 20397 | C177: 24 | D177: 20410 | E177: 24 | F177: 20414 | K177: 0 | L177: 122
A178: 12 | B178: 20525 | C178: 24 | D178: 20534 | E178: 24 | F178: 20536 | K178: 0 | L178: 122
A179: 12 | B179: 20637 | C179: 24 | D179: 20650 | E179: 24 | F179: 20655 | K179: 0 | L179: 122
A180: 12 | B180: 20752 | C180: 24 | D180: 20761 | E180: 24 | F180: 20766 | K180: 0 | L180: 122
A181: 12 | B181: 20861 | C181: 24 | D181: 20873 | E181: 24 | F181: 20875 | K181: 0 | L181: 122
A182: 12 | B182: 20973 | C182: 24 | D182: 20984 | E182: 24 | F182: 20987 | K182: 0 | L182: 122
A183: 12 | B183: 21085 | C183: 24 | D183: 21101 | E183: 24 | F183: 21106 | K183: 0 | L183: 122
A184: 12 | B184: 21212 | C184: 24 | D184: 21227 | E184: 24 | F184: 21231 | K184: 0 | L184: 122
A185: 21 | B185: 21336 | C185: 22 | D185: 21338 | E185: 24 | F185: 21343 | K185: 0 | L185: 222
A186: 12 | B186: 21465 | C186: 24 | D186: 21468 | E186: 24 | F186: 21472 | K186: 0 | L186: 122
A187: 12 | B187: 21570 | C187: 24 | D187: 21579 | E187: 24 | F187: 21584 | K187: 0 | L187: 122
A188: 12 | B188: 21683 | C188: 13 | D188: 21686 | E188: 24 | F188: 21699 | K188: 0 | L188: 112
A189: 12 | B189: 21817 | C189: 24 | D189: 21821 | E189: 24 | F189: 21834 | K189: 0 | L189: 122
A190: 12 | B190: 21932 | C190: 24 | D190: 21942 | E190: 24 | F190: 21947 | K190: 0 | L190: 122
A191: 12 | B191: 22045 | C191: 13 | D191: 22047 | E191: 13 | F191: 22049 | K191: 0 | L191: 111
A192: 21 | B192: 22174 | C192: 22 | D192: 22178 | E192: 24 | F192: 22181 | K192: 0 | L192: 222
A193: 12 | B193: 22282 | C193: 13 | D193: 22286 | E193: 24 | F193: 22299 | K193: 0 | L193: 112
A194: 12 | B194: 22394 | C194: 13 | D194: 22397 | E194: 24 | F194: 22408 | K194: 0 | L194: 112
A195: 12 | B195: 22516 | C195: 13 | D195: 22518 | E195: 24 | F195: 22527 | K195: 0 | L195: 112
A196: 12 | B196: 22622 | C196: 24 | D196: 22636 | E196: 24 | F196: 22641 | K196: 0 | L196: 122
A197: 12 | B197: 22737 | C197: 13 | D197: 22741 | E197: 24 | F197: 22755 | K197: 0 | L197: 112
A198: 12 | B198: 22853 | C198: 13 | D198: 22855 | E198: 13 | F198: 22858 | K198: 0 | L198: 111
A199: 12 | B199: 22987 | C199: 24 | D199: 23003 | E199: 24 | F199: 23008 | K199: 0 | L199: 122
A200: 12 | B200: 23103 | C200: 24 | D200: 23117 | E200: 24 | F200: 23121 | K200: 0 | L200: 122
... 7 more rows

Sheet !L830A5T.ayl
A1: Report for:!L830A5T.ayl
A2: Date: | B2: <date>
A3: Hen: | B3: <hen> | F3: Correct Sequence | G3: =Start!J2 -> 211 | P3: Total Sequences in Data | Q3: =4994-COUNTBLANK(L7:L5000) -> 194 | V3: Total Sequences in Block Data | W3: =COUNTA(L7:L38) -> 32 | AA3: Total Sequences in Block Data | AB3: =COUNTA(L39:L71) -> 33 | AF3: Total Sequences in Block Data | AG3: =COUNTA(L72:L103) -> 32 | AK3: Total Sequences in Block Data | AL3: =COUNTA(L104:L135) -> 32 | AP3: Total Sequences in Block Data | AQ3: =COUNTA(L136:L168) -> 33 | AU3: Total Sequences in Block Data | AV3: =COUNTA(L169:L200) -> 32
P4: Total Sequences in Summary | Q4: =SUM(O7:O14) -> 194 | V4: Total Sequences in Block Summary | W4: =SUM(U7:U14) -> 32 | AA4: Total Sequences in Block Summary | AB4: =SUM(Z7:Z14) -> 33 | AF4: Total Sequences in Block Summary | AG4: =SUM(AE7:AE14) -> 32 | AK4: Total Sequences in Block Summary | AL4: =SUM(AJ7:AJ14) -> 32 | AP4: Total Sequences in Block Summary | AQ4: =SUM(AO7:AO14) -> 33 | AU4: Total Sequences in Block Summary | AV4: =SUM(AT7:AT14) -> 32
T5: Block 1 | Y5: Block 2 | AD5: Block 3 | AI5: Block 4 | AN5: Block 5 | AS5: Block 6
A6: Sequence Component 1 | B6: Time 1 | C6: Sequence Component 2 | D6: Time 2 | E6: Sequence Component 3 | F6: Time 3 | G6: Sequence Component 4 | H6: Time 4 | I6: Sequence Component 5 | J6: Time 5 | K6: Correct? 0=No 1=Yes | L6: Sequence | N6: Frequency | P6: Relative Frequency | Q6: Variability | T6: Frequency | V6: Relative Frequency | W6: Variability | Y6: Frequency | AA6: Relative Frequency | AB6: Variability | AD6: Frequency | AF6: Relative Frequency | AG6: Variability | AI6: Frequency | AK6: Relative Frequency | AL6: Variability | AN6: Frequency | AP6: Relative Frequency | AQ6: Variability | AS6: Frequency | AU6: Relative Frequency | AV6: Variability
A7: 21 | B7: 19 | C7: 22 | D7: 22 | E7: 24 | F7: 26 | K7: 0 | L7: 222 | N7: 111 | O7: =COUNTIF($L$7:$L$500,N7) -> 1 | P7: =O7/$Q$4 -> 0.005154639175 | Q7: =IF(P7=0,0,(P7*((LOG(P7))/LOG(2)))) -> -0.03917480846 | T7: =N7 -> 111 | U7: =COUNTIF(L7:L38,T7) -> 0 | V7: =U7/(W4-U11) -> 0 | W7: =IF(V7=0,0,(V7*((LOG(V7))/LOG(2)))) -> 0 | Y7: =N7 -> 111 | Z7: =COUNTIF(L39:L71,Y7) -> 0 | AA7: =Z7/(AB4-Z11) -> 0 | AB7: =IF(AA7=0,0,(AA7*((LOG(AA7))/LOG(2)))) -> 0 | AD7: =N7 -> 111 | AE7: =COUNTIF(L72:L103,AD7) -> 1 | AF7: =AE7/(AG4-AE11) -> 0.03125 | AG7: =IF(AF7=0,0,(AF7*((LOG(AF7))/LOG(2)))) -> -0.15625 | AI7: =N7 -> 111 | AJ7: =COUNTIF(L104:L135,AI7) -> 0 | AK7: =AJ7/(AL4-AJ11) -> 0 | AL7: =IF(AK7=0,0,(AK7*((LOG(AK7))/LOG(2)))) -> 0 | AN7: =N7 -> 111 | AO7: =COUNTIF(L136:L168,AN7) -> 0 | AP7: =AO7/(AQ4-AO11) -> 0 | AQ7: =IF(AP7=0,0,(AP7*((LOG(AP7))/LOG(2)))) -> 0 | AS7: =N7 -> 111 | AT7: =COUNTIF(L169:L200,AS7) -> 0 | AU7: =AT7/(AV4-AT11) -> 0 | AV7: =IF(AU7=0,0,(AU7*((LOG(AU7))/LOG(2)))) -> 0
A8: 21 | B8: 130 | C8: 22 | D8: 135 | E8: 24 | F8: 139 | K8: 0 | L8: 222 | N8: 112 | O8: =COUNTIF($L$7:$L$500,N8) -> 64 | P8: =O8/$Q$4 -> 0.3298969072 | Q8: =IF(P8=0,0,(P8*((LOG(P8))/LOG(2)))) -> -0.5278062985 | T8: =N8 -> 112 | U8: =COUNTIF(L7:L38,T8) -> 9 | V8: =U8/(W4-U11) -> 0.28125 | W8: =IF(V8=0,0,(V8*((LOG(V8))/LOG(2)))) -> -0.5147085933 | Y8: =N8 -> 112 | Z8: =COUNTIF(L39:L71,Y8) -> 11 | AA8: =Z8/(AB4-Z11) -> 0.3333333333 | AB8: =IF(AA8=0,0,(AA8*((LOG(AA8))/LOG(2)))) -> -0.5283208336 | AD8: =N8 -> 112 | AE8: =COUNTIF(L72:L103,AD8) -> 11 | AF8: =AE8/(AG4-AE11) -> 0.34375 | AG8: =IF(AF8=0,0,(AF8*((LOG(AF8))/LOG(2)))) -> -0.5295703811 | AI8: =N8 -> 112 | AJ8: =COUNTIF(L104:L135,AI8) -> 14 | AK8: =AJ8/(AL4-AJ11) -> 0.4375 | AL8: =IF(AK8=0,0,(AK8*((LOG(AK8))/LOG(2)))) -> -0.5217822216 | AN8: =N8 -> 112 | AO8: =COUNTIF(L136:L168,AN8) -> 14 | AP8: =AO8/(AQ4-AO11) -> 0.4242424242 | AQ8: =IF(AP8=0,0,(AP8*((LOG(AP8))/LOG(2)))) -> -0.5248045079 | AS8: =N8 -> 112 | AT8: =COUNTIF(L169:L200,AS8) -> 5 | AU8: =AT8/(AV4-AT11) -> 0.15625 | AV8: =IF(AU8=0,0,(AU8*((LOG(AU8))/LOG(2)))) -> -0.4184487352
A9: 12 | B9: 236 | C9: 13 | D9: 240 | E9: 24 | F9: 247 | K9: 0 | L9: 112 | N9: 121 | O9: =COUNTIF($L$7:$L$500,N9) -> 0 | P9: =O9/$Q$4 -> 0 | Q9: =IF(P9=0,0,(P9*((LOG(P9))/LOG(2)))) -> 0 | T9: =N9 -> 121 | U9: =COUNTIF(L7:L38,T9) -> 0 | V9: =U9/(W4-U11) -> 0 | W9: =IF(V9=0,0,(V9*((LOG(V9))/LOG(2)))) -> 0 | Y9: =N9 -> 121 | Z9: =COUNTIF(L39:L71,Y9) -> 0 | AA9: =Z9/(AB4-Z11) -> 0 | AB9: =IF(AA9=0,0,(AA9*((LOG(AA9))/LOG(2)))) -> 0 | AD9: =N9 -> 121 | AE9: =COUNTIF(L72:L103,AD9) -> 0 | AF9: =AE9/(AG4-AE11) -> 0 | AG9: =IF(AF9=0,0,(AF9*((LOG(AF9))/LOG(2)))) -> 0 | AI9: =N9 -> 121 | AJ9: =COUNTIF(L104:L135,AI9) -> 0 | AK9: =AJ9/(AL4-AJ11) -> 0 | AL9: =IF(AK9=0,0,(AK9*((LOG(AK9))/LOG(2)))) -> 0 | AN9: =N9 -> 121 | AO9: =COUNTIF(L136:L168,AN9) -> 0 | AP9: =AO9/(AQ4-AO11) -> 0 | AQ9: =IF(AP9=0,0,(AP9*((LOG(AP9))/LOG(2)))) -> 0 | AS9: =N9 -> 121 | AT9: =COUNTIF(L169:L200,AS9) -> 0 | AU9: =AT9/(AV4-AT11) -> 0 | AV9: =IF(AU9=0,0,(AU9*((LOG(AU9))/LOG(2)))) -> 0
A10: 21 | B10: 356 | C10: 22 | D10: 360 | E10: 24 | F10: 366 | K10: 0 | L10: 222 | N10: 122 | O10: =COUNTIF($L$7:$L$500,N10) -> 109 | P10: =O10/$Q$4 -> 0.5618556701 | Q10: =IF(P10=0,0,(P10*((LOG(P10))/LOG(2)))) -> -0.4673113835 | T10: =N10 -> 122 | U10: =COUNTIF(L7:L38,T10) -> 18 | V10: =U10/(W4-U11) -> 0.5625 | W10: =IF(V10=0,0,(V10*((LOG(V10))/LOG(2)))) -> -0.4669171867 | Y10: =N10 -> 122 | Z10: =COUNTIF(L39:L71,Y10) -> 20 | AA10: =Z10/(AB4-Z11) -> 0.6060606061 | AB10: =IF(AA10=0,0,(AA10*((LOG(AA10))/LOG(2)))) -> -0.4378581966 | AD10: =N10 -> 122 | AE10: =COUNTIF(L72:L103,AD10) -> 17 | AF10: =AE10/(AG4-AE11) -> 0.53125 | AG10: =IF(AF10=0,0,(AF10*((LOG(AF10))/LOG(2)))) -> -0.4847853656 | AI10: =N10 -> 122 | AJ10: =COUNTIF(L104:L135,AI10) -> 16 | AK10: =AJ10/(AL4-AJ11) -> 0.5 | AL10: =IF(AK10=0,0,(AK10*((LOG(AK10))/LOG(2)))) -> -0.5 | AN10: =N10 -> 122 | AO10: =COUNTIF(L136:L168,AN10) -> 15 | AP10: =AO10/(AQ4-AO11) -> 0.4545454545 | AQ10: =IF(AP10=0,0,(AP10*((LOG(AP10))/LOG(2)))) -> -0.5170470562 | AS10: =N10 -> 122 | AT10: =COUNTIF(L169:L200,AS10) -> 23 | AU10: =AT10/(AV4-AT11) -> 0.71875 | AV10: =IF(AU10=0,0,(AU10*((LOG(AU10))/LOG(2)))) -> -0.3424398441
A11: 12 | B11: 465 | C11: 24 | D11: 482 | E11: 24 | F11: 487 | K11: 0 | L11: 122 | N11: 211 | O11: =COUNTIF($L$7:$L$500,N11) -> 0 | P11: =O11/$Q$4 -> 0 | Q11: =IF(P11=0,0,(P11*((LOG(P11))/LOG(2)))) -> 0 | T11: =N11 -> 211 | U11: =COUNTIF(L7:L38,T11) -> 0 | Y11: =N11 -> 211 | Z11: =COUNTIF(L39:L71,Y11) -> 0 | AD11: =N11 -> 211 | AE11: =COUNTIF(L72:L103,AD11) -> 0 | AI11: =N11 -> 211 | AJ11: =COUNTIF(L104:L135,AI11) -> 0 | AN11: =N11 -> 211 | AO11: =COUNTIF(L136:L168,AN11) -> 0 | AS11: =N11 -> 211 | AT11: =COUNTIF(L169:L200,AS11) -> 0
A12: 12 | B12: 588 | C12: 24 | D12: 599 | E12: 24 | F12: 606 | K12: 0 | L12: 122 | N12: 212 | O12: =COUNTIF($L$7:$L$500,N12) -> 0 | P12: =O12/$Q$4 -> 0 | Q12: =IF(P12=0,0,(P12*((LOG(P12))/LOG(2)))) -> 0 | T12: =N12 -> 212 | U12: =COUNTIF(L7:L38,T12) -> 0 | V12: =U12/(W4-U11) -> 0 | W12: =IF(V12=0,0,(V12*((LOG(V12))/LOG(2)))) -> 0 | Y12: =N12 -> 212 | Z12: =COUNTIF(L39:L71,Y12) -> 0 | AA12: =Z12/(AB4-Z11) -> 0 | AB12: =IF(AA12=0,0,(AA12*((LOG(AA12))/LOG(2)))) -> 0 | AD12: =N12 -> 212 | AE12: =COUNTIF(L72:L103,AD12) -> 0 | AF12: =AE12/(AG4-AE11) -> 0 | AG12: =IF(AF12=0,0,(AF12*((LOG(AF12))/LOG(2)))) -> 0 | AI12: =N12 -> 212 | AJ12: =COUNTIF(L104:L135,AI12) -> 0 | AK12: =AJ12/(AL4-AJ11) -> 0 | AL12: =IF(AK12=0,0,(AK12*((LOG(AK12))/LOG(2)))) -> 0 | AN12: =N12 -> 212 | AO12: =COUNTIF(L136:L168,AN12) -> 0 | AP12: =AO12/(AQ4-AO11) -> 0 | AQ12: =IF(AP12=0,0,(AP12*((LOG(AP12))/LOG(2)))) -> 0 | AS12: =N12 -> 212 | AT12: =COUNTIF(L169:L200,AS12) -> 0 | AU12: =AT12/(AV4-AT11) -> 0 | AV12: =IF(AU12=0,0,(AU12*((LOG(AU12))/LOG(2)))) -> 0
A13: 12 | B13: 703 | C13: 13 | D13: 710 | E13: 24 | F13: 728 | K13: 0 | L13: 112 | N13: 221 | O13: =COUNTIF($L$7:$L$500,N13) -> 0 | P13: =O13/$Q$4 -> 0 | Q13: =IF(P13=0,0,(P13*((LOG(P13))/LOG(2)))) -> 0 | T13: =N13 -> 221 | U13: =COUNTIF(L7:L38,T13) -> 0 | V13: =U13/(W4-U11) -> 0 | W13: =IF(V13=0,0,(V13*((LOG(V13))/LOG(2)))) -> 0 | Y13: =N13 -> 221 | Z13: =COUNTIF(L39:L71,Y13) -> 0 | AA13: =Z13/(AB4-Z11) -> 0 | AB13: =IF(AA13=0,0,(AA13*((LOG(AA13))/LOG(2)))) -> 0 | AD13: =N13 -> 221 | AE13: =COUNTIF(L72:L103,AD13) -> 0 | AF13: =AE13/(AG4-AE11) -> 0 | AG13: =IF(AF13=0,0,(AF13*((LOG(AF13))/LOG(2)))) -> 0 | AI13: =N13 -> 221 | AJ13: =COUNTIF(L104:L135,AI13) -> 0 | AK13: =AJ13/(AL4-AJ11) -> 0 | AL13: =IF(AK13=0,0,(AK13*((LOG(AK13))/LOG(2)))) -> 0 | AN13: =N13 -> 221 | AO13: =COUNTIF(L136:L168,AN13) -> 0 | AP13: =AO13/(AQ4-AO11) -> 0 | AQ13: =IF(AP13=0,0,(AP13*((LOG(AP13))/LOG(2)))) -> 0 | AS13: =N13 -> 221 | AT13: =COUNTIF(L169:L200,AS13) -> 0 | AU13: =AT13/(AV4-AT11) -> 0 | AV13: =IF(AU13=0,0,(AU13*((LOG(AU13))/LOG(2)))) -> 0
A14: 12 | B14: 876 | C14: 24 | D14: 887 | E14: 24 | F14: 893 | K14: 0 | L14: 122 | N14: 222 | O14: =COUNTIF($L$7:$L$500,N14) -> 20 | P14: =O14/$Q$4 -> 0.1030927835 | Q14: =IF(P14=0,0,(P14*((LOG(P14))/LOG(2)))) -> -0.3379365719 | T14: =N14 -> 222 | U14: =COUNTIF(L7:L38,T14) -> 5 | V14: =U14/(W4-U11) -> 0.15625 | W14: =IF(V14=0,0,(V14*((LOG(V14))/LOG(2)))) -> -0.4184487352 | Y14: =N14 -> 222 | Z14: =COUNTIF(L39:L71,Y14) -> 2 | AA14: =Z14/(AB4-Z11) -> 0.06060606061 | AB14: =IF(AA14=0,0,(AA14*((LOG(AA14))/LOG(2)))) -> -0.2451147951 | AD14: =N14 -> 222 | AE14: =COUNTIF(L72:L103,AD14) -> 3 | AF14: =AE14/(AG4-AE11) -> 0.09375 | AG14: =IF(AF14=0,0,(AF14*((LOG(AF14))/LOG(2)))) -> -0.3201597656 | AI14: =N14 -> 222 | AJ14: =COUNTIF(L104:L135,AI14) -> 2 | AK14: =AJ14/(AL4-AJ11) -> 0.0625 | AL14: =IF(AK14=0,0,(AK14*((LOG(AK14))/LOG(2)))) -> -0.25 | AN14: =N14 -> 222 | AO14: =COUNTIF(L136:L168,AN14) -> 4 | AP14: =AO14/(AQ4-AO11) -> 0.1212121212 | AQ14: =IF(AP14=0,0,(AP14*((LOG(AP14))/LOG(2)))) -> -0.369017469 | AS14: =N14 -> 222 | AT14: =COUNTIF(L169:L200,AS14) -> 4 | AU14: =AT14/(AV4-AT11) -> 0.125 | AV14: =IF(AU14=0,0,(AU14*((LOG(AU14))/LOG(2)))) -> -0.375
A15: 12 | B15: 990 | C15: 24 | D15: 997 | E15: 24 | F15: 1000 | K15: 0 | L15: 122 | P15: =SUM(P7:P14) -> 1 | Q15: =-SUM(Q7:Q14) -> 1.372229062 | V15: =SUM(V7:V14) -> 1 | W15: =-SUM(W7:W14) -> 1.400074515 | AA15: =SUM(AA7:AA14) -> 1 | AB15: =-SUM(AB7:AB14) -> 1.211293825 | AF15: =SUM(AF7:AF14) -> 1 | AG15: =-SUM(AG7:AG14) -> 1.490765512 | AK15: =SUM(AK7:AK14) -> 1 | AL15: =-SUM(AL7:AL14) -> 1.271782222 | AP15: =SUM(AP7:AP14) -> 1 | AQ15: =-SUM(AQ7:AQ14) -> 1.410869033 | AU15: =SUM(AU7:AU14) -> 1 | AV15: =-SUM(AV7:AV14) -> 1.135888579
A16: 12 | B16: 1096 | C16: 24 | D16: 1108 | E16: 24 | F16: 1111 | K16: 0 | L16: 122 | P16: U= | Q16: =Q15/(LOG(Q4)/LOG(2)) -> 0.1805585262 | V16: U1= | W16: =W15/(LOG(W4)/LOG(2)) -> 0.280014903 | AA16: U2= | AB16: =AB15/(LOG(AB4)/LOG(2)) -> 0.2401267222 | AF16: U3= | AG16: =AG15/(LOG(AG4)/LOG(2)) -> 0.2981531024 | AK16: U4= | AL16: =AL15/(LOG(AL4)/LOG(2)) -> 0.2543564443 | AP16: U5= | AQ16: =AQ15/(LOG(AQ4)/LOG(2)) -> 0.2796904841 | AU16: U6= | AV16: =AV15/(LOG(AV4)/LOG(2)) -> 0.2271777159
A17: 12 | B17: 1209 | C17: 24 | D17: 1220 | E17: 24 | F17: 1225 | K17: 0 | L17: 122
A18: 12 | B18: 1321 | C18: 13 | D18: 1324 | E18: 24 | F18: 1335 | K18: 0 | L18: 112
A19: 12 | B19: 1429 | C19: 13 | D19: 1434 | E19: 24 | F19: 1442 | K19: 0 | L19: 112 | N19: Total Target Seq
A20: 12 | B20: 1539 | C20: 24 | D20: 1555 | E20: 24 | F20: 1560 | K20: 0 | L20: 122 | N20: =COUNTIF(L7:L200,G3) -> 0 | P20: 32 | Q20: 33 | R20: 32 | S20: 32 | T20: 33 | U20: 32
A21: 12 | B21: 1656 | C21: 13 | D21: 1659 | E21: 24 | F21: 1671 | K21: 0 | L21: 112 | P21: % of reinforcement given in 6 equal intervals based on number of trials
A22: 12 | B22: 1768 | C22: 13 | D22: 1773 | E22: 24 | F22: 1783 | K22: 0 | L22: 112 | P22: %_1 | Q22: %_2 | R22: %_3 | S22: %_4 | T22: %_5 | U22: %_6
A23: 12 | B23: 1880 | C23: 13 | D23: 1882 | E23: 24 | F23: 1893 | K23: 0 | L23: 112 | O23: target sequence | P23: =$G$3 -> 211 | Q23: =$G$3 -> 211 | R23: =$G$3 -> 211 | S23: =$G$3 -> 211 | T23: =$G$3 -> 211 | U23: =$G$3 -> 211
A24: 12 | B24: 1987 | C24: 13 | D24: 1989 | E24: 24 | F24: 2001 | K24: 0 | L24: 112 | O24: total reinforcement | P24: =U11 -> 0 | Q24: =Z11 -> 0 | R24: =AE11 -> 0 | S24: =AJ11 -> 0 | T24: =AO11 -> 0 | U24: =AT11 -> 0
A25: 12 | B25: 2098 | C25: 24 | D25: 2110 | E25: 24 | F25: 2116 | K25: 0 | L25: 122 | O25: % target
A26: 21 | B26: 2245 | C26: 22 | D26: 2251 | E26: 24 | F26: 2257 | K26: 0 | L26: 222 | O26: CCRF
A27: 12 | B27: 2351 | C27: 24 | D27: 2361 | E27: 24 | F27: 2367 | K27: 0 | L27: 122 | O27: % CCRf
A28: 12 | B28: 2468 | C28: 24 | D28: 2476 | E28: 24 | F28: 2479 | K28: 0 | L28: 122 | O28: average response rate | P28: =F38/P20 -> 115 | Q28: =(F71-F38)/Q20 -> 119.9090909 | R28: =(F103-F71)/R20 -> 122.21875 | S28: =(F135-F103)/S20 -> 124.46875 | T28: =(F168-F135)/T20 -> 125.6666667 | U28: =(F200-F168)/U20 -> 132.28125
A29: 12 | B29: 2575 | C29: 24 | D29: 2588 | E29: 24 | F29: 2592 | K29: 0 | L29: 122
A30: 12 | B30: 2688 | C30: 24 | D30: 2697 | E30: 24 | F30: 2708 | K30: 0 | L30: 122
A31: 12 | B31: 2804 | C31: 24 | D31: 2819 | E31: 24 | F31: 2824 | K31: 0 | L31: 122
A32: 12 | B32: 2921 | C32: 13 | D32: 2923 | E32: 24 | F32: 2936 | K32: 0 | L32: 112
A33: 12 | B33: 3030 | C33: 24 | D33: 3042 | E33: 24 | F33: 3053 | K33: 0 | L33: 122
A34: 12 | B34: 3167 | C34: 24 | D34: 3179 | E34: 24 | F34: 3185 | K34: 0 | L34: 122
A35: 12 | B35: 3323 | C35: 24 | D35: 3332 | E35: 24 | F35: 3337 | K35: 0 | L35: 122
A36: 12 | B36: 3433 | C36: 24 | D36: 3449 | E36: 24 | F36: 3453 | K36: 0 | L36: 122
A37: 12 | B37: 3549 | C37: 24 | D37: 3562 | E37: 24 | F37: 3569 | K37: 0 | L37: 122
A38: 21 | B38: 3672 | C38: 22 | D38: 3675 | E38: 24 | F38: 3680 | K38: 0 | L38: 222
A39: 12 | B39: 3776 | C39: 13 | D39: 3780 | E39: 24 | F39: 3791 | K39: 0 | L39: 112
A40: 12 | B40: 3887 | C40: 13 | D40: 3889 | E40: 24 | F40: 3896 | K40: 0 | L40: 112
A41: 12 | B41: 3993 | C41: 24 | D41: 4004 | E41: 24 | F41: 4008 | K41: 0 | L41: 122
A42: 12 | B42: 4104 | C42: 13 | D42: 4107 | E42: 24 | F42: 4115 | K42: 0 | L42: 112
A43: 12 | B43: 4238 | C43: 24 | D43: 4248 | E43: 24 | F43: 4252 | K43: 0 | L43: 122
A44: 12 | B44: 4349 | C44: 13 | D44: 4352 | E44: 24 | F44: 4360 | K44: 0 | L44: 112
A45: 12 | B45: 4455 | C45: 24 | D45: 4466 | E45: 24 | F45: 4469 | K45: 0 | L45: 122
A46: 12 | B46: 4565 | C46: 13 | D46: 4568 | E46: 24 | F46: 4577 | K46: 0 | L46: 112
A47: 12 | B47: 4673 | C47: 13 | D47: 4675 | E47: 24 | F47: 4686 | K47: 0 | L47: 112
A48: 21 | B48: 4792 | C48: 22 | D48: 4803 | E48: 24 | F48: 4809 | K48: 0 | L48: 222
A49: 12 | B49: 4907 | C49: 24 | D49: 4918 | E49: 24 | F49: 4922 | K49: 0 | L49: 122
A50: 12 | B50: 5021 | C50: 24 | D50: 5030 | E50: 24 | F50: 5035 | K50: 0 | L50: 122
A51: 12 | B51: 5129 | C51: 13 | D51: 5133 | E51: 24 | F51: 5140 | K51: 0 | L51: 112
A52: 12 | B52: 5238 | C52: 13 | D52: 5242 | E52: 24 | F52: 5252 | K52: 0 | L52: 112
A53: 12 | B53: 5443 | C53: 24 | D53: 5451 | E53: 24 | F53: 5455 | K53: 0 | L53: 122
A54: 12 | B54: 5552 | C54: 24 | D54: 5563 | E54: 24 | F54: 5568 | K54: 0 | L54: 122
A55: 21 | B55: 5677 | C55: 22 | D55: 5680 | E55: 24 | F55: 5684 | K55: 0 | L55: 222
A56: 12 | B56: 5781 | C56: 13 | D56: 5783 | E56: 24 | F56: 5798 | K56: 0 | L56: 112
A57: 12 | B57: 5897 | C57: 24 | D57: 5907 | E57: 24 | F57: 5911 | K57: 0 | L57: 122
A58: 12 | B58: 6006 | C58: 13 | D58: 6010 | E58: 24 | F58: 6018 | K58: 0 | L58: 112
A59: 12 | B59: 6115 | C59: 24 | D59: 6124 | E59: 24 | F59: 6128 | K59: 0 | L59: 122
A60: 12 | B60: 6223 | C60: 24 | D60: 6234 | E60: 24 | F60: 6239 | K60: 0 | L60: 122
A61: 12 | B61: 6400 | C61: 24 | D61: 6409 | E61: 24 | F61: 6411 | K61: 0 | L61: 122
A62: 12 | B62: 6511 | C62: 24 | D62: 6527 | E62: 24 | F62: 6533 | K62: 0 | L62: 122
A63: 12 | B63: 6629 | C63: 24 | D63: 6644 | E63: 24 | F63: 6649 | K63: 0 | L63: 122
A64: 12 | B64: 6747 | C64: 24 | D64: 6761 | E64: 24 | F64: 6769 | K64: 0 | L64: 122
A65: 12 | B65: 6867 | C65: 24 | D65: 6883 | E65: 24 | F65: 6889 | K65: 0 | L65: 122
A66: 12 | B66: 6987 | C66: 24 | D66: 6998 | E66: 24 | F66: 7002 | K66: 0 | L66: 122
A67: 12 | B67: 7117 | C67: 24 | D67: 7126 | E67: 24 | F67: 7130 | K67: 0 | L67: 122
A68: 12 | B68: 7227 | C68: 24 | D68: 7239 | E68: 24 | F68: 7244 | K68: 0 | L68: 122
A69: 12 | B69: 7389 | C69: 24 | D69: 7397 | E69: 24 | F69: 7401 | K69: 0 | L69: 122
A70: 12 | B70: 7498 | C70: 13 | D70: 7503 | E70: 24 | F70: 7513 | K70: 0 | L70: 112
A71: 12 | B71: 7611 | C71: 24 | D71: 7625 | E71: 24 | F71: 7637 | K71: 0 | L71: 122
A72: 12 | B72: 7825 | C72: 24 | D72: 7828 | E72: 24 | F72: 7833 | K72: 0 | L72: 122
A73: 12 | B73: 7966 | C73: 24 | D73: 7978 | E73: 24 | F73: 7984 | K73: 0 | L73: 122
A74: 12 | B74: 8081 | C74: 24 | D74: 8091 | E74: 24 | F74: 8095 | K74: 0 | L74: 122
A75: 12 | B75: 8192 | C75: 13 | D75: 8194 | E75: 24 | F75: 8206 | K75: 0 | L75: 112
A76: 12 | B76: 8330 | C76: 24 | D76: 8340 | E76: 24 | F76: 8349 | K76: 0 | L76: 122
A77: 12 | B77: 8448 | C77: 13 | D77: 8452 | E77: 24 | F77: 8462 | K77: 0 | L77: 112
A78: 12 | B78: 8560 | C78: 13 | D78: 8564 | E78: 24 | F78: 8579 | K78: 0 | L78: 112
A79: 12 | B79: 8674 | C79: 24 | D79: 8681 | E79: 24 | F79: 8687 | K79: 0 | L79: 122
A80: 21 | B80: 8798 | C80: 22 | D80: 8803 | E80: 24 | F80: 8809 | K80: 0 | L80: 222
A81: 21 | B81: 8912 | C81: 22 | D81: 8914 | E81: 24 | F81: 8919 | K81: 0 | L81: 222
A82: 12 | B82: 9016 | C82: 24 | D82: 9023 | E82: 24 | F82: 9028 | K82: 0 | L82: 122
A83: 12 | B83: 9130 | C83: 24 | D83: 9142 | E83: 24 | F83: 9155 | K83: 0 | L83: 122
A84: 12 | B84: 9252 | C84: 13 | D84: 9256 | E84: 24 | F84: 9270 | K84: 0 | L84: 112
A85: 12 | B85: 9395 | C85: 24 | D85: 9402 | E85: 24 | F85: 9407 | K85: 0 | L85: 122
A86: 12 | B86: 9503 | C86: 24 | D86: 9515 | E86: 24 | F86: 9520 | K86: 0 | L86: 122
A87: 12 | B87: 9616 | C87: 13 | D87: 9619 | E87: 24 | F87: 9634 | K87: 0 | L87: 112
A88: 12 | B88: 9731 | C88: 24 | D88: 9742 | E88: 24 | F88: 9755 | K88: 0 | L88: 122
A89: 21 | B89: 9907 | C89: 22 | D89: 9911 | E89: 24 | F89: 9916 | K89: 0 | L89: 222
A90: 12 | B90: 10013 | C90: 13 | D90: 10017 | E90: 24 | F90: 10024 | K90: 0 | L90: 112
A91: 12 | B91: 10119 | C91: 24 | D91: 10130 | E91: 24 | F91: 10135 | K91: 0 | L91: 122
A92: 12 | B92: 10230 | C92: 13 | D92: 10231 | E92: 13 | F92: 10233 | K92: 0 | L92: 111
A93: 12 | B93: 10334 | C93: 24 | D93: 10345 | E93: 24 | F93: 10350 | K93: 0 | L93: 122
A94: 12 | B94: 10448 | C94: 24 | D94: 10462 | E94: 24 | F94: 10473 | K94: 0 | L94: 122
A95: 12 | B95: 10571 | C95: 13 | D95: 10575 | E95: 24 | F95: 10584 | K95: 0 | L95: 112
A96: 12 | B96: 10688 | C96: 24 | D96: 10696 | E96: 24 | F96: 10698 | K96: 0 | L96: 122
A97: 12 | B97: 10792 | C97: 13 | D97: 10797 | E97: 24 | F97: 10806 | K97: 0 | L97: 112
A98: 12 | B98: 10904 | C98: 13 | D98: 10909 | E98: 24 | F98: 10923 | K98: 0 | L98: 112
A99: 12 | B99: 11059 | C99: 24 | D99: 11071 | E99: 24 | F99: 11076 | K99: 0 | L99: 122
A100: 12 | B100: 11173 | C100: 13 | D100: 11176 | E100: 24 | F100: 11190 | K100: 0 | L100: 112
A101: 12 | B101: 11288 | C101: 13 | D101: 11291 | E101: 24 | F101: 11304 | K101: 0 | L101: 112
A102: 12 | B102: 11410 | C102: 24 | D102: 11422 | E102: 24 | F102: 11427 | K102: 0 | L102: 122
A103: 12 | B103: 11526 | C103: 24 | D103: 11540 | E103: 24 | F103: 11548 | K103: 0 | L103: 122
A104: 12 | B104: 11647 | C104: 24 | D104: 11654 | E104: 24 | F104: 11658 | K104: 0 | L104: 122
A105: 12 | B105: 11850 | C105: 24 | D105: 11854 | E105: 24 | F105: 11864 | K105: 0 | L105: 122
A106: 12 | B106: 11963 | C106: 13 | D106: 11966 | E106: 24 | F106: 11977 | K106: 0 | L106: 112
A107: 12 | B107: 12073 | C107: 24 | D107: 12088 | E107: 24 | F107: 12093 | K107: 0 | L107: 122
A108: 12 | B108: 12189 | C108: 13 | D108: 12192 | E108: 24 | F108: 12206 | K108: 0 | L108: 112
A109: 12 | B109: 12301 | C109: 24 | D109: 12317 | E109: 24 | F109: 12320 | K109: 0 | L109: 122
A110: 12 | B110: 12427 | C110: 24 | D110: 12442 | E110: 24 | F110: 12448 | K110: 0 | L110: 122
A111: 12 | B111: 12545 | C111: 24 | D111: 12561 | E111: 24 | F111: 12567 | K111: 0 | L111: 122
A112: 12 | B112: 12664 | C112: 13 | D112: 12669 | E112: 24 | F112: 12682 | K112: 0 | L112: 112
A113: 12 | B113: 12779 | C113: 13 | D113: 12781 | E113: 24 | F113: 12794 | K113: 0 | L113: 112
A114: 12 | B114: 12894 | C114: 13 | D114: 12900 | E114: 24 | F114: 12911 | K114: 0 | L114: 112
A115: 21 | B115: 13021 | C115: 22 | D115: 13027 | E115: 24 | F115: 13032 | K115: 0 | L115: 222
A116: 12 | B116: 13131 | C116: 13 | D116: 13135 | E116: 24 | F116: 13146 | K116: 0 | L116: 112
A117: 12 | B117: 13294 | C117: 24 | D117: 13302 | E117: 24 | F117: 13307 | K117: 0 | L117: 122
A118: 12 | B118: 13404 | C118: 24 | D118: 13417 | E118: 24 | F118: 13422 | K118: 0 | L118: 122
A119: 12 | B119: 13519 | C119: 13 | D119: 13523 | E119: 24 | F119: 13537 | K119: 0 | L119: 112
A120: 12 | B120: 13723 | C120: 24 | D120: 13734 | E120: 24 | F120: 13740 | K120: 0 | L120: 122
A121: 12 | B121: 13838 | C121: 24 | D121: 13849 | E121: 24 | F121: 13853 | K121: 0 | L121: 122
A122: 12 | B122: 13949 | C122: 13 | D122: 13954 | E122: 24 | F122: 13965 | K122: 0 | L122: 112
A123: 12 | B123: 14063 | C123: 13 | D123: 14066 | E123: 24 | F123: 14075 | K123: 0 | L123: 112
A124: 12 | B124: 14172 | C124: 13 | D124: 14176 | E124: 24 | F124: 14193 | K124: 0 | L124: 112
A125: 12 | B125: 14309 | C125: 24 | D125: 14321 | E125: 24 | F125: 14326 | K125: 0 | L125: 122
A126: 12 | B126: 14427 | C126: 13 | D126: 14431 | E126: 24 | F126: 14446 | K126: 0 | L126: 112
A127: 12 | B127: 14544 | C127: 13 | D127: 14548 | E127: 24 | F127: 14559 | K127: 0 | L127: 112
A128: 12 | B128: 14653 | C128: 13 | D128: 14657 | E128: 24 | F128: 14669 | K128: 0 | L128: 112
A129: 12 | B129: 14787 | C129: 24 | D129: 14802 | E129: 24 | F129: 14808 | K129: 0 | L129: 122
A130: 12 | B130: 14906 | C130: 13 | D130: 14911 | E130: 24 | F130: 14923 | K130: 0 | L130: 112
A131: 12 | B131: 15017 | C131: 24 | D131: 15032 | E131: 24 | F131: 15038 | K131: 0 | L131: 122
A132: 21 | B132: 15141 | C132: 22 | D132: 15146 | E132: 24 | F132: 15151 | K132: 0 | L132: 222
A133: 12 | B133: 15249 | C133: 24 | D133: 15263 | E133: 24 | F133: 15267 | K133: 0 | L133: 122
A134: 12 | B134: 15369 | C134: 24 | D134: 15375 | E134: 24 | F134: 15380 | K134: 0 | L134: 122
A135: 12 | B135: 15512 | C135: 24 | D135: 15526 | E135: 24 | F135: 15531 | K135: 0 | L135: 122
A136: 12 | B136: 15628 | C136: 13 | D136: 15632 | E136: 24 | F136: 15643 | K136: 0 | L136: 112
A137: 12 | B137: 15742 | C137: 24 | D137: 15756 | E137: 24 | F137: 15761 | K137: 0 | L137: 122
A138: 12 | B138: 15858 | C138: 24 | D138: 15870 | E138: 24 | F138: 15875 | K138: 0 | L138: 122
A139: 12 | B139: 15972 | C139: 24 | D139: 15987 | E139: 24 | F139: 15991 | K139: 0 | L139: 122
A140: 12 | B140: 16088 | C140: 13 | D140: 16093 | E140: 24 | F140: 16103 | K140: 0 | L140: 112
A141: 12 | B141: 16211 | C141: 24 | D141: 16224 | E141: 24 | F141: 16229 | K141: 0 | L141: 122
A142: 12 | B142: 16327 | C142: 13 | D142: 16329 | E142: 24 | F142: 16341 | K142: 0 | L142: 112
A143: 12 | B143: 16439 | C143: 13 | D143: 16441 | E143: 24 | F143: 16457 | K143: 0 | L143: 112
A144: 12 | B144: 16554 | C144: 13 | D144: 16558 | E144: 24 | F144: 16568 | K144: 0 | L144: 112
A145: 12 | B145: 16670 | C145: 13 | D145: 16675 | E145: 24 | F145: 16682 | K145: 0 | L145: 112
A146: 12 | B146: 16781 | C146: 24 | D146: 16800 | E146: 24 | F146: 16806 | K146: 0 | L146: 122
A147: 12 | B147: 17022 | C147: 13 | D147: 17025 | E147: 24 | F147: 17035 | K147: 0 | L147: 112
A148: 12 | B148: 17148 | C148: 24 | D148: 17162 | E148: 24 | F148: 17167 | K148: 0 | L148: 122
A149: 12 | B149: 17268 | C149: 24 | D149: 17284 | E149: 24 | F149: 17290 | K149: 0 | L149: 122
A150: 12 | B150: 17386 | C150: 13 | D150: 17389 | E150: 24 | F150: 17398 | K150: 0 | L150: 112
A151: 12 | B151: 17495 | C151: 24 | D151: 17507 | E151: 24 | F151: 17516 | K151: 0 | L151: 122
A152: 12 | B152: 17613 | C152: 13 | D152: 17617 | E152: 24 | F152: 17631 | K152: 0 | L152: 112
A153: 12 | B153: 17738 | C153: 24 | D153: 17747 | E153: 24 | F153: 17752 | K153: 0 | L153: 122
A154: 12 | B154: 17847 | C154: 13 | D154: 17851 | E154: 24 | F154: 17865 | K154: 0 | L154: 112
A155: 12 | B155: 17965 | C155: 13 | D155: 17970 | E155: 24 | F155: 17985 | K155: 0 | L155: 112
A156: 12 | B156: 18082 | C156: 13 | D156: 18084 | E156: 24 | F156: 18096 | K156: 0 | L156: 112
A157: 21 | B157: 18229 | C157: 22 | D157: 18234 | E157: 24 | F157: 18239 | K157: 0 | L157: 222
A158: 21 | B158: 18450 | C158: 22 | D158: 18454 | E158: 24 | F158: 18460 | K158: 0 | L158: 222
A159: 12 | B159: 18556 | C159: 24 | D159: 18567 | E159: 24 | F159: 18571 | K159: 0 | L159: 122
A160: 12 | B160: 18669 | C160: 24 | D160: 18686 | E160: 24 | F160: 18700 | K160: 0 | L160: 122
A161: 12 | B161: 18818 | C161: 24 | D161: 18828 | E161: 24 | F161: 18833 | K161: 0 | L161: 122
A162: 12 | B162: 18928 | C162: 13 | D162: 18931 | E162: 24 | F162: 18943 | K162: 0 | L162: 112
A163: 21 | B163: 19092 | C163: 22 | D163: 19101 | E163: 24 | F163: 19106 | K163: 0 | L163: 222
A164: 21 | B164: 19209 | C164: 22 | D164: 19214 | E164: 24 | F164: 19219 | K164: 0 | L164: 222
A165: 12 | B165: 19313 | C165: 24 | D165: 19324 | E165: 24 | F165: 19329 | K165: 0 | L165: 122
A166: 12 | B166: 19426 | C166: 24 | D166: 19436 | E166: 24 | F166: 19441 | K166: 0 | L166: 122
A167: 12 | B167: 19550 | C167: 24 | D167: 19557 | E167: 24 | F167: 19562 | K167: 0 | L167: 122
A168: 12 | B168: 19660 | C168: 13 | D168: 19663 | E168: 24 | F168: 19678 | K168: 0 | L168: 112
A169: 12 | B169: 19775 | C169: 13 | D169: 19778 | E169: 24 | F169: 19792 | K169: 0 | L169: 112
A170: 21 | B170: 19907 | C170: 22 | D170: 19911 | E170: 24 | F170: 19918 | K170: 0 | L170: 222
A171: 12 | B171: 20014 | C171: 24 | D171: 20027 | E171: 24 | F171: 20031 | K171: 0 | L171: 122
A172: 12 | B172: 20131 | C172: 24 | D172: 20140 | E172: 24 | F172: 20148 | K172: 0 | L172: 122
A173: 12 | B173: 20242 | C173: 24 | D173: 20253 | E173: 24 | F173: 20258 | K173: 0 | L173: 122
A174: 12 | B174: 20356 | C174: 13 | D174: 20360 | E174: 24 | F174: 20378 | K174: 0 | L174: 112
A175: 21 | B175: 20563 | C175: 22 | D175: 20567 | E175: 24 | F175: 20573 | K175: 0 | L175: 222
A176: 12 | B176: 20728 | C176: 24 | D176: 20740 | E176: 24 | F176: 20745 | K176: 0 | L176: 122
A177: 12 | B177: 20845 | C177: 24 | D177: 20853 | E177: 24 | F177: 20857 | K177: 0 | L177: 122
A178: 12 | B178: 20953 | C178: 13 | D178: 20957 | E178: 24 | F178: 20970 | K178: 0 | L178: 112
A179: 12 | B179: 21104 | C179: 24 | D179: 21116 | E179: 24 | F179: 21120 | K179: 0 | L179: 122
A180: 12 | B180: 21217 | C180: 24 | D180: 21231 | E180: 24 | F180: 21237 | K180: 0 | L180: 122
A181: 12 | B181: 21347 | C181: 24 | D181: 21357 | E181: 24 | F181: 21362 | K181: 0 | L181: 122
A182: 12 | B182: 21463 | C182: 24 | D182: 21477 | E182: 24 | F182: 21482 | K182: 0 | L182: 122
A183: 12 | B183: 21580 | C183: 24 | D183: 21597 | E183: 24 | F183: 21602 | K183: 0 | L183: 122
A184: 12 | B184: 21799 | C184: 24 | D184: 21806 | E184: 24 | F184: 21809 | K184: 0 | L184: 122
A185: 12 | B185: 21907 | C185: 13 | D185: 21913 | E185: 24 | F185: 21926 | K185: 0 | L185: 112
A186: 12 | B186: 22024 | C186: 24 | D186: 22045 | E186: 24 | F186: 22050 | K186: 0 | L186: 122
A187: 12 | B187: 22222 | C187: 24 | D187: 22233 | E187: 24 | F187: 22238 | K187: 0 | L187: 122
A188: 12 | B188: 22336 | C188: 24 | D188: 22347 | E188: 24 | F188: 22352 | K188: 0 | L188: 122
A189: 12 | B189: 22468 | C189: 24 | D189: 22482 | E189: 24 | F189: 22488 | K189: 0 | L189: 122
A190: 12 | B190: 22607 | C190: 24 | D190: 22620 | E190: 24 | F190: 22624 | K190: 0 | L190: 122
A191: 12 | B191: 22760 | C191: 24 | D191: 22778 | E191: 24 | F191: 22783 | K191: 0 | L191: 122
A192: 12 | B192: 22881 | C192: 24 | D192: 22892 | E192: 24 | F192: 22899 | K192: 0 | L192: 122
A193: 12 | B193: 22999 | C193: 24 | D193: 23021 | E193: 24 | F193: 23026 | K193: 0 | L193: 122
A194: 12 | B194: 23122 | C194: 13 | D194: 23128 | E194: 24 | F194: 23146 | K194: 0 | L194: 112
A195: 12 | B195: 23243 | C195: 24 | D195: 23261 | E195: 24 | F195: 23266 | K195: 0 | L195: 122
A196: 21 | B196: 23378 | C196: 22 | D196: 23381 | E196: 24 | F196: 23388 | K196: 0 | L196: 222
A197: 21 | B197: 23494 | C197: 22 | D197: 23501 | E197: 24 | F197: 23507 | K197: 0 | L197: 222
A198: 12 | B198: 23604 | C198: 24 | D198: 23614 | E198: 24 | F198: 23621 | K198: 0 | L198: 122
A199: 12 | B199: 23777 | C199: 24 | D199: 23786 | E199: 24 | F199: 23791 | K199: 0 | L199: 122
A200: 12 | B200: 23890 | C200: 24 | D200: 23906 | E200: 24 | F200: 23911 | K200: 0 | L200: 122

Sheet !L831A2T.ayl
A1: Report for:!L831A2T.ayl
A2: Date: | B2: <date>
A3: Hen: | B3: <hen> | F3: Correct Sequence | G3: =Start!J2 -> 211 | P3: Total Sequences in Data | Q3: =4994-COUNTBLANK(L7:L5000) -> 200 | V3: Total Sequences in Block Data | W3: =COUNTA(L7:L39) -> 33 | AA3: Total Sequences in Block Data | AB3: =COUNTA(L40:L73) -> 34 | AF3: Total Sequences in Block Data | AG3: =COUNTA(L74:L106) -> 33 | AK3: Total Sequences in Block Data | AL3: =COUNTA(L107:L139) -> 33 | AP3: Total Sequences in Block Data | AQ3: =COUNTA(L140:L173) -> 34 | AU3: Total Sequences in Block Data | AV3: =COUNTA(L174:L206) -> 33
P4: Total Sequences in Summary | Q4: =SUM(O7:O14) -> 200 | V4: Total Sequences in Block Summary | W4: =SUM(U7:U14) -> 33 | AA4: Total Sequences in Block Summary | AB4: =SUM(Z7:Z14) -> 34 | AF4: Total Sequences in Block Summary | AG4: =SUM(AE7:AE14) -> 33 | AK4: Total Sequences in Block Summary | AL4: =SUM(AJ7:AJ14) -> 33 | AP4: Total Sequences in Block Summary | AQ4: =SUM(AO7:AO14) -> 34 | AU4: Total Sequences in Block Summary | AV4: =SUM(AT7:AT14) -> 33
T5: Block 1 | Y5: Block 2 | AD5: Block 3 | AI5: Block 4 | AN5: Block 5 | AS5: Block 6
A6: Sequence Component 1 | B6: Time 1 | C6: Sequence Component 2 | D6: Time 2 | E6: Sequence Component 3 | F6: Time 3 | G6: Sequence Component 4 | H6: Time 4 | I6: Sequence Component 5 | J6: Time 5 | K6: Correct? 0=No 1=Yes | L6: Sequence | N6: Frequency | P6: Relative Frequency | Q6: Variability | T6: Frequency | V6: Relative Frequency | W6: Variability | Y6: Frequency | AA6: Relative Frequency | AB6: Variability | AD6: Frequency | AF6: Relative Frequency | AG6: Variability | AI6: Frequency | AK6: Relative Frequency | AL6: Variability | AN6: Frequency | AP6: Relative Frequency | AQ6: Variability | AS6: Frequency | AU6: Relative Frequency | AV6: Variability
A7: 21 | B7: 15 | C7: 22 | D7: 23 | E7: 24 | F7: 28 | K7: 0 | L7: 222 | N7: 111 | O7: =COUNTIF($L$7:$L$500,N7) -> 2 | P7: =O7/$Q$4 -> 0.01 | Q7: =IF(P7=0,0,(P7*((LOG(P7))/LOG(2)))) -> -0.0664385619 | T7: =N7 -> 111 | U7: =COUNTIF(L7:L39,T7) -> 0 | V7: =U7/(W4-U11) -> 0 | W7: =IF(V7=0,0,(V7*((LOG(V7))/LOG(2)))) -> 0 | Y7: =N7 -> 111 | Z7: =COUNTIF(L40:L73,Y7) -> 0 | AA7: =Z7/(AB4-Z11) -> 0 | AB7: =IF(AA7=0,0,(AA7*((LOG(AA7))/LOG(2)))) -> 0 | AD7: =N7 -> 111 | AE7: =COUNTIF(L74:L106,AD7) -> 1 | AF7: =AE7/(AG4-AE11) -> 0.0303030303 | AG7: =IF(AF7=0,0,(AF7*((LOG(AF7))/LOG(2)))) -> -0.1528604279 | AI7: =N7 -> 111 | AJ7: =COUNTIF(L107:L139,AI7) -> 0 | AK7: =AJ7/(AL4-AJ11) -> 0 | AL7: =IF(AK7=0,0,(AK7*((LOG(AK7))/LOG(2)))) -> 0 | AN7: =N7 -> 111 | AO7: =COUNTIF(L140:L173,AN7) -> 0 | AP7: =AO7/(AQ4-AO11) -> 0 | AQ7: =IF(AP7=0,0,(AP7*((LOG(AP7))/LOG(2)))) -> 0 | AS7: =N7 -> 111 | AT7: =COUNTIF(L174:L206,AS7) -> 1 | AU7: =AT7/(AV4-AT11) -> 0.0303030303 | AV7: =IF(AU7=0,0,(AU7*((LOG(AU7))/LOG(2)))) -> -0.1528604279
A8: 12 | B8: 127 | C8: 24 | D8: 138 | E8: 24 | F8: 148 | K8: 0 | L8: 122 | N8: 112 | O8: =COUNTIF($L$7:$L$500,N8) -> 44 | P8: =O8/$Q$4 -> 0.22 | Q8: =IF(P8=0,0,(P8*((LOG(P8))/LOG(2)))) -> -0.4805734057 | T8: =N8 -> 112 | U8: =COUNTIF(L7:L39,T8) -> 2 | V8: =U8/(W4-U11) -> 0.06060606061 | W8: =IF(V8=0,0,(V8*((LOG(V8))/LOG(2)))) -> -0.2451147951 | Y8: =N8 -> 112 | Z8: =COUNTIF(L40:L73,Y8) -> 7 | AA8: =Z8/(AB4-Z11) -> 0.2058823529 | AB8: =IF(AA8=0,0,(AA8*((LOG(AA8))/LOG(2)))) -> -0.4694339834 | AD8: =N8 -> 112 | AE8: =COUNTIF(L74:L106,AD8) -> 8 | AF8: =AE8/(AG4-AE11) -> 0.2424242424 | AG8: =IF(AF8=0,0,(AF8*((LOG(AF8))/LOG(2)))) -> -0.4956106956 | AI8: =N8 -> 112 | AJ8: =COUNTIF(L107:L139,AI8) -> 8 | AK8: =AJ8/(AL4-AJ11) -> 0.2424242424 | AL8: =IF(AK8=0,0,(AK8*((LOG(AK8))/LOG(2)))) -> -0.4956106956 | AN8: =N8 -> 112 | AO8: =COUNTIF(L140:L173,AN8) -> 5 | AP8: =AO8/(AQ4-AO11) -> 0.1470588235 | AQ8: =IF(AP8=0,0,(AP8*((LOG(AP8))/LOG(2)))) -> -0.4066962862 | AS8: =N8 -> 112 | AT8: =COUNTIF(L174:L206,AS8) -> 14 | AU8: =AT8/(AV4-AT11) -> 0.4242424242 | AV8: =IF(AU8=0,0,(AU8*((LOG(AU8))/LOG(2)))) -> -0.5248045079
A9: 12 | B9: 253 | C9: 24 | D9: 267 | E9: 24 | F9: 273 | K9: 0 | L9: 122 | N9: 121 | O9: =COUNTIF($L$7:$L$500,N9) -> 0 | P9: =O9/$Q$4 -> 0 | Q9: =IF(P9=0,0,(P9*((LOG(P9))/LOG(2)))) -> 0 | T9: =N9 -> 121 | U9: =COUNTIF(L7:L39,T9) -> 0 | V9: =U9/(W4-U11) -> 0 | W9: =IF(V9=0,0,(V9*((LOG(V9))/LOG(2)))) -> 0 | Y9: =N9 -> 121 | Z9: =COUNTIF(L40:L73,Y9) -> 0 | AA9: =Z9/(AB4-Z11) -> 0 | AB9: =IF(AA9=0,0,(AA9*((LOG(AA9))/LOG(2)))) -> 0 | AD9: =N9 -> 121 | AE9: =COUNTIF(L74:L106,AD9) -> 0 | AF9: =AE9/(AG4-AE11) -> 0 | AG9: =IF(AF9=0,0,(AF9*((LOG(AF9))/LOG(2)))) -> 0 | AI9: =N9 -> 121 | AJ9: =COUNTIF(L107:L139,AI9) -> 0 | AK9: =AJ9/(AL4-AJ11) -> 0 | AL9: =IF(AK9=0,0,(AK9*((LOG(AK9))/LOG(2)))) -> 0 | AN9: =N9 -> 121 | AO9: =COUNTIF(L140:L173,AN9) -> 0 | AP9: =AO9/(AQ4-AO11) -> 0 | AQ9: =IF(AP9=0,0,(AP9*((LOG(AP9))/LOG(2)))) -> 0 | AS9: =N9 -> 121 | AT9: =COUNTIF(L174:L206,AS9) -> 0 | AU9: =AT9/(AV4-AT11) -> 0 | AV9: =IF(AU9=0,0,(AU9*((LOG(AU9))/LOG(2)))) -> 0
A10: 12 | B10: 370 | C10: 24 | D10: 378 | E10: 24 | F10: 383 | K10: 0 | L10: 122 | N10: 122 | O10: =COUNTIF($L$7:$L$500,N10) -> 122 | P10: =O10/$Q$4 -> 0.61 | Q10: =IF(P10=0,0,(P10*((LOG(P10))/LOG(2)))) -> -0.4350024998 | T10: =N10 -> 122 | U10: =COUNTIF(L7:L39,T10) -> 25 | V10: =U10/(W4-U11) -> 0.7575757576 | W10: =IF(V10=0,0,(V10*((LOG(V10))/LOG(2)))) -> -0.3034378254 | Y10: =N10 -> 122 | Z10: =COUNTIF(L40:L73,Y10) -> 22 | AA10: =Z10/(AB4-Z11) -> 0.6470588235 | AB10: =IF(AA10=0,0,(AA10*((LOG(AA10))/LOG(2)))) -> -0.406373144 | AD10: =N10 -> 122 | AE10: =COUNTIF(L74:L106,AD10) -> 20 | AF10: =AE10/(AG4-AE11) -> 0.6060606061 | AG10: =IF(AF10=0,0,(AF10*((LOG(AF10))/LOG(2)))) -> -0.4378581966 | AI10: =N10 -> 122 | AJ10: =COUNTIF(L107:L139,AI10) -> 19 | AK10: =AJ10/(AL4-AJ11) -> 0.5757575758 | AL10: =IF(AK10=0,0,(AK10*((LOG(AK10))/LOG(2)))) -> -0.4585716822 | AN10: =N10 -> 122 | AO10: =COUNTIF(L140:L173,AN10) -> 24 | AP10: =AO10/(AQ4-AO11) -> 0.7058823529 | AQ10: =IF(AP10=0,0,(AP10*((LOG(AP10))/LOG(2)))) -> -0.3547061227 | AS10: =N10 -> 122 | AT10: =COUNTIF(L174:L206,AS10) -> 12 | AU10: =AT10/(AV4-AT11) -> 0.3636363636 | AV10: =IF(AU10=0,0,(AU10*((LOG(AU10))/LOG(2)))) -> -0.5307024068
A11: 12 | B11: 476 | C11: 24 | D11: 488 | E11: 24 | F11: 509 | K11: 0 | L11: 122 | N11: 211 | O11: =COUNTIF($L$7:$L$500,N11) -> 0 | P11: =O11/$Q$4 -> 0 | Q11: =IF(P11=0,0,(P11*((LOG(P11))/LOG(2)))) -> 0 | T11: =N11 -> 211 | U11: =COUNTIF(L7:L39,T11) -> 0 | Y11: =N11 -> 211 | Z11: =COUNTIF(L40:L73,Y11) -> 0 | AD11: =N11 -> 211 | AE11: =COUNTIF(L74:L106,AD11) -> 0 | AI11: =N11 -> 211 | AJ11: =COUNTIF(L107:L139,AI11) -> 0 | AN11: =N11 -> 211 | AO11: =COUNTIF(L140:L173,AN11) -> 0 | AS11: =N11 -> 211 | AT11: =COUNTIF(L174:L206,AS11) -> 0
A12: 12 | B12: 597 | C12: 24 | D12: 604 | E12: 24 | F12: 609 | K12: 0 | L12: 122 | N12: 212 | O12: =COUNTIF($L$7:$L$500,N12) -> 0 | P12: =O12/$Q$4 -> 0 | Q12: =IF(P12=0,0,(P12*((LOG(P12))/LOG(2)))) -> 0 | T12: =N12 -> 212 | U12: =COUNTIF(L7:L39,T12) -> 0 | V12: =U12/(W4-U11) -> 0 | W12: =IF(V12=0,0,(V12*((LOG(V12))/LOG(2)))) -> 0 | Y12: =N12 -> 212 | Z12: =COUNTIF(L40:L73,Y12) -> 0 | AA12: =Z12/(AB4-Z11) -> 0 | AB12: =IF(AA12=0,0,(AA12*((LOG(AA12))/LOG(2)))) -> 0 | AD12: =N12 -> 212 | AE12: =COUNTIF(L74:L106,AD12) -> 0 | AF12: =AE12/(AG4-AE11) -> 0 | AG12: =IF(AF12=0,0,(AF12*((LOG(AF12))/LOG(2)))) -> 0 | AI12: =N12 -> 212 | AJ12: =COUNTIF(L107:L139,AI12) -> 0 | AK12: =AJ12/(AL4-AJ11) -> 0 | AL12: =IF(AK12=0,0,(AK12*((LOG(AK12))/LOG(2)))) -> 0 | AN12: =N12 -> 212 | AO12: =COUNTIF(L140:L173,AN12) -> 0 | AP12: =AO12/(AQ4-AO11) -> 0 | AQ12: =IF(AP12=0,0,(AP12*((LOG(AP12))/LOG(2)))) -> 0 | AS12: =N12 -> 212 | AT12: =COUNTIF(L174:L206,AS12) -> 0 | AU12: =AT12/(AV4-AT11) -> 0 | AV12: =IF(AU12=0,0,(AU12*((LOG(AU12))/LOG(2)))) -> 0
A13: 12 | B13: 707 | C13: 24 | D13: 723 | E13: 24 | F13: 728 | K13: 0 | L13: 122 | N13: 221 | O13: =COUNTIF($L$7:$L$500,N13) -> 0 | P13: =O13/$Q$4 -> 0 | Q13: =IF(P13=0,0,(P13*((LOG(P13))/LOG(2)))) -> 0 | T13: =N13 -> 221 | U13: =COUNTIF(L7:L39,T13) -> 0 | V13: =U13/(W4-U11) -> 0 | W13: =IF(V13=0,0,(V13*((LOG(V13))/LOG(2)))) -> 0 | Y13: =N13 -> 221 | Z13: =COUNTIF(L40:L73,Y13) -> 0 | AA13: =Z13/(AB4-Z11) -> 0 | AB13: =IF(AA13=0,0,(AA13*((LOG(AA13))/LOG(2)))) -> 0 | AD13: =N13 -> 221 | AE13: =COUNTIF(L74:L106,AD13) -> 0 | AF13: =AE13/(AG4-AE11) -> 0 | AG13: =IF(AF13=0,0,(AF13*((LOG(AF13))/LOG(2)))) -> 0 | AI13: =N13 -> 221 | AJ13: =COUNTIF(L107:L139,AI13) -> 0 | AK13: =AJ13/(AL4-AJ11) -> 0 | AL13: =IF(AK13=0,0,(AK13*((LOG(AK13))/LOG(2)))) -> 0 | AN13: =N13 -> 221 | AO13: =COUNTIF(L140:L173,AN13) -> 0 | AP13: =AO13/(AQ4-AO11) -> 0 | AQ13: =IF(AP13=0,0,(AP13*((LOG(AP13))/LOG(2)))) -> 0 | AS13: =N13 -> 221 | AT13: =COUNTIF(L174:L206,AS13) -> 0 | AU13: =AT13/(AV4-AT11) -> 0 | AV13: =IF(AU13=0,0,(AU13*((LOG(AU13))/LOG(2)))) -> 0
A14: 12 | B14: 821 | C14: 24 | D14: 837 | E14: 24 | F14: 843 | K14: 0 | L14: 122 | N14: 222 | O14: =COUNTIF($L$7:$L$500,N14) -> 32 | P14: =O14/$Q$4 -> 0.16 | Q14: =IF(P14=0,0,(P14*((LOG(P14))/LOG(2)))) -> -0.4230169904 | T14: =N14 -> 222 | U14: =COUNTIF(L7:L39,T14) -> 6 | V14: =U14/(W4-U11) -> 0.1818181818 | W14: =IF(V14=0,0,(V14*((LOG(V14))/LOG(2)))) -> -0.4471693852 | Y14: =N14 -> 222 | Z14: =COUNTIF(L40:L73,Y14) -> 5 | AA14: =Z14/(AB4-Z11) -> 0.1470588235 | AB14: =IF(AA14=0,0,(AA14*((LOG(AA14))/LOG(2)))) -> -0.4066962862 | AD14: =N14 -> 222 | AE14: =COUNTIF(L74:L106,AD14) -> 4 | AF14: =AE14/(AG4-AE11) -> 0.1212121212 | AG14: =IF(AF14=0,0,(AF14*((LOG(AF14))/LOG(2)))) -> -0.369017469 | AI14: =N14 -> 222 | AJ14: =COUNTIF(L107:L139,AI14) -> 6 | AK14: =AJ14/(AL4-AJ11) -> 0.1818181818 | AL14: =IF(AK14=0,0,(AK14*((LOG(AK14))/LOG(2)))) -> -0.4471693852 | AN14: =N14 -> 222 | AO14: =COUNTIF(L140:L173,AN14) -> 5 | AP14: =AO14/(AQ4-AO11) -> 0.1470588235 | AQ14: =IF(AP14=0,0,(AP14*((LOG(AP14))/LOG(2)))) -> -0.4066962862 | AS14: =N14 -> 222 | AT14: =COUNTIF(L174:L206,AS14) -> 6 | AU14: =AT14/(AV4-AT11) -> 0.1818181818 | AV14: =IF(AU14=0,0,(AU14*((LOG(AU14))/LOG(2)))) -> -0.4471693852
A15: 21 | B15: 980 | C15: 22 | D15: 983 | E15: 24 | F15: 987 | K15: 0 | L15: 222 | P15: =SUM(P7:P14) -> 1 | Q15: =-SUM(Q7:Q14) -> 1.405031458 | V15: =SUM(V7:V14) -> 1 | W15: =-SUM(W7:W14) -> 0.9957220058 | AA15: =SUM(AA7:AA14) -> 1 | AB15: =-SUM(AB7:AB14) -> 1.282503414 | AF15: =SUM(AF7:AF14) -> 1 | AG15: =-SUM(AG7:AG14) -> 1.455346789 | AK15: =SUM(AK7:AK14) -> 1 | AL15: =-SUM(AL7:AL14) -> 1.401351763 | AP15: =SUM(AP7:AP14) -> 1 | AQ15: =-SUM(AQ7:AQ14) -> 1.168098695 | AU15: =SUM(AU7:AU14) -> 1 | AV15: =-SUM(AV7:AV14) -> 1.655536728
A16: 12 | B16: 1086 | C16: 24 | D16: 1098 | E16: 24 | F16: 1115 | K16: 0 | L16: 122 | P16: U= | Q16: =Q15/(LOG(Q4)/LOG(2)) -> 0.1838118644 | V16: U1= | W16: =W15/(LOG(W4)/LOG(2)) -> 0.1973917942 | AA16: U2= | AB16: =AB15/(LOG(AB4)/LOG(2)) -> 0.2520909643 | AF16: U3= | AG16: =AG15/(LOG(AG4)/LOG(2)) -> 0.2885077483 | AK16: U4= | AL16: =AL15/(LOG(AL4)/LOG(2)) -> 0.2778037818 | AP16: U5= | AQ16: =AQ15/(LOG(AQ4)/LOG(2)) -> 0.2296033861 | AU16: U6= | AV16: =AV15/(LOG(AV4)/LOG(2)) -> 0.3281933744
A17: 12 | B17: 1212 | C17: 24 | D17: 1224 | E17: 24 | F17: 1250 | K17: 0 | L17: 122
A18: 12 | B18: 1349 | C18: 24 | D18: 1364 | E18: 24 | F18: 1374 | K18: 0 | L18: 122
A19: 12 | B19: 1462 | C19: 24 | D19: 1473 | E19: 24 | F19: 1481 | K19: 0 | L19: 122 | N19: Total Target Seq
A20: 12 | B20: 1578 | C20: 24 | D20: 1591 | E20: 24 | F20: 1595 | K20: 0 | L20: 122 | N20: =COUNTIF(L7:L206,G3) -> 0 | P20: 33 | Q20: 34 | R20: 33 | S20: 33 | T20: 34 | U20: 33
A21: 21 | B21: 1702 | C21: 22 | D21: 1706 | E21: 24 | F21: 1711 | K21: 0 | L21: 222 | P21: % of reinforcement given in 6 equal intervals based on number of trials
A22: 12 | B22: 1808 | C22: 13 | D22: 1810 | E22: 24 | F22: 1819 | K22: 0 | L22: 112 | P22: %_1 | Q22: %_2 | R22: %_3 | S22: %_4 | T22: %_5 | U22: %_6
A23: 12 | B23: 1917 | C23: 24 | D23: 1930 | E23: 24 | F23: 1934 | K23: 0 | L23: 122 | O23: target sequence | P23: =$G$3 -> 211 | Q23: =$G$3 -> 211 | R23: =$G$3 -> 211 | S23: =$G$3 -> 211 | T23: =$G$3 -> 211 | U23: =$G$3 -> 211
A24: 12 | B24: 2030 | C24: 24 | D24: 2052 | E24: 24 | F24: 2057 | K24: 0 | L24: 122 | O24: total reinforcement | P24: =U11 -> 0 | Q24: =Z11 -> 0 | R24: =AE11 -> 0 | S24: =AJ11 -> 0 | T24: =AO11 -> 0 | U24: =AT11 -> 0
A25: 12 | B25: 2153 | C25: 24 | D25: 2162 | E25: 24 | F25: 2189 | K25: 0 | L25: 122 | O25: % target
A26: 21 | B26: 2298 | C26: 22 | D26: 2300 | E26: 24 | F26: 2310 | K26: 0 | L26: 222 | O26: CCRF
A27: 21 | B27: 2419 | C27: 22 | D27: 2424 | E27: 24 | F27: 2429 | K27: 0 | L27: 222 | O27: % CCRf
A28: 12 | B28: 2531 | C28: 24 | D28: 2541 | E28: 24 | F28: 2544 | K28: 0 | L28: 122 | O28: average response rate | P28: =F39/P20 -> 114.7575758 | Q28: =(F73-F39)/Q20 -> 118.0588235 | R28: =(F106-F73)/R20 -> 116.6363636 | S28: =(F139-F106)/S20 -> 126.2727273 | T28: =(F173-F139)/T20 -> 116.0294118 | U28: =(F206-F173)/U20 -> 121.2424242
A29: 12 | B29: 2643 | C29: 24 | D29: 2653 | E29: 24 | F29: 2656 | K29: 0 | L29: 122
A30: 12 | B30: 2754 | C30: 24 | D30: 2762 | E30: 24 | F30: 2765 | K30: 0 | L30: 122
A31: 12 | B31: 2860 | C31: 24 | D31: 2874 | E31: 24 | F31: 2878 | K31: 0 | L31: 122
A32: 12 | B32: 2974 | C32: 24 | D32: 2989 | E32: 24 | F32: 2994 | K32: 0 | L32: 122
A33: 12 | B33: 3087 | C33: 24 | D33: 3098 | E33: 24 | F33: 3113 | K33: 0 | L33: 122
A34: 12 | B34: 3211 | C34: 24 | D34: 3223 | E34: 24 | F34: 3228 | K34: 0 | L34: 122
A35: 12 | B35: 3325 | C35: 24 | D35: 3337 | E35: 24 | F35: 3341 | K35: 0 | L35: 122
A36: 12 | B36: 3439 | C36: 24 | D36: 3450 | E36: 24 | F36: 3454 | K36: 0 | L36: 122
A37: 12 | B37: 3550 | C37: 13 | D37: 3552 | E37: 24 | F37: 3559 | K37: 0 | L37: 112
A38: 12 | B38: 3654 | C38: 24 | D38: 3663 | E38: 24 | F38: 3669 | K38: 0 | L38: 122
A39: 21 | B39: 3777 | C39: 22 | D39: 3782 | E39: 24 | F39: 3787 | K39: 0 | L39: 222
A40: 21 | B40: 4001 | C40: 22 | D40: 4004 | E40: 24 | F40: 4008 | K40: 0 | L40: 222
A41: 12 | B41: 4103 | C41: 24 | D41: 4115 | E41: 24 | F41: 4139 | K41: 0 | L41: 122
A42: 12 | B42: 4237 | C42: 24 | D42: 4248 | E42: 24 | F42: 4251 | K42: 0 | L42: 122
A43: 12 | B43: 4349 | C43: 13 | D43: 4353 | E43: 24 | F43: 4363 | K43: 0 | L43: 112
A44: 12 | B44: 4459 | C44: 13 | D44: 4462 | E44: 24 | F44: 4474 | K44: 0 | L44: 112
A45: 21 | B45: 4581 | C45: 22 | D45: 4585 | E45: 24 | F45: 4591 | K45: 0 | L45: 222
A46: 12 | B46: 4688 | C46: 13 | D46: 4692 | E46: 24 | F46: 4704 | K46: 0 | L46: 112
A47: 12 | B47: 4801 | C47: 24 | D47: 4811 | E47: 24 | F47: 4815 | K47: 0 | L47: 122
A48: 12 | B48: 4908 | C48: 24 | D48: 4921 | E48: 24 | F48: 4926 | K48: 0 | L48: 122
A49: 12 | B49: 5018 | C49: 24 | D49: 5039 | E49: 24 | F49: 5043 | K49: 0 | L49: 122
A50: 12 | B50: 5140 | C50: 13 | D50: 5142 | E50: 24 | F50: 5153 | K50: 0 | L50: 112
A51: 12 | B51: 5250 | C51: 24 | D51: 5258 | E51: 24 | F51: 5261 | K51: 0 | L51: 122
A52: 12 | B52: 5374 | C52: 24 | D52: 5382 | E52: 24 | F52: 5388 | K52: 0 | L52: 122
A53: 12 | B53: 5481 | C53: 13 | D53: 5484 | E53: 24 | F53: 5500 | K53: 0 | L53: 112
A54: 12 | B54: 5596 | C54: 24 | D54: 5609 | E54: 24 | F54: 5612 | K54: 0 | L54: 122
A55: 12 | B55: 5708 | C55: 24 | D55: 5723 | E55: 24 | F55: 5728 | K55: 0 | L55: 122
A56: 12 | B56: 5843 | C56: 24 | D56: 5854 | E56: 24 | F56: 5859 | K56: 0 | L56: 122
A57: 12 | B57: 5955 | C57: 24 | D57: 5966 | E57: 24 | F57: 5982 | K57: 0 | L57: 122
A58: 12 | B58: 6078 | C58: 13 | D58: 6081 | E58: 24 | F58: 6089 | K58: 0 | L58: 112
A59: 12 | B59: 6185 | C59: 24 | D59: 6196 | E59: 24 | F59: 6200 | K59: 0 | L59: 122
A60: 12 | B60: 6307 | C60: 24 | D60: 6320 | E60: 24 | F60: 6324 | K60: 0 | L60: 122
A61: 12 | B61: 6422 | C61: 13 | D61: 6425 | E61: 24 | F61: 6439 | K61: 0 | L61: 112
A62: 21 | B62: 6545 | C62: 22 | D62: 6548 | E62: 24 | F62: 6553 | K62: 0 | L62: 222
A63: 12 | B63: 6651 | C63: 24 | D63: 6664 | E63: 24 | F63: 6668 | K63: 0 | L63: 122
A64: 12 | B64: 6763 | C64: 24 | D64: 6771 | E64: 24 | F64: 6779 | K64: 0 | L64: 122
A65: 12 | B65: 6877 | C65: 24 | D65: 6890 | E65: 24 | F65: 6894 | K65: 0 | L65: 122
A66: 12 | B66: 6991 | C66: 24 | D66: 7002 | E66: 24 | F66: 7006 | K66: 0 | L66: 122
A67: 21 | B67: 7118 | C67: 22 | D67: 7123 | E67: 24 | F67: 7128 | K67: 0 | L67: 222
A68: 12 | B68: 7223 | C68: 24 | D68: 7235 | E68: 24 | F68: 7240 | K68: 0 | L68: 122
A69: 12 | B69: 7334 | C69: 24 | D69: 7346 | E69: 24 | F69: 7351 | K69: 0 | L69: 122
A70: 12 | B70: 7445 | C70: 24 | D70: 7458 | E70: 24 | F70: 7463 | K70: 0 | L70: 122
A71: 12 | B71: 7560 | C71: 24 | D71: 7576 | E71: 24 | F71: 7581 | K71: 0 | L71: 122
A72: 12 | B72: 7675 | C72: 24 | D72: 7687 | E72: 24 | F72: 7690 | K72: 0 | L72: 122
A73: 21 | B73: 7793 | C73: 22 | D73: 7796 | E73: 24 | F73: 7801 | K73: 0 | L73: 222
A74: 12 | B74: 7903 | C74: 24 | D74: 7918 | E74: 24 | F74: 7922 | K74: 0 | L74: 122
A75: 21 | B75: 8029 | C75: 22 | D75: 8033 | E75: 24 | F75: 8039 | K75: 0 | L75: 222
A76: 12 | B76: 8136 | C76: 24 | D76: 8145 | E76: 24 | F76: 8149 | K76: 0 | L76: 122
A77: 12 | B77: 8245 | C77: 24 | D77: 8256 | E77: 24 | F77: 8260 | K77: 0 | L77: 122
A78: 12 | B78: 8356 | C78: 24 | D78: 8366 | E78: 24 | F78: 8376 | K78: 0 | L78: 122
A79: 21 | B79: 8516 | C79: 22 | D79: 8520 | E79: 24 | F79: 8526 | K79: 0 | L79: 222
A80: 12 | B80: 8625 | C80: 24 | D80: 8634 | E80: 24 | F80: 8637 | K80: 0 | L80: 122
A81: 21 | B81: 8741 | C81: 22 | D81: 8744 | E81: 24 | F81: 8749 | K81: 0 | L81: 222
A82: 12 | B82: 8847 | C82: 24 | D82: 8861 | E82: 24 | F82: 8866 | K82: 0 | L82: 122
A83: 12 | B83: 8958 | C83: 24 | D83: 8967 | E83: 24 | F83: 8971 | K83: 0 | L83: 122
A84: 12 | B84: 9086 | C84: 24 | D84: 9092 | E84: 24 | F84: 9096 | K84: 0 | L84: 122
A85: 12 | B85: 9193 | C85: 24 | D85: 9207 | E85: 24 | F85: 9211 | K85: 0 | L85: 122
A86: 12 | B86: 9308 | C86: 13 | D86: 9310 | E86: 24 | F86: 9323 | K86: 0 | L86: 112
A87: 12 | B87: 9418 | C87: 24 | D87: 9437 | E87: 24 | F87: 9451 | K87: 0 | L87: 122
A88: 12 | B88: 9548 | C88: 24 | D88: 9558 | E88: 24 | F88: 9563 | K88: 0 | L88: 122
A89: 12 | B89: 9661 | C89: 13 | D89: 9665 | E89: 24 | F89: 9676 | K89: 0 | L89: 112
A90: 21 | B90: 9789 | C90: 22 | D90: 9794 | E90: 24 | F90: 9800 | K90: 0 | L90: 222
A91: 12 | B91: 9897 | C91: 24 | D91: 9910 | E91: 24 | F91: 9919 | K91: 0 | L91: 122
A92: 12 | B92: 10011 | C92: 13 | D92: 10015 | E92: 24 | F92: 10026 | K92: 0 | L92: 112
A93: 12 | B93: 10122 | C93: 24 | D93: 10149 | E93: 24 | F93: 10155 | K93: 0 | L93: 122
A94: 12 | B94: 10253 | C94: 13 | D94: 10256 | E94: 24 | F94: 10267 | K94: 0 | L94: 112
A95: 12 | B95: 10362 | C95: 13 | D95: 10364 | E95: 24 | F95: 10378 | K95: 0 | L95: 112
A96: 12 | B96: 10473 | C96: 24 | D96: 10502 | E96: 24 | F96: 10517 | K96: 0 | L96: 122
A97: 12 | B97: 10613 | C97: 24 | D97: 10627 | E97: 24 | F97: 10637 | K97: 0 | L97: 122
A98: 12 | B98: 10759 | C98: 13 | D98: 10762 | E98: 24 | F98: 10771 | K98: 0 | L98: 112
A99: 12 | B99: 10867 | C99: 24 | D99: 10876 | E99: 24 | F99: 10880 | K99: 0 | L99: 122
A100: 12 | B100: 10974 | C100: 24 | D100: 10990 | E100: 24 | F100: 10995 | K100: 0 | L100: 122
A101: 12 | B101: 11087 | C101: 13 | D101: 11089 | E101: 24 | F101: 11098 | K101: 0 | L101: 112
A102: 12 | B102: 11197 | C102: 24 | D102: 11210 | E102: 24 | F102: 11215 | K102: 0 | L102: 122
A103: 12 | B103: 11308 | C103: 24 | D103: 11321 | E103: 24 | F103: 11324 | K103: 0 | L103: 122
A104: 12 | B104: 11423 | C104: 13 | D104: 11427 | E104: 24 | F104: 11438 | K104: 0 | L104: 112
A105: 12 | B105: 11535 | C105: 13 | D105: 11538 | E105: 13 | F105: 11540 | K105: 0 | L105: 111
A106: 12 | B106: 11637 | C106: 24 | D106: 11645 | E106: 24 | F106: 11650 | K106: 0 | L106: 122
A107: 12 | B107: 11749 | C107: 24 | D107: 11762 | E107: 24 | F107: 11768 | K107: 0 | L107: 122
A108: 12 | B108: 11865 | C108: 24 | D108: 11877 | E108: 24 | F108: 11880 | K108: 0 | L108: 122
A109: 12 | B109: 11977 | C109: 13 | D109: 11982 | E109: 24 | F109: 11992 | K109: 0 | L109: 112
A110: 21 | B110: 12154 | C110: 22 | D110: 12160 | E110: 24 | F110: 12165 | K110: 0 | L110: 222
A111: 12 | B111: 12262 | C111: 24 | D111: 12273 | E111: 24 | F111: 12277 | K111: 0 | L111: 122
A112: 12 | B112: 12375 | C112: 24 | D112: 12385 | E112: 24 | F112: 12390 | K112: 0 | L112: 122
A113: 12 | B113: 12482 | C113: 13 | D113: 12487 | E113: 24 | F113: 12497 | K113: 0 | L113: 112
A114: 12 | B114: 12594 | C114: 24 | D114: 12610 | E114: 24 | F114: 12613 | K114: 0 | L114: 122
A115: 21 | B115: 12779 | C115: 22 | D115: 12786 | E115: 24 | F115: 12791 | K115: 0 | L115: 222
A116: 12 | B116: 12889 | C116: 24 | D116: 12899 | E116: 24 | F116: 12904 | K116: 0 | L116: 122
A117: 12 | B117: 12997 | C117: 24 | D117: 13012 | E117: 24 | F117: 13016 | K117: 0 | L117: 122
A118: 12 | B118: 13112 | C118: 24 | D118: 13120 | E118: 24 | F118: 13128 | K118: 0 | L118: 122
A119: 21 | B119: 13263 | C119: 22 | D119: 13268 | E119: 24 | F119: 13272 | K119: 0 | L119: 222
A120: 12 | B120: 13368 | C120: 13 | D120: 13371 | E120: 24 | F120: 13381 | K120: 0 | L120: 112
A121: 12 | B121: 13478 | C121: 13 | D121: 13481 | E121: 24 | F121: 13495 | K121: 0 | L121: 112
A122: 21 | B122: 13604 | C122: 22 | D122: 13608 | E122: 24 | F122: 13623 | K122: 0 | L122: 222
A123: 12 | B123: 13790 | C123: 24 | D123: 13800 | E123: 24 | F123: 13805 | K123: 0 | L123: 122
A124: 12 | B124: 13986 | C124: 24 | D124: 13996 | E124: 24 | F124: 14000 | K124: 0 | L124: 122
A125: 12 | B125: 14115 | C125: 24 | D125: 14127 | E125: 24 | F125: 14130 | K125: 0 | L125: 122
A126: 12 | B126: 14228 | C126: 24 | D126: 14246 | E126: 24 | F126: 14250 | K126: 0 | L126: 122
A127: 12 | B127: 14348 | C127: 24 | D127: 14366 | E127: 24 | F127: 14370 | K127: 0 | L127: 122
A128: 12 | B128: 14469 | C128: 24 | D128: 14480 | E128: 24 | F128: 14484 | K128: 0 | L128: 122
A129: 12 | B129: 14582 | C129: 13 | D129: 14584 | E129: 24 | F129: 14601 | K129: 0 | L129: 112
A130: 21 | B130: 14716 | C130: 22 | D130: 14720 | E130: 24 | F130: 14725 | K130: 0 | L130: 222
A131: 21 | B131: 14871 | C131: 22 | D131: 14876 | E131: 24 | F131: 14881 | K131: 0 | L131: 222
A132: 12 | B132: 14979 | C132: 24 | D132: 14989 | E132: 24 | F132: 14994 | K132: 0 | L132: 122
A133: 12 | B133: 15090 | C133: 24 | D133: 15105 | E133: 24 | F133: 15116 | K133: 0 | L133: 122
A134: 12 | B134: 15213 | C134: 13 | D134: 15215 | E134: 24 | F134: 15229 | K134: 0 | L134: 112
A135: 12 | B135: 15327 | C135: 13 | D135: 15330 | E135: 24 | F135: 15345 | K135: 0 | L135: 112
A136: 12 | B136: 15442 | C136: 24 | D136: 15459 | E136: 24 | F136: 15463 | K136: 0 | L136: 122
A137: 12 | B137: 15560 | C137: 13 | D137: 15564 | E137: 24 | F137: 15579 | K137: 0 | L137: 112
A138: 12 | B138: 15672 | C138: 24 | D138: 15687 | E138: 24 | F138: 15690 | K138: 0 | L138: 122
A139: 12 | B139: 15801 | C139: 24 | D139: 15812 | E139: 24 | F139: 15817 | K139: 0 | L139: 122
A140: 12 | B140: 15911 | C140: 24 | D140: 15924 | E140: 24 | F140: 15929 | K140: 0 | L140: 122
A141: 12 | B141: 16025 | C141: 24 | D141: 16040 | E141: 24 | F141: 16045 | K141: 0 | L141: 122
A142: 12 | B142: 16144 | C142: 24 | D142: 16155 | E142: 24 | F142: 16159 | K142: 0 | L142: 122
A143: 12 | B143: 16257 | C143: 13 | D143: 16259 | E143: 24 | F143: 16274 | K143: 0 | L143: 112
A144: 12 | B144: 16370 | C144: 24 | D144: 16382 | E144: 24 | F144: 16387 | K144: 0 | L144: 122
A145: 21 | B145: 16504 | C145: 22 | D145: 16509 | E145: 24 | F145: 16514 | K145: 0 | L145: 222
A146: 12 | B146: 16611 | C146: 24 | D146: 16624 | E146: 24 | F146: 16628 | K146: 0 | L146: 122
A147: 12 | B147: 16723 | C147: 24 | D147: 16734 | E147: 24 | F147: 16744 | K147: 0 | L147: 122
A148: 12 | B148: 16839 | C148: 24 | D148: 16848 | E148: 24 | F148: 16852 | K148: 0 | L148: 122
A149: 21 | B149: 16956 | C149: 22 | D149: 16960 | E149: 24 | F149: 16965 | K149: 0 | L149: 222
A150: 21 | B150: 17089 | C150: 22 | D150: 17093 | E150: 24 | F150: 17096 | K150: 0 | L150: 222
A151: 12 | B151: 17218 | C151: 24 | D151: 17228 | E151: 24 | F151: 17234 | K151: 0 | L151: 122
A152: 12 | B152: 17332 | C152: 24 | D152: 17338 | E152: 24 | F152: 17342 | K152: 0 | L152: 122
A153: 12 | B153: 17441 | C153: 24 | D153: 17459 | E153: 24 | F153: 17463 | K153: 0 | L153: 122
A154: 12 | B154: 17559 | C154: 13 | D154: 17561 | E154: 24 | F154: 17572 | K154: 0 | L154: 112
A155: 12 | B155: 17666 | C155: 24 | D155: 17677 | E155: 24 | F155: 17682 | K155: 0 | L155: 122
A156: 12 | B156: 17778 | C156: 13 | D156: 17780 | E156: 24 | F156: 17795 | K156: 0 | L156: 112
A157: 12 | B157: 17891 | C157: 13 | D157: 17895 | E157: 24 | F157: 17910 | K157: 0 | L157: 112
A158: 12 | B158: 18009 | C158: 24 | D158: 18021 | E158: 24 | F158: 18025 | K158: 0 | L158: 122
A159: 21 | B159: 18134 | C159: 22 | D159: 18144 | E159: 24 | F159: 18149 | K159: 0 | L159: 222
A160: 12 | B160: 18245 | C160: 24 | D160: 18256 | E160: 24 | F160: 18260 | K160: 0 | L160: 122
A161: 12 | B161: 18377 | C161: 24 | D161: 18391 | E161: 24 | F161: 18395 | K161: 0 | L161: 122
A162: 21 | B162: 18505 | C162: 22 | D162: 18513 | E162: 24 | F162: 18518 | K162: 0 | L162: 222
A163: 12 | B163: 18615 | C163: 24 | D163: 18633 | E163: 24 | F163: 18639 | K163: 0 | L163: 122
A164: 12 | B164: 18736 | C164: 24 | D164: 18751 | E164: 24 | F164: 18754 | K164: 0 | L164: 122
A165: 12 | B165: 18852 | C165: 24 | D165: 18857 | E165: 24 | F165: 18863 | K165: 0 | L165: 122
A166: 12 | B166: 18960 | C166: 24 | D166: 18968 | E166: 24 | F166: 18973 | K166: 0 | L166: 122
A167: 12 | B167: 19072 | C167: 24 | D167: 19082 | E167: 24 | F167: 19086 | K167: 0 | L167: 122
A168: 12 | B168: 19184 | C168: 24 | D168: 19198 | E168: 24 | F168: 19202 | K168: 0 | L168: 122
A169: 12 | B169: 19296 | C169: 24 | D169: 19308 | E169: 24 | F169: 19316 | K169: 0 | L169: 122
A170: 12 | B170: 19413 | C170: 24 | D170: 19421 | E170: 24 | F170: 19425 | K170: 0 | L170: 122
A171: 12 | B171: 19522 | C171: 13 | D171: 19526 | E171: 24 | F171: 19537 | K171: 0 | L171: 112
A172: 12 | B172: 19630 | C172: 24 | D172: 19646 | E172: 24 | F172: 19651 | K172: 0 | L172: 122
A173: 12 | B173: 19748 | C173: 24 | D173: 19758 | E173: 24 | F173: 19762 | K173: 0 | L173: 122
A174: 21 | B174: 19892 | C174: 22 | D174: 19895 | E174: 24 | F174: 19900 | K174: 0 | L174: 222
A175: 12 | B175: 19998 | C175: 13 | D175: 20000 | E175: 24 | F175: 20011 | K175: 0 | L175: 112
A176: 12 | B176: 20105 | C176: 13 | D176: 20107 | E176: 24 | F176: 20119 | K176: 0 | L176: 112
A177: 12 | B177: 20213 | C177: 24 | D177: 20227 | E177: 24 | F177: 20231 | K177: 0 | L177: 122
A178: 12 | B178: 20326 | C178: 13 | D178: 20330 | E178: 24 | F178: 20340 | K178: 0 | L178: 112
A179: 12 | B179: 20438 | C179: 24 | D179: 20452 | E179: 24 | F179: 20456 | K179: 0 | L179: 122
A180: 12 | B180: 20553 | C180: 13 | D180: 20555 | E180: 13 | F180: 20557 | K180: 0 | L180: 111
A181: 12 | B181: 20654 | C181: 13 | D181: 20658 | E181: 24 | F181: 20668 | K181: 0 | L181: 112
A182: 12 | B182: 20765 | C182: 24 | D182: 20785 | E182: 24 | F182: 20791 | K182: 0 | L182: 122
A183: 12 | B183: 20879 | C183: 13 | D183: 20882 | E183: 24 | F183: 20891 | K183: 0 | L183: 112
A184: 12 | B184: 20989 | C184: 13 | D184: 20992 | E184: 24 | F184: 21004 | K184: 0 | L184: 112
A185: 12 | B185: 21116 | C185: 24 | D185: 21123 | E185: 24 | F185: 21131 | K185: 0 | L185: 122
A186: 12 | B186: 21239 | C186: 24 | D186: 21251 | E186: 24 | F186: 21256 | K186: 0 | L186: 122
A187: 12 | B187: 21353 | C187: 13 | D187: 21355 | E187: 24 | F187: 21367 | K187: 0 | L187: 112
A188: 12 | B188: 21502 | C188: 24 | D188: 21515 | E188: 24 | F188: 21519 | K188: 0 | L188: 122
A189: 12 | B189: 21677 | C189: 24 | D189: 21690 | E189: 24 | F189: 21695 | K189: 0 | L189: 122
A190: 12 | B190: 21792 | C190: 24 | D190: 21802 | E190: 24 | F190: 21806 | K190: 0 | L190: 122
A191: 21 | B191: 21916 | C191: 22 | D191: 21920 | E191: 24 | F191: 21938 | K191: 0 | L191: 222
A192: 12 | B192: 22033 | C192: 24 | D192: 22045 | E192: 24 | F192: 22048 | K192: 0 | L192: 122
A193: 12 | B193: 22144 | C193: 13 | D193: 22146 | E193: 24 | F193: 22159 | K193: 0 | L193: 112
A194: 21 | B194: 22312 | C194: 22 | D194: 22315 | E194: 24 | F194: 22319 | K194: 0 | L194: 222
A195: 12 | B195: 22458 | C195: 24 | D195: 22470 | E195: 24 | F195: 22474 | K195: 0 | L195: 122
A196: 12 | B196: 22573 | C196: 24 | D196: 22584 | E196: 24 | F196: 22588 | K196: 0 | L196: 122
A197: 12 | B197: 22686 | C197: 13 | D197: 22689 | E197: 24 | F197: 22705 | K197: 0 | L197: 112
A198: 12 | B198: 22802 | C198: 13 | D198: 22804 | E198: 24 | F198: 22815 | K198: 0 | L198: 112
A199: 12 | B199: 22913 | C199: 13 | D199: 22917 | E199: 24 | F199: 22919 | K199: 0 | L199: 112
A200: 21 | B200: 23027 | C200: 22 | D200: 23029 | E200: 24 | F200: 23031 | K200: 0 | L200: 222
... 6 more rows

Sheet !L901A4T.ayl
A1: Report for:!L901A4T.ayl
A2: Date: | B2: <date>
A3: Hen: | B3: <hen> | F3: Correct Sequence | G3: =Start!J2 -> 211 | P3: Total Sequences in Data | Q3: =4994-COUNTBLANK(L7:L5000) -> 171 | V3: Total Sequences in Block Data | W3: =COUNTA(L7:L35) -> 29 | AA3: Total Sequences in Block Data | AB3: =COUNTA(L36:L63) -> 28 | AF3: Total Sequences in Block Data | AG3: =COUNTA(L64:L92) -> 29 | AK3: Total Sequences in Block Data | AL3: =COUNTA(L93:L120) -> 28 | AP3: Total Sequences in Block Data | AQ3: =COUNTA(L121:L149) -> 29 | AU3: Total Sequences in Block Data | AV3: =COUNTA(L150:L177) -> 28
P4: Total Sequences in Summary | Q4: =SUM(O7:O14) -> 171 | V4: Total Sequences in Block Summary | W4: =SUM(U7:U14) -> 29 | AA4: Total Sequences in Block Summary | AB4: =SUM(Z7:Z14) -> 28 | AF4: Total Sequences in Block Summary | AG4: =SUM(AE7:AE14) -> 29 | AK4: Total Sequences in Block Summary | AL4: =SUM(AJ7:AJ14) -> 28 | AP4: Total Sequences in Block Summary | AQ4: =SUM(AO7:AO14) -> 29 | AU4: Total Sequences in Block Summary | AV4: =SUM(AT7:AT14) -> 28
T5: Block 1 | Y5: Block 2 | AD5: Block 3 | AI5: Block 4 | AN5: Block 5 | AS5: Block 6
A6: Sequence Component 1 | B6: Time 1 | C6: Sequence Component 2 | D6: Time 2 | E6: Sequence Component 3 | F6: Time 3 | G6: Sequence Component 4 | H6: Time 4 | I6: Sequence Component 5 | J6: Time 5 | K6: Correct? 0=No 1=Yes | L6: Sequence | N6: Frequency | P6: Relative Frequency | Q6: Variability | T6: Frequency | V6: Relative Frequency | W6: Variability | Y6: Frequency | AA6: Relative Frequency | AB6: Variability | AD6: Frequency | AF6: Relative Frequency | AG6: Variability | AI6: Frequency | AK6: Relative Frequency | AL6: Variability | AN6: Frequency | AP6: Relative Frequency | AQ6: Variability | AS6: Frequency | AU6: Relative Frequency | AV6: Variability
A7: 21 | B7: 32 | C7: 22 | D7: 43 | E7: 24 | F7: 48 | K7: 0 | L7: 222 | N7: 111 | O7: =COUNTIF($L$7:$L$500,N7) -> 1 | P7: =O7/$Q$4 -> 0.005847953216 | Q7: =IF(P7=0,0,(P7*((LOG(P7))/LOG(2)))) -> -0.04337925447 | T7: =N7 -> 111 | U7: =COUNTIF(L7:L35,T7) -> 0 | V7: =U7/(W4-U11) -> 0 | W7: =IF(V7=0,0,(V7*((LOG(V7))/LOG(2)))) -> 0 | Y7: =N7 -> 111 | Z7: =COUNTIF(L36:L63,Y7) -> 0 | AA7: =Z7/(AB4-Z11) -> 0 | AB7: =IF(AA7=0,0,(AA7*((LOG(AA7))/LOG(2)))) -> 0 | AD7: =N7 -> 111 | AE7: =COUNTIF(L64:L92,AD7) -> 0 | AF7: =AE7/(AG4-AE11) -> 0 | AG7: =IF(AF7=0,0,(AF7*((LOG(AF7))/LOG(2)))) -> 0 | AI7: =N7 -> 111 | AJ7: =COUNTIF(L93:L120,AI7) -> 0 | AK7: =AJ7/(AL4-AJ11) -> 0 | AL7: =IF(AK7=0,0,(AK7*((LOG(AK7))/LOG(2)))) -> 0 | AN7: =N7 -> 111 | AO7: =COUNTIF(L121:L149,AN7) -> 0 | AP7: =AO7/(AQ4-AO11) -> 0 | AQ7: =IF(AP7=0,0,(AP7*((LOG(AP7))/LOG(2)))) -> 0 | AS7: =N7 -> 111 | AT7: =COUNTIF(L150:L177,AS7) -> 1 | AU7: =AT7/(AV4-AT11) -> 0.03571428571 | AV7: =IF(AU7=0,0,(AU7*((LOG(AU7))/LOG(2)))) -> -0.1716912472
A8: 21 | B8: 162 | C8: 22 | D8: 168 | E8: 24 | F8: 174 | K8: 0 | L8: 222 | N8: 112 | O8: =COUNTIF($L$7:$L$500,N8) -> 25 | P8: =O8/$Q$4 -> 0.1461988304 | Q8: =IF(P8=0,0,(P8*((LOG(P8))/LOG(2)))) -> -0.4055550183 | T8: =N8 -> 112 | U8: =COUNTIF(L7:L35,T8) -> 6 | V8: =U8/(W4-U11) -> 0.2068965517 | W8: =IF(V8=0,0,(V8*((LOG(V8))/LOG(2)))) -> -0.4702796885 | Y8: =N8 -> 112 | Z8: =COUNTIF(L36:L63,Y8) -> 2 | AA8: =Z8/(AB4-Z11) -> 0.07142857143 | AB8: =IF(AA8=0,0,(AA8*((LOG(AA8))/LOG(2)))) -> -0.271953923 | AD8: =N8 -> 112 | AE8: =COUNTIF(L64:L92,AD8) -> 6 | AF8: =AE8/(AG4-AE11) -> 0.2068965517 | AG8: =IF(AF8=0,0,(AF8*((LOG(AF8))/LOG(2)))) -> -0.4702796885 | AI8: =N8 -> 112 | AJ8: =COUNTIF(L93:L120,AI8) -> 6 | AK8: =AJ8/(AL4-AJ11) -> 0.2142857143 | AL8: =IF(AK8=0,0,(AK8*((LOG(AK8))/LOG(2)))) -> -0.4762269474 | AN8: =N8 -> 112 | AO8: =COUNTIF(L121:L149,AN8) -> 3 | AP8: =AO8/(AQ4-AO11) -> 0.1034482759 | AQ8: =IF(AP8=0,0,(AP8*((LOG(AP8))/LOG(2)))) -> -0.3385881201 | AS8: =N8 -> 112 | AT8: =COUNTIF(L150:L177,AS8) -> 2 | AU8: =AT8/(AV4-AT11) -> 0.07142857143 | AV8: =IF(AU8=0,0,(AU8*((LOG(AU8))/LOG(2)))) -> -0.271953923
A9: 12 | B9: 273 | C9: 24 | D9: 281 | E9: 24 | F9: 289 | K9: 0 | L9: 122 | N9: 121 | O9: =COUNTIF($L$7:$L$500,N9) -> 0 | P9: =O9/$Q$4 -> 0 | Q9: =IF(P9=0,0,(P9*((LOG(P9))/LOG(2)))) -> 0 | T9: =N9 -> 121 | U9: =COUNTIF(L7:L35,T9) -> 0 | V9: =U9/(W4-U11) -> 0 | W9: =IF(V9=0,0,(V9*((LOG(V9))/LOG(2)))) -> 0 | Y9: =N9 -> 121 | Z9: =COUNTIF(L36:L63,Y9) -> 0 | AA9: =Z9/(AB4-Z11) -> 0 | AB9: =IF(AA9=0,0,(AA9*((LOG(AA9))/LOG(2)))) -> 0 | AD9: =N9 -> 121 | AE9: =COUNTIF(L64:L92,AD9) -> 0 | AF9: =AE9/(AG4-AE11) -> 0 | AG9: =IF(AF9=0,0,(AF9*((LOG(AF9))/LOG(2)))) -> 0 | AI9: =N9 -> 121 | AJ9: =COUNTIF(L93:L120,AI9) -> 0 | AK9: =AJ9/(AL4-AJ11) -> 0 | AL9: =IF(AK9=0,0,(AK9*((LOG(AK9))/LOG(2)))) -> 0 | AN9: =N9 -> 121 | AO9: =COUNTIF(L121:L149,AN9) -> 0 | AP9: =AO9/(AQ4-AO11) -> 0 | AQ9: =IF(AP9=0,0,(AP9*((LOG(AP9))/LOG(2)))) -> 0 | AS9: =N9 -> 121 | AT9: =COUNTIF(L150:L177,AS9) -> 0 | AU9: =AT9/(AV4-AT11) -> 0 | AV9: =IF(AU9=0,0,(AU9*((LOG(AU9))/LOG(2)))) -> 0
A10: 12 | B10: 385 | C10: 24 | D10: 396 | E10: 24 | F10: 402 | K10: 0 | L10: 122 | N10: 122 | O10: =COUNTIF($L$7:$L$500,N10) -> 93 | P10: =O10/$Q$4 -> 0.5438596491 | Q10: =IF(P10=0,0,(P10*((LOG(P10))/LOG(2)))) -> -0.4778860494 | T10: =N10 -> 122 | U10: =COUNTIF(L7:L35,T10) -> 16 | V10: =U10/(W4-U11) -> 0.5517241379 | W10: =IF(V10=0,0,(V10*((LOG(V10))/LOG(2)))) -> -0.4733688249 | Y10: =N10 -> 122 | Z10: =COUNTIF(L36:L63,Y10) -> 17 | AA10: =Z10/(AB4-Z11) -> 0.6071428571 | AB10: =IF(AA10=0,0,(AA10*((LOG(AA10))/LOG(2)))) -> -0.4370773348 | AD10: =N10 -> 122 | AE10: =COUNTIF(L64:L92,AD10) -> 20 | AF10: =AE10/(AG4-AE11) -> 0.6896551724 | AG10: =IF(AF10=0,0,(AF10*((LOG(AF10))/LOG(2)))) -> -0.3696916553 | AI10: =N10 -> 122 | AJ10: =COUNTIF(L93:L120,AI10) -> 17 | AK10: =AJ10/(AL4-AJ11) -> 0.6071428571 | AL10: =IF(AK10=0,0,(AK10*((LOG(AK10))/LOG(2)))) -> -0.4370773348 | AN10: =N10 -> 122 | AO10: =COUNTIF(L121:L149,AN10) -> 10 | AP10: =AO10/(AQ4-AO11) -> 0.3448275862 | AQ10: =IF(AP10=0,0,(AP10*((LOG(AP10))/LOG(2)))) -> -0.5296734139 | AS10: =N10 -> 122 | AT10: =COUNTIF(L150:L177,AS10) -> 13 | AU10: =AT10/(AV4-AT11) -> 0.4642857143 | AV10: =IF(AU10=0,0,(AU10*((LOG(AU10))/LOG(2)))) -> -0.5139249161
A11: 12 | B11: 522 | C11: 24 | D11: 536 | E11: 24 | F11: 559 | K11: 0 | L11: 122 | N11: 211 | O11: =COUNTIF($L$7:$L$500,N11) -> 0 | P11: =O11/$Q$4 -> 0 | Q11: =IF(P11=0,0,(P11*((LOG(P11))/LOG(2)))) -> 0 | T11: =N11 -> 211 | U11: =COUNTIF(L7:L35,T11) -> 0 | Y11: =N11 -> 211 | Z11: =COUNTIF(L36:L63,Y11) -> 0 | AD11: =N11 -> 211 | AE11: =COUNTIF(L64:L92,AD11) -> 0 | AI11: =N11 -> 211 | AJ11: =COUNTIF(L93:L120,AI11) -> 0 | AN11: =N11 -> 211 | AO11: =COUNTIF(L121:L149,AN11) -> 0 | AS11: =N11 -> 211 | AT11: =COUNTIF(L150:L177,AS11) -> 0
A12: 12 | B12: 665 | C12: 24 | D12: 671 | E12: 24 | F12: 674 | K12: 0 | L12: 122 | N12: 212 | O12: =COUNTIF($L$7:$L$500,N12) -> 0 | P12: =O12/$Q$4 -> 0 | Q12: =IF(P12=0,0,(P12*((LOG(P12))/LOG(2)))) -> 0 | T12: =N12 -> 212 | U12: =COUNTIF(L7:L35,T12) -> 0 | V12: =U12/(W4-U11) -> 0 | W12: =IF(V12=0,0,(V12*((LOG(V12))/LOG(2)))) -> 0 | Y12: =N12 -> 212 | Z12: =COUNTIF(L36:L63,Y12) -> 0 | AA12: =Z12/(AB4-Z11) -> 0 | AB12: =IF(AA12=0,0,(AA12*((LOG(AA12))/LOG(2)))) -> 0 | AD12: =N12 -> 212 | AE12: =COUNTIF(L64:L92,AD12) -> 0 | AF12: =AE12/(AG4-AE11) -> 0 | AG12: =IF(AF12=0,0,(AF12*((LOG(AF12))/LOG(2)))) -> 0 | AI12: =N12 -> 212 | AJ12: =COUNTIF(L93:L120,AI12) -> 0 | AK12: =AJ12/(AL4-AJ11) -> 0 | AL12: =IF(AK12=0,0,(AK12*((LOG(AK12))/LOG(2)))) -> 0 | AN12: =N12 -> 212 | AO12: =COUNTIF(L121:L149,AN12) -> 0 | AP12: =AO12/(AQ4-AO11) -> 0 | AQ12: =IF(AP12=0,0,(AP12*((LOG(AP12))/LOG(2)))) -> 0 | AS12: =N12 -> 212 | AT12: =COUNTIF(L150:L177,AS12) -> 0 | AU12: =AT12/(AV4-AT11) -> 0 | AV12: =IF(AU12=0,0,(AU12*((LOG(AU12))/LOG(2)))) -> 0
A13: 21 | B13: 777 | C13: 22 | D13: 793 | E13: 24 | F13: 798 | K13: 0 | L13: 222 | N13: 221 | O13: =COUNTIF($L$7:$L$500,N13) -> 0 | P13: =O13/$Q$4 -> 0 | Q13: =IF(P13=0,0,(P13*((LOG(P13))/LOG(2)))) -> 0 | T13: =N13 -> 221 | U13: =COUNTIF(L7:L35,T13) -> 0 | V13: =U13/(W4-U11) -> 0 | W13: =IF(V13=0,0,(V13*((LOG(V13))/LOG(2)))) -> 0 | Y13: =N13 -> 221 | Z13: =COUNTIF(L36:L63,Y13) -> 0 | AA13: =Z13/(AB4-Z11) -> 0 | AB13: =IF(AA13=0,0,(AA13*((LOG(AA13))/LOG(2)))) -> 0 | AD13: =N13 -> 221 | AE13: =COUNTIF(L64:L92,AD13) -> 0 | AF13: =AE13/(AG4-AE11) -> 0 | AG13: =IF(AF13=0,0,(AF13*((LOG(AF13))/LOG(2)))) -> 0 | AI13: =N13 -> 221 | AJ13: =COUNTIF(L93:L120,AI13) -> 0 | AK13: =AJ13/(AL4-AJ11) -> 0 | AL13: =IF(AK13=0,0,(AK13*((LOG(AK13))/LOG(2)))) -> 0 | AN13: =N13 -> 221 | AO13: =COUNTIF(L121:L149,AN13) -> 0 | AP13: =AO13/(AQ4-AO11) -> 0 | AQ13: =IF(AP13=0,0,(AP13*((LOG(AP13))/LOG(2)))) -> 0 | AS13: =N13 -> 221 | AT13: =COUNTIF(L150:L177,AS13) -> 0 | AU13: =AT13/(AV4-AT11) -> 0 | AV13: =IF(AU13=0,0,(AU13*((LOG(AU13))/LOG(2)))) -> 0
A14: 12 | B14: 894 | C14: 24 | D14: 904 | E14: 24 | F14: 907 | K14: 0 | L14: 122 | N14: 222 | O14: =COUNTIF($L$7:$L$500,N14) -> 52 | P14: =O14/$Q$4 -> 0.3040935673 | Q14: =IF(P14=0,0,(P14*((LOG(P14))/LOG(2)))) -> -0.5222541838 | T14: =N14 -> 222 | U14: =COUNTIF(L7:L35,T14) -> 7 | V14: =U14/(W4-U11) -> 0.2413793103 | W14: =IF(V14=0,0,(V14*((LOG(V14))/LOG(2)))) -> -0.4949787073 | Y14: =N14 -> 222 | Z14: =COUNTIF(L36:L63,Y14) -> 9 | AA14: =Z14/(AB4-Z11) -> 0.3214285714 | AB14: =IF(AA14=0,0,(AA14*((LOG(AA14))/LOG(2)))) -> -0.5263167602 | AD14: =N14 -> 222 | AE14: =COUNTIF(L64:L92,AD14) -> 3 | AF14: =AE14/(AG4-AE11) -> 0.1034482759 | AG14: =IF(AF14=0,0,(AF14*((LOG(AF14))/LOG(2)))) -> -0.3385881201 | AI14: =N14 -> 222 | AJ14: =COUNTIF(L93:L120,AI14) -> 5 | AK14: =AJ14/(AL4-AJ11) -> 0.1785714286 | AL14: =IF(AK14=0,0,(AK14*((LOG(AK14))/LOG(2)))) -> -0.4438262191 | AN14: =N14 -> 222 | AO14: =COUNTIF(L121:L149,AN14) -> 16 | AP14: =AO14/(AQ4-AO11) -> 0.5517241379 | AQ14: =IF(AP14=0,0,(AP14*((LOG(AP14))/LOG(2)))) -> -0.4733688249 | AS14: =N14 -> 222 | AT14: =COUNTIF(L150:L177,AS14) -> 12 | AU14: =AT14/(AV4-AT11) -> 0.4285714286 | AV14: =IF(AU14=0,0,(AU14*((LOG(AU14))/LOG(2)))) -> -0.5238824663
A15: 21 | B15: 1009 | C15: 22 | D15: 1014 | E15: 24 | F15: 1018 | K15: 0 | L15: 222 | P15: =SUM(P7:P14) -> 1 | Q15: =-SUM(Q7:Q14) -> 1.449074506 | V15: =SUM(V7:V14) -> 1 | W15: =-SUM(W7:W14) -> 1.438627221 | AA15: =SUM(AA7:AA14) -> 1 | AB15: =-SUM(AB7:AB14) -> 1.235348018 | AF15: =SUM(AF7:AF14) -> 1 | AG15: =-SUM(AG7:AG14) -> 1.178559464 | AK15: =SUM(AK7:AK14) -> 1 | AL15: =-SUM(AL7:AL14) -> 1.357130501 | AP15: =SUM(AP7:AP14) -> 1 | AQ15: =-SUM(AQ7:AQ14) -> 1.341630359 | AU15: =SUM(AU7:AU14) -> 1 | AV15: =-SUM(AV7:AV14) -> 1.481452553
A16: 12 | B16: 1115 | C16: 24 | D16: 1127 | E16: 24 | F16: 1130 | K16: 0 | L16: 122 | P16: U= | Q16: =Q15/(LOG(Q4)/LOG(2)) -> 0.1953495979 | V16: U1= | W16: =W15/(LOG(W4)/LOG(2)) -> 0.2961368565 | AA16: U2= | AB16: =AB15/(LOG(AB4)/LOG(2)) -> 0.256970421 | AF16: U3= | AG16: =AG15/(LOG(AG4)/LOG(2)) -> 0.2426027325 | AK16: U4= | AL16: =AL15/(LOG(AL4)/LOG(2)) -> 0.2823029552 | AP16: U5= | AQ16: =AQ15/(LOG(AQ4)/LOG(2)) -> 0.2761703597 | AU16: U6= | AV16: =AV15/(LOG(AV4)/LOG(2)) -> 0.3081637567
A17: 12 | B17: 1229 | C17: 24 | D17: 1244 | E17: 24 | F17: 1248 | K17: 0 | L17: 122
A18: 12 | B18: 1344 | C18: 24 | D18: 1359 | E18: 24 | F18: 1363 | K18: 0 | L18: 122
A19: 21 | B19: 1518 | C19: 22 | D19: 1529 | E19: 24 | F19: 1534 | K19: 0 | L19: 222 | N19: Total Target Seq
A20: 12 | B20: 1631 | C20: 24 | D20: 1640 | E20: 24 | F20: 1645 | K20: 0 | L20: 122 | N20: =COUNTIF(L7:L177,G3) -> 0 | P20: 29 | Q20: 28 | R20: 29 | S20: 28 | T20: 29 | U20: 28
A21: 12 | B21: 1741 | C21: 13 | D21: 1743 | E21: 24 | F21: 1752 | K21: 0 | L21: 112 | P21: % of reinforcement given in 6 equal intervals based on number of trials
A22: 12 | B22: 1848 | C22: 24 | D22: 1864 | E22: 24 | F22: 1891 | K22: 0 | L22: 122 | P22: %_1 | Q22: %_2 | R22: %_3 | S22: %_4 | T22: %_5 | U22: %_6
A23: 21 | B23: 1999 | C23: 22 | D23: 2007 | E23: 24 | F23: 2012 | K23: 0 | L23: 222 | O23: target sequence | P23: =$G$3 -> 211 | Q23: =$G$3 -> 211 | R23: =$G$3 -> 211 | S23: =$G$3 -> 211 | T23: =$G$3 -> 211 | U23: =$G$3 -> 211
A24: 12 | B24: 2109 | C24: 24 | D24: 2121 | E24: 24 | F24: 2127 | K24: 0 | L24: 122 | O24: total reinforcement | P24: =U11 -> 0 | Q24: =Z11 -> 0 | R24: =AE11 -> 0 | S24: =AJ11 -> 0 | T24: =AO11 -> 0 | U24: =AT11 -> 0
A25: 12 | B25: 2219 | C25: 24 | D25: 2230 | E25: 24 | F25: 2234 | K25: 0 | L25: 122 | O25: % target
A26: 12 | B26: 2332 | C26: 13 | D26: 2336 | E26: 24 | F26: 2350 | K26: 0 | L26: 112 | O26: CCRF
A27: 12 | B27: 2443 | C27: 24 | D27: 2456 | E27: 24 | F27: 2458 | K27: 0 | L27: 122 | O27: % CCRf
A28: 21 | B28: 2563 | C28: 22 | D28: 2567 | E28: 24 | F28: 2570 | K28: 0 | L28: 222 | O28: average response rate | P28: =F35/P20 -> 119.5862069 | Q28: =(F63-F35)/Q20 -> 122.0357143 | R28: =(F92-F63)/R20 -> 116.0344828 | S28: =(F120-F92)/S20 -> 119.2857143 | T28: =(F149-F120)/T20 -> 126.9655172 | U28: =(F177-F149)/U20 -> 119.0714286
A29: 12 | B29: 2668 | C29: 13 | D29: 2670 | E29: 24 | F29: 2683 | K29: 0 | L29: 112
A30: 12 | B30: 2774 | C30: 13 | D30: 2777 | E30: 24 | F30: 2789 | K30: 0 | L30: 112
A31: 12 | B31: 2960 | C31: 24 | D31: 2970 | E31: 24 | F31: 2974 | K31: 0 | L31: 122
A32: 12 | B32: 3071 | C32: 13 | D32: 3074 | E32: 24 | F32: 3088 | K32: 0 | L32: 112
A33: 12 | B33: 3182 | C33: 13 | D33: 3184 | E33: 24 | F33: 3199 | K33: 0 | L33: 112
A34: 12 | B34: 3295 | C34: 24 | D34: 3309 | E34: 24 | F34: 3314 | K34: 0 | L34: 122
A35: 12 | B35: 3448 | C35: 24 | D35: 3462 | E35: 24 | F35: 3468 | K35: 0 | L35: 122
A36: 12 | B36: 3567 | C36: 24 | D36: 3579 | E36: 24 | F36: 3583 | K36: 0 | L36: 122
A37: 12 | B37: 3681 | C37: 24 | D37: 3694 | E37: 24 | F37: 3697 | K37: 0 | L37: 122
A38: 12 | B38: 3793 | C38: 24 | D38: 3798 | E38: 24 | F38: 3804 | K38: 0 | L38: 122
A39: 12 | B39: 3901 | C39: 24 | D39: 3912 | E39: 24 | F39: 3918 | K39: 0 | L39: 122
A40: 12 | B40: 4022 | C40: 24 | D40: 4029 | E40: 24 | F40: 4033 | K40: 0 | L40: 122
A41: 12 | B41: 4176 | C41: 24 | D41: 4187 | E41: 24 | F41: 4191 | K41: 0 | L41: 122
A42: 12 | B42: 4308 | C42: 24 | D42: 4315 | E42: 24 | F42: 4319 | K42: 0 | L42: 122
A43: 12 | B43: 4415 | C43: 13 | D43: 4417 | E43: 24 | F43: 4429 | K43: 0 | L43: 112
A44: 21 | B44: 4583 | C44: 22 | D44: 4587 | E44: 24 | F44: 4592 | K44: 0 | L44: 222
A45: 21 | B45: 4696 | C45: 22 | D45: 4700 | E45: 24 | F45: 4705 | K45: 0 | L45: 222
A46: 21 | B46: 4849 | C46: 22 | D46: 4855 | E46: 24 | F46: 4858 | K46: 0 | L46: 222
A47: 12 | B47: 4952 | C47: 24 | D47: 4964 | E47: 24 | F47: 4981 | K47: 0 | L47: 122
A48: 21 | B48: 5084 | C48: 22 | D48: 5088 | E48: 24 | F48: 5093 | K48: 0 | L48: 222
A49: 21 | B49: 5203 | C49: 22 | D49: 5208 | E49: 24 | F49: 5213 | K49: 0 | L49: 222
A50: 12 | B50: 5310 | C50: 24 | D50: 5322 | E50: 24 | F50: 5339 | K50: 0 | L50: 122
A51: 12 | B51: 5435 | C51: 24 | D51: 5438 | E51: 24 | F51: 5445 | K51: 0 | L51: 122
A52: 12 | B52: 5542 | C52: 24 | D52: 5555 | E52: 24 | F52: 5559 | K52: 0 | L52: 122
A53: 21 | B53: 5668 | C53: 22 | D53: 5672 | E53: 24 | F53: 5678 | K53: 0 | L53: 222
A54: 12 | B54: 5819 | C54: 24 | D54: 5832 | E54: 24 | F54: 5836 | K54: 0 | L54: 122
A55: 21 | B55: 5940 | C55: 22 | D55: 5945 | E55: 24 | F55: 5949 | K55: 0 | L55: 222
A56: 12 | B56: 6067 | C56: 24 | D56: 6078 | E56: 24 | F56: 6083 | K56: 0 | L56: 122
A57: 12 | B57: 6181 | C57: 13 | D57: 6183 | E57: 24 | F57: 6191 | K57: 0 | L57: 112
A58: 12 | B58: 6288 | C58: 24 | D58: 6305 | E58: 24 | F58: 6310 | K58: 0 | L58: 122
A59: 12 | B59: 6409 | C59: 24 | D59: 6415 | E59: 24 | F59: 6423 | K59: 0 | L59: 122
A60: 21 | B60: 6527 | C60: 22 | D60: 6532 | E60: 24 | F60: 6537 | K60: 0 | L60: 222
A61: 12 | B61: 6630 | C61: 24 | D61: 6642 | E61: 24 | F61: 6653 | K61: 0 | L61: 122
A62: 12 | B62: 6753 | C62: 24 | D62: 6756 | E62: 24 | F62: 6764 | K62: 0 | L62: 122
A63: 21 | B63: 6872 | C63: 22 | D63: 6875 | E63: 24 | F63: 6885 | K63: 0 | L63: 222
A64: 12 | B64: 6978 | C64: 24 | D64: 6993 | E64: 24 | F64: 6997 | K64: 0 | L64: 122
A65: 12 | B65: 7093 | C65: 24 | D65: 7104 | E65: 24 | F65: 7109 | K65: 0 | L65: 122
A66: 12 | B66: 7204 | C66: 24 | D66: 7214 | E66: 24 | F66: 7218 | K66: 0 | L66: 122
A67: 12 | B67: 7313 | C67: 24 | D67: 7323 | E67: 24 | F67: 7327 | K67: 0 | L67: 122
A68: 21 | B68: 7434 | C68: 22 | D68: 7437 | E68: 24 | F68: 7443 | K68: 0 | L68: 222
A69: 12 | B69: 7557 | C69: 24 | D69: 7570 | E69: 24 | F69: 7575 | K69: 0 | L69: 122
A70: 12 | B70: 7673 | C70: 24 | D70: 7683 | E70: 24 | F70: 7687 | K70: 0 | L70: 122
A71: 12 | B71: 7786 | C71: 13 | D71: 7788 | E71: 24 | F71: 7804 | K71: 0 | L71: 112
A72: 12 | B72: 7902 | C72: 24 | D72: 7917 | E72: 24 | F72: 7928 | K72: 0 | L72: 122
A73: 12 | B73: 8024 | C73: 24 | D73: 8038 | E73: 24 | F73: 8043 | K73: 0 | L73: 122
A74: 12 | B74: 8144 | C74: 24 | D74: 8152 | E74: 24 | F74: 8156 | K74: 0 | L74: 122
A75: 12 | B75: 8252 | C75: 24 | D75: 8256 | E75: 24 | F75: 8260 | K75: 0 | L75: 122
A76: 12 | B76: 8357 | C76: 24 | D76: 8374 | E76: 24 | F76: 8378 | K76: 0 | L76: 122
A77: 12 | B77: 8476 | C77: 13 | D77: 8478 | E77: 24 | F77: 8492 | K77: 0 | L77: 112
A78: 12 | B78: 8608 | C78: 24 | D78: 8618 | E78: 24 | F78: 8622 | K78: 0 | L78: 122
A79: 12 | B79: 8720 | C79: 13 | D79: 8723 | E79: 24 | F79: 8735 | K79: 0 | L79: 112
A80: 12 | B80: 8859 | C80: 24 | D80: 8866 | E80: 24 | F80: 8870 | K80: 0 | L80: 122
A81: 12 | B81: 8964 | C81: 13 | D81: 8967 | E81: 24 | F81: 8982 | K81: 0 | L81: 112
A82: 12 | B82: 9076 | C82: 24 | D82: 9089 | E82: 24 | F82: 9094 | K82: 0 | L82: 122
A83: 12 | B83: 9192 | C83: 24 | D83: 9201 | E83: 24 | F83: 9205 | K83: 0 | L83: 122
A84: 12 | B84: 9303 | C84: 24 | D84: 9314 | E84: 24 | F84: 9318 | K84: 0 | L84: 122
A85: 12 | B85: 9434 | C85: 24 | D85: 9445 | E85: 24 | F85: 9454 | K85: 0 | L85: 122
A86: 21 | B86: 9563 | C86: 22 | D86: 9566 | E86: 24 | F86: 9570 | K86: 0 | L86: 222
A87: 12 | B87: 9663 | C87: 13 | D87: 9665 | E87: 24 | F87: 9679 | K87: 0 | L87: 112
A88: 12 | B88: 9775 | C88: 24 | D88: 9788 | E88: 24 | F88: 9793 | K88: 0 | L88: 122
A89: 12 | B89: 9888 | C89: 13 | D89: 9892 | E89: 24 | F89: 9903 | K89: 0 | L89: 112
A90: 12 | B90: 10000 | C90: 24 | D90: 10014 | E90: 24 | F90: 10018 | K90: 0 | L90: 122
A91: 21 | B91: 10126 | C91: 22 | D91: 10130 | E91: 24 | F91: 10135 | K91: 0 | L91: 222
A92: 12 | B92: 10235 | C92: 24 | D92: 10246 | E92: 24 | F92: 10250 | K92: 0 | L92: 122
A93: 21 | B93: 10362 | C93: 22 | D93: 10367 | E93: 24 | F93: 10372 | K93: 0 | L93: 222
A94: 12 | B94: 10461 | C94: 24 | D94: 10473 | E94: 24 | F94: 10477 | K94: 0 | L94: 122
A95: 12 | B95: 10568 | C95: 13 | D95: 10571 | E95: 24 | F95: 10581 | K95: 0 | L95: 112
A96: 12 | B96: 10678 | C96: 24 | D96: 10695 | E96: 24 | F96: 10700 | K96: 0 | L96: 122
A97: 12 | B97: 10797 | C97: 13 | D97: 10799 | E97: 24 | F97: 10809 | K97: 0 | L97: 112
A98: 12 | B98: 10914 | C98: 24 | D98: 10926 | E98: 24 | F98: 10940 | K98: 0 | L98: 122
A99: 12 | B99: 11036 | C99: 13 | D99: 11039 | E99: 24 | F99: 11048 | K99: 0 | L99: 112
A100: 12 | B100: 11146 | C100: 24 | D100: 11156 | E100: 24 | F100: 11160 | K100: 0 | L100: 122
A101: 12 | B101: 11257 | C101: 13 | D101: 11258 | E101: 24 | F101: 11268 | K101: 0 | L101: 112
A102: 12 | B102: 11365 | C102: 24 | D102: 11380 | E102: 24 | F102: 11385 | K102: 0 | L102: 122
A103: 12 | B103: 11496 | C103: 24 | D103: 11499 | E103: 24 | F103: 11506 | K103: 0 | L103: 122
A104: 12 | B104: 11627 | C104: 24 | D104: 11636 | E104: 24 | F104: 11640 | K104: 0 | L104: 122
A105: 12 | B105: 11735 | C105: 24 | D105: 11743 | E105: 24 | F105: 11749 | K105: 0 | L105: 122
A106: 12 | B106: 11844 | C106: 24 | D106: 11855 | E106: 24 | F106: 11859 | K106: 0 | L106: 122
A107: 21 | B107: 12035 | C107: 22 | D107: 12039 | E107: 24 | F107: 12045 | K107: 0 | L107: 222
A108: 12 | B108: 12142 | C108: 13 | D108: 12144 | E108: 24 | F108: 12153 | K108: 0 | L108: 112
A109: 12 | B109: 12251 | C109: 24 | D109: 12266 | E109: 24 | F109: 12270 | K109: 0 | L109: 122
A110: 12 | B110: 12367 | C110: 24 | D110: 12379 | E110: 24 | F110: 12381 | K110: 0 | L110: 122
A111: 21 | B111: 12488 | C111: 22 | D111: 12492 | E111: 24 | F111: 12498 | K111: 0 | L111: 222
A112: 12 | B112: 12593 | C112: 24 | D112: 12605 | E112: 24 | F112: 12609 | K112: 0 | L112: 122
A113: 12 | B113: 12742 | C113: 24 | D113: 12752 | E113: 24 | F113: 12756 | K113: 0 | L113: 122
A114: 12 | B114: 12859 | C114: 24 | D114: 12870 | E114: 24 | F114: 12874 | K114: 0 | L114: 122
A115: 21 | B115: 12978 | C115: 22 | D115: 12982 | E115: 24 | F115: 12986 | K115: 0 | L115: 222
A116: 21 | B116: 13097 | C116: 22 | D116: 13101 | E116: 24 | F116: 13107 | K116: 0 | L116: 222
A117: 12 | B117: 13206 | C117: 13 | D117: 13210 | E117: 24 | F117: 13224 | K117: 0 | L117: 112
A118: 12 | B118: 13322 | C118: 24 | D118: 13334 | E118: 24 | F118: 13340 | K118: 0 | L118: 122
A119: 12 | B119: 13437 | C119: 24 | D119: 13454 | E119: 24 | F119: 13458 | K119: 0 | L119: 122
A120: 12 | B120: 13573 | C120: 24 | D120: 13587 | E120: 24 | F120: 13590 | K120: 0 | L120: 122
A121: 12 | B121: 13687 | C121: 13 | D121: 13690 | E121: 24 | F121: 13701 | K121: 0 | L121: 112
A122: 21 | B122: 13805 | C122: 22 | D122: 13807 | E122: 24 | F122: 13810 | K122: 0 | L122: 222
A123: 21 | B123: 13915 | C123: 22 | D123: 13923 | E123: 24 | F123: 13928 | K123: 0 | L123: 222
A124: 12 | B124: 14025 | C124: 24 | D124: 14038 | E124: 24 | F124: 14042 | K124: 0 | L124: 122
A125: 12 | B125: 14136 | C125: 24 | D125: 14150 | E125: 24 | F125: 14155 | K125: 0 | L125: 122
A126: 12 | B126: 14253 | C126: 24 | D126: 14265 | E126: 24 | F126: 14269 | K126: 0 | L126: 122
A127: 12 | B127: 14366 | C127: 24 | D127: 14377 | E127: 24 | F127: 14381 | K127: 0 | L127: 122
A128: 12 | B128: 14478 | C128: 24 | D128: 14489 | E128: 24 | F128: 14498 | K128: 0 | L128: 122
A129: 21 | B129: 14606 | C129: 22 | D129: 14611 | E129: 24 | F129: 14614 | K129: 0 | L129: 222
A130: 12 | B130: 14710 | C130: 24 | D130: 14724 | E130: 24 | F130: 14734 | K130: 0 | L130: 122
A131: 21 | B131: 14838 | C131: 22 | D131: 14843 | E131: 24 | F131: 14851 | K131: 0 | L131: 222
A132: 12 | B132: 15002 | C132: 24 | D132: 15014 | E132: 24 | F132: 15017 | K132: 0 | L132: 122
A133: 21 | B133: 15123 | C133: 22 | D133: 15127 | E133: 24 | F133: 15132 | K133: 0 | L133: 222
A134: 12 | B134: 15227 | C134: 13 | D134: 15231 | E134: 24 | F134: 15240 | K134: 0 | L134: 112
A135: 12 | B135: 15337 | C135: 13 | D135: 15339 | E135: 24 | F135: 15349 | K135: 0 | L135: 112
A136: 21 | B136: 15460 | C136: 22 | D136: 15463 | E136: 24 | F136: 15468 | K136: 0 | L136: 222
A137: 21 | B137: 15571 | C137: 22 | D137: 15575 | E137: 24 | F137: 15579 | K137: 0 | L137: 222
A138: 21 | B138: 15712 | C138: 22 | D138: 15715 | E138: 24 | F138: 15722 | K138: 0 | L138: 222
A139: 21 | B139: 15887 | C139: 22 | D139: 15890 | E139: 24 | F139: 15895 | K139: 0 | L139: 222
A140: 12 | B140: 15990 | C140: 24 | D140: 16001 | E140: 24 | F140: 16004 | K140: 0 | L140: 122
A141: 12 | B141: 16101 | C141: 24 | D141: 16116 | E141: 24 | F141: 16119 | K141: 0 | L141: 122
A142: 21 | B142: 16211 | C142: 22 | D142: 16223 | E142: 24 | F142: 16226 | K142: 0 | L142: 222
A143: 21 | B143: 16335 | C143: 22 | D143: 16339 | E143: 24 | F143: 16344 | K143: 0 | L143: 222
A144: 21 | B144: 16549 | C144: 22 | D144: 16552 | E144: 24 | F144: 16557 | K144: 0 | L144: 222
A145: 21 | B145: 16683 | C145: 22 | D145: 16687 | E145: 24 | F145: 16691 | K145: 0 | L145: 222
A146: 21 | B146: 16864 | C146: 22 | D146: 16867 | E146: 24 | F146: 16878 | K146: 0 | L146: 222
A147: 12 | B147: 16974 | C147: 24 | D147: 16986 | E147: 24 | F147: 16990 | K147: 0 | L147: 122
A148: 21 | B148: 17144 | C148: 22 | D148: 17148 | E148: 24 | F148: 17153 | K148: 0 | L148: 222
A149: 21 | B149: 17264 | C149: 22 | D149: 17267 | E149: 24 | F149: 17272 | K149: 0 | L149: 222
A150: 12 | B150: 17365 | C150: 24 | D150: 17378 | E150: 24 | F150: 17380 | K150: 0 | L150: 122
A151: 12 | B151: 17477 | C151: 13 | D151: 17480 | E151: 24 | F151: 17492 | K151: 0 | L151: 112
A152: 21 | B152: 17620 | C152: 22 | D152: 17630 | E152: 24 | F152: 17634 | K152: 0 | L152: 222
A153: 21 | B153: 17742 | C153: 22 | D153: 17747 | E153: 24 | F153: 17760 | K153: 0 | L153: 222
A154: 12 | B154: 17858 | C154: 24 | D154: 17872 | E154: 24 | F154: 17876 | K154: 0 | L154: 122
A155: 21 | B155: 17986 | C155: 22 | D155: 17991 | E155: 24 | F155: 17996 | K155: 0 | L155: 222
A156: 12 | B156: 18092 | C156: 24 | D156: 18104 | E156: 24 | F156: 18120 | K156: 0 | L156: 122
A157: 21 | B157: 18224 | C157: 22 | D157: 18228 | E157: 24 | F157: 18233 | K157: 0 | L157: 222
A158: 12 | B158: 18325 | C158: 24 | D158: 18335 | E158: 24 | F158: 18340 | K158: 0 | L158: 122
A159: 21 | B159: 18443 | C159: 22 | D159: 18446 | E159: 24 | F159: 18449 | K159: 0 | L159: 222
A160: 21 | B160: 18579 | C160: 22 | D160: 18584 | E160: 24 | F160: 18588 | K160: 0 | L160: 222
A161: 12 | B161: 18694 | C161: 24 | D161: 18700 | E161: 24 | F161: 18704 | K161: 0 | L161: 122
A162: 12 | B162: 18798 | C162: 13 | D162: 18801 | E162: 24 | F162: 18811 | K162: 0 | L162: 112
A163: 12 | B163: 18906 | C163: 24 | D163: 18918 | E163: 24 | F163: 18922 | K163: 0 | L163: 122
A164: 12 | B164: 19021 | C164: 24 | D164: 19035 | E164: 24 | F164: 19039 | K164: 0 | L164: 122
A165: 12 | B165: 19165 | C165: 24 | D165: 19178 | E165: 24 | F165: 19187 | K165: 0 | L165: 122
A166: 21 | B166: 19290 | C166: 22 | D166: 19295 | E166: 24 | F166: 19300 | K166: 0 | L166: 222
A167: 12 | B167: 19406 | C167: 24 | D167: 19415 | E167: 24 | F167: 19420 | K167: 0 | L167: 122
A168: 12 | B168: 19516 | C168: 24 | D168: 19529 | E168: 24 | F168: 19532 | K168: 0 | L168: 122
A169: 21 | B169: 19639 | C169: 22 | D169: 19643 | E169: 24 | F169: 19649 | K169: 0 | L169: 222
A170: 21 | B170: 19765 | C170: 22 | D170: 19772 | E170: 24 | F170: 19776 | K170: 0 | L170: 222
A171: 12 | B171: 19872 | C171: 24 | D171: 19885 | E171: 24 | F171: 19888 | K171: 0 | L171: 122
A172: 21 | B172: 19995 | C172: 22 | D172: 19998 | E172: 24 | F172: 20004 | K172: 0 | L172: 222
A173: 12 | B173: 20101 | C173: 13 | D173: 20103 | E173: 13 | F173: 20106 | K173: 0 | L173: 111
A174: 21 | B174: 20218 | C174: 22 | D174: 20222 | E174: 24 | F174: 20227 | K174: 0 | L174: 222
A175: 12 | B175: 20323 | C175: 24 | D175: 20340 | E175: 24 | F175: 20347 | K175: 0 | L175: 122
A176: 12 | B176: 20441 | C176: 24 | D176: 20451 | E176: 24 | F176: 20454 | K176: 0 | L176: 122
A177: 21 | B177: 20597 | C177: 22 | D177: 20600 | E177: 24 | F177: 20606 | K177: 0 | L177: 222

Sheet !L90294T.ayl
A1: Report for:!L90294T.ayl
A2: Date: | B2: <date>
A3: Hen: | B3: <hen> | F3: Correct Sequence | G3: =Start!J2 -> 211 | P3: Total Sequences in Data | Q3: =4994-COUNTBLANK(L7:L5000) -> 206 | V3: Total Sequences in Block Data | W3: =COUNTA(L7:L40) -> 34 | AA3: Total Sequences in Block Data | AB3: =COUNTA(L41:L75) -> 35 | AF3: Total Sequences in Block Data | AG3: =COUNTA(L76:L109) -> 34 | AK3: Total Sequences in Block Data | AL3: =COUNTA(L110:L143) -> 34 | AP3: Total Sequences in Block Data | AQ3: =COUNTA(L144:L178) -> 35 | AU3: Total Sequences in Block Data | AV3: =COUNTA(L179:L212) -> 34
P4: Total Sequences in Summary | Q4: =SUM(O7:O14) -> 206 | V4: Total Sequences in Block Summary | W4: =SUM(U7:U14) -> 34 | AA4: Total Sequences in Block Summary | AB4: =SUM(Z7:Z14) -> 35 | AF4: Total Sequences in Block Summary | AG4: =SUM(AE7:AE14) -> 34 | AK4: Total Sequences in Block Summary | AL4: =SUM(AJ7:AJ14) -> 34 | AP4: Total Sequences in Block Summary | AQ4: =SUM(AO7:AO14) -> 35 | AU4: Total Sequences in Block Summary | AV4: =SUM(AT7:AT14) -> 34
T5: Block 1 | Y5: Block 2 | AD5: Block 3 | AI5: Block 4 | AN5: Block 5 | AS5: Block 6
A6: Sequence Component 1 | B6: Time 1 | C6: Sequence Component 2 | D6: Time 2 | E6: Sequence Component 3 | F6: Time 3 | G6: Sequence Component 4 | H6: Time 4 | I6: Sequence Component 5 | J6: Time 5 | K6: Correct? 0=No 1=Yes | L6: Sequence | N6: Frequency | P6: Relative Frequency | Q6: Variability | T6: Frequency | V6: Relative Frequency | W6: Variability | Y6: Frequency | AA6: Relative Frequency | AB6: Variability | AD6: Frequency | AF6: Relative Frequency | AG6: Variability | AI6: Frequency | AK6: Relative Frequency | AL6: Variability | AN6: Frequency | AP6: Relative Frequency | AQ6: Variability | AS6: Frequency | AU6: Relative Frequency | AV6: Variability
A7: 12 | B7: 4 | C7: 24 | D7: 18 | E7: 24 | F7: 23 | K7: 0 | L7: 122 | N7: 111 | O7: =COUNTIF($L$7:$L$500,N7) -> 1 | P7: =O7/$Q$4 -> 0.004854368932 | Q7: =IF(P7=0,0,(P7*((LOG(P7))/LOG(2)))) -> -0.03731310936 | T7: =N7 -> 111 | U7: =COUNTIF(L7:L40,T7) -> 1 | V7: =U7/(W4-U11) -> 0.02941176471 | W7: =IF(V7=0,0,(V7*((LOG(V7))/LOG(2)))) -> -0.14963126 | Y7: =N7 -> 111 | Z7: =COUNTIF(L41:L75,Y7) -> 0 | AA7: =Z7/(AB4-Z11) -> 0 | AB7: =IF(AA7=0,0,(AA7*((LOG(AA7))/LOG(2)))) -> 0 | AD7: =N7 -> 111 | AE7: =COUNTIF(L76:L109,AD7) -> 0 | AF7: =AE7/(AG4-AE11) -> 0 | AG7: =IF(AF7=0,0,(AF7*((LOG(AF7))/LOG(2)))) -> 0 | AI7: =N7 -> 111 | AJ7: =COUNTIF(L110:L143,AI7) -> 0 | AK7: =AJ7/(AL4-AJ11) -> 0 | AL7: =IF(AK7=0,0,(AK7*((LOG(AK7))/LOG(2)))) -> 0 | AN7: =N7 -> 111 | AO7: =COUNTIF(L144:L178,AN7) -> 0 | AP7: =AO7/(AQ4-AO11) -> 0 | AQ7: =IF(AP7=0,0,(AP7*((LOG(AP7))/LOG(2)))) -> 0 | AS7: =N7 -> 111 | AT7: =COUNTIF(L179:L212,AS7) -> 0 | AU7: =AT7/(AV4-AT11) -> 0 | AV7: =IF(AU7=0,0,(AU7*((LOG(AU7))/LOG(2)))) -> 0
A8: 21 | B8: 136 | C8: 22 | D8: 141 | E8: 24 | F8: 146 | K8: 0 | L8: 222 | N8: 112 | O8: =COUNTIF($L$7:$L$500,N8) -> 4 | P8: =O8/$Q$4 -> 0.01941747573 | Q8: =IF(P8=0,0,(P8*((LOG(P8))/LOG(2)))) -> -0.110417486 | T8: =N8 -> 112 | U8: =COUNTIF(L7:L40,T8) -> 4 | V8: =U8/(W4-U11) -> 0.1176470588 | W8: =IF(V8=0,0,(V8*((LOG(V8))/LOG(2)))) -> -0.3632309225 | Y8: =N8 -> 112 | Z8: =COUNTIF(L41:L75,Y8) -> 0 | AA8: =Z8/(AB4-Z11) -> 0 | AB8: =IF(AA8=0,0,(AA8*((LOG(AA8))/LOG(2)))) -> 0 | AD8: =N8 -> 112 | AE8: =COUNTIF(L76:L109,AD8) -> 0 | AF8: =AE8/(AG4-AE11) -> 0 | AG8: =IF(AF8=0,0,(AF8*((LOG(AF8))/LOG(2)))) -> 0 | AI8: =N8 -> 112 | AJ8: =COUNTIF(L110:L143,AI8) -> 0 | AK8: =AJ8/(AL4-AJ11) -> 0 | AL8: =IF(AK8=0,0,(AK8*((LOG(AK8))/LOG(2)))) -> 0 | AN8: =N8 -> 112 | AO8: =COUNTIF(L144:L178,AN8) -> 0 | AP8: =AO8/(AQ4-AO11) -> 0 | AQ8: =IF(AP8=0,0,(AP8*((LOG(AP8))/LOG(2)))) -> 0 | AS8: =N8 -> 112 | AT8: =COUNTIF(L179:L212,AS8) -> 0 | AU8: =AT8/(AV4-AT11) -> 0 | AV8: =IF(AU8=0,0,(AU8*((LOG(AU8))/LOG(2)))) -> 0
A9: 21 | B9: 255 | C9: 22 | D9: 259 | E9: 24 | F9: 264 | K9: 0 | L9: 222 | N9: 121 | O9: =COUNTIF($L$7:$L$500,N9) -> 0 | P9: =O9/$Q$4 -> 0 | Q9: =IF(P9=0,0,(P9*((LOG(P9))/LOG(2)))) -> 0 | T9: =N9 -> 121 | U9: =COUNTIF(L7:L40,T9) -> 0 | V9: =U9/(W4-U11) -> 0 | W9: =IF(V9=0,0,(V9*((LOG(V9))/LOG(2)))) -> 0 | Y9: =N9 -> 121 | Z9: =COUNTIF(L41:L75,Y9) -> 0 | AA9: =Z9/(AB4-Z11) -> 0 | AB9: =IF(AA9=0,0,(AA9*((LOG(AA9))/LOG(2)))) -> 0 | AD9: =N9 -> 121 | AE9: =COUNTIF(L76:L109,AD9) -> 0 | AF9: =AE9/(AG4-AE11) -> 0 | AG9: =IF(AF9=0,0,(AF9*((LOG(AF9))/LOG(2)))) -> 0 | AI9: =N9 -> 121 | AJ9: =COUNTIF(L110:L143,AI9) -> 0 | AK9: =AJ9/(AL4-AJ11) -> 0 | AL9: =IF(AK9=0,0,(AK9*((LOG(AK9))/LOG(2)))) -> 0 | AN9: =N9 -> 121 | AO9: =COUNTIF(L144:L178,AN9) -> 0 | AP9: =AO9/(AQ4-AO11) -> 0 | AQ9: =IF(AP9=0,0,(AP9*((LOG(AP9))/LOG(2)))) -> 0 | AS9: =N9 -> 121 | AT9: =COUNTIF(L179:L212,AS9) -> 0 | AU9: =AT9/(AV4-AT11) -> 0 | AV9: =IF(AU9=0,0,(AU9*((LOG(AU9))/LOG(2)))) -> 0
A10: 12 | B10: 361 | C10: 24 | D10: 370 | E10: 24 | F10: 373 | K10: 0 | L10: 122 | N10: 122 | O10: =COUNTIF($L$7:$L$500,N10) -> 100 | P10: =O10/$Q$4 -> 0.4854368932 | Q10: =IF(P10=0,0,(P10*((LOG(P10))/LOG(2)))) -> -0.5061380279 | T10: =N10 -> 122 | U10: =COUNTIF(L7:L40,T10) -> 21 | V10: =U10/(W4-U11) -> 0.6176470588 | W10: =IF(V10=0,0,(V10*((LOG(V10))/LOG(2)))) -> -0.4293545232 | Y10: =N10 -> 122 | Z10: =COUNTIF(L41:L75,Y10) -> 27 | AA10: =Z10/(AB4-Z11) -> 0.7714285714 | AB10: =IF(AA10=0,0,(AA10*((LOG(AA10))/LOG(2)))) -> -0.2888193971 | AD10: =N10 -> 122 | AE10: =COUNTIF(L76:L109,AD10) -> 13 | AF10: =AE10/(AG4-AE11) -> 0.3823529412 | AG10: =IF(AF10=0,0,(AF10*((LOG(AF10))/LOG(2)))) -> -0.5303323706 | AI10: =N10 -> 122 | AJ10: =COUNTIF(L110:L143,AI10) -> 21 | AK10: =AJ10/(AL4-AJ11) -> 0.6176470588 | AL10: =IF(AK10=0,0,(AK10*((LOG(AK10))/LOG(2)))) -> -0.4293545232 | AN10: =N10 -> 122 | AO10: =COUNTIF(L144:L178,AN10) -> 13 | AP10: =AO10/(AQ4-AO11) -> 0.3714285714 | AQ10: =IF(AP10=0,0,(AP10*((LOG(AP10))/LOG(2)))) -> -0.5307132253 | AS10: =N10 -> 122 | AT10: =COUNTIF(L179:L212,AS10) -> 5 | AU10: =AT10/(AV4-AT11) -> 0.1470588235 | AV10: =IF(AU10=0,0,(AU10*((LOG(AU10))/LOG(2)))) -> -0.4066962862
A11: 12 | B11: 488 | C11: 24 | D11: 496 | E11: 24 | F11: 502 | K11: 0 | L11: 122 | N11: 211 | O11: =COUNTIF($L$7:$L$500,N11) -> 0 | P11: =O11/$Q$4 -> 0 | Q11: =IF(P11=0,0,(P11*((LOG(P11))/LOG(2)))) -> 0 | T11: =N11 -> 211 | U11: =COUNTIF(L7:L40,T11) -> 0 | Y11: =N11 -> 211 | Z11: =COUNTIF(L41:L75,Y11) -> 0 | AD11: =N11 -> 211 | AE11: =COUNTIF(L76:L109,AD11) -> 0 | AI11: =N11 -> 211 | AJ11: =COUNTIF(L110:L143,AI11) -> 0 | AN11: =N11 -> 211 | AO11: =COUNTIF(L144:L178,AN11) -> 0 | AS11: =N11 -> 211 | AT11: =COUNTIF(L179:L212,AS11) -> 0
A12: 21 | B12: 692 | C12: 22 | D12: 695 | E12: 24 | F12: 701 | K12: 0 | L12: 222 | N12: 212 | O12: =COUNTIF($L$7:$L$500,N12) -> 0 | P12: =O12/$Q$4 -> 0 | Q12: =IF(P12=0,0,(P12*((LOG(P12))/LOG(2)))) -> 0 | T12: =N12 -> 212 | U12: =COUNTIF(L7:L40,T12) -> 0 | V12: =U12/(W4-U11) -> 0 | W12: =IF(V12=0,0,(V12*((LOG(V12))/LOG(2)))) -> 0 | Y12: =N12 -> 212 | Z12: =COUNTIF(L41:L75,Y12) -> 0 | AA12: =Z12/(AB4-Z11) -> 0 | AB12: =IF(AA12=0,0,(AA12*((LOG(AA12))/LOG(2)))) -> 0 | AD12: =N12 -> 212 | AE12: =COUNTIF(L76:L109,AD12) -> 0 | AF12: =AE12/(AG4-AE11) -> 0 | AG12: =IF(AF12=0,0,(AF12*((LOG(AF12))/LOG(2)))) -> 0 | AI12: =N12 -> 212 | AJ12: =COUNTIF(L110:L143,AI12) -> 0 | AK12: =AJ12/(AL4-AJ11) -> 0 | AL12: =IF(AK12=0,0,(AK12*((LOG(AK12))/LOG(2)))) -> 0 | AN12: =N12 -> 212 | AO12: =COUNTIF(L144:L178,AN12) -> 0 | AP12: =AO12/(AQ4-AO11) -> 0 | AQ12: =IF(AP12=0,0,(AP12*((LOG(AP12))/LOG(2)))) -> 0 | AS12: =N12 -> 212 | AT12: =COUNTIF(L179:L212,AS12) -> 0 | AU12: =AT12/(AV4-AT11) -> 0 | AV12: =IF(AU12=0,0,(AU12*((LOG(AU12))/LOG(2)))) -> 0
A13: 21 | B13: 804 | C13: 22 | D13: 808 | E13: 24 | F13: 814 | K13: 0 | L13: 222 | N13: 221 | O13: =COUNTIF($L$7:$L$500,N13) -> 0 | P13: =O13/$Q$4 -> 0 | Q13: =IF(P13=0,0,(P13*((LOG(P13))/LOG(2)))) -> 0 | T13: =N13 -> 221 | U13: =COUNTIF(L7:L40,T13) -> 0 | V13: =U13/(W4-U11) -> 0 | W13: =IF(V13=0,0,(V13*((LOG(V13))/LOG(2)))) -> 0 | Y13: =N13 -> 221 | Z13: =COUNTIF(L41:L75,Y13) -> 0 | AA13: =Z13/(AB4-Z11) -> 0 | AB13: =IF(AA13=0,0,(AA13*((LOG(AA13))/LOG(2)))) -> 0 | AD13: =N13 -> 221 | AE13: =COUNTIF(L76:L109,AD13) -> 0 | AF13: =AE13/(AG4-AE11) -> 0 | AG13: =IF(AF13=0,0,(AF13*((LOG(AF13))/LOG(2)))) -> 0 | AI13: =N13 -> 221 | AJ13: =COUNTIF(L110:L143,AI13) -> 0 | AK13: =AJ13/(AL4-AJ11) -> 0 | AL13: =IF(AK13=0,0,(AK13*((LOG(AK13))/LOG(2)))) -> 0 | AN13: =N13 -> 221 | AO13: =COUNTIF(L144:L178,AN13) -> 0 | AP13: =AO13/(AQ4-AO11) -> 0 | AQ13: =IF(AP13=0,0,(AP13*((LOG(AP13))/LOG(2)))) -> 0 | AS13: =N13 -> 221 | AT13: =COUNTIF(L179:L212,AS13) -> 0 | AU13: =AT13/(AV4-AT11) -> 0 | AV13: =IF(AU13=0,0,(AU13*((LOG(AU13))/LOG(2)))) -> 0
A14: 12 | B14: 913 | C14: 13 | D14: 915 | E14: 13 | F14: 917 | K14: 0 | L14: 111 | N14: 222 | O14: =COUNTIF($L$7:$L$500,N14) -> 101 | P14: =O14/$Q$4 -> 0.4902912621 | Q14: =IF(P14=0,0,(P14*((LOG(P14))/LOG(2)))) -> -0.5041611334 | T14: =N14 -> 222 | U14: =COUNTIF(L7:L40,T14) -> 8 | V14: =U14/(W4-U11) -> 0.2352941176 | W14: =IF(V14=0,0,(V14*((LOG(V14))/LOG(2)))) -> -0.4911677274 | Y14: =N14 -> 222 | Z14: =COUNTIF(L41:L75,Y14) -> 8 | AA14: =Z14/(AB4-Z11) -> 0.2285714286 | AB14: =IF(AA14=0,0,(AA14*((LOG(AA14))/LOG(2)))) -> -0.486693261 | AD14: =N14 -> 222 | AE14: =COUNTIF(L76:L109,AD14) -> 21 | AF14: =AE14/(AG4-AE11) -> 0.6176470588 | AG14: =IF(AF14=0,0,(AF14*((LOG(AF14))/LOG(2)))) -> -0.4293545232 | AI14: =N14 -> 222 | AJ14: =COUNTIF(L110:L143,AI14) -> 13 | AK14: =AJ14/(AL4-AJ11) -> 0.3823529412 | AL14: =IF(AK14=0,0,(AK14*((LOG(AK14))/LOG(2)))) -> -0.5303323706 | AN14: =N14 -> 222 | AO14: =COUNTIF(L144:L178,AN14) -> 22 | AP14: =AO14/(AQ4-AO11) -> 0.6285714286 | AQ14: =IF(AP14=0,0,(AP14*((LOG(AP14))/LOG(2)))) -> -0.4210494504 | AS14: =N14 -> 222 | AT14: =COUNTIF(L179:L212,AS14) -> 29 | AU14: =AT14/(AV4-AT11) -> 0.8529411765 | AV14: =IF(AU14=0,0,(AU14*((LOG(AU14))/LOG(2)))) -> -0.1957345158
A15: 21 | B15: 1030 | C15: 22 | D15: 1037 | E15: 24 | F15: 1043 | K15: 0 | L15: 222 | P15: =SUM(P7:P14) -> 1 | Q15: =-SUM(Q7:Q14) -> 1.158029757 | V15: =SUM(V7:V14) -> 1 | W15: =-SUM(W7:W14) -> 1.433384433 | AA15: =SUM(AA7:AA14) -> 1 | AB15: =-SUM(AB7:AB14) -> 0.7755126581 | AF15: =SUM(AF7:AF14) -> 1 | AG15: =-SUM(AG7:AG14) -> 0.9596868938 | AK15: =SUM(AK7:AK14) -> 1 | AL15: =-SUM(AL7:AL14) -> 0.9596868938 | AP15: =SUM(AP7:AP14) -> 1 | AQ15: =-SUM(AQ7:AQ14) -> 0.9517626756 | AU15: =SUM(AU7:AU14) -> 1 | AV15: =-SUM(AV7:AV14) -> 0.602430802
A16: 12 | B16: 1141 | C16: 24 | D16: 1149 | E16: 24 | F16: 1152 | K16: 0 | L16: 122 | P16: U= | Q16: =Q15/(LOG(Q4)/LOG(2)) -> 0.1506576045 | V16: U1= | W16: =W15/(LOG(W4)/LOG(2)) -> 0.2817483838 | AA16: U2= | AB16: =AB15/(LOG(AB4)/LOG(2)) -> 0.1511931893 | AF16: U3= | AG16: =AG15/(LOG(AG4)/LOG(2)) -> 0.1886376223 | AK16: U4= | AL16: =AL15/(LOG(AL4)/LOG(2)) -> 0.1886376223 | AP16: U5= | AQ16: =AQ15/(LOG(AQ4)/LOG(2)) -> 0.1855547203 | AU16: U6= | AV16: =AV15/(LOG(AV4)/LOG(2)) -> 0.1184147818
A17: 21 | B17: 1270 | C17: 22 | D17: 1291 | E17: 24 | F17: 1309 | K17: 0 | L17: 222
A18: 12 | B18: 1412 | C18: 24 | D18: 1424 | E18: 24 | F18: 1427 | K18: 0 | L18: 122
A19: 12 | B19: 1525 | C19: 24 | D19: 1539 | E19: 24 | F19: 1543 | K19: 0 | L19: 122 | N19: Total Target Seq
A20: 12 | B20: 1638 | C20: 24 | D20: 1653 | E20: 24 | F20: 1659 | K20: 0 | L20: 122 | N20: =COUNTIF(L7:L212,G3) -> 0 | P20: 34 | Q20: 35 | R20: 34 | S20: 34 | T20: 35 | U20: 34
A21: 12 | B21: 1757 | C21: 24 | D21: 1774 | E21: 24 | F21: 1779 | K21: 0 | L21: 122 | P21: % of reinforcement given in 6 equal intervals based on number of trials
A22: 12 | B22: 1871 | C22: 13 | D22: 1873 | E22: 24 | F22: 1882 | K22: 0 | L22: 112 | P22: %_1 | Q22: %_2 | R22: %_3 | S22: %_4 | T22: %_5 | U22: %_6
A23: 12 | B23: 1977 | C23: 24 | D23: 1987 | E23: 24 | F23: 1994 | K23: 0 | L23: 122 | O23: target sequence | P23: =$G$3 -> 211 | Q23: =$G$3 -> 211 | R23: =$G$3 -> 211 | S23: =$G$3 -> 211 | T23: =$G$3 -> 211 | U23: =$G$3 -> 211
A24: 12 | B24: 2091 | C24: 13 | D24: 2092 | E24: 24 | F24: 2103 | K24: 0 | L24: 112 | O24: total reinforcement | P24: =U11 -> 0 | Q24: =Z11 -> 0 | R24: =AE11 -> 0 | S24: =AJ11 -> 0 | T24: =AO11 -> 0 | U24: =AT11 -> 0
A25: 12 | B25: 2200 | C25: 13 | D25: 2202 | E25: 24 | F25: 2213 | K25: 0 | L25: 112 | O25: % target
A26: 12 | B26: 2308 | C26: 24 | D26: 2320 | E26: 24 | F26: 2324 | K26: 0 | L26: 122 | O26: CCRF
A27: 12 | B27: 2419 | C27: 24 | D27: 2430 | E27: 24 | F27: 2434 | K27: 0 | L27: 122 | O27: % CCRf
A28: 12 | B28: 2531 | C28: 24 | D28: 2543 | E28: 24 | F28: 2549 | K28: 0 | L28: 122 | O28: average response rate | P28: =F40/P20 -> 116.3529412 | Q28: =(F75-F40)/Q20 -> 114.6 | R28: =(F109-F75)/R20 -> 116.1176471 | S28: =(F143-F109)/S20 -> 117.9411765 | T28: =(F178-F143)/T20 -> 113.9714286 | U28: =(F212-F178)/U20 -> 119.5294118
A29: 21 | B29: 2665 | C29: 22 | D29: 2669 | E29: 24 | F29: 2674 | K29: 0 | L29: 222
A30: 12 | B30: 2769 | C30: 13 | D30: 2772 | E30: 24 | F30: 2786 | K30: 0 | L30: 112
A31: 12 | B31: 2882 | C31: 24 | D31: 2902 | E31: 24 | F31: 2912 | K31: 0 | L31: 122
A32: 12 | B32: 3008 | C32: 24 | D32: 3023 | E32: 24 | F32: 3029 | K32: 0 | L32: 122
A33: 12 | B33: 3129 | C33: 24 | D33: 3137 | E33: 24 | F33: 3140 | K33: 0 | L33: 122
A34: 12 | B34: 3238 | C34: 24 | D34: 3250 | E34: 24 | F34: 3254 | K34: 0 | L34: 122
A35: 12 | B35: 3349 | C35: 24 | D35: 3360 | E35: 24 | F35: 3369 | K35: 0 | L35: 122
A36: 12 | B36: 3463 | C36: 24 | D36: 3473 | E36: 24 | F36: 3483 | K36: 0 | L36: 122
A37: 12 | B37: 3581 | C37: 24 | D37: 3591 | E37: 24 | F37: 3601 | K37: 0 | L37: 122
A38: 21 | B38: 3726 | C38: 22 | D38: 3731 | E38: 24 | F38: 3734 | K38: 0 | L38: 222
A39: 12 | B39: 3830 | C39: 24 | D39: 3841 | E39: 24 | F39: 3846 | K39: 0 | L39: 122
A40: 12 | B40: 3942 | C40: 24 | D40: 3952 | E40: 24 | F40: 3956 | K40: 0 | L40: 122
A41: 12 | B41: 4054 | C41: 24 | D41: 4065 | E41: 24 | F41: 4070 | K41: 0 | L41: 122
A42: 21 | B42: 4174 | C42: 22 | D42: 4178 | E42: 24 | F42: 4183 | K42: 0 | L42: 222
A43: 21 | B43: 4288 | C43: 22 | D43: 4292 | E43: 24 | F43: 4297 | K43: 0 | L43: 222
A44: 12 | B44: 4394 | C44: 24 | D44: 4404 | E44: 24 | F44: 4408 | K44: 0 | L44: 122
A45: 12 | B45: 4505 | C45: 24 | D45: 4515 | E45: 24 | F45: 4520 | K45: 0 | L45: 122
A46: 12 | B46: 4617 | C46: 24 | D46: 4626 | E46: 24 | F46: 4630 | K46: 0 | L46: 122
A47: 12 | B47: 4725 | C47: 24 | D47: 4733 | E47: 24 | F47: 4736 | K47: 0 | L47: 122
A48: 12 | B48: 4828 | C48: 24 | D48: 4839 | E48: 24 | F48: 4843 | K48: 0 | L48: 122
A49: 12 | B49: 4937 | C49: 24 | D49: 4948 | E49: 24 | F49: 4952 | K49: 0 | L49: 122
A50: 12 | B50: 5053 | C50: 24 | D50: 5083 | E50: 24 | F50: 5088 | K50: 0 | L50: 122
A51: 12 | B51: 5186 | C51: 24 | D51: 5194 | E51: 24 | F51: 5196 | K51: 0 | L51: 122
A52: 12 | B52: 5292 | C52: 24 | D52: 5299 | E52: 24 | F52: 5321 | K52: 0 | L52: 122
A53: 21 | B53: 5418 | C53: 22 | D53: 5423 | E53: 24 | F53: 5426 | K53: 0 | L53: 222
A54: 12 | B54: 5526 | C54: 24 | D54: 5539 | E54: 24 | F54: 5544 | K54: 0 | L54: 122
A55: 12 | B55: 5643 | C55: 24 | D55: 5652 | E55: 24 | F55: 5656 | K55: 0 | L55: 122
A56: 12 | B56: 5754 | C56: 24 | D56: 5764 | E56: 24 | F56: 5768 | K56: 0 | L56: 122
A57: 12 | B57: 5864 | C57: 24 | D57: 5875 | E57: 24 | F57: 5879 | K57: 0 | L57: 122
A58: 12 | B58: 5977 | C58: 24 | D58: 5986 | E58: 24 | F58: 5989 | K58: 0 | L58: 122
A59: 12 | B59: 6086 | C59: 24 | D59: 6095 | E59: 24 | F59: 6099 | K59: 0 | L59: 122
A60: 12 | B60: 6196 | C60: 24 | D60: 6210 | E60: 24 | F60: 6215 | K60: 0 | L60: 122
A61: 21 | B61: 6335 | C61: 22 | D61: 6340 | E61: 24 | F61: 6345 | K61: 0 | L61: 222
A62: 21 | B62: 6448 | C62: 22 | D62: 6453 | E62: 24 | F62: 6457 | K62: 0 | L62: 222
A63: 12 | B63: 6555 | C63: 24 | D63: 6566 | E63: 24 | F63: 6568 | K63: 0 | L63: 122
A64: 12 | B64: 6664 | C64: 24 | D64: 6674 | E64: 24 | F64: 6680 | K64: 0 | L64: 122
A65: 12 | B65: 6779 | C65: 24 | D65: 6787 | E65: 24 | F65: 6792 | K65: 0 | L65: 122
A66: 12 | B66: 6888 | C66: 24 | D66: 6898 | E66: 24 | F66: 6902 | K66: 0 | L66: 122
A67: 12 | B67: 6999 | C67: 24 | D67: 7009 | E67: 24 | F67: 7014 | K67: 0 | L67: 122
A68: 12 | B68: 7112 | C68: 24 | D68: 7126 | E68: 24 | F68: 7131 | K68: 0 | L68: 122
A69: 21 | B69: 7268 | C69: 22 | D69: 7271 | E69: 24 | F69: 7274 | K69: 0 | L69: 222
A70: 12 | B70: 7369 | C70: 24 | D70: 7378 | E70: 24 | F70: 7381 | K70: 0 | L70: 122
A71: 21 | B71: 7517 | C71: 22 | D71: 7518 | E71: 24 | F71: 7521 | K71: 0 | L71: 222
A72: 12 | B72: 7619 | C72: 24 | D72: 7629 | E72: 24 | F72: 7633 | K72: 0 | L72: 122
A73: 12 | B73: 7731 | C73: 24 | D73: 7745 | E73: 24 | F73: 7749 | K73: 0 | L73: 122
A74: 12 | B74: 7842 | C74: 24 | D74: 7851 | E74: 24 | F74: 7854 | K74: 0 | L74: 122
A75: 21 | B75: 7958 | C75: 22 | D75: 7962 | E75: 24 | F75: 7967 | K75: 0 | L75: 222
A76: 12 | B76: 8065 | C76: 24 | D76: 8074 | E76: 24 | F76: 8078 | K76: 0 | L76: 122
A77: 21 | B77: 8186 | C77: 22 | D77: 8189 | E77: 24 | F77: 8194 | K77: 0 | L77: 222
A78: 12 | B78: 8286 | C78: 24 | D78: 8298 | E78: 24 | F78: 8305 | K78: 0 | L78: 122
A79: 12 | B79: 8404 | C79: 24 | D79: 8416 | E79: 24 | F79: 8421 | K79: 0 | L79: 122
A80: 12 | B80: 8510 | C80: 24 | D80: 8522 | E80: 24 | F80: 8525 | K80: 0 | L80: 122
A81: 21 | B81: 8681 | C81: 22 | D81: 8686 | E81: 24 | F81: 8694 | K81: 0 | L81: 222
A82: 12 | B82: 8787 | C82: 24 | D82: 8797 | E82: 24 | F82: 8801 | K82: 0 | L82: 122
A83: 21 | B83: 8902 | C83: 22 | D83: 8905 | E83: 24 | F83: 8909 | K83: 0 | L83: 222
A84: 21 | B84: 9016 | C84: 22 | D84: 9019 | E84: 24 | F84: 9028 | K84: 0 | L84: 222
A85: 12 | B85: 9129 | C85: 24 | D85: 9138 | E85: 24 | F85: 9141 | K85: 0 | L85: 122
A86: 12 | B86: 9236 | C86: 24 | D86: 9246 | E86: 24 | F86: 9249 | K86: 0 | L86: 122
A87: 21 | B87: 9366 | C87: 22 | D87: 9374 | E87: 24 | F87: 9379 | K87: 0 | L87: 222
A88: 21 | B88: 9487 | C88: 22 | D88: 9490 | E88: 24 | F88: 9505 | K88: 0 | L88: 222
A89: 21 | B89: 9615 | C89: 22 | D89: 9616 | E89: 24 | F89: 9619 | K89: 0 | L89: 222
A90: 12 | B90: 9715 | C90: 24 | D90: 9725 | E90: 24 | F90: 9729 | K90: 0 | L90: 122
A91: 21 | B91: 9832 | C91: 22 | D91: 9835 | E91: 24 | F91: 9840 | K91: 0 | L91: 222
A92: 21 | B92: 9967 | C92: 22 | D92: 9970 | E92: 24 | F92: 9975 | K92: 0 | L92: 222
A93: 12 | B93: 10066 | C93: 24 | D93: 10073 | E93: 24 | F93: 10085 | K93: 0 | L93: 122
A94: 12 | B94: 10179 | C94: 24 | D94: 10190 | E94: 24 | F94: 10197 | K94: 0 | L94: 122
A95: 21 | B95: 10301 | C95: 22 | D95: 10303 | E95: 24 | F95: 10307 | K95: 0 | L95: 222
A96: 21 | B96: 10418 | C96: 22 | D96: 10423 | E96: 24 | F96: 10428 | K96: 0 | L96: 222
A97: 21 | B97: 10529 | C97: 22 | D97: 10532 | E97: 24 | F97: 10535 | K97: 0 | L97: 222
A98: 21 | B98: 10644 | C98: 22 | D98: 10649 | E98: 24 | F98: 10659 | K98: 0 | L98: 222
A99: 12 | B99: 10757 | C99: 24 | D99: 10768 | E99: 24 | F99: 10772 | K99: 0 | L99: 122
A100: 21 | B100: 10878 | C100: 22 | D100: 10882 | E100: 24 | F100: 10890 | K100: 0 | L100: 222
A101: 21 | B101: 10993 | C101: 22 | D101: 11000 | E101: 24 | F101: 11005 | K101: 0 | L101: 222
A102: 21 | B102: 11114 | C102: 22 | D102: 11117 | E102: 24 | F102: 11122 | K102: 0 | L102: 222
A103: 21 | B103: 11224 | C103: 22 | D103: 11229 | E103: 24 | F103: 11238 | K103: 0 | L103: 222
A104: 12 | B104: 11332 | C104: 24 | D104: 11345 | E104: 24 | F104: 11348 | K104: 0 | L104: 122
A105: 21 | B105: 11456 | C105: 22 | D105: 11460 | E105: 24 | F105: 11465 | K105: 0 | L105: 222
A106: 12 | B106: 11561 | C106: 24 | D106: 11572 | E106: 24 | F106: 11575 | K106: 0 | L106: 122
A107: 21 | B107: 11677 | C107: 22 | D107: 11681 | E107: 24 | F107: 11685 | K107: 0 | L107: 222
A108: 21 | B108: 11791 | C108: 22 | D108: 11795 | E108: 24 | F108: 11800 | K108: 0 | L108: 222
A109: 21 | B109: 11905 | C109: 22 | D109: 11910 | E109: 24 | F109: 11915 | K109: 0 | L109: 222
A110: 21 | B110: 12057 | C110: 22 | D110: 12061 | E110: 24 | F110: 12065 | K110: 0 | L110: 222
A111: 12 | B111: 12163 | C111: 24 | D111: 12174 | E111: 24 | F111: 12176 | K111: 0 | L111: 122
A112: 12 | B112: 12272 | C112: 24 | D112: 12284 | E112: 24 | F112: 12288 | K112: 0 | L112: 122
A113: 21 | B113: 12391 | C113: 22 | D113: 12399 | E113: 24 | F113: 12404 | K113: 0 | L113: 222
A114: 21 | B114: 12542 | C114: 22 | D114: 12545 | E114: 24 | F114: 12549 | K114: 0 | L114: 222
A115: 21 | B115: 12653 | C115: 22 | D115: 12657 | E115: 24 | F115: 12661 | K115: 0 | L115: 222
A116: 21 | B116: 12764 | C116: 22 | D116: 12768 | E116: 24 | F116: 12772 | K116: 0 | L116: 222
A117: 12 | B117: 12875 | C117: 24 | D117: 12883 | E117: 24 | F117: 12888 | K117: 0 | L117: 122
A118: 12 | B118: 12985 | C118: 24 | D118: 12994 | E118: 24 | F118: 12998 | K118: 0 | L118: 122
A119: 21 | B119: 13104 | C119: 22 | D119: 13111 | E119: 24 | F119: 13117 | K119: 0 | L119: 222
A120: 12 | B120: 13209 | C120: 24 | D120: 13220 | E120: 24 | F120: 13223 | K120: 0 | L120: 122
A121: 12 | B121: 13321 | C121: 24 | D121: 13332 | E121: 24 | F121: 13334 | K121: 0 | L121: 122
A122: 12 | B122: 13428 | C122: 24 | D122: 13443 | E122: 24 | F122: 13454 | K122: 0 | L122: 122
A123: 21 | B123: 13562 | C123: 22 | D123: 13566 | E123: 24 | F123: 13571 | K123: 0 | L123: 222
A124: 21 | B124: 13673 | C124: 22 | D124: 13677 | E124: 24 | F124: 13680 | K124: 0 | L124: 222
A125: 12 | B125: 13782 | C125: 24 | D125: 13791 | E125: 24 | F125: 13796 | K125: 0 | L125: 122
A126: 12 | B126: 13887 | C126: 24 | D126: 13896 | E126: 24 | F126: 13900 | K126: 0 | L126: 122
A127: 12 | B127: 13998 | C127: 24 | D127: 14008 | E127: 24 | F127: 14011 | K127: 0 | L127: 122
A128: 21 | B128: 14117 | C128: 22 | D128: 14122 | E128: 24 | F128: 14127 | K128: 0 | L128: 222
A129: 12 | B129: 14267 | C129: 24 | D129: 14279 | E129: 24 | F129: 14283 | K129: 0 | L129: 122
A130: 12 | B130: 14380 | C130: 24 | D130: 14390 | E130: 24 | F130: 14394 | K130: 0 | L130: 122
A131: 21 | B131: 14503 | C131: 22 | D131: 14510 | E131: 24 | F131: 14515 | K131: 0 | L131: 222
A132: 12 | B132: 14610 | C132: 24 | D132: 14624 | E132: 24 | F132: 14635 | K132: 0 | L132: 122
A133: 12 | B133: 14731 | C133: 24 | D133: 14741 | E133: 24 | F133: 14746 | K133: 0 | L133: 122
A134: 12 | B134: 14843 | C134: 24 | D134: 14852 | E134: 24 | F134: 14856 | K134: 0 | L134: 122
A135: 12 | B135: 14947 | C135: 24 | D135: 14957 | E135: 24 | F135: 14960 | K135: 0 | L135: 122
A136: 12 | B136: 15058 | C136: 24 | D136: 15067 | E136: 24 | F136: 15071 | K136: 0 | L136: 122
A137: 12 | B137: 15168 | C137: 24 | D137: 15181 | E137: 24 | F137: 15185 | K137: 0 | L137: 122
A138: 21 | B138: 15291 | C138: 22 | D138: 15295 | E138: 24 | F138: 15303 | K138: 0 | L138: 222
A139: 21 | B139: 15437 | C139: 22 | D139: 15462 | E139: 24 | F139: 15466 | K139: 0 | L139: 222
A140: 21 | B140: 15568 | C140: 22 | D140: 15574 | E140: 24 | F140: 15580 | K140: 0 | L140: 222
A141: 12 | B141: 15673 | C141: 24 | D141: 15681 | E141: 24 | F141: 15685 | K141: 0 | L141: 122
A142: 12 | B142: 15783 | C142: 24 | D142: 15798 | E142: 24 | F142: 15804 | K142: 0 | L142: 122
A143: 12 | B143: 15900 | C143: 24 | D143: 15921 | E143: 24 | F143: 15925 | K143: 0 | L143: 122
A144: 12 | B144: 16023 | C144: 24 | D144: 16032 | E144: 24 | F144: 16037 | K144: 0 | L144: 122
A145: 21 | B145: 16144 | C145: 22 | D145: 16149 | E145: 24 | F145: 16153 | K145: 0 | L145: 222
A146: 21 | B146: 16268 | C146: 22 | D146: 16274 | E146: 24 | F146: 16282 | K146: 0 | L146: 222
A147: 12 | B147: 16380 | C147: 24 | D147: 16390 | E147: 24 | F147: 16393 | K147: 0 | L147: 122
A148: 21 | B148: 16501 | C148: 22 | D148: 16506 | E148: 24 | F148: 16510 | K148: 0 | L148: 222
A149: 12 | B149: 16600 | C149: 24 | D149: 16611 | E149: 24 | F149: 16615 | K149: 0 | L149: 122
A150: 21 | B150: 16716 | C150: 22 | D150: 16721 | E150: 24 | F150: 16725 | K150: 0 | L150: 222
A151: 21 | B151: 16829 | C151: 22 | D151: 16833 | E151: 24 | F151: 16842 | K151: 0 | L151: 222
A152: 21 | B152: 16945 | C152: 22 | D152: 16949 | E152: 24 | F152: 16954 | K152: 0 | L152: 222
A153: 12 | B153: 17051 | C153: 24 | D153: 17061 | E153: 24 | F153: 17065 | K153: 0 | L153: 122
A154: 21 | B154: 17169 | C154: 22 | D154: 17174 | E154: 24 | F154: 17178 | K154: 0 | L154: 222
A155: 12 | B155: 17276 | C155: 24 | D155: 17286 | E155: 24 | F155: 17288 | K155: 0 | L155: 122
A156: 21 | B156: 17392 | C156: 22 | D156: 17395 | E156: 24 | F156: 17398 | K156: 0 | L156: 222
A157: 12 | B157: 17495 | C157: 24 | D157: 17504 | E157: 24 | F157: 17507 | K157: 0 | L157: 122
A158: 12 | B158: 17603 | C158: 24 | D158: 17617 | E158: 24 | F158: 17625 | K158: 0 | L158: 122
A159: 21 | B159: 17729 | C159: 22 | D159: 17734 | E159: 24 | F159: 17742 | K159: 0 | L159: 222
A160: 12 | B160: 17839 | C160: 24 | D160: 17848 | E160: 24 | F160: 17853 | K160: 0 | L160: 122
A161: 21 | B161: 17955 | C161: 22 | D161: 17957 | E161: 24 | F161: 17959 | K161: 0 | L161: 222
A162: 12 | B162: 18057 | C162: 24 | D162: 18065 | E162: 24 | F162: 18068 | K162: 0 | L162: 122
A163: 21 | B163: 18217 | C163: 22 | D163: 18245 | E163: 24 | F163: 18249 | K163: 0 | L163: 222
A164: 21 | B164: 18361 | C164: 22 | D164: 18366 | E164: 24 | F164: 18372 | K164: 0 | L164: 222
A165: 21 | B165: 18468 | C165: 22 | D165: 18473 | E165: 24 | F165: 18477 | K165: 0 | L165: 222
A166: 21 | B166: 18583 | C166: 22 | D166: 18588 | E166: 24 | F166: 18592 | K166: 0 | L166: 222
A167: 21 | B167: 18696 | C167: 22 | D167: 18699 | E167: 24 | F167: 18708 | K167: 0 | L167: 222
A168: 21 | B168: 18820 | C168: 22 | D168: 18825 | E168: 24 | F168: 18831 | K168: 0 | L168: 222
A169: 12 | B169: 18927 | C169: 24 | D169: 18938 | E169: 24 | F169: 18941 | K169: 0 | L169: 122
A170: 21 | B170: 19040 | C170: 22 | D170: 19044 | E170: 24 | F170: 19048 | K170: 0 | L170: 222
A171: 12 | B171: 19138 | C171: 24 | D171: 19147 | E171: 24 | F171: 19151 | K171: 0 | L171: 122
A172: 21 | B172: 19259 | C172: 22 | D172: 19263 | E172: 24 | F172: 19268 | K172: 0 | L172: 222
A173: 21 | B173: 19365 | C173: 22 | D173: 19370 | E173: 24 | F173: 19373 | K173: 0 | L173: 222
A174: 12 | B174: 19469 | C174: 24 | D174: 19477 | E174: 24 | F174: 19482 | K174: 0 | L174: 122
A175: 12 | B175: 19579 | C175: 24 | D175: 19589 | E175: 24 | F175: 19593 | K175: 0 | L175: 122
A176: 21 | B176: 19692 | C176: 22 | D176: 19696 | E176: 24 | F176: 19701 | K176: 0 | L176: 222
A177: 21 | B177: 19802 | C177: 22 | D177: 19804 | E177: 24 | F177: 19809 | K177: 0 | L177: 222
A178: 21 | B178: 19907 | C178: 22 | D178: 19911 | E178: 24 | F178: 19914 | K178: 0 | L178: 222
A179: 12 | B179: 20012 | C179: 24 | D179: 20023 | E179: 24 | F179: 20025 | K179: 0 | L179: 122
A180: 21 | B180: 20128 | C180: 22 | D180: 20132 | E180: 24 | F180: 20136 | K180: 0 | L180: 222
A181: 21 | B181: 20242 | C181: 22 | D181: 20247 | E181: 24 | F181: 20250 | K181: 0 | L181: 222
A182: 12 | B182: 20347 | C182: 24 | D182: 20358 | E182: 24 | F182: 20362 | K182: 0 | L182: 122
A183: 21 | B183: 20465 | C183: 22 | D183: 20469 | E183: 24 | F183: 20474 | K183: 0 | L183: 222
A184: 21 | B184: 20571 | C184: 22 | D184: 20575 | E184: 24 | F184: 20579 | K184: 0 | L184: 222
A185: 12 | B185: 20673 | C185: 24 | D185: 20682 | E185: 24 | F185: 20685 | K185: 0 | L185: 122
A186: 21 | B186: 20784 | C186: 22 | D186: 20790 | E186: 24 | F186: 20801 | K186: 0 | L186: 222
A187: 21 | B187: 20899 | C187: 22 | D187: 20901 | E187: 24 | F187: 20904 | K187: 0 | L187: 222
A188: 21 | B188: 21006 | C188: 22 | D188: 21010 | E188: 24 | F188: 21015 | K188: 0 | L188: 222
A189: 21 | B189: 21118 | C189: 22 | D189: 21126 | E189: 24 | F189: 21131 | K189: 0 | L189: 222
A190: 21 | B190: 21232 | C190: 22 | D190: 21236 | E190: 24 | F190: 21242 | K190: 0 | L190: 222
A191: 21 | B191: 21353 | C191: 22 | D191: 21354 | E191: 24 | F191: 21366 | K191: 0 | L191: 222
A192: 21 | B192: 21471 | C192: 22 | D192: 21475 | E192: 24 | F192: 21480 | K192: 0 | L192: 222
A193: 21 | B193: 21580 | C193: 22 | D193: 21581 | E193: 24 | F193: 21584 | K193: 0 | L193: 222
A194: 21 | B194: 21692 | C194: 22 | D194: 21697 | E194: 24 | F194: 21702 | K194: 0 | L194: 222
A195: 21 | B195: 21919 | C195: 22 | D195: 21924 | E195: 24 | F195: 21930 | K195: 0 | L195: 222
A196: 21 | B196: 22037 | C196: 22 | D196: 22041 | E196: 24 | F196: 22045 | K196: 0 | L196: 222
A197: 21 | B197: 22153 | C197: 22 | D197: 22162 | E197: 24 | F197: 22167 | K197: 0 | L197: 222
A198: 21 | B198: 22268 | C198: 22 | D198: 22272 | E198: 24 | F198: 22277 | K198: 0 | L198: 222
A199: 21 | B199: 22427 | C199: 22 | D199: 22431 | E199: 24 | F199: 22436 | K199: 0 | L199: 222
A200: 12 | B200: 22534 | C200: 24 | D200: 22544 | E200: 24 | F200: 22548 | K200: 0 | L200: 122
... 12 more rows

Sheet !L903A4T.ayl
A1: Report for:!L903A4T.ayl
A2: Date: | B2: <date>
A3: Hen: | B3: <hen> | F3: Correct Sequence | G3: =Start!J2 -> 211 | P3: Total Sequences in Data | Q3: =4994-COUNTBLANK(L7:L5000) -> 199 | V3: Total Sequences in Block Data | W3: =COUNTA(L7:L39) -> 33 | AA3: Total Sequences in Block Data | AB3: =COUNTA(L40:L72) -> 33 | AF3: Total Sequences in Block Data | AG3: =COUNTA(L73:L106) -> 34 | AK3: Total Sequences in Block Data | AL3: =COUNTA(L107:L139) -> 33 | AP3: Total Sequences in Block Data | AQ3: =COUNTA(L140:L172) -> 33 | AU3: Total Sequences in Block Data | AV3: =COUNTA(L173:L205) -> 33
P4: Total Sequences in Summary | Q4: =SUM(O7:O14) -> 199 | V4: Total Sequences in Block Summary | W4: =SUM(U7:U14) -> 33 | AA4: Total Sequences in Block Summary | AB4: =SUM(Z7:Z14) -> 33 | AF4: Total Sequences in Block Summary | AG4: =SUM(AE7:AE14) -> 34 | AK4: Total Sequences in Block Summary | AL4: =SUM(AJ7:AJ14) -> 33 | AP4: Total Sequences in Block Summary | AQ4: =SUM(AO7:AO14) -> 33 | AU4: Total Sequences in Block Summary | AV4: =SUM(AT7:AT14) -> 33
T5: Block 1 | Y5: Block 2 | AD5: Block 3 | AI5: Block 4 | AN5: Block 5 | AS5: Block 6
A6: Sequence Component 1 | B6: Time 1 | C6: Sequence Component 2 | D6: Time 2 | E6: Sequence Component 3 | F6: Time 3 | G6: Sequence Component 4 | H6: Time 4 | I6: Sequence Component 5 | J6: Time 5 | K6: Correct? 0=No 1=Yes | L6: Sequence | N6: Frequency | P6: Relative Frequency | Q6: Variability | T6: Frequency | V6: Relative Frequency | W6: Variability | Y6: Frequency | AA6: Relative Frequency | AB6: Variability | AD6: Frequency | AF6: Relative Frequency | AG6: Variability | AI6: Frequency | AK6: Relative Frequency | AL6: Variability | AN6: Frequency | AP6: Relative Frequency | AQ6: Variability | AS6: Frequency | AU6: Relative Frequency | AV6: Variability
A7: 21 | B7: 8 | C7: 22 | D7: 13 | E7: 24 | F7: 14 | K7: 0 | L7: 222 | N7: 111 | O7: =COUNTIF($L$7:$L$500,N7) -> 0 | P7: =O7/$Q$4 -> 0 | Q7: =IF(P7=0,0,(P7*((LOG(P7))/LOG(2)))) -> 0 | T7: =N7 -> 111 | U7: =COUNTIF(L7:L39,T7) -> 0 | V7: =U7/(W4-U11) -> 0 | W7: =IF(V7=0,0,(V7*((LOG(V7))/LOG(2)))) -> 0 | Y7: =N7 -> 111 | Z7: =COUNTIF(L40:L72,Y7) -> 0 | AA7: =Z7/(AB4-Z11) -> 0 | AB7: =IF(AA7=0,0,(AA7*((LOG(AA7))/LOG(2)))) -> 0 | AD7: =N7 -> 111 | AE7: =COUNTIF(L73:L106,AD7) -> 0 | AF7: =AE7/(AG4-AE11) -> 0 | AG7: =IF(AF7=0,0,(AF7*((LOG(AF7))/LOG(2)))) -> 0 | AI7: =N7 -> 111 | AJ7: =COUNTIF(L107:L139,AI7) -> 0 | AK7: =AJ7/(AL4-AJ11) -> 0 | AL7: =IF(AK7=0,0,(AK7*((LOG(AK7))/LOG(2)))) -> 0 | AN7: =N7 -> 111 | AO7: =COUNTIF(L140:L172,AN7) -> 0 | AP7: =AO7/(AQ4-AO11) -> 0 | AQ7: =IF(AP7=0,0,(AP7*((LOG(AP7))/LOG(2)))) -> 0 | AS7: =N7 -> 111 | AT7: =COUNTIF(L173:L205,AS7) -> 0 | AU7: =AT7/(AV4-AT11) -> 0 | AV7: =IF(AU7=0,0,(AU7*((LOG(AU7))/LOG(2)))) -> 0
A8: 21 | B8: 120 | C8: 22 | D8: 128 | E8: 24 | F8: 139 | K8: 0 | L8: 222 | N8: 112 | O8: =COUNTIF($L$7:$L$500,N8) -> 1 | P8: =O8/$Q$4 -> 0.005025125628 | Q8: =IF(P8=0,0,(P8*((LOG(P8))/LOG(2)))) -> -0.03837499809 | T8: =N8 -> 112 | U8: =COUNTIF(L7:L39,T8) -> 0 | V8: =U8/(W4-U11) -> 0 | W8: =IF(V8=0,0,(V8*((LOG(V8))/LOG(2)))) -> 0 | Y8: =N8 -> 112 | Z8: =COUNTIF(L40:L72,Y8) -> 0 | AA8: =Z8/(AB4-Z11) -> 0 | AB8: =IF(AA8=0,0,(AA8*((LOG(AA8))/LOG(2)))) -> 0 | AD8: =N8 -> 112 | AE8: =COUNTIF(L73:L106,AD8) -> 0 | AF8: =AE8/(AG4-AE11) -> 0 | AG8: =IF(AF8=0,0,(AF8*((LOG(AF8))/LOG(2)))) -> 0 | AI8: =N8 -> 112 | AJ8: =COUNTIF(L107:L139,AI8) -> 0 | AK8: =AJ8/(AL4-AJ11) -> 0 | AL8: =IF(AK8=0,0,(AK8*((LOG(AK8))/LOG(2)))) -> 0 | AN8: =N8 -> 112 | AO8: =COUNTIF(L140:L172,AN8) -> 1 | AP8: =AO8/(AQ4-AO11) -> 0.0303030303 | AQ8: =IF(AP8=0,0,(AP8*((LOG(AP8))/LOG(2)))) -> -0.1528604279 | AS8: =N8 -> 112 | AT8: =COUNTIF(L173:L205,AS8) -> 0 | AU8: =AT8/(AV4-AT11) -> 0 | AV8: =IF(AU8=0,0,(AU8*((LOG(AU8))/LOG(2)))) -> 0
A9: 12 | B9: 233 | C9: 24 | D9: 244 | E9: 24 | F9: 248 | K9: 0 | L9: 122 | N9: 121 | O9: =COUNTIF($L$7:$L$500,N9) -> 0 | P9: =O9/$Q$4 -> 0 | Q9: =IF(P9=0,0,(P9*((LOG(P9))/LOG(2)))) -> 0 | T9: =N9 -> 121 | U9: =COUNTIF(L7:L39,T9) -> 0 | V9: =U9/(W4-U11) -> 0 | W9: =IF(V9=0,0,(V9*((LOG(V9))/LOG(2)))) -> 0 | Y9: =N9 -> 121 | Z9: =COUNTIF(L40:L72,Y9) -> 0 | AA9: =Z9/(AB4-Z11) -> 0 | AB9: =IF(AA9=0,0,(AA9*((LOG(AA9))/LOG(2)))) -> 0 | AD9: =N9 -> 121 | AE9: =COUNTIF(L73:L106,AD9) -> 0 | AF9: =AE9/(AG4-AE11) -> 0 | AG9: =IF(AF9=0,0,(AF9*((LOG(AF9))/LOG(2)))) -> 0 | AI9: =N9 -> 121 | AJ9: =COUNTIF(L107:L139,AI9) -> 0 | AK9: =AJ9/(AL4-AJ11) -> 0 | AL9: =IF(AK9=0,0,(AK9*((LOG(AK9))/LOG(2)))) -> 0 | AN9: =N9 -> 121 | AO9: =COUNTIF(L140:L172,AN9) -> 0 | AP9: =AO9/(AQ4-AO11) -> 0 | AQ9: =IF(AP9=0,0,(AP9*((LOG(AP9))/LOG(2)))) -> 0 | AS9: =N9 -> 121 | AT9: =COUNTIF(L173:L205,AS9) -> 0 | AU9: =AT9/(AV4-AT11) -> 0 | AV9: =IF(AU9=0,0,(AU9*((LOG(AU9))/LOG(2)))) -> 0
A10: 12 | B10: 345 | C10: 24 | D10: 356 | E10: 24 | F10: 360 | K10: 0 | L10: 122 | N10: 122 | O10: =COUNTIF($L$7:$L$500,N10) -> 95 | P10: =O10/$Q$4 -> 0.4773869347 | Q10: =IF(P10=0,0,(P10*((LOG(P10))/LOG(2)))) -> -0.5092615887 | T10: =N10 -> 122 | U10: =COUNTIF(L7:L39,T10) -> 19 | V10: =U10/(W4-U11) -> 0.5757575758 | W10: =IF(V10=0,0,(V10*((LOG(V10))/LOG(2)))) -> -0.4585716822 | Y10: =N10 -> 122 | Z10: =COUNTIF(L40:L72,Y10) -> 17 | AA10: =Z10/(AB4-Z11) -> 0.5151515152 | AB10: =IF(AA10=0,0,(AA10*((LOG(AA10))/LOG(2)))) -> -0.4929645978 | AD10: =N10 -> 122 | AE10: =COUNTIF(L73:L106,AD10) -> 17 | AF10: =AE10/(AG4-AE11) -> 0.5 | AG10: =IF(AF10=0,0,(AF10*((LOG(AF10))/LOG(2)))) -> -0.5 | AI10: =N10 -> 122 | AJ10: =COUNTIF(L107:L139,AI10) -> 14 | AK10: =AJ10/(AL4-AJ11) -> 0.4242424242 | AL10: =IF(AK10=0,0,(AK10*((LOG(AK10))/LOG(2)))) -> -0.5248045079 | AN10: =N10 -> 122 | AO10: =COUNTIF(L140:L172,AN10) -> 14 | AP10: =AO10/(AQ4-AO11) -> 0.4242424242 | AQ10: =IF(AP10=0,0,(AP10*((LOG(AP10))/LOG(2)))) -> -0.5248045079 | AS10: =N10 -> 122 | AT10: =COUNTIF(L173:L205,AS10) -> 14 | AU10: =AT10/(AV4-AT11) -> 0.4242424242 | AV10: =IF(AU10=0,0,(AU10*((LOG(AU10))/LOG(2)))) -> -0.5248045079
A11: 21 | B11: 465 | C11: 22 | D11: 470 | E11: 24 | F11: 482 | K11: 0 | L11: 222 | N11: 211 | O11: =COUNTIF($L$7:$L$500,N11) -> 0 | P11: =O11/$Q$4 -> 0 | Q11: =IF(P11=0,0,(P11*((LOG(P11))/LOG(2)))) -> 0 | T11: =N11 -> 211 | U11: =COUNTIF(L7:L39,T11) -> 0 | Y11: =N11 -> 211 | Z11: =COUNTIF(L40:L72,Y11) -> 0 | AD11: =N11 -> 211 | AE11: =COUNTIF(L73:L106,AD11) -> 0 | AI11: =N11 -> 211 | AJ11: =COUNTIF(L107:L139,AI11) -> 0 | AN11: =N11 -> 211 | AO11: =COUNTIF(L140:L172,AN11) -> 0 | AS11: =N11 -> 211 | AT11: =COUNTIF(L173:L205,AS11) -> 0
A12: 21 | B12: 584 | C12: 22 | D12: 587 | E12: 24 | F12: 592 | K12: 0 | L12: 222 | N12: 212 | O12: =COUNTIF($L$7:$L$500,N12) -> 0 | P12: =O12/$Q$4 -> 0 | Q12: =IF(P12=0,0,(P12*((LOG(P12))/LOG(2)))) -> 0 | T12: =N12 -> 212 | U12: =COUNTIF(L7:L39,T12) -> 0 | V12: =U12/(W4-U11) -> 0 | W12: =IF(V12=0,0,(V12*((LOG(V12))/LOG(2)))) -> 0 | Y12: =N12 -> 212 | Z12: =COUNTIF(L40:L72,Y12) -> 0 | AA12: =Z12/(AB4-Z11) -> 0 | AB12: =IF(AA12=0,0,(AA12*((LOG(AA12))/LOG(2)))) -> 0 | AD12: =N12 -> 212 | AE12: =COUNTIF(L73:L106,AD12) -> 0 | AF12: =AE12/(AG4-AE11) -> 0 | AG12: =IF(AF12=0,0,(AF12*((LOG(AF12))/LOG(2)))) -> 0 | AI12: =N12 -> 212 | AJ12: =COUNTIF(L107:L139,AI12) -> 0 | AK12: =AJ12/(AL4-AJ11) -> 0 | AL12: =IF(AK12=0,0,(AK12*((LOG(AK12))/LOG(2)))) -> 0 | AN12: =N12 -> 212 | AO12: =COUNTIF(L140:L172,AN12) -> 0 | AP12: =AO12/(AQ4-AO11) -> 0 | AQ12: =IF(AP12=0,0,(AP12*((LOG(AP12))/LOG(2)))) -> 0 | AS12: =N12 -> 212 | AT12: =COUNTIF(L173:L205,AS12) -> 0 | AU12: =AT12/(AV4-AT11) -> 0 | AV12: =IF(AU12=0,0,(AU12*((LOG(AU12))/LOG(2)))) -> 0
A13: 12 | B13: 689 | C13: 24 | D13: 699 | E13: 24 | F13: 701 | K13: 0 | L13: 122 | N13: 221 | O13: =COUNTIF($L$7:$L$500,N13) -> 0 | P13: =O13/$Q$4 -> 0 | Q13: =IF(P13=0,0,(P13*((LOG(P13))/LOG(2)))) -> 0 | T13: =N13 -> 221 | U13: =COUNTIF(L7:L39,T13) -> 0 | V13: =U13/(W4-U11) -> 0 | W13: =IF(V13=0,0,(V13*((LOG(V13))/LOG(2)))) -> 0 | Y13: =N13 -> 221 | Z13: =COUNTIF(L40:L72,Y13) -> 0 | AA13: =Z13/(AB4-Z11) -> 0 | AB13: =IF(AA13=0,0,(AA13*((LOG(AA13))/LOG(2)))) -> 0 | AD13: =N13 -> 221 | AE13: =COUNTIF(L73:L106,AD13) -> 0 | AF13: =AE13/(AG4-AE11) -> 0 | AG13: =IF(AF13=0,0,(AF13*((LOG(AF13))/LOG(2)))) -> 0 | AI13: =N13 -> 221 | AJ13: =COUNTIF(L107:L139,AI13) -> 0 | AK13: =AJ13/(AL4-AJ11) -> 0 | AL13: =IF(AK13=0,0,(AK13*((LOG(AK13))/LOG(2)))) -> 0 | AN13: =N13 -> 221 | AO13: =COUNTIF(L140:L172,AN13) -> 0 | AP13: =AO13/(AQ4-AO11) -> 0 | AQ13: =IF(AP13=0,0,(AP13*((LOG(AP13))/LOG(2)))) -> 0 | AS13: =N13 -> 221 | AT13: =COUNTIF(L173:L205,AS13) -> 0 | AU13: =AT13/(AV4-AT11) -> 0 | AV13: =IF(AU13=0,0,(AU13*((LOG(AU13))/LOG(2)))) -> 0
A14: 21 | B14: 872 | C14: 22 | D14: 877 | E14: 24 | F14: 881 | K14: 0 | L14: 222 | N14: 222 | O14: =COUNTIF($L$7:$L$500,N14) -> 103 | P14: =O14/$Q$4 -> 0.5175879397 | Q14: =IF(P14=0,0,(P14*((LOG(P14))/LOG(2)))) -> -0.4917727719 | T14: =N14 -> 222 | U14: =COUNTIF(L7:L39,T14) -> 14 | V14: =U14/(W4-U11) -> 0.4242424242 | W14: =IF(V14=0,0,(V14*((LOG(V14))/LOG(2)))) -> -0.5248045079 | Y14: =N14 -> 222 | Z14: =COUNTIF(L40:L72,Y14) -> 16 | AA14: =Z14/(AB4-Z11) -> 0.4848484848 | AB14: =IF(AA14=0,0,(AA14*((LOG(AA14))/LOG(2)))) -> -0.5063729064 | AD14: =N14 -> 222 | AE14: =COUNTIF(L73:L106,AD14) -> 17 | AF14: =AE14/(AG4-AE11) -> 0.5 | AG14: =IF(AF14=0,0,(AF14*((LOG(AF14))/LOG(2)))) -> -0.5 | AI14: =N14 -> 222 | AJ14: =COUNTIF(L107:L139,AI14) -> 19 | AK14: =AJ14/(AL4-AJ11) -> 0.5757575758 | AL14: =IF(AK14=0,0,(AK14*((LOG(AK14))/LOG(2)))) -> -0.4585716822 | AN14: =N14 -> 222 | AO14: =COUNTIF(L140:L172,AN14) -> 18 | AP14: =AO14/(AQ4-AO11) -> 0.5454545455 | AQ14: =IF(AP14=0,0,(AP14*((LOG(AP14))/LOG(2)))) -> -0.4769831552 | AS14: =N14 -> 222 | AT14: =COUNTIF(L173:L205,AS14) -> 19 | AU14: =AT14/(AV4-AT11) -> 0.5757575758 | AV14: =IF(AU14=0,0,(AU14*((LOG(AU14))/LOG(2)))) -> -0.4585716822
A15: 12 | B15: 976 | C15: 24 | D15: 986 | E15: 24 | F15: 991 | K15: 0 | L15: 122 | P15: =SUM(P7:P14) -> 1 | Q15: =-SUM(Q7:Q14) -> 1.039409359 | V15: =SUM(V7:V14) -> 1 | W15: =-SUM(W7:W14) -> 0.9833761901 | AA15: =SUM(AA7:AA14) -> 1 | AB15: =-SUM(AB7:AB14) -> 0.9993375042 | AF15: =SUM(AF7:AF14) -> 1 | AG15: =-SUM(AG7:AG14) -> 1 | AK15: =SUM(AK7:AK14) -> 1 | AL15: =-SUM(AL7:AL14) -> 0.9833761901 | AP15: =SUM(AP7:AP14) -> 1 | AQ15: =-SUM(AQ7:AQ14) -> 1.154648091 | AU15: =SUM(AU7:AU14) -> 1 | AV15: =-SUM(AV7:AV14) -> 0.9833761901
A16: 21 | B16: 1100 | C16: 22 | D16: 1114 | E16: 24 | F16: 1128 | K16: 0 | L16: 222 | P16: U= | Q16: =Q15/(LOG(Q4)/LOG(2)) -> 0.1361084786 | V16: U1= | W16: =W15/(LOG(W4)/LOG(2)) -> 0.1949443614 | AA16: U2= | AB16: =AB15/(LOG(AB4)/LOG(2)) -> 0.1981085301 | AF16: U3= | AG16: =AG15/(LOG(AG4)/LOG(2)) -> 0.1965616322 | AK16: U4= | AL16: =AL15/(LOG(AL4)/LOG(2)) -> 0.1949443614 | AP16: U5= | AQ16: =AQ15/(LOG(AQ4)/LOG(2)) -> 0.2288972796 | AU16: U6= | AV16: =AV15/(LOG(AV4)/LOG(2)) -> 0.1949443614
A17: 21 | B17: 1251 | C17: 22 | D17: 1255 | E17: 24 | F17: 1260 | K17: 0 | L17: 222
A18: 21 | B18: 1364 | C18: 22 | D18: 1368 | E18: 24 | F18: 1373 | K18: 0 | L18: 222
A19: 12 | B19: 1471 | C19: 24 | D19: 1478 | E19: 24 | F19: 1481 | K19: 0 | L19: 122 | N19: Total Target Seq
A20: 12 | B20: 1579 | C20: 24 | D20: 1591 | E20: 24 | F20: 1595 | K20: 0 | L20: 122 | N20: =COUNTIF(L7:L205,G3) -> 0 | P20: 33 | Q20: 33 | R20: 34 | S20: 33 | T20: 33 | U20: 33
A21: 21 | B21: 1730 | C21: 22 | D21: 1733 | E21: 24 | F21: 1743 | K21: 0 | L21: 222 | P21: % of reinforcement given in 6 equal intervals based on number of trials
A22: 12 | B22: 1841 | C22: 24 | D22: 1853 | E22: 24 | F22: 1857 | K22: 0 | L22: 122 | P22: %_1 | Q22: %_2 | R22: %_3 | S22: %_4 | T22: %_5 | U22: %_6
A23: 21 | B23: 1963 | C23: 22 | D23: 1970 | E23: 24 | F23: 1982 | K23: 0 | L23: 222 | O23: target sequence | P23: =$G$3 -> 211 | Q23: =$G$3 -> 211 | R23: =$G$3 -> 211 | S23: =$G$3 -> 211 | T23: =$G$3 -> 211 | U23: =$G$3 -> 211
A24: 21 | B24: 2091 | C24: 22 | D24: 2105 | E24: 24 | F24: 2118 | K24: 0 | L24: 222 | O24: total reinforcement | P24: =U11 -> 0 | Q24: =Z11 -> 0 | R24: =AE11 -> 0 | S24: =AJ11 -> 0 | T24: =AO11 -> 0 | U24: =AT11 -> 0
A25: 12 | B25: 2215 | C25: 24 | D25: 2239 | E25: 24 | F25: 2242 | K25: 0 | L25: 122 | O25: % target
A26: 12 | B26: 2340 | C26: 24 | D26: 2353 | E26: 24 | F26: 2357 | K26: 0 | L26: 122 | O26: CCRF
A27: 21 | B27: 2460 | C27: 22 | D27: 2466 | E27: 24 | F27: 2471 | K27: 0 | L27: 222 | O27: % CCRf
A28: 12 | B28: 2568 | C28: 24 | D28: 2578 | E28: 24 | F28: 2582 | K28: 0 | L28: 122 | O28: average response rate | P28: =F39/P20 -> 115.7575758 | Q28: =(F72-F39)/Q20 -> 121.8787879 | R28: =(F106-F72)/R20 -> 119.2058824 | S28: =(F139-F106)/S20 -> 124.5151515 | T28: =(F172-F139)/T20 -> 117.7575758 | U28: =(F205-F172)/U20 -> 124.1515152
A29: 21 | B29: 2684 | C29: 22 | D29: 2691 | E29: 24 | F29: 2696 | K29: 0 | L29: 222
A30: 12 | B30: 2794 | C30: 24 | D30: 2804 | E30: 24 | F30: 2808 | K30: 0 | L30: 122
A31: 12 | B31: 2905 | C31: 24 | D31: 2916 | E31: 24 | F31: 2920 | K31: 0 | L31: 122
A32: 12 | B32: 3016 | C32: 24 | D32: 3026 | E32: 24 | F32: 3030 | K32: 0 | L32: 122
A33: 12 | B33: 3127 | C33: 24 | D33: 3137 | E33: 24 | F33: 3142 | K33: 0 | L33: 122
A34: 12 | B34: 3239 | C34: 24 | D34: 3251 | E34: 24 | F34: 3255 | K34: 0 | L34: 122
A35: 12 | B35: 3352 | C35: 24 | D35: 3365 | E35: 24 | F35: 3368 | K35: 0 | L35: 122
A36: 21 | B36: 3475 | C36: 22 | D36: 3478 | E36: 24 | F36: 3484 | K36: 0 | L36: 222
A37: 12 | B37: 3583 | C37: 24 | D37: 3590 | E37: 24 | F37: 3594 | K37: 0 | L37: 122
A38: 12 | B38: 3686 | C38: 24 | D38: 3698 | E38: 24 | F38: 3703 | K38: 0 | L38: 122
A39: 12 | B39: 3807 | C39: 24 | D39: 3816 | E39: 24 | F39: 3820 | K39: 0 | L39: 122
A40: 21 | B40: 3923 | C40: 22 | D40: 3925 | E40: 24 | F40: 3930 | K40: 0 | L40: 222
A41: 12 | B41: 4024 | C41: 24 | D41: 4037 | E41: 24 | F41: 4041 | K41: 0 | L41: 122
A42: 21 | B42: 4211 | C42: 22 | D42: 4217 | E42: 24 | F42: 4223 | K42: 0 | L42: 222
A43: 21 | B43: 4325 | C43: 22 | D43: 4329 | E43: 24 | F43: 4333 | K43: 0 | L43: 222
A44: 21 | B44: 4434 | C44: 22 | D44: 4438 | E44: 24 | F44: 4443 | K44: 0 | L44: 222
A45: 21 | B45: 4545 | C45: 22 | D45: 4548 | E45: 24 | F45: 4553 | K45: 0 | L45: 222
A46: 12 | B46: 4651 | C46: 24 | D46: 4674 | E46: 24 | F46: 4679 | K46: 0 | L46: 122
A47: 21 | B47: 4783 | C47: 22 | D47: 4787 | E47: 24 | F47: 4791 | K47: 0 | L47: 222
A48: 12 | B48: 4889 | C48: 24 | D48: 4902 | E48: 24 | F48: 4905 | K48: 0 | L48: 122
A49: 12 | B49: 5003 | C49: 24 | D49: 5013 | E49: 24 | F49: 5017 | K49: 0 | L49: 122
A50: 21 | B50: 5127 | C50: 22 | D50: 5131 | E50: 24 | F50: 5139 | K50: 0 | L50: 222
A51: 12 | B51: 5234 | C51: 24 | D51: 5247 | E51: 24 | F51: 5252 | K51: 0 | L51: 122
A52: 21 | B52: 5353 | C52: 22 | D52: 5357 | E52: 24 | F52: 5362 | K52: 0 | L52: 222
A53: 21 | B53: 5463 | C53: 22 | D53: 5467 | E53: 24 | F53: 5473 | K53: 0 | L53: 222
A54: 12 | B54: 5572 | C54: 24 | D54: 5587 | E54: 24 | F54: 5591 | K54: 0 | L54: 122
A55: 12 | B55: 5687 | C55: 24 | D55: 5699 | E55: 24 | F55: 5704 | K55: 0 | L55: 122
A56: 12 | B56: 5801 | C56: 24 | D56: 5812 | E56: 24 | F56: 5815 | K56: 0 | L56: 122
A57: 21 | B57: 5920 | C57: 22 | D57: 5923 | E57: 24 | F57: 5934 | K57: 0 | L57: 222
A58: 21 | B58: 6095 | C58: 22 | D58: 6100 | E58: 24 | F58: 6106 | K58: 0 | L58: 222
A59: 12 | B59: 6204 | C59: 24 | D59: 6216 | E59: 24 | F59: 6220 | K59: 0 | L59: 122
A60: 12 | B60: 6319 | C60: 24 | D60: 6330 | E60: 24 | F60: 6335 | K60: 0 | L60: 122
A61: 12 | B61: 6433 | C61: 24 | D61: 6448 | E61: 24 | F61: 6452 | K61: 0 | L61: 122
A62: 21 | B62: 6576 | C62: 22 | D62: 6582 | E62: 24 | F62: 6587 | K62: 0 | L62: 222
A63: 21 | B63: 6765 | C63: 22 | D63: 6769 | E63: 24 | F63: 6774 | K63: 0 | L63: 222
A64: 12 | B64: 6872 | C64: 24 | D64: 6885 | E64: 24 | F64: 6903 | K64: 0 | L64: 122
A65: 12 | B65: 7002 | C65: 24 | D65: 7012 | E65: 24 | F65: 7015 | K65: 0 | L65: 122
A66: 12 | B66: 7112 | C66: 24 | D66: 7122 | E66: 24 | F66: 7126 | K66: 0 | L66: 122
A67: 21 | B67: 7227 | C67: 22 | D67: 7231 | E67: 24 | F67: 7237 | K67: 0 | L67: 222
A68: 12 | B68: 7334 | C68: 24 | D68: 7342 | E68: 24 | F68: 7346 | K68: 0 | L68: 122
A69: 12 | B69: 7444 | C69: 24 | D69: 7455 | E69: 24 | F69: 7460 | K69: 0 | L69: 122
A70: 21 | B70: 7564 | C70: 22 | D70: 7568 | E70: 24 | F70: 7578 | K70: 0 | L70: 222
A71: 21 | B71: 7722 | C71: 22 | D71: 7727 | E71: 24 | F71: 7731 | K71: 0 | L71: 222
A72: 12 | B72: 7827 | C72: 24 | D72: 7837 | E72: 24 | F72: 7842 | K72: 0 | L72: 122
A73: 12 | B73: 7940 | C73: 24 | D73: 7953 | E73: 24 | F73: 7957 | K73: 0 | L73: 122
A74: 12 | B74: 8054 | C74: 24 | D74: 8064 | E74: 24 | F74: 8068 | K74: 0 | L74: 122
A75: 21 | B75: 8175 | C75: 22 | D75: 8182 | E75: 24 | F75: 8188 | K75: 0 | L75: 222
A76: 12 | B76: 8284 | C76: 24 | D76: 8297 | E76: 24 | F76: 8301 | K76: 0 | L76: 122
A77: 21 | B77: 8407 | C77: 22 | D77: 8411 | E77: 24 | F77: 8415 | K77: 0 | L77: 222
A78: 12 | B78: 8513 | C78: 24 | D78: 8523 | E78: 24 | F78: 8534 | K78: 0 | L78: 122
A79: 21 | B79: 8638 | C79: 22 | D79: 8640 | E79: 24 | F79: 8646 | K79: 0 | L79: 222
A80: 21 | B80: 8758 | C80: 22 | D80: 8762 | E80: 24 | F80: 8767 | K80: 0 | L80: 222
A81: 21 | B81: 8887 | C81: 22 | D81: 8891 | E81: 24 | F81: 8901 | K81: 0 | L81: 222
A82: 12 | B82: 8999 | C82: 24 | D82: 9009 | E82: 24 | F82: 9016 | K82: 0 | L82: 122
A83: 12 | B83: 9113 | C83: 24 | D83: 9125 | E83: 24 | F83: 9129 | K83: 0 | L83: 122
A84: 21 | B84: 9235 | C84: 22 | D84: 9240 | E84: 24 | F84: 9245 | K84: 0 | L84: 222
A85: 21 | B85: 9343 | C85: 22 | D85: 9347 | E85: 24 | F85: 9352 | K85: 0 | L85: 222
A86: 12 | B86: 9449 | C86: 24 | D86: 9460 | E86: 24 | F86: 9463 | K86: 0 | L86: 122
A87: 21 | B87: 9566 | C87: 22 | D87: 9570 | E87: 24 | F87: 9576 | K87: 0 | L87: 222
A88: 12 | B88: 9673 | C88: 24 | D88: 9684 | E88: 24 | F88: 9689 | K88: 0 | L88: 122
A89: 12 | B89: 9781 | C89: 24 | D89: 9795 | E89: 24 | F89: 9799 | K89: 0 | L89: 122
A90: 12 | B90: 9898 | C90: 24 | D90: 9908 | E90: 24 | F90: 9913 | K90: 0 | L90: 122
A91: 12 | B91: 10007 | C91: 24 | D91: 10018 | E91: 24 | F91: 10023 | K91: 0 | L91: 122
A92: 21 | B92: 10127 | C92: 22 | D92: 10129 | E92: 24 | F92: 10131 | K92: 0 | L92: 222
A93: 21 | B93: 10277 | C93: 22 | D93: 10281 | E93: 24 | F93: 10286 | K93: 0 | L93: 222
A94: 21 | B94: 10398 | C94: 22 | D94: 10403 | E94: 24 | F94: 10407 | K94: 0 | L94: 222
A95: 12 | B95: 10504 | C95: 24 | D95: 10514 | E95: 24 | F95: 10518 | K95: 0 | L95: 122
A96: 21 | B96: 10659 | C96: 22 | D96: 10662 | E96: 24 | F96: 10667 | K96: 0 | L96: 222
A97: 12 | B97: 10764 | C97: 24 | D97: 10776 | E97: 24 | F97: 10781 | K97: 0 | L97: 122
A98: 21 | B98: 10886 | C98: 22 | D98: 10895 | E98: 24 | F98: 10900 | K98: 0 | L98: 222
A99: 12 | B99: 10990 | C99: 24 | D99: 11000 | E99: 24 | F99: 11004 | K99: 0 | L99: 122
A100: 12 | B100: 11101 | C100: 24 | D100: 11112 | E100: 24 | F100: 11116 | K100: 0 | L100: 122
A101: 21 | B101: 11215 | C101: 22 | D101: 11220 | E101: 24 | F101: 11229 | K101: 0 | L101: 222
A102: 21 | B102: 11393 | C102: 22 | D102: 11395 | E102: 24 | F102: 11397 | K102: 0 | L102: 222
A103: 21 | B103: 11508 | C103: 22 | D103: 11514 | E103: 24 | F103: 11519 | K103: 0 | L103: 222
A104: 12 | B104: 11617 | C104: 24 | D104: 11628 | E104: 24 | F104: 11632 | K104: 0 | L104: 122
A105: 12 | B105: 11729 | C105: 24 | D105: 11738 | E105: 24 | F105: 11742 | K105: 0 | L105: 122
A106: 21 | B106: 11886 | C106: 22 | D106: 11890 | E106: 24 | F106: 11895 | K106: 0 | L106: 222
A107: 12 | B107: 11994 | C107: 24 | D107: 12005 | E107: 24 | F107: 12009 | K107: 0 | L107: 122
A108: 12 | B108: 12102 | C108: 24 | D108: 12112 | E108: 24 | F108: 12119 | K108: 0 | L108: 122
A109: 12 | B109: 12218 | C109: 24 | D109: 12228 | E109: 24 | F109: 12232 | K109: 0 | L109: 122
A110: 21 | B110: 12338 | C110: 22 | D110: 12343 | E110: 24 | F110: 12348 | K110: 0 | L110: 222
A111: 21 | B111: 12448 | C111: 22 | D111: 12453 | E111: 24 | F111: 12456 | K111: 0 | L111: 222
A112: 21 | B112: 12634 | C112: 22 | D112: 12637 | E112: 24 | F112: 12643 | K112: 0 | L112: 222
A113: 21 | B113: 12749 | C113: 22 | D113: 12753 | E113: 24 | F113: 12758 | K113: 0 | L113: 222
A114: 21 | B114: 12864 | C114: 22 | D114: 12868 | E114: 24 | F114: 12872 | K114: 0 | L114: 222
A115: 21 | B115: 12976 | C115: 22 | D115: 12981 | E115: 24 | F115: 12987 | K115: 0 | L115: 222
A116: 12 | B116: 13084 | C116: 24 | D116: 13094 | E116: 24 | F116: 13098 | K116: 0 | L116: 122
A117: 12 | B117: 13197 | C117: 24 | D117: 13203 | E117: 24 | F117: 13208 | K117: 0 | L117: 122
A118: 21 | B118: 13306 | C118: 22 | D118: 13313 | E118: 24 | F118: 13317 | K118: 0 | L118: 222
A119: 21 | B119: 13419 | C119: 22 | D119: 13423 | E119: 24 | F119: 13428 | K119: 0 | L119: 222
A120: 12 | B120: 13526 | C120: 24 | D120: 13537 | E120: 24 | F120: 13539 | K120: 0 | L120: 122
A121: 21 | B121: 13648 | C121: 22 | D121: 13653 | E121: 24 | F121: 13658 | K121: 0 | L121: 222
A122: 21 | B122: 13756 | C122: 22 | D122: 13759 | E122: 24 | F122: 13764 | K122: 0 | L122: 222
A123: 12 | B123: 13861 | C123: 24 | D123: 13872 | E123: 24 | F123: 13876 | K123: 0 | L123: 122
A124: 21 | B124: 13985 | C124: 22 | D124: 13989 | E124: 24 | F124: 13994 | K124: 0 | L124: 222
A125: 21 | B125: 14096 | C125: 22 | D125: 14103 | E125: 24 | F125: 14108 | K125: 0 | L125: 222
A126: 21 | B126: 14434 | C126: 22 | D126: 14438 | E126: 24 | F126: 14442 | K126: 0 | L126: 222
A127: 21 | B127: 14545 | C127: 22 | D127: 14554 | E127: 24 | F127: 14563 | K127: 0 | L127: 222
A128: 21 | B128: 14674 | C128: 22 | D128: 14678 | E128: 24 | F128: 14688 | K128: 0 | L128: 222
A129: 12 | B129: 14785 | C129: 24 | D129: 14798 | E129: 24 | F129: 14802 | K129: 0 | L129: 122
A130: 12 | B130: 14897 | C130: 24 | D130: 14911 | E130: 24 | F130: 14915 | K130: 0 | L130: 122
A131: 12 | B131: 15012 | C131: 24 | D131: 15020 | E131: 24 | F131: 15023 | K131: 0 | L131: 122
A132: 21 | B132: 15130 | C132: 22 | D132: 15134 | E132: 24 | F132: 15140 | K132: 0 | L132: 222
A133: 21 | B133: 15242 | C133: 22 | D133: 15246 | E133: 24 | F133: 15251 | K133: 0 | L133: 222
A134: 21 | B134: 15357 | C134: 22 | D134: 15360 | E134: 24 | F134: 15365 | K134: 0 | L134: 222
A135: 12 | B135: 15463 | C135: 24 | D135: 15475 | E135: 24 | F135: 15480 | K135: 0 | L135: 122
A136: 12 | B136: 15574 | C136: 24 | D136: 15593 | E136: 24 | F136: 15606 | K136: 0 | L136: 122
A137: 12 | B137: 15701 | C137: 24 | D137: 15712 | E137: 24 | F137: 15716 | K137: 0 | L137: 122
A138: 12 | B138: 15817 | C138: 24 | D138: 15830 | E138: 24 | F138: 15835 | K138: 0 | L138: 122
A139: 21 | B139: 15998 | C139: 22 | D139: 16000 | E139: 24 | F139: 16004 | K139: 0 | L139: 222
A140: 12 | B140: 16102 | C140: 24 | D140: 16111 | E140: 24 | F140: 16116 | K140: 0 | L140: 122
A141: 21 | B141: 16230 | C141: 22 | D141: 16241 | E141: 24 | F141: 16247 | K141: 0 | L141: 222
A142: 21 | B142: 16349 | C142: 22 | D142: 16353 | E142: 24 | F142: 16357 | K142: 0 | L142: 222
A143: 21 | B143: 16545 | C143: 22 | D143: 16550 | E143: 24 | F143: 16555 | K143: 0 | L143: 222
A144: 12 | B144: 16650 | C144: 24 | D144: 16660 | E144: 24 | F144: 16666 | K144: 0 | L144: 122
A145: 21 | B145: 16832 | C145: 22 | D145: 16837 | E145: 24 | F145: 16843 | K145: 0 | L145: 222
A146: 21 | B146: 16945 | C146: 22 | D146: 16948 | E146: 24 | F146: 16953 | K146: 0 | L146: 222
A147: 21 | B147: 17051 | C147: 22 | D147: 17067 | E147: 24 | F147: 17072 | K147: 0 | L147: 222
A148: 12 | B148: 17169 | C148: 24 | D148: 17179 | E148: 24 | F148: 17188 | K148: 0 | L148: 122
A149: 12 | B149: 17282 | C149: 24 | D149: 17294 | E149: 24 | F149: 17314 | K149: 0 | L149: 122
A150: 12 | B150: 17412 | C150: 24 | D150: 17420 | E150: 24 | F150: 17423 | K150: 0 | L150: 122
A151: 21 | B151: 17526 | C151: 22 | D151: 17529 | E151: 24 | F151: 17532 | K151: 0 | L151: 222
A152: 21 | B152: 17630 | C152: 22 | D152: 17634 | E152: 24 | F152: 17639 | K152: 0 | L152: 222
A153: 21 | B153: 17744 | C153: 22 | D153: 17754 | E153: 24 | F153: 17759 | K153: 0 | L153: 222
A154: 21 | B154: 17860 | C154: 22 | D154: 17862 | E154: 24 | F154: 17864 | K154: 0 | L154: 222
A155: 12 | B155: 17956 | C155: 24 | D155: 17967 | E155: 24 | F155: 17970 | K155: 0 | L155: 122
A156: 12 | B156: 18068 | C156: 13 | D156: 18071 | E156: 24 | F156: 18078 | K156: 0 | L156: 112
A157: 12 | B157: 18173 | C157: 24 | D157: 18187 | E157: 24 | F157: 18191 | K157: 0 | L157: 122
A158: 12 | B158: 18289 | C158: 24 | D158: 18298 | E158: 24 | F158: 18302 | K158: 0 | L158: 122
A159: 21 | B159: 18401 | C159: 22 | D159: 18414 | E159: 24 | F159: 18419 | K159: 0 | L159: 222
A160: 21 | B160: 18530 | C160: 22 | D160: 18540 | E160: 24 | F160: 18545 | K160: 0 | L160: 222
A161: 21 | B161: 18649 | C161: 22 | D161: 18653 | E161: 24 | F161: 18658 | K161: 0 | L161: 222
A162: 21 | B162: 18757 | C162: 22 | D162: 18763 | E162: 24 | F162: 18768 | K162: 0 | L162: 222
A163: 21 | B163: 18864 | C163: 22 | D163: 18867 | E163: 24 | F163: 18871 | K163: 0 | L163: 222
A164: 12 | B164: 18967 | C164: 24 | D164: 18976 | E164: 24 | F164: 18979 | K164: 0 | L164: 122
A165: 12 | B165: 19077 | C165: 24 | D165: 19090 | E165: 24 | F165: 19093 | K165: 0 | L165: 122
A166: 21 | B166: 19202 | C166: 22 | D166: 19205 | E166: 24 | F166: 19223 | K166: 0 | L166: 222
A167: 12 | B167: 19318 | C167: 24 | D167: 19327 | E167: 24 | F167: 19331 | K167: 0 | L167: 122
A168: 21 | B168: 19429 | C168: 22 | D168: 19434 | E168: 24 | F168: 19439 | K168: 0 | L168: 222
A169: 21 | B169: 19548 | C169: 22 | D169: 19552 | E169: 24 | F169: 19561 | K169: 0 | L169: 222
A170: 12 | B170: 19657 | C170: 24 | D170: 19666 | E170: 24 | F170: 19670 | K170: 0 | L170: 122
A171: 12 | B171: 19767 | C171: 24 | D171: 19778 | E171: 24 | F171: 19781 | K171: 0 | L171: 122
A172: 12 | B172: 19876 | C172: 24 | D172: 19886 | E172: 24 | F172: 19890 | K172: 0 | L172: 122
A173: 21 | B173: 19992 | C173: 22 | D173: 19997 | E173: 24 | F173: 20002 | K173: 0 | L173: 222
A174: 12 | B174: 20094 | C174: 24 | D174: 20107 | E174: 24 | F174: 20109 | K174: 0 | L174: 122
A175: 12 | B175: 20204 | C175: 24 | D175: 20215 | E175: 24 | F175: 20218 | K175: 0 | L175: 122
A176: 12 | B176: 20310 | C176: 24 | D176: 20322 | E176: 24 | F176: 20327 | K176: 0 | L176: 122
A177: 21 | B177: 20437 | C177: 22 | D177: 20441 | E177: 24 | F177: 20447 | K177: 0 | L177: 222
A178: 21 | B178: 20550 | C178: 22 | D178: 20553 | E178: 24 | F178: 20558 | K178: 0 | L178: 222
A179: 21 | B179: 20662 | C179: 22 | D179: 20668 | E179: 24 | F179: 20673 | K179: 0 | L179: 222
A180: 21 | B180: 20798 | C180: 22 | D180: 20802 | E180: 24 | F180: 20806 | K180: 0 | L180: 222
A181: 12 | B181: 20902 | C181: 24 | D181: 20913 | E181: 24 | F181: 20917 | K181: 0 | L181: 122
A182: 12 | B182: 21008 | C182: 24 | D182: 21018 | E182: 24 | F182: 21022 | K182: 0 | L182: 122
A183: 21 | B183: 21136 | C183: 22 | D183: 21140 | E183: 24 | F183: 21145 | K183: 0 | L183: 222
A184: 21 | B184: 21255 | C184: 22 | D184: 21259 | E184: 24 | F184: 21265 | K184: 0 | L184: 222
A185: 12 | B185: 21362 | C185: 24 | D185: 21373 | E185: 24 | F185: 21377 | K185: 0 | L185: 122
A186: 12 | B186: 21474 | C186: 24 | D186: 21485 | E186: 24 | F186: 21489 | K186: 0 | L186: 122
A187: 12 | B187: 21587 | C187: 24 | D187: 21595 | E187: 24 | F187: 21600 | K187: 0 | L187: 122
A188: 12 | B188: 21695 | C188: 24 | D188: 21712 | E188: 24 | F188: 21717 | K188: 0 | L188: 122
A189: 12 | B189: 21815 | C189: 24 | D189: 21825 | E189: 24 | F189: 21828 | K189: 0 | L189: 122
A190: 12 | B190: 21926 | C190: 24 | D190: 21938 | E190: 24 | F190: 21941 | K190: 0 | L190: 122
A191: 12 | B191: 22054 | C191: 24 | D191: 22064 | E191: 24 | F191: 22067 | K191: 0 | L191: 122
A192: 21 | B192: 22278 | C192: 22 | D192: 22282 | E192: 24 | F192: 22328 | K192: 0 | L192: 222
A193: 21 | B193: 22435 | C193: 22 | D193: 22439 | E193: 24 | F193: 22443 | K193: 0 | L193: 222
A194: 21 | B194: 22543 | C194: 22 | D194: 22545 | E194: 24 | F194: 22549 | K194: 0 | L194: 222
A195: 21 | B195: 22681 | C195: 22 | D195: 22684 | E195: 24 | F195: 22693 | K195: 0 | L195: 222
A196: 12 | B196: 22787 | C196: 24 | D196: 22801 | E196: 24 | F196: 22804 | K196: 0 | L196: 122
A197: 21 | B197: 22954 | C197: 22 | D197: 22961 | E197: 24 | F197: 22965 | K197: 0 | L197: 222
A198: 21 | B198: 23083 | C198: 22 | D198: 23087 | E198: 24 | F198: 23096 | K198: 0 | L198: 222
A199: 12 | B199: 23189 | C199: 24 | D199: 23201 | E199: 24 | F199: 23209 | K199: 0 | L199: 122
A200: 21 | B200: 23400 | C200: 22 | D200: 23408 | E200: 24 | F200: 23412 | K200: 0 | L200: 222
... 5 more rows

Sheet !L905A4T.ayl
A1: Report for:!L905A4T.ayl
A2: Date: | B2: <date>
A3: Hen: | B3: <hen> | F3: Correct Sequence | G3: =Start!J2 -> 211 | P3: Total Sequences in Data | Q3: =4994-COUNTBLANK(L7:L5000) -> 208 | V3: Total Sequences in Block Data | W3: =COUNTA(L7:L41) -> 35 | AA3: Total Sequences in Block Data | AB3: =COUNTA(L42:L75) -> 34 | AF3: Total Sequences in Block Data | AG3: =COUNTA(L76:L110) -> 35 | AK3: Total Sequences in Block Data | AL3: =COUNTA(L111:L145) -> 35 | AP3: Total Sequences in Block Data | AQ3: =COUNTA(L146:L179) -> 34 | AU3: Total Sequences in Block Data | AV3: =COUNTA(L180:L214) -> 35
P4: Total Sequences in Summary | Q4: =SUM(O7:O14) -> 208 | V4: Total Sequences in Block Summary | W4: =SUM(U7:U14) -> 35 | AA4: Total Sequences in Block Summary | AB4: =SUM(Z7:Z14) -> 34 | AF4: Total Sequences in Block Summary | AG4: =SUM(AE7:AE14) -> 35 | AK4: Total Sequences in Block Summary | AL4: =SUM(AJ7:AJ14) -> 35 | AP4: Total Sequences in Block Summary | AQ4: =SUM(AO7:AO14) -> 34 | AU4: Total Sequences in Block Summary | AV4: =SUM(AT7:AT14) -> 35
T5: Block 1 | Y5: Block 2 | AD5: Block 3 | AI5: Block 4 | AN5: Block 5 | AS5: Block 6
A6: Sequence Component 1 | B6: Time 1 | C6: Sequence Component 2 | D6: Time 2 | E6: Sequence Component 3 | F6: Time 3 | G6: Sequence Component 4 | H6: Time 4 | I6: Sequence Component 5 | J6: Time 5 | K6: Correct? 0=No 1=Yes | L6: Sequence | N6: Frequency | P6: Relative Frequency | Q6: Variability | T6: Frequency | V6: Relative Frequency | W6: Variability | Y6: Frequency | AA6: Relative Frequency | AB6: Variability | AD6: Frequency | AF6: Relative Frequency | AG6: Variability | AI6: Frequency | AK6: Relative Frequency | AL6: Variability | AN6: Frequency | AP6: Relative Frequency | AQ6: Variability | AS6: Frequency | AU6: Relative Frequency | AV6: Variability
A7: 21 | B7: 35 | C7: 22 | D7: 45 | E7: 24 | F7: 49 | K7: 0 | L7: 222 | N7: 111 | O7: =COUNTIF($L$7:$L$500,N7) -> 0 | P7: =O7/$Q$4 -> 0 | Q7: =IF(P7=0,0,(P7*((LOG(P7))/LOG(2)))) -> 0 | T7: =N7 -> 111 | U7: =COUNTIF(L7:L41,T7) -> 0 | V7: =U7/(W4-U11) -> 0 | W7: =IF(V7=0,0,(V7*((LOG(V7))/LOG(2)))) -> 0 | Y7: =N7 -> 111 | Z7: =COUNTIF(L42:L75,Y7) -> 0 | AA7: =Z7/(AB4-Z11) -> 0 | AB7: =IF(AA7=0,0,(AA7*((LOG(AA7))/LOG(2)))) -> 0 | AD7: =N7 -> 111 | AE7: =COUNTIF(L76:L110,AD7) -> 0 | AF7: =AE7/(AG4-AE11) -> 0 | AG7: =IF(AF7=0,0,(AF7*((LOG(AF7))/LOG(2)))) -> 0 | AI7: =N7 -> 111 | AJ7: =COUNTIF(L111:L145,AI7) -> 0 | AK7: =AJ7/(AL4-AJ11) -> 0 | AL7: =IF(AK7=0,0,(AK7*((LOG(AK7))/LOG(2)))) -> 0 | AN7: =N7 -> 111 | AO7: =COUNTIF(L146:L179,AN7) -> 0 | AP7: =AO7/(AQ4-AO11) -> 0 | AQ7: =IF(AP7=0,0,(AP7*((LOG(AP7))/LOG(2)))) -> 0 | AS7: =N7 -> 111 | AT7: =COUNTIF(L180:L214,AS7) -> 0 | AU7: =AT7/(AV4-AT11) -> 0 | AV7: =IF(AU7=0,0,(AU7*((LOG(AU7))/LOG(2)))) -> 0
A8: 21 | B8: 161 | C8: 22 | D8: 166 | E8: 24 | F8: 171 | K8: 0 | L8: 222 | N8: 112 | O8: =COUNTIF($L$7:$L$500,N8) -> 5 | P8: =O8/$Q$4 -> 0.02403846154 | Q8: =IF(P8=0,0,(P8*((LOG(P8))/LOG(2)))) -> -0.1292911448 | T8: =N8 -> 112 | U8: =COUNTIF(L7:L41,T8) -> 1 | V8: =U8/(W4-U11) -> 0.02857142857 | W8: =IF(V8=0,0,(V8*((LOG(V8))/LOG(2)))) -> -0.1465509433 | Y8: =N8 -> 112 | Z8: =COUNTIF(L42:L75,Y8) -> 1 | AA8: =Z8/(AB4-Z11) -> 0.02941176471 | AB8: =IF(AA8=0,0,(AA8*((LOG(AA8))/LOG(2)))) -> -0.14963126 | AD8: =N8 -> 112 | AE8: =COUNTIF(L76:L110,AD8) -> 0 | AF8: =AE8/(AG4-AE11) -> 0 | AG8: =IF(AF8=0,0,(AF8*((LOG(AF8))/LOG(2)))) -> 0 | AI8: =N8 -> 112 | AJ8: =COUNTIF(L111:L145,AI8) -> 0 | AK8: =AJ8/(AL4-AJ11) -> 0 | AL8: =IF(AK8=0,0,(AK8*((LOG(AK8))/LOG(2)))) -> 0 | AN8: =N8 -> 112 | AO8: =COUNTIF(L146:L179,AN8) -> 2 | AP8: =AO8/(AQ4-AO11) -> 0.05882352941 | AQ8: =IF(AP8=0,0,(AP8*((LOG(AP8))/LOG(2)))) -> -0.2404389907 | AS8: =N8 -> 112 | AT8: =COUNTIF(L180:L214,AS8) -> 1 | AU8: =AT8/(AV4-AT11) -> 0.02857142857 | AV8: =IF(AU8=0,0,(AU8*((LOG(AU8))/LOG(2)))) -> -0.1465509433
A9: 21 | B9: 277 | C9: 22 | D9: 281 | E9: 24 | F9: 286 | K9: 0 | L9: 222 | N9: 121 | O9: =COUNTIF($L$7:$L$500,N9) -> 0 | P9: =O9/$Q$4 -> 0 | Q9: =IF(P9=0,0,(P9*((LOG(P9))/LOG(2)))) -> 0 | T9: =N9 -> 121 | U9: =COUNTIF(L7:L41,T9) -> 0 | V9: =U9/(W4-U11) -> 0 | W9: =IF(V9=0,0,(V9*((LOG(V9))/LOG(2)))) -> 0 | Y9: =N9 -> 121 | Z9: =COUNTIF(L42:L75,Y9) -> 0 | AA9: =Z9/(AB4-Z11) -> 0 | AB9: =IF(AA9=0,0,(AA9*((LOG(AA9))/LOG(2)))) -> 0 | AD9: =N9 -> 121 | AE9: =COUNTIF(L76:L110,AD9) -> 0 | AF9: =AE9/(AG4-AE11) -> 0 | AG9: =IF(AF9=0,0,(AF9*((LOG(AF9))/LOG(2)))) -> 0 | AI9: =N9 -> 121 | AJ9: =COUNTIF(L111:L145,AI9) -> 0 | AK9: =AJ9/(AL4-AJ11) -> 0 | AL9: =IF(AK9=0,0,(AK9*((LOG(AK9))/LOG(2)))) -> 0 | AN9: =N9 -> 121 | AO9: =COUNTIF(L146:L179,AN9) -> 0 | AP9: =AO9/(AQ4-AO11) -> 0 | AQ9: =IF(AP9=0,0,(AP9*((LOG(AP9))/LOG(2)))) -> 0 | AS9: =N9 -> 121 | AT9: =COUNTIF(L180:L214,AS9) -> 0 | AU9: =AT9/(AV4-AT11) -> 0 | AV9: =IF(AU9=0,0,(AU9*((LOG(AU9))/LOG(2)))) -> 0
A10: 12 | B10: 382 | C10: 24 | D10: 394 | E10: 24 | F10: 399 | K10: 0 | L10: 122 | N10: 122 | O10: =COUNTIF($L$7:$L$500,N10) -> 112 | P10: =O10/$Q$4 -> 0.5384615385 | Q10: =IF(P10=0,0,(P10*((LOG(P10))/LOG(2)))) -> -0.4808918133 | T10: =N10 -> 122 | U10: =COUNTIF(L7:L41,T10) -> 13 | V10: =U10/(W4-U11) -> 0.3714285714 | W10: =IF(V10=0,0,(V10*((LOG(V10))/LOG(2)))) -> -0.5307132253 | Y10: =N10 -> 122 | Z10: =COUNTIF(L42:L75,Y10) -> 23 | AA10: =Z10/(AB4-Z11) -> 0.6764705882 | AB10: =IF(AA10=0,0,(AA10*((LOG(AA10))/LOG(2)))) -> -0.3814623635 | AD10: =N10 -> 122 | AE10: =COUNTIF(L76:L110,AD10) -> 23 | AF10: =AE10/(AG4-AE11) -> 0.6571428571 | AG10: =IF(AF10=0,0,(AF10*((LOG(AF10))/LOG(2)))) -> -0.3980452686 | AI10: =N10 -> 122 | AJ10: =COUNTIF(L111:L145,AI10) -> 23 | AK10: =AJ10/(AL4-AJ11) -> 0.6571428571 | AL10: =IF(AK10=0,0,(AK10*((LOG(AK10))/LOG(2)))) -> -0.3980452686 | AN10: =N10 -> 122 | AO10: =COUNTIF(L146:L179,AN10) -> 15 | AP10: =AO10/(AQ4-AO11) -> 0.4411764706 | AQ10: =IF(AP10=0,0,(AP10*((LOG(AP10))/LOG(2)))) -> -0.5208406966 | AS10: =N10 -> 122 | AT10: =COUNTIF(L180:L214,AS10) -> 15 | AU10: =AT10/(AV4-AT11) -> 0.4285714286 | AV10: =IF(AU10=0,0,(AU10*((LOG(AU10))/LOG(2)))) -> -0.5238824663
A11: 12 | B11: 497 | C11: 24 | D11: 509 | E11: 24 | F11: 513 | K11: 0 | L11: 122 | N11: 211 | O11: =COUNTIF($L$7:$L$500,N11) -> 0 | P11: =O11/$Q$4 -> 0 | Q11: =IF(P11=0,0,(P11*((LOG(P11))/LOG(2)))) -> 0 | T11: =N11 -> 211 | U11: =COUNTIF(L7:L41,T11) -> 0 | Y11: =N11 -> 211 | Z11: =COUNTIF(L42:L75,Y11) -> 0 | AD11: =N11 -> 211 | AE11: =COUNTIF(L76:L110,AD11) -> 0 | AI11: =N11 -> 211 | AJ11: =COUNTIF(L111:L145,AI11) -> 0 | AN11: =N11 -> 211 | AO11: =COUNTIF(L146:L179,AN11) -> 0 | AS11: =N11 -> 211 | AT11: =COUNTIF(L180:L214,AS11) -> 0
A12: 21 | B12: 616 | C12: 22 | D12: 621 | E12: 24 | F12: 626 | K12: 0 | L12: 222 | N12: 212 | O12: =COUNTIF($L$7:$L$500,N12) -> 0 | P12: =O12/$Q$4 -> 0 | Q12: =IF(P12=0,0,(P12*((LOG(P12))/LOG(2)))) -> 0 | T12: =N12 -> 212 | U12: =COUNTIF(L7:L41,T12) -> 0 | V12: =U12/(W4-U11) -> 0 | W12: =IF(V12=0,0,(V12*((LOG(V12))/LOG(2)))) -> 0 | Y12: =N12 -> 212 | Z12: =COUNTIF(L42:L75,Y12) -> 0 | AA12: =Z12/(AB4-Z11) -> 0 | AB12: =IF(AA12=0,0,(AA12*((LOG(AA12))/LOG(2)))) -> 0 | AD12: =N12 -> 212 | AE12: =COUNTIF(L76:L110,AD12) -> 0 | AF12: =AE12/(AG4-AE11) -> 0 | AG12: =IF(AF12=0,0,(AF12*((LOG(AF12))/LOG(2)))) -> 0 | AI12: =N12 -> 212 | AJ12: =COUNTIF(L111:L145,AI12) -> 0 | AK12: =AJ12/(AL4-AJ11) -> 0 | AL12: =IF(AK12=0,0,(AK12*((LOG(AK12))/LOG(2)))) -> 0 | AN12: =N12 -> 212 | AO12: =COUNTIF(L146:L179,AN12) -> 0 | AP12: =AO12/(AQ4-AO11) -> 0 | AQ12: =IF(AP12=0,0,(AP12*((LOG(AP12))/LOG(2)))) -> 0 | AS12: =N12 -> 212 | AT12: =COUNTIF(L180:L214,AS12) -> 0 | AU12: =AT12/(AV4-AT11) -> 0 | AV12: =IF(AU12=0,0,(AU12*((LOG(AU12))/LOG(2)))) -> 0
A13: 12 | B13: 725 | C13: 24 | D13: 735 | E13: 24 | F13: 739 | K13: 0 | L13: 122 | N13: 221 | O13: =COUNTIF($L$7:$L$500,N13) -> 0 | P13: =O13/$Q$4 -> 0 | Q13: =IF(P13=0,0,(P13*((LOG(P13))/LOG(2)))) -> 0 | T13: =N13 -> 221 | U13: =COUNTIF(L7:L41,T13) -> 0 | V13: =U13/(W4-U11) -> 0 | W13: =IF(V13=0,0,(V13*((LOG(V13))/LOG(2)))) -> 0 | Y13: =N13 -> 221 | Z13: =COUNTIF(L42:L75,Y13) -> 0 | AA13: =Z13/(AB4-Z11) -> 0 | AB13: =IF(AA13=0,0,(AA13*((LOG(AA13))/LOG(2)))) -> 0 | AD13: =N13 -> 221 | AE13: =COUNTIF(L76:L110,AD13) -> 0 | AF13: =AE13/(AG4-AE11) -> 0 | AG13: =IF(AF13=0,0,(AF13*((LOG(AF13))/LOG(2)))) -> 0 | AI13: =N13 -> 221 | AJ13: =COUNTIF(L111:L145,AI13) -> 0 | AK13: =AJ13/(AL4-AJ11) -> 0 | AL13: =IF(AK13=0,0,(AK13*((LOG(AK13))/LOG(2)))) -> 0 | AN13: =N13 -> 221 | AO13: =COUNTIF(L146:L179,AN13) -> 0 | AP13: =AO13/(AQ4-AO11) -> 0 | AQ13: =IF(AP13=0,0,(AP13*((LOG(AP13))/LOG(2)))) -> 0 | AS13: =N13 -> 221 | AT13: =COUNTIF(L180:L214,AS13) -> 0 | AU13: =AT13/(AV4-AT11) -> 0 | AV13: =IF(AU13=0,0,(AU13*((LOG(AU13))/LOG(2)))) -> 0
A14: 21 | B14: 858 | C14: 22 | D14: 873 | E14: 24 | F14: 878 | K14: 0 | L14: 222 | N14: 222 | O14: =COUNTIF($L$7:$L$500,N14) -> 91 | P14: =O14/$Q$4 -> 0.4375 | Q14: =IF(P14=0,0,(P14*((LOG(P14))/LOG(2)))) -> -0.5217822216 | T14: =N14 -> 222 | U14: =COUNTIF(L7:L41,T14) -> 21 | V14: =U14/(W4-U11) -> 0.6 | W14: =IF(V14=0,0,(V14*((LOG(V14))/LOG(2)))) -> -0.4421793565 | Y14: =N14 -> 222 | Z14: =COUNTIF(L42:L75,Y14) -> 10 | AA14: =Z14/(AB4-Z11) -> 0.2941176471 | AB14: =IF(AA14=0,0,(AA14*((LOG(AA14))/LOG(2)))) -> -0.5192749254 | AD14: =N14 -> 222 | AE14: =COUNTIF(L76:L110,AD14) -> 12 | AF14: =AE14/(AG4-AE11) -> 0.3428571429 | AG14: =IF(AF14=0,0,(AF14*((LOG(AF14))/LOG(2)))) -> -0.5294813198 | AI14: =N14 -> 222 | AJ14: =COUNTIF(L111:L145,AI14) -> 12 | AK14: =AJ14/(AL4-AJ11) -> 0.3428571429 | AL14: =IF(AK14=0,0,(AK14*((LOG(AK14))/LOG(2)))) -> -0.5294813198 | AN14: =N14 -> 222 | AO14: =COUNTIF(L146:L179,AN14) -> 17 | AP14: =AO14/(AQ4-AO11) -> 0.5 | AQ14: =IF(AP14=0,0,(AP14*((LOG(AP14))/LOG(2)))) -> -0.5 | AS14: =N14 -> 222 | AT14: =COUNTIF(L180:L214,AS14) -> 19 | AU14: =AT14/(AV4-AT11) -> 0.5428571429 | AV14: =IF(AU14=0,0,(AU14*((LOG(AU14))/LOG(2)))) -> -0.4784501305
A15: 21 | B15: 986 | C15: 22 | D15: 991 | E15: 24 | F15: 995 | K15: 0 | L15: 222 | P15: =SUM(P7:P14) -> 1 | Q15: =-SUM(Q7:Q14) -> 1.13196518 | V15: =SUM(V7:V14) -> 1 | W15: =-SUM(W7:W14) -> 1.119443525 | AA15: =SUM(AA7:AA14) -> 1 | AB15: =-SUM(AB7:AB14) -> 1.050368549 | AF15: =SUM(AF7:AF14) -> 1 | AG15: =-SUM(AG7:AG14) -> 0.9275265884 | AK15: =SUM(AK7:AK14) -> 1 | AL15: =-SUM(AL7:AL14) -> 0.9275265884 | AP15: =SUM(AP7:AP14) -> 1 | AQ15: =-SUM(AQ7:AQ14) -> 1.261279687 | AU15: =SUM(AU7:AU14) -> 1 | AV15: =-SUM(AV7:AV14) -> 1.14888354
A16: 12 | B16: 1093 | C16: 24 | D16: 1105 | E16: 24 | F16: 1109 | K16: 0 | L16: 122 | P16: U= | Q16: =Q15/(LOG(Q4)/LOG(2)) -> 0.1470000703 | V16: U1= | W16: =W15/(LOG(W4)/LOG(2)) -> 0.2182456147 | AA16: U2= | AB16: =AB15/(LOG(AB4)/LOG(2)) -> 0.2064621564 | AF16: U3= | AG16: =AG15/(LOG(AG4)/LOG(2)) -> 0.1808296765 | AK16: U4= | AL16: =AL15/(LOG(AL4)/LOG(2)) -> 0.1808296765 | AP16: U5= | AQ16: =AQ15/(LOG(AQ4)/LOG(2)) -> 0.247919194 | AU16: U6= | AV16: =AV15/(LOG(AV4)/LOG(2)) -> 0.2239852112
A17: 21 | B17: 1248 | C17: 22 | D17: 1253 | E17: 24 | F17: 1263 | K17: 0 | L17: 222
A18: 12 | B18: 1359 | C18: 24 | D18: 1372 | E18: 24 | F18: 1375 | K18: 0 | L18: 122
A19: 12 | B19: 1470 | C19: 24 | D19: 1481 | E19: 24 | F19: 1485 | K19: 0 | L19: 122 | N19: Total Target Seq
A20: 21 | B20: 1596 | C20: 22 | D20: 1604 | E20: 24 | F20: 1612 | K20: 0 | L20: 222 | N20: =COUNTIF(L7:L214,G3) -> 0 | P20: 35 | Q20: 34 | R20: 35 | S20: 35 | T20: 34 | U20: 35
A21: 21 | B21: 1720 | C21: 22 | D21: 1724 | E21: 24 | F21: 1729 | K21: 0 | L21: 222 | P21: % of reinforcement given in 6 equal intervals based on number of trials
A22: 21 | B22: 1839 | C22: 22 | D22: 1841 | E22: 24 | F22: 1844 | K22: 0 | L22: 222 | P22: %_1 | Q22: %_2 | R22: %_3 | S22: %_4 | T22: %_5 | U22: %_6
A23: 12 | B23: 1941 | C23: 13 | D23: 1943 | E23: 24 | F23: 1956 | K23: 0 | L23: 112 | O23: target sequence | P23: =$G$3 -> 211 | Q23: =$G$3 -> 211 | R23: =$G$3 -> 211 | S23: =$G$3 -> 211 | T23: =$G$3 -> 211 | U23: =$G$3 -> 211
A24: 21 | B24: 2063 | C24: 22 | D24: 2068 | E24: 24 | F24: 2072 | K24: 0 | L24: 222 | O24: total reinforcement | P24: =U11 -> 0 | Q24: =Z11 -> 0 | R24: =AE11 -> 0 | S24: =AJ11 -> 0 | T24: =AO11 -> 0 | U24: =AT11 -> 0
A25: 21 | B25: 2173 | C25: 22 | D25: 2180 | E25: 24 | F25: 2185 | K25: 0 | L25: 222 | O25: % target
A26: 21 | B26: 2297 | C26: 22 | D26: 2302 | E26: 24 | F26: 2315 | K26: 0 | L26: 222 | O26: CCRF
A27: 12 | B27: 2411 | C27: 24 | D27: 2428 | E27: 24 | F27: 2433 | K27: 0 | L27: 122 | O27: % CCRf
A28: 12 | B28: 2532 | C28: 24 | D28: 2545 | E28: 24 | F28: 2549 | K28: 0 | L28: 122 | O28: average response rate | P28: =F41/P20 -> 116.6285714 | Q28: =(F75-F41)/Q20 -> 112.9117647 | R28: =(F110-F75)/R20 -> 111.3428571 | S28: =(F145-F110)/S20 -> 116.2285714 | T28: =(F179-F145)/T20 -> 116.2058824 | U28: =(F214-F179)/U20 -> 116.8857143
A29: 21 | B29: 2656 | C29: 22 | D29: 2661 | E29: 24 | F29: 2663 | K29: 0 | L29: 222
A30: 12 | B30: 2761 | C30: 24 | D30: 2773 | E30: 24 | F30: 2777 | K30: 0 | L30: 122
A31: 21 | B31: 2888 | C31: 22 | D31: 2898 | E31: 24 | F31: 2903 | K31: 0 | L31: 222
A32: 21 | B32: 3006 | C32: 22 | D32: 3008 | E32: 24 | F32: 3017 | K32: 0 | L32: 222
A33: 21 | B33: 3119 | C33: 22 | D33: 3121 | E33: 24 | F33: 3123 | K33: 0 | L33: 222
A34: 21 | B34: 3228 | C34: 22 | D34: 3231 | E34: 24 | F34: 3235 | K34: 0 | L34: 222
A35: 21 | B35: 3371 | C35: 22 | D35: 3374 | E35: 24 | F35: 3383 | K35: 0 | L35: 222
A36: 12 | B36: 3479 | C36: 24 | D36: 3489 | E36: 24 | F36: 3492 | K36: 0 | L36: 122
A37: 12 | B37: 3587 | C37: 24 | D37: 3599 | E37: 24 | F37: 3603 | K37: 0 | L37: 122
A38: 12 | B38: 3700 | C38: 24 | D38: 3711 | E38: 24 | F38: 3715 | K38: 0 | L38: 122
A39: 21 | B39: 3826 | C39: 22 | D39: 3828 | E39: 24 | F39: 3830 | K39: 0 | L39: 222
A40: 12 | B40: 3926 | C40: 24 | D40: 3937 | E40: 24 | F40: 3941 | K40: 0 | L40: 122
A41: 21 | B41: 4074 | C41: 22 | D41: 4077 | E41: 24 | F41: 4082 | K41: 0 | L41: 222
A42: 12 | B42: 4179 | C42: 24 | D42: 4194 | E42: 24 | F42: 4198 | K42: 0 | L42: 122
A43: 12 | B43: 4314 | C43: 24 | D43: 4326 | E43: 24 | F43: 4331 | K43: 0 | L43: 122
A44: 21 | B44: 4431 | C44: 22 | D44: 4435 | E44: 24 | F44: 4439 | K44: 0 | L44: 222
A45: 12 | B45: 4535 | C45: 24 | D45: 4549 | E45: 24 | F45: 4555 | K45: 0 | L45: 122
A46: 12 | B46: 4651 | C46: 24 | D46: 4659 | E46: 24 | F46: 4661 | K46: 0 | L46: 122
A47: 21 | B47: 4766 | C47: 22 | D47: 4769 | E47: 24 | F47: 4772 | K47: 0 | L47: 222
A48: 21 | B48: 4877 | C48: 22 | D48: 4881 | E48: 24 | F48: 4885 | K48: 0 | L48: 222
A49: 12 | B49: 4979 | C49: 24 | D49: 4988 | E49: 24 | F49: 4991 | K49: 0 | L49: 122
A50: 12 | B50: 5090 | C50: 24 | D50: 5099 | E50: 24 | F50: 5107 | K50: 0 | L50: 122
A51: 12 | B51: 5203 | C51: 24 | D51: 5214 | E51: 24 | F51: 5218 | K51: 0 | L51: 122
A52: 21 | B52: 5321 | C52: 22 | D52: 5325 | E52: 24 | F52: 5330 | K52: 0 | L52: 222
A53: 21 | B53: 5449 | C53: 22 | D53: 5454 | E53: 24 | F53: 5458 | K53: 0 | L53: 222
A54: 12 | B54: 5553 | C54: 24 | D54: 5562 | E54: 24 | F54: 5565 | K54: 0 | L54: 122
A55: 12 | B55: 5660 | C55: 24 | D55: 5670 | E55: 24 | F55: 5675 | K55: 0 | L55: 122
A56: 21 | B56: 5781 | C56: 22 | D56: 5784 | E56: 24 | F56: 5798 | K56: 0 | L56: 222
A57: 12 | B57: 5896 | C57: 24 | D57: 5907 | E57: 24 | F57: 5911 | K57: 0 | L57: 122
A58: 12 | B58: 6005 | C58: 24 | D58: 6017 | E58: 24 | F58: 6020 | K58: 0 | L58: 122
A59: 12 | B59: 6114 | C59: 13 | D59: 6116 | E59: 24 | F59: 6125 | K59: 0 | L59: 112
A60: 12 | B60: 6230 | C60: 24 | D60: 6239 | E60: 24 | F60: 6243 | K60: 0 | L60: 122
A61: 12 | B61: 6339 | C61: 24 | D61: 6349 | E61: 24 | F61: 6353 | K61: 0 | L61: 122
A62: 12 | B62: 6448 | C62: 24 | D62: 6458 | E62: 24 | F62: 6462 | K62: 0 | L62: 122
A63: 12 | B63: 6558 | C63: 24 | D63: 6568 | E63: 24 | F63: 6571 | K63: 0 | L63: 122
A64: 12 | B64: 6667 | C64: 24 | D64: 6675 | E64: 24 | F64: 6678 | K64: 0 | L64: 122
A65: 21 | B65: 6782 | C65: 22 | D65: 6785 | E65: 24 | F65: 6789 | K65: 0 | L65: 222
A66: 21 | B66: 6910 | C66: 22 | D66: 6914 | E66: 24 | F66: 6919 | K66: 0 | L66: 222
A67: 12 | B67: 7014 | C67: 24 | D67: 7023 | E67: 24 | F67: 7036 | K67: 0 | L67: 122
A68: 12 | B68: 7134 | C68: 24 | D68: 7144 | E68: 24 | F68: 7147 | K68: 0 | L68: 122
A69: 12 | B69: 7241 | C69: 24 | D69: 7250 | E69: 24 | F69: 7253 | K69: 0 | L69: 122
A70: 12 | B70: 7347 | C70: 24 | D70: 7357 | E70: 24 | F70: 7362 | K70: 0 | L70: 122
A71: 21 | B71: 7463 | C71: 22 | D71: 7467 | E71: 24 | F71: 7470 | K71: 0 | L71: 222
A72: 12 | B72: 7567 | C72: 24 | D72: 7576 | E72: 24 | F72: 7579 | K72: 0 | L72: 122
A73: 21 | B73: 7686 | C73: 22 | D73: 7691 | E73: 24 | F73: 7696 | K73: 0 | L73: 222
A74: 12 | B74: 7797 | C74: 24 | D74: 7805 | E74: 24 | F74: 7809 | K74: 0 | L74: 122
A75: 12 | B75: 7908 | C75: 24 | D75: 7917 | E75: 24 | F75: 7921 | K75: 0 | L75: 122
A76: 12 | B76: 8017 | C76: 24 | D76: 8031 | E76: 24 | F76: 8038 | K76: 0 | L76: 122
A77: 12 | B77: 8136 | C77: 24 | D77: 8145 | E77: 24 | F77: 8148 | K77: 0 | L77: 122
A78: 12 | B78: 8244 | C78: 24 | D78: 8255 | E78: 24 | F78: 8260 | K78: 0 | L78: 122
A79: 21 | B79: 8366 | C79: 22 | D79: 8370 | E79: 24 | F79: 8373 | K79: 0 | L79: 222
A80: 12 | B80: 8469 | C80: 24 | D80: 8478 | E80: 24 | F80: 8485 | K80: 0 | L80: 122
A81: 12 | B81: 8582 | C81: 24 | D81: 8591 | E81: 24 | F81: 8596 | K81: 0 | L81: 122
A82: 21 | B82: 8694 | C82: 22 | D82: 8699 | E82: 24 | F82: 8706 | K82: 0 | L82: 222
A83: 21 | B83: 8809 | C83: 22 | D83: 8813 | E83: 24 | F83: 8822 | K83: 0 | L83: 222
A84: 21 | B84: 8927 | C84: 22 | D84: 8931 | E84: 24 | F84: 8936 | K84: 0 | L84: 222
A85: 21 | B85: 9035 | C85: 22 | D85: 9039 | E85: 24 | F85: 9047 | K85: 0 | L85: 222
A86: 12 | B86: 9142 | C86: 24 | D86: 9152 | E86: 24 | F86: 9155 | K86: 0 | L86: 122
A87: 21 | B87: 9258 | C87: 22 | D87: 9261 | E87: 24 | F87: 9267 | K87: 0 | L87: 222
A88: 21 | B88: 9371 | C88: 22 | D88: 9376 | E88: 24 | F88: 9385 | K88: 0 | L88: 222
A89: 12 | B89: 9481 | C89: 24 | D89: 9491 | E89: 24 | F89: 9494 | K89: 0 | L89: 122
A90: 12 | B90: 9591 | C90: 24 | D90: 9600 | E90: 24 | F90: 9604 | K90: 0 | L90: 122
A91: 21 | B91: 9707 | C91: 22 | D91: 9712 | E91: 24 | F91: 9717 | K91: 0 | L91: 222
A92: 12 | B92: 9809 | C92: 24 | D92: 9820 | E92: 24 | F92: 9824 | K92: 0 | L92: 122
A93: 12 | B93: 9920 | C93: 24 | D93: 9930 | E93: 24 | F93: 9937 | K93: 0 | L93: 122
A94: 21 | B94: 10042 | C94: 22 | D94: 10046 | E94: 24 | F94: 10051 | K94: 0 | L94: 222
A95: 12 | B95: 10145 | C95: 24 | D95: 10155 | E95: 24 | F95: 10158 | K95: 0 | L95: 122
A96: 12 | B96: 10254 | C96: 24 | D96: 10265 | E96: 24 | F96: 10268 | K96: 0 | L96: 122
A97: 12 | B97: 10365 | C97: 24 | D97: 10376 | E97: 24 | F97: 10380 | K97: 0 | L97: 122
A98: 12 | B98: 10476 | C98: 24 | D98: 10487 | E98: 24 | F98: 10491 | K98: 0 | L98: 122
A99: 12 | B99: 10590 | C99: 24 | D99: 10602 | E99: 24 | F99: 10607 | K99: 0 | L99: 122
A100: 21 | B100: 10707 | C100: 22 | D100: 10710 | E100: 24 | F100: 10715 | K100: 0 | L100: 222
A101: 12 | B101: 10811 | C101: 24 | D101: 10821 | E101: 24 | F101: 10825 | K101: 0 | L101: 122
A102: 12 | B102: 10922 | C102: 24 | D102: 10932 | E102: 24 | F102: 10935 | K102: 0 | L102: 122
A103: 12 | B103: 11029 | C103: 24 | D103: 11041 | E103: 24 | F103: 11044 | K103: 0 | L103: 122
A104: 12 | B104: 11136 | C104: 24 | D104: 11146 | E104: 24 | F104: 11150 | K104: 0 | L104: 122
A105: 21 | B105: 11256 | C105: 22 | D105: 11262 | E105: 24 | F105: 11267 | K105: 0 | L105: 222
A106: 12 | B106: 11363 | C106: 24 | D106: 11375 | E106: 24 | F106: 11377 | K106: 0 | L106: 122
A107: 12 | B107: 11469 | C107: 24 | D107: 11479 | E107: 24 | F107: 11483 | K107: 0 | L107: 122
A108: 12 | B108: 11580 | C108: 24 | D108: 11589 | E108: 24 | F108: 11593 | K108: 0 | L108: 122
A109: 21 | B109: 11699 | C109: 22 | D109: 11703 | E109: 24 | F109: 11708 | K109: 0 | L109: 222
A110: 12 | B110: 11802 | C110: 24 | D110: 11813 | E110: 24 | F110: 11818 | K110: 0 | L110: 122
A111: 21 | B111: 11946 | C111: 22 | D111: 11949 | E111: 24 | F111: 11953 | K111: 0 | L111: 222
A112: 12 | B112: 12051 | C112: 24 | D112: 12062 | E112: 24 | F112: 12066 | K112: 0 | L112: 122
A113: 21 | B113: 12171 | C113: 22 | D113: 12179 | E113: 24 | F113: 12185 | K113: 0 | L113: 222
A114: 12 | B114: 12276 | C114: 24 | D114: 12287 | E114: 24 | F114: 12291 | K114: 0 | L114: 122
A115: 12 | B115: 12389 | C115: 24 | D115: 12400 | E115: 24 | F115: 12404 | K115: 0 | L115: 122
A116: 12 | B116: 12501 | C116: 24 | D116: 12512 | E116: 24 | F116: 12516 | K116: 0 | L116: 122
A117: 12 | B117: 12627 | C117: 24 | D117: 12637 | E117: 24 | F117: 12644 | K117: 0 | L117: 122
A118: 21 | B118: 12765 | C118: 22 | D118: 12768 | E118: 24 | F118: 12772 | K118: 0 | L118: 222
A119: 12 | B119: 12866 | C119: 24 | D119: 12876 | E119: 24 | F119: 12880 | K119: 0 | L119: 122
A120: 21 | B120: 13003 | C120: 22 | D120: 13006 | E120: 24 | F120: 13009 | K120: 0 | L120: 222
A121: 12 | B121: 13106 | C121: 24 | D121: 13116 | E121: 24 | F121: 13119 | K121: 0 | L121: 122
A122: 21 | B122: 13218 | C122: 22 | D122: 13222 | E122: 24 | F122: 13226 | K122: 0 | L122: 222
A123: 12 | B123: 13322 | C123: 24 | D123: 13337 | E123: 24 | F123: 13340 | K123: 0 | L123: 122
A124: 21 | B124: 13445 | C124: 22 | D124: 13448 | E124: 24 | F124: 13452 | K124: 0 | L124: 222
A125: 21 | B125: 13562 | C125: 22 | D125: 13566 | E125: 24 | F125: 13574 | K125: 0 | L125: 222
A126: 12 | B126: 13672 | C126: 24 | D126: 13682 | E126: 24 | F126: 13689 | K126: 0 | L126: 122
A127: 21 | B127: 13794 | C127: 22 | D127: 13798 | E127: 24 | F127: 13804 | K127: 0 | L127: 222
A128: 12 | B128: 13901 | C128: 24 | D128: 13915 | E128: 24 | F128: 13918 | K128: 0 | L128: 122
A129: 12 | B129: 14013 | C129: 24 | D129: 14022 | E129: 24 | F129: 14026 | K129: 0 | L129: 122
A130: 12 | B130: 14121 | C130: 24 | D130: 14131 | E130: 24 | F130: 14135 | K130: 0 | L130: 122
A131: 12 | B131: 14230 | C131: 24 | D131: 14238 | E131: 24 | F131: 14242 | K131: 0 | L131: 122
A132: 12 | B132: 14337 | C132: 24 | D132: 14347 | E132: 24 | F132: 14351 | K132: 0 | L132: 122
A133: 12 | B133: 14448 | C133: 24 | D133: 14454 | E133: 24 | F133: 14458 | K133: 0 | L133: 122
A134: 21 | B134: 14573 | C134: 22 | D134: 14579 | E134: 24 | F134: 14586 | K134: 0 | L134: 222
A135: 12 | B135: 14684 | C135: 24 | D135: 14694 | E135: 24 | F135: 14697 | K135: 0 | L135: 122
A136: 21 | B136: 14797 | C136: 22 | D136: 14800 | E136: 24 | F136: 14805 | K136: 0 | L136: 222
A137: 12 | B137: 14904 | C137: 24 | D137: 14918 | E137: 24 | F137: 14922 | K137: 0 | L137: 122
A138: 12 | B138: 15014 | C138: 24 | D138: 15026 | E138: 24 | F138: 15029 | K138: 0 | L138: 122
A139: 12 | B139: 15150 | C139: 24 | D139: 15161 | E139: 24 | F139: 15165 | K139: 0 | L139: 122
A140: 12 | B140: 15261 | C140: 24 | D140: 15272 | E140: 24 | F140: 15275 | K140: 0 | L140: 122
A141: 12 | B141: 15372 | C141: 24 | D141: 15385 | E141: 24 | F141: 15393 | K141: 0 | L141: 122
A142: 12 | B142: 15491 | C142: 24 | D142: 15498 | E142: 24 | F142: 15503 | K142: 0 | L142: 122
A143: 21 | B143: 15606 | C143: 22 | D143: 15609 | E143: 24 | F143: 15614 | K143: 0 | L143: 222
A144: 12 | B144: 15747 | C144: 24 | D144: 15759 | E144: 24 | F144: 15763 | K144: 0 | L144: 122
A145: 21 | B145: 15872 | C145: 22 | D145: 15876 | E145: 24 | F145: 15886 | K145: 0 | L145: 222
A146: 21 | B146: 15989 | C146: 22 | D146: 15992 | E146: 24 | F146: 15996 | K146: 0 | L146: 222
A147: 21 | B147: 16104 | C147: 22 | D147: 16107 | E147: 24 | F147: 16113 | K147: 0 | L147: 222
A148: 21 | B148: 16249 | C148: 22 | D148: 16256 | E148: 24 | F148: 16259 | K148: 0 | L148: 222
A149: 21 | B149: 16369 | C149: 22 | D149: 16383 | E149: 24 | F149: 16389 | K149: 0 | L149: 222
A150: 12 | B150: 16486 | C150: 24 | D150: 16494 | E150: 24 | F150: 16497 | K150: 0 | L150: 122
A151: 21 | B151: 16609 | C151: 22 | D151: 16612 | E151: 24 | F151: 16616 | K151: 0 | L151: 222
A152: 21 | B152: 16721 | C152: 22 | D152: 16725 | E152: 24 | F152: 16729 | K152: 0 | L152: 222
A153: 21 | B153: 16833 | C153: 22 | D153: 16836 | E153: 24 | F153: 16841 | K153: 0 | L153: 222
A154: 12 | B154: 16937 | C154: 24 | D154: 16948 | E154: 24 | F154: 16952 | K154: 0 | L154: 122
A155: 12 | B155: 17048 | C155: 24 | D155: 17058 | E155: 24 | F155: 17061 | K155: 0 | L155: 122
A156: 21 | B156: 17178 | C156: 22 | D156: 17180 | E156: 24 | F156: 17182 | K156: 0 | L156: 222
A157: 21 | B157: 17288 | C157: 22 | D157: 17292 | E157: 24 | F157: 17296 | K157: 0 | L157: 222
A158: 12 | B158: 17392 | C158: 24 | D158: 17401 | E158: 24 | F158: 17405 | K158: 0 | L158: 122
A159: 21 | B159: 17504 | C159: 22 | D159: 17508 | E159: 24 | F159: 17516 | K159: 0 | L159: 222
A160: 12 | B160: 17614 | C160: 24 | D160: 17631 | E160: 24 | F160: 17640 | K160: 0 | L160: 122
A161: 12 | B161: 17736 | C161: 24 | D161: 17745 | E161: 24 | F161: 17748 | K161: 0 | L161: 122
A162: 12 | B162: 17845 | C162: 24 | D162: 17857 | E162: 24 | F162: 17861 | K162: 0 | L162: 122
A163: 12 | B163: 17953 | C163: 24 | D163: 17962 | E163: 24 | F163: 17965 | K163: 0 | L163: 122
A164: 21 | B164: 18103 | C164: 22 | D164: 18107 | E164: 24 | F164: 18113 | K164: 0 | L164: 222
A165: 12 | B165: 18207 | C165: 24 | D165: 18220 | E165: 24 | F165: 18229 | K165: 0 | L165: 122
A166: 21 | B166: 18333 | C166: 22 | D166: 18337 | E166: 24 | F166: 18348 | K166: 0 | L166: 222
A167: 21 | B167: 18448 | C167: 22 | D167: 18453 | E167: 24 | F167: 18456 | K167: 0 | L167: 222
A168: 12 | B168: 18555 | C168: 24 | D168: 18567 | E168: 24 | F168: 18571 | K168: 0 | L168: 122
A169: 12 | B169: 18666 | C169: 24 | D169: 18678 | E169: 24 | F169: 18682 | K169: 0 | L169: 122
A170: 12 | B170: 18778 | C170: 24 | D170: 18787 | E170: 24 | F170: 18791 | K170: 0 | L170: 122
A171: 12 | B171: 18889 | C171: 24 | D171: 18904 | E171: 24 | F171: 18908 | K171: 0 | L171: 122
A172: 21 | B172: 19038 | C172: 22 | D172: 19043 | E172: 24 | F172: 19050 | K172: 0 | L172: 222
A173: 21 | B173: 19159 | C173: 22 | D173: 19163 | E173: 24 | F173: 19168 | K173: 0 | L173: 222
A174: 21 | B174: 19273 | C174: 22 | D174: 19277 | E174: 24 | F174: 19282 | K174: 0 | L174: 222
A175: 12 | B175: 19379 | C175: 13 | D175: 19381 | E175: 24 | F175: 19394 | K175: 0 | L175: 112
A176: 12 | B176: 19490 | C176: 13 | D176: 19493 | E176: 24 | F176: 19505 | K176: 0 | L176: 112
A177: 12 | B177: 19598 | C177: 24 | D177: 19611 | E177: 24 | F177: 19615 | K177: 0 | L177: 122
A178: 12 | B178: 19714 | C178: 24 | D178: 19726 | E178: 24 | F178: 19729 | K178: 0 | L178: 122
A179: 21 | B179: 19829 | C179: 22 | D179: 19834 | E179: 24 | F179: 19837 | K179: 0 | L179: 222
A180: 12 | B180: 19936 | C180: 24 | D180: 19945 | E180: 24 | F180: 19948 | K180: 0 | L180: 122
A181: 12 | B181: 20046 | C181: 24 | D181: 20056 | E181: 24 | F181: 20064 | K181: 0 | L181: 122
A182: 12 | B182: 20161 | C182: 24 | D182: 20174 | E182: 24 | F182: 20178 | K182: 0 | L182: 122
A183: 21 | B183: 20294 | C183: 22 | D183: 20298 | E183: 24 | F183: 20306 | K183: 0 | L183: 222
A184: 21 | B184: 20419 | C184: 22 | D184: 20423 | E184: 24 | F184: 20428 | K184: 0 | L184: 222
A185: 12 | B185: 20526 | C185: 24 | D185: 20536 | E185: 24 | F185: 20539 | K185: 0 | L185: 122
A186: 12 | B186: 20636 | C186: 13 | D186: 20638 | E186: 24 | F186: 20648 | K186: 0 | L186: 112
A187: 12 | B187: 20745 | C187: 24 | D187: 20757 | E187: 24 | F187: 20761 | K187: 0 | L187: 122
A188: 21 | B188: 20863 | C188: 22 | D188: 20867 | E188: 24 | F188: 20874 | K188: 0 | L188: 222
A189: 21 | B189: 20973 | C189: 22 | D189: 20978 | E189: 24 | F189: 20989 | K189: 0 | L189: 222
A190: 21 | B190: 21096 | C190: 22 | D190: 21099 | E190: 24 | F190: 21103 | K190: 0 | L190: 222
A191: 12 | B191: 21200 | C191: 24 | D191: 21211 | E191: 24 | F191: 21215 | K191: 0 | L191: 122
A192: 12 | B192: 21313 | C192: 24 | D192: 21326 | E192: 24 | F192: 21330 | K192: 0 | L192: 122
A193: 12 | B193: 21429 | C193: 24 | D193: 21443 | E193: 24 | F193: 21447 | K193: 0 | L193: 122
A194: 21 | B194: 21546 | C194: 22 | D194: 21550 | E194: 24 | F194: 21553 | K194: 0 | L194: 222
A195: 12 | B195: 21650 | C195: 24 | D195: 21661 | E195: 24 | F195: 21668 | K195: 0 | L195: 122
A196: 21 | B196: 21772 | C196: 22 | D196: 21776 | E196: 24 | F196: 21785 | K196: 0 | L196: 222
A197: 21 | B197: 21884 | C197: 22 | D197: 21885 | E197: 24 | F197: 21891 | K197: 0 | L197: 222
A198: 21 | B198: 21997 | C198: 22 | D198: 22002 | E198: 24 | F198: 22007 | K198: 0 | L198: 222
A199: 21 | B199: 22109 | C199: 22 | D199: 22113 | E199: 24 | F199: 22117 | K199: 0 | L199: 222
A200: 12 | B200: 22213 | C200: 24 | D200: 22225 | E200: 24 | F200: 22229 | K200: 0 | L200: 122
... 14 more rows

Sheet !L906A4T.ayl
A1: Report for:!L906A4T.ayl
A2: Date: | B2: <date>
A3: Hen: | B3: <hen> | F3: Correct Sequence | G3: =Start!J2 -> 211 | P3: Total Sequences in Data | Q3: =4994-COUNTBLANK(L7:L5000) -> 184 | V3: Total Sequences in Block Data | W3: =COUNTA(L7:L37) -> 31 | AA3: Total Sequences in Block Data | AB3: =COUNTA(L38:L67) -> 30 | AF3: Total Sequences in Block Data | AG3: =COUNTA(L68:L98) -> 31 | AK3: Total Sequences in Block Data | AL3: =COUNTA(L99:L129) -> 31 | AP3: Total Sequences in Block Data | AQ3: =COUNTA(L130:L159) -> 30 | AU3: Total Sequences in Block Data | AV3: =COUNTA(L160:L190) -> 31
P4: Total Sequences in Summary | Q4: =SUM(O7:O14) -> 184 | V4: Total Sequences in Block Summary | W4: =SUM(U7:U14) -> 31 | AA4: Total Sequences in Block Summary | AB4: =SUM(Z7:Z14) -> 30 | AF4: Total Sequences in Block Summary | AG4: =SUM(AE7:AE14) -> 31 | AK4: Total Sequences in Block Summary | AL4: =SUM(AJ7:AJ14) -> 31 | AP4: Total Sequences in Block Summary | AQ4: =SUM(AO7:AO14) -> 30 | AU4: Total Sequences in Block Summary | AV4: =SUM(AT7:AT14) -> 31
T5: Block 1 | Y5: Block 2 | AD5: Block 3 | AI5: Block 4 | AN5: Block 5 | AS5: Block 6
A6: Sequence Component 1 | B6: Time 1 | C6: Sequence Component 2 | D6: Time 2 | E6: Sequence Component 3 | F6: Time 3 | G6: Sequence Component 4 | H6: Time 4 | I6: Sequence Component 5 | J6: Time 5 | K6: Correct? 0=No 1=Yes | L6: Sequence | N6: Frequency | P6: Relative Frequency | Q6: Variability | T6: Frequency | V6: Relative Frequency | W6: Variability | Y6: Frequency | AA6: Relative Frequency | AB6: Variability | AD6: Frequency | AF6: Relative Frequency | AG6: Variability | AI6: Frequency | AK6: Relative Frequency | AL6: Variability | AN6: Frequency | AP6: Relative Frequency | AQ6: Variability | AS6: Frequency | AU6: Relative Frequency | AV6: Variability
A7: 21 | B7: 31 | C7: 22 | D7: 36 | E7: 24 | F7: 45 | K7: 0 | L7: 222 | N7: 111 | O7: =COUNTIF($L$7:$L$500,N7) -> 0 | P7: =O7/$Q$4 -> 0 | Q7: =IF(P7=0,0,(P7*((LOG(P7))/LOG(2)))) -> 0 | T7: =N7 -> 111 | U7: =COUNTIF(L7:L37,T7) -> 0 | V7: =U7/(W4-U11) -> 0 | W7: =IF(V7=0,0,(V7*((LOG(V7))/LOG(2)))) -> 0 | Y7: =N7 -> 111 | Z7: =COUNTIF(L38:L67,Y7) -> 0 | AA7: =Z7/(AB4-Z11) -> 0 | AB7: =IF(AA7=0,0,(AA7*((LOG(AA7))/LOG(2)))) -> 0 | AD7: =N7 -> 111 | AE7: =COUNTIF(L68:L98,AD7) -> 0 | AF7: =AE7/(AG4-AE11) -> 0 | AG7: =IF(AF7=0,0,(AF7*((LOG(AF7))/LOG(2)))) -> 0 | AI7: =N7 -> 111 | AJ7: =COUNTIF(L99:L129,AI7) -> 0 | AK7: =AJ7/(AL4-AJ11) -> 0 | AL7: =IF(AK7=0,0,(AK7*((LOG(AK7))/LOG(2)))) -> 0 | AN7: =N7 -> 111 | AO7: =COUNTIF(L130:L159,AN7) -> 0 | AP7: =AO7/(AQ4-AO11) -> 0 | AQ7: =IF(AP7=0,0,(AP7*((LOG(AP7))/LOG(2)))) -> 0 | AS7: =N7 -> 111 | AT7: =COUNTIF(L160:L190,AS7) -> 0 | AU7: =AT7/(AV4-AT11) -> 0 | AV7: =IF(AU7=0,0,(AU7*((LOG(AU7))/LOG(2)))) -> 0
A8: 21 | B8: 150 | C8: 22 | D8: 159 | E8: 24 | F8: 165 | K8: 0 | L8: 222 | N8: 112 | O8: =COUNTIF($L$7:$L$500,N8) -> 13 | P8: =O8/$Q$4 -> 0.07065217391 | Q8: =IF(P8=0,0,(P8*((LOG(P8))/LOG(2)))) -> -0.2701118972 | T8: =N8 -> 112 | U8: =COUNTIF(L7:L37,T8) -> 0 | V8: =U8/(W4-U11) -> 0 | W8: =IF(V8=0,0,(V8*((LOG(V8))/LOG(2)))) -> 0 | Y8: =N8 -> 112 | Z8: =COUNTIF(L38:L67,Y8) -> 0 | AA8: =Z8/(AB4-Z11) -> 0 | AB8: =IF(AA8=0,0,(AA8*((LOG(AA8))/LOG(2)))) -> 0 | AD8: =N8 -> 112 | AE8: =COUNTIF(L68:L98,AD8) -> 4 | AF8: =AE8/(AG4-AE11) -> 0.1290322581 | AG8: =IF(AF8=0,0,(AF8*((LOG(AF8))/LOG(2)))) -> -0.3811866207 | AI8: =N8 -> 112 | AJ8: =COUNTIF(L99:L129,AI8) -> 8 | AK8: =AJ8/(AL4-AJ11) -> 0.2580645161 | AL8: =IF(AK8=0,0,(AK8*((LOG(AK8))/LOG(2)))) -> -0.5043087253 | AN8: =N8 -> 112 | AO8: =COUNTIF(L130:L159,AN8) -> 1 | AP8: =AO8/(AQ4-AO11) -> 0.03333333333 | AQ8: =IF(AP8=0,0,(AP8*((LOG(AP8))/LOG(2)))) -> -0.1635630199 | AS8: =N8 -> 112 | AT8: =COUNTIF(L160:L190,AS8) -> 0 | AU8: =AT8/(AV4-AT11) -> 0 | AV8: =IF(AU8=0,0,(AU8*((LOG(AU8))/LOG(2)))) -> 0
A9: 21 | B9: 277 | C9: 22 | D9: 282 | E9: 24 | F9: 286 | K9: 0 | L9: 222 | N9: 121 | O9: =COUNTIF($L$7:$L$500,N9) -> 0 | P9: =O9/$Q$4 -> 0 | Q9: =IF(P9=0,0,(P9*((LOG(P9))/LOG(2)))) -> 0 | T9: =N9 -> 121 | U9: =COUNTIF(L7:L37,T9) -> 0 | V9: =U9/(W4-U11) -> 0 | W9: =IF(V9=0,0,(V9*((LOG(V9))/LOG(2)))) -> 0 | Y9: =N9 -> 121 | Z9: =COUNTIF(L38:L67,Y9) -> 0 | AA9: =Z9/(AB4-Z11) -> 0 | AB9: =IF(AA9=0,0,(AA9*((LOG(AA9))/LOG(2)))) -> 0 | AD9: =N9 -> 121 | AE9: =COUNTIF(L68:L98,AD9) -> 0 | AF9: =AE9/(AG4-AE11) -> 0 | AG9: =IF(AF9=0,0,(AF9*((LOG(AF9))/LOG(2)))) -> 0 | AI9: =N9 -> 121 | AJ9: =COUNTIF(L99:L129,AI9) -> 0 | AK9: =AJ9/(AL4-AJ11) -> 0 | AL9: =IF(AK9=0,0,(AK9*((LOG(AK9))/LOG(2)))) -> 0 | AN9: =N9 -> 121 | AO9: =COUNTIF(L130:L159,AN9) -> 0 | AP9: =AO9/(AQ4-AO11) -> 0 | AQ9: =IF(AP9=0,0,(AP9*((LOG(AP9))/LOG(2)))) -> 0 | AS9: =N9 -> 121 | AT9: =COUNTIF(L160:L190,AS9) -> 0 | AU9: =AT9/(AV4-AT11) -> 0 | AV9: =IF(AU9=0,0,(AU9*((LOG(AU9))/LOG(2)))) -> 0
A10: 21 | B10: 396 | C10: 22 | D10: 402 | E10: 24 | F10: 407 | K10: 0 | L10: 222 | N10: 122 | O10: =COUNTIF($L$7:$L$500,N10) -> 62 | P10: =O10/$Q$4 -> 0.3369565217 | Q10: =IF(P10=0,0,(P10*((LOG(P10))/LOG(2)))) -> -0.5288079893 | T10: =N10 -> 122 | U10: =COUNTIF(L7:L37,T10) -> 21 | V10: =U10/(W4-U11) -> 0.6774193548 | W10: =IF(V10=0,0,(V10*((LOG(V10))/LOG(2)))) -> -0.3806276335 | Y10: =N10 -> 122 | Z10: =COUNTIF(L38:L67,Y10) -> 14 | AA10: =Z10/(AB4-Z11) -> 0.4666666667 | AB10: =IF(AA10=0,0,(AA10*((LOG(AA10))/LOG(2)))) -> -0.5131166477 | AD10: =N10 -> 122 | AE10: =COUNTIF(L68:L98,AD10) -> 13 | AF10: =AE10/(AG4-AE11) -> 0.4193548387 | AG10: =IF(AF10=0,0,(AF10*((LOG(AF10))/LOG(2)))) -> -0.5257688935 | AI10: =N10 -> 122 | AJ10: =COUNTIF(L99:L129,AI10) -> 10 | AK10: =AJ10/(AL4-AJ11) -> 0.3225806452 | AL10: =IF(AK10=0,0,(AK10*((LOG(AK10))/LOG(2)))) -> -0.526538134 | AN10: =N10 -> 122 | AO10: =COUNTIF(L130:L159,AN10) -> 2 | AP10: =AO10/(AQ4-AO11) -> 0.06666666667 | AQ10: =IF(AP10=0,0,(AP10*((LOG(AP10))/LOG(2)))) -> -0.260459373 | AS10: =N10 -> 122 | AT10: =COUNTIF(L160:L190,AS10) -> 2 | AU10: =AT10/(AV4-AT11) -> 0.06451612903 | AV10: =IF(AU10=0,0,(AU10*((LOG(AU10))/LOG(2)))) -> -0.2551094394
A11: 12 | B11: 496 | C11: 24 | D11: 512 | E11: 24 | F11: 517 | K11: 0 | L11: 122 | N11: 211 | O11: =COUNTIF($L$7:$L$500,N11) -> 0 | P11: =O11/$Q$4 -> 0 | Q11: =IF(P11=0,0,(P11*((LOG(P11))/LOG(2)))) -> 0 | T11: =N11 -> 211 | U11: =COUNTIF(L7:L37,T11) -> 0 | Y11: =N11 -> 211 | Z11: =COUNTIF(L38:L67,Y11) -> 0 | AD11: =N11 -> 211 | AE11: =COUNTIF(L68:L98,AD11) -> 0 | AI11: =N11 -> 211 | AJ11: =COUNTIF(L99:L129,AI11) -> 0 | AN11: =N11 -> 211 | AO11: =COUNTIF(L130:L159,AN11) -> 0 | AS11: =N11 -> 211 | AT11: =COUNTIF(L160:L190,AS11) -> 0
A12: 12 | B12: 607 | C12: 24 | D12: 617 | E12: 24 | F12: 620 | K12: 0 | L12: 122 | N12: 212 | O12: =COUNTIF($L$7:$L$500,N12) -> 0 | P12: =O12/$Q$4 -> 0 | Q12: =IF(P12=0,0,(P12*((LOG(P12))/LOG(2)))) -> 0 | T12: =N12 -> 212 | U12: =COUNTIF(L7:L37,T12) -> 0 | V12: =U12/(W4-U11) -> 0 | W12: =IF(V12=0,0,(V12*((LOG(V12))/LOG(2)))) -> 0 | Y12: =N12 -> 212 | Z12: =COUNTIF(L38:L67,Y12) -> 0 | AA12: =Z12/(AB4-Z11) -> 0 | AB12: =IF(AA12=0,0,(AA12*((LOG(AA12))/LOG(2)))) -> 0 | AD12: =N12 -> 212 | AE12: =COUNTIF(L68:L98,AD12) -> 0 | AF12: =AE12/(AG4-AE11) -> 0 | AG12: =IF(AF12=0,0,(AF12*((LOG(AF12))/LOG(2)))) -> 0 | AI12: =N12 -> 212 | AJ12: =COUNTIF(L99:L129,AI12) -> 0 | AK12: =AJ12/(AL4-AJ11) -> 0 | AL12: =IF(AK12=0,0,(AK12*((LOG(AK12))/LOG(2)))) -> 0 | AN12: =N12 -> 212 | AO12: =COUNTIF(L130:L159,AN12) -> 0 | AP12: =AO12/(AQ4-AO11) -> 0 | AQ12: =IF(AP12=0,0,(AP12*((LOG(AP12))/LOG(2)))) -> 0 | AS12: =N12 -> 212 | AT12: =COUNTIF(L160:L190,AS12) -> 0 | AU12: =AT12/(AV4-AT11) -> 0 | AV12: =IF(AU12=0,0,(AU12*((LOG(AU12))/LOG(2)))) -> 0
A13: 12 | B13: 716 | C13: 24 | D13: 728 | E13: 24 | F13: 731 | K13: 0 | L13: 122 | N13: 221 | O13: =COUNTIF($L$7:$L$500,N13) -> 0 | P13: =O13/$Q$4 -> 0 | Q13: =IF(P13=0,0,(P13*((LOG(P13))/LOG(2)))) -> 0 | T13: =N13 -> 221 | U13: =COUNTIF(L7:L37,T13) -> 0 | V13: =U13/(W4-U11) -> 0 | W13: =IF(V13=0,0,(V13*((LOG(V13))/LOG(2)))) -> 0 | Y13: =N13 -> 221 | Z13: =COUNTIF(L38:L67,Y13) -> 0 | AA13: =Z13/(AB4-Z11) -> 0 | AB13: =IF(AA13=0,0,(AA13*((LOG(AA13))/LOG(2)))) -> 0 | AD13: =N13 -> 221 | AE13: =COUNTIF(L68:L98,AD13) -> 0 | AF13: =AE13/(AG4-AE11) -> 0 | AG13: =IF(AF13=0,0,(AF13*((LOG(AF13))/LOG(2)))) -> 0 | AI13: =N13 -> 221 | AJ13: =COUNTIF(L99:L129,AI13) -> 0 | AK13: =AJ13/(AL4-AJ11) -> 0 | AL13: =IF(AK13=0,0,(AK13*((LOG(AK13))/LOG(2)))) -> 0 | AN13: =N13 -> 221 | AO13: =COUNTIF(L130:L159,AN13) -> 0 | AP13: =AO13/(AQ4-AO11) -> 0 | AQ13: =IF(AP13=0,0,(AP13*((LOG(AP13))/LOG(2)))) -> 0 | AS13: =N13 -> 221 | AT13: =COUNTIF(L160:L190,AS13) -> 0 | AU13: =AT13/(AV4-AT11) -> 0 | AV13: =IF(AU13=0,0,(AU13*((LOG(AU13))/LOG(2)))) -> 0
A14: 12 | B14: 826 | C14: 24 | D14: 837 | E14: 24 | F14: 851 | K14: 0 | L14: 122 | N14: 222 | O14: =COUNTIF($L$7:$L$500,N14) -> 109 | P14: =O14/$Q$4 -> 0.5923913043 | Q14: =IF(P14=0,0,(P14*((LOG(P14))/LOG(2)))) -> -0.4474791403 | T14: =N14 -> 222 | U14: =COUNTIF(L7:L37,T14) -> 10 | V14: =U14/(W4-U11) -> 0.3225806452 | W14: =IF(V14=0,0,(V14*((LOG(V14))/LOG(2)))) -> -0.526538134 | Y14: =N14 -> 222 | Z14: =COUNTIF(L38:L67,Y14) -> 16 | AA14: =Z14/(AB4-Z11) -> 0.5333333333 | AB14: =IF(AA14=0,0,(AA14*((LOG(AA14))/LOG(2)))) -> -0.4836749843 | AD14: =N14 -> 222 | AE14: =COUNTIF(L68:L98,AD14) -> 14 | AF14: =AE14/(AG4-AE11) -> 0.4516129032 | AG14: =IF(AF14=0,0,(AF14*((LOG(AF14))/LOG(2)))) -> -0.5179283689 | AI14: =N14 -> 222 | AJ14: =COUNTIF(L99:L129,AI14) -> 13 | AK14: =AJ14/(AL4-AJ11) -> 0.4193548387 | AL14: =IF(AK14=0,0,(AK14*((LOG(AK14))/LOG(2)))) -> -0.5257688935 | AN14: =N14 -> 222 | AO14: =COUNTIF(L130:L159,AN14) -> 27 | AP14: =AO14/(AQ4-AO11) -> 0.9 | AQ14: =IF(AP14=0,0,(AP14*((LOG(AP14))/LOG(2)))) -> -0.1368027841 | AS14: =N14 -> 222 | AT14: =COUNTIF(L160:L190,AS14) -> 29 | AU14: =AT14/(AV4-AT11) -> 0.935483871 | AV14: =IF(AU14=0,0,(AU14*((LOG(AU14))/LOG(2)))) -> -0.09000787557
A15: 12 | B15: 945 | C15: 24 | D15: 957 | E15: 24 | F15: 961 | K15: 0 | L15: 122 | P15: =SUM(P7:P14) -> 1 | Q15: =-SUM(Q7:Q14) -> 1.246399027 | V15: =SUM(V7:V14) -> 1 | W15: =-SUM(W7:W14) -> 0.9071657676 | AA15: =SUM(AA7:AA14) -> 1 | AB15: =-SUM(AB7:AB14) -> 0.996791632 | AF15: =SUM(AF7:AF14) -> 1 | AG15: =-SUM(AG7:AG14) -> 1.424883883 | AK15: =SUM(AK7:AK14) -> 1 | AL15: =-SUM(AL7:AL14) -> 1.556615753 | AP15: =SUM(AP7:AP14) -> 1 | AQ15: =-SUM(AQ7:AQ14) -> 0.560825177 | AU15: =SUM(AU7:AU14) -> 1 | AV15: =-SUM(AV7:AV14) -> 0.3451173149
A16: 12 | B16: 1058 | C16: 24 | D16: 1073 | E16: 24 | F16: 1078 | K16: 0 | L16: 122 | P16: U= | Q16: =Q15/(LOG(Q4)/LOG(2)) -> 0.1656660813 | V16: U1= | W16: =W15/(LOG(W4)/LOG(2)) -> 0.1831105816 | AA16: U2= | AB16: =AB15/(LOG(AB4)/LOG(2)) -> 0.2031411976 | AF16: U3= | AG16: =AG15/(LOG(AG4)/LOG(2)) -> 0.2876115103 | AK16: U4= | AL16: =AL15/(LOG(AL4)/LOG(2)) -> 0.3142014679 | AP16: U5= | AQ16: =AQ15/(LOG(AQ4)/LOG(2)) -> 0.1142933934 | AU16: U6= | AV16: =AV15/(LOG(AV4)/LOG(2)) -> 0.06966161479
A17: 21 | B17: 1182 | C17: 22 | D17: 1186 | E17: 24 | F17: 1191 | K17: 0 | L17: 222
A18: 12 | B18: 1287 | C18: 24 | D18: 1298 | E18: 24 | F18: 1302 | K18: 0 | L18: 122
A19: 12 | B19: 1400 | C19: 24 | D19: 1415 | E19: 24 | F19: 1420 | K19: 0 | L19: 122 | N19: Total Target Seq
A20: 12 | B20: 1516 | C20: 24 | D20: 1526 | E20: 24 | F20: 1530 | K20: 0 | L20: 122 | N20: =COUNTIF(L7:L190,G3) -> 0 | P20: 31 | Q20: 30 | R20: 31 | S20: 31 | T20: 30 | U20: 31
A21: 21 | B21: 1627 | C21: 22 | D21: 1629 | E21: 24 | F21: 1633 | K21: 0 | L21: 222 | P21: % of reinforcement given in 6 equal intervals based on number of trials
A22: 21 | B22: 1752 | C22: 22 | D22: 1757 | E22: 24 | F22: 1761 | K22: 0 | L22: 222 | P22: %_1 | Q22: %_2 | R22: %_3 | S22: %_4 | T22: %_5 | U22: %_6
A23: 12 | B23: 1851 | C23: 24 | D23: 1861 | E23: 24 | F23: 1865 | K23: 0 | L23: 122 | O23: target sequence | P23: =$G$3 -> 211 | Q23: =$G$3 -> 211 | R23: =$G$3 -> 211 | S23: =$G$3 -> 211 | T23: =$G$3 -> 211 | U23: =$G$3 -> 211
A24: 12 | B24: 1963 | C24: 24 | D24: 1973 | E24: 24 | F24: 1977 | K24: 0 | L24: 122 | O24: total reinforcement | P24: =U11 -> 0 | Q24: =Z11 -> 0 | R24: =AE11 -> 0 | S24: =AJ11 -> 0 | T24: =AO11 -> 0 | U24: =AT11 -> 0
A25: 12 | B25: 2072 | C25: 24 | D25: 2083 | E25: 24 | F25: 2087 | K25: 0 | L25: 122 | O25: % target
A26: 12 | B26: 2183 | C26: 24 | D26: 2192 | E26: 24 | F26: 2197 | K26: 0 | L26: 122 | O26: CCRF
A27: 12 | B27: 2296 | C27: 24 | D27: 2307 | E27: 24 | F27: 2310 | K27: 0 | L27: 122 | O27: % CCRf
A28: 12 | B28: 2403 | C28: 24 | D28: 2417 | E28: 24 | F28: 2422 | K28: 0 | L28: 122 | O28: average response rate | P28: =F37/P20 -> 110.2903226 | Q28: =(F67-F37)/Q20 -> 115.0666667 | R28: =(F98-F67)/R20 -> 125.3870968 | S28: =(F129-F98)/S20 -> 117.6451613 | T28: =(F159-F129)/T20 -> 158.9 | U28: =(F190-F159)/U20 -> 152.3548387
A29: 21 | B29: 2519 | C29: 22 | D29: 2523 | E29: 24 | F29: 2528 | K29: 0 | L29: 222
A30: 21 | B30: 2632 | C30: 22 | D30: 2636 | E30: 24 | F30: 2645 | K30: 0 | L30: 222
A31: 12 | B31: 2741 | C31: 24 | D31: 2751 | E31: 24 | F31: 2755 | K31: 0 | L31: 122
A32: 12 | B32: 2850 | C32: 24 | D32: 2859 | E32: 24 | F32: 2862 | K32: 0 | L32: 122
A33: 12 | B33: 2959 | C33: 24 | D33: 2973 | E33: 24 | F33: 2980 | K33: 0 | L33: 122
A34: 12 | B34: 3076 | C34: 24 | D34: 3086 | E34: 24 | F34: 3090 | K34: 0 | L34: 122
A35: 12 | B35: 3183 | C35: 24 | D35: 3191 | E35: 24 | F35: 3195 | K35: 0 | L35: 122
A36: 12 | B36: 3289 | C36: 24 | D36: 3303 | E36: 24 | F36: 3308 | K36: 0 | L36: 122
A37: 21 | B37: 3409 | C37: 22 | D37: 3413 | E37: 24 | F37: 3419 | K37: 0 | L37: 222
A38: 21 | B38: 3528 | C38: 22 | D38: 3531 | E38: 24 | F38: 3535 | K38: 0 | L38: 222
A39: 12 | B39: 3631 | C39: 24 | D39: 3641 | E39: 24 | F39: 3644 | K39: 0 | L39: 122
A40: 12 | B40: 3743 | C40: 24 | D40: 3754 | E40: 24 | F40: 3759 | K40: 0 | L40: 122
A41: 21 | B41: 3863 | C41: 22 | D41: 3867 | E41: 24 | F41: 3872 | K41: 0 | L41: 222
A42: 12 | B42: 3964 | C42: 24 | D42: 3974 | E42: 24 | F42: 3981 | K42: 0 | L42: 122
A43: 12 | B43: 4078 | C43: 24 | D43: 4090 | E43: 24 | F43: 4094 | K43: 0 | L43: 122
A44: 21 | B44: 4259 | C44: 22 | D44: 4264 | E44: 24 | F44: 4269 | K44: 0 | L44: 222
A45: 21 | B45: 4369 | C45: 22 | D45: 4373 | E45: 24 | F45: 4376 | K45: 0 | L45: 222
A46: 21 | B46: 4481 | C46: 22 | D46: 4485 | E46: 24 | F46: 4494 | K46: 0 | L46: 222
A47: 12 | B47: 4590 | C47: 24 | D47: 4599 | E47: 24 | F47: 4606 | K47: 0 | L47: 122
A48: 12 | B48: 4697 | C48: 24 | D48: 4708 | E48: 24 | F48: 4712 | K48: 0 | L48: 122
A49: 21 | B49: 4820 | C49: 22 | D49: 4824 | E49: 24 | F49: 4828 | K49: 0 | L49: 222
A50: 21 | B50: 4926 | C50: 22 | D50: 4929 | E50: 24 | F50: 4938 | K50: 0 | L50: 222
A51: 12 | B51: 5035 | C51: 24 | D51: 5050 | E51: 24 | F51: 5054 | K51: 0 | L51: 122
A52: 21 | B52: 5160 | C52: 22 | D52: 5163 | E52: 24 | F52: 5168 | K52: 0 | L52: 222
A53: 12 | B53: 5265 | C53: 24 | D53: 5275 | E53: 24 | F53: 5278 | K53: 0 | L53: 122
A54: 21 | B54: 5380 | C54: 22 | D54: 5385 | E54: 24 | F54: 5389 | K54: 0 | L54: 222
A55: 12 | B55: 5481 | C55: 24 | D55: 5491 | E55: 24 | F55: 5495 | K55: 0 | L55: 122
A56: 12 | B56: 5590 | C56: 24 | D56: 5603 | E56: 24 | F56: 5606 | K56: 0 | L56: 122
A57: 21 | B57: 5712 | C57: 22 | D57: 5717 | E57: 24 | F57: 5721 | K57: 0 | L57: 222
A58: 12 | B58: 5819 | C58: 24 | D58: 5831 | E58: 24 | F58: 5835 | K58: 0 | L58: 122
A59: 12 | B59: 5933 | C59: 24 | D59: 5948 | E59: 24 | F59: 5952 | K59: 0 | L59: 122
A60: 21 | B60: 6060 | C60: 22 | D60: 6064 | E60: 24 | F60: 6068 | K60: 0 | L60: 222
A61: 21 | B61: 6193 | C61: 22 | D61: 6197 | E61: 24 | F61: 6200 | K61: 0 | L61: 222
A62: 21 | B62: 6301 | C62: 22 | D62: 6304 | E62: 24 | F62: 6308 | K62: 0 | L62: 222
A63: 12 | B63: 6404 | C63: 24 | D63: 6418 | E63: 24 | F63: 6422 | K63: 0 | L63: 122
A64: 21 | B64: 6523 | C64: 22 | D64: 6528 | E64: 24 | F64: 6533 | K64: 0 | L64: 222
A65: 21 | B65: 6642 | C65: 22 | D65: 6647 | E65: 24 | F65: 6651 | K65: 0 | L65: 222
A66: 12 | B66: 6747 | C66: 24 | D66: 6756 | E66: 24 | F66: 6759 | K66: 0 | L66: 122
A67: 21 | B67: 6863 | C67: 22 | D67: 6866 | E67: 24 | F67: 6871 | K67: 0 | L67: 222
A68: 12 | B68: 6968 | C68: 24 | D68: 6983 | E68: 24 | F68: 6988 | K68: 0 | L68: 122
A69: 12 | B69: 7086 | C69: 24 | D69: 7095 | E69: 24 | F69: 7099 | K69: 0 | L69: 122
A70: 12 | B70: 7195 | C70: 24 | D70: 7208 | E70: 24 | F70: 7212 | K70: 0 | L70: 122
A71: 12 | B71: 7310 | C71: 24 | D71: 7320 | E71: 24 | F71: 7323 | K71: 0 | L71: 122
A72: 12 | B72: 7421 | C72: 24 | D72: 7432 | E72: 24 | F72: 7436 | K72: 0 | L72: 122
A73: 12 | B73: 7541 | C73: 24 | D73: 7549 | E73: 24 | F73: 7552 | K73: 0 | L73: 122
A74: 12 | B74: 7651 | C74: 24 | D74: 7660 | E74: 24 | F74: 7664 | K74: 0 | L74: 122
A75: 12 | B75: 7761 | C75: 13 | D75: 7764 | E75: 24 | F75: 7779 | K75: 0 | L75: 112
A76: 12 | B76: 7871 | C76: 13 | D76: 7877 | E76: 24 | F76: 7886 | K76: 0 | L76: 112
A77: 12 | B77: 7984 | C77: 24 | D77: 7994 | E77: 24 | F77: 7998 | K77: 0 | L77: 122
A78: 21 | B78: 8112 | C78: 22 | D78: 8116 | E78: 24 | F78: 8121 | K78: 0 | L78: 222
A79: 21 | B79: 8228 | C79: 22 | D79: 8232 | E79: 24 | F79: 8239 | K79: 0 | L79: 222
A80: 12 | B80: 8336 | C80: 13 | D80: 8339 | E80: 24 | F80: 8352 | K80: 0 | L80: 112
A81: 12 | B81: 8450 | C81: 24 | D81: 8464 | E81: 24 | F81: 8469 | K81: 0 | L81: 122
A82: 12 | B82: 8563 | C82: 24 | D82: 8570 | E82: 24 | F82: 8575 | K82: 0 | L82: 122
A83: 12 | B83: 8671 | C83: 24 | D83: 8682 | E83: 24 | F83: 8687 | K83: 0 | L83: 122
A84: 21 | B84: 8784 | C84: 22 | D84: 8787 | E84: 24 | F84: 8791 | K84: 0 | L84: 222
A85: 12 | B85: 8886 | C85: 24 | D85: 8897 | E85: 24 | F85: 8901 | K85: 0 | L85: 122
A86: 21 | B86: 9012 | C86: 22 | D86: 9016 | E86: 24 | F86: 9022 | K86: 0 | L86: 222
A87: 21 | B87: 9127 | C87: 22 | D87: 9131 | E87: 24 | F87: 9136 | K87: 0 | L87: 222
A88: 21 | B88: 9243 | C88: 22 | D88: 9248 | E88: 24 | F88: 9254 | K88: 0 | L88: 222
A89: 21 | B89: 9648 | C89: 22 | D89: 9652 | E89: 24 | F89: 9656 | K89: 0 | L89: 222
A90: 21 | B90: 9778 | C90: 22 | D90: 9782 | E90: 24 | F90: 9786 | K90: 0 | L90: 222
A91: 21 | B91: 9974 | C91: 22 | D91: 9980 | E91: 24 | F91: 9983 | K91: 0 | L91: 222
A92: 21 | B92: 10087 | C92: 22 | D92: 10090 | E92: 24 | F92: 10093 | K92: 0 | L92: 222
A93: 21 | B93: 10192 | C93: 22 | D93: 10196 | E93: 24 | F93: 10199 | K93: 0 | L93: 222
A94: 21 | B94: 10299 | C94: 22 | D94: 10303 | E94: 24 | F94: 10308 | K94: 0 | L94: 222
A95: 12 | B95: 10406 | C95: 24 | D95: 10417 | E95: 24 | F95: 10420 | K95: 0 | L95: 122
A96: 21 | B96: 10524 | C96: 22 | D96: 10529 | E96: 24 | F96: 10531 | K96: 0 | L96: 222
A97: 12 | B97: 10628 | C97: 13 | D97: 10631 | E97: 24 | F97: 10644 | K97: 0 | L97: 112
A98: 21 | B98: 10745 | C98: 22 | D98: 10752 | E98: 24 | F98: 10758 | K98: 0 | L98: 222
A99: 12 | B99: 10854 | C99: 24 | D99: 10862 | E99: 24 | F99: 10865 | K99: 0 | L99: 122
A100: 21 | B100: 10969 | C100: 22 | D100: 10972 | E100: 24 | F100: 10976 | K100: 0 | L100: 222
A101: 21 | B101: 11086 | C101: 22 | D101: 11090 | E101: 24 | F101: 11096 | K101: 0 | L101: 222
A102: 12 | B102: 11194 | C102: 13 | D102: 11197 | E102: 24 | F102: 11210 | K102: 0 | L102: 112
A103: 21 | B103: 11314 | C103: 22 | D103: 11318 | E103: 24 | F103: 11322 | K103: 0 | L103: 222
A104: 21 | B104: 11428 | C104: 22 | D104: 11433 | E104: 24 | F104: 11438 | K104: 0 | L104: 222
A105: 12 | B105: 11534 | C105: 24 | D105: 11550 | E105: 24 | F105: 11554 | K105: 0 | L105: 122
A106: 21 | B106: 11659 | C106: 22 | D106: 11663 | E106: 24 | F106: 11672 | K106: 0 | L106: 222
A107: 12 | B107: 11770 | C107: 13 | D107: 11773 | E107: 24 | F107: 11784 | K107: 0 | L107: 112
A108: 21 | B108: 11895 | C108: 22 | D108: 11900 | E108: 24 | F108: 11905 | K108: 0 | L108: 222
A109: 12 | B109: 11999 | C109: 24 | D109: 12017 | E109: 24 | F109: 12033 | K109: 0 | L109: 122
A110: 12 | B110: 12127 | C110: 24 | D110: 12141 | E110: 24 | F110: 12145 | K110: 0 | L110: 122
A111: 12 | B111: 12242 | C111: 24 | D111: 12257 | E111: 24 | F111: 12261 | K111: 0 | L111: 122
A112: 21 | B112: 12463 | C112: 22 | D112: 12467 | E112: 24 | F112: 12470 | K112: 0 | L112: 222
A113: 12 | B113: 12566 | C113: 24 | D113: 12576 | E113: 24 | F113: 12579 | K113: 0 | L113: 122
A114: 12 | B114: 12676 | C114: 13 | D114: 12679 | E114: 24 | F114: 12691 | K114: 0 | L114: 112
A115: 12 | B115: 12789 | C115: 13 | D115: 12793 | E115: 24 | F115: 12803 | K115: 0 | L115: 112
A116: 21 | B116: 12909 | C116: 22 | D116: 12914 | E116: 24 | F116: 12920 | K116: 0 | L116: 222
A117: 12 | B117: 13020 | C117: 13 | D117: 13024 | E117: 24 | F117: 13036 | K117: 0 | L117: 112
A118: 21 | B118: 13143 | C118: 22 | D118: 13148 | E118: 24 | F118: 13156 | K118: 0 | L118: 222
A119: 21 | B119: 13254 | C119: 22 | D119: 13257 | E119: 24 | F119: 13261 | K119: 0 | L119: 222
A120: 12 | B120: 13357 | C120: 24 | D120: 13369 | E120: 24 | F120: 13374 | K120: 0 | L120: 122
A121: 12 | B121: 13472 | C121: 24 | D121: 13485 | E121: 24 | F121: 13489 | K121: 0 | L121: 122
A122: 12 | B122: 13586 | C122: 13 | D122: 13589 | E122: 24 | F122: 13601 | K122: 0 | L122: 112
A123: 12 | B123: 13694 | C123: 13 | D123: 13698 | E123: 24 | F123: 13708 | K123: 0 | L123: 112
A124: 12 | B124: 13805 | C124: 13 | D124: 13807 | E124: 24 | F124: 13822 | K124: 0 | L124: 112
A125: 21 | B125: 13924 | C125: 22 | D125: 13937 | E125: 24 | F125: 13943 | K125: 0 | L125: 222
A126: 12 | B126: 14047 | C126: 24 | D126: 14056 | E126: 24 | F126: 14061 | K126: 0 | L126: 122
A127: 12 | B127: 14159 | C127: 24 | D127: 14172 | E127: 24 | F127: 14176 | K127: 0 | L127: 122
A128: 21 | B128: 14285 | C128: 22 | D128: 14289 | E128: 24 | F128: 14293 | K128: 0 | L128: 222
A129: 21 | B129: 14395 | C129: 22 | D129: 14400 | E129: 24 | F129: 14405 | K129: 0 | L129: 222
A130: 21 | B130: 14514 | C130: 22 | D130: 14518 | E130: 24 | F130: 14527 | K130: 0 | L130: 222
A131: 12 | B131: 14628 | C131: 24 | D131: 14631 | E131: 24 | F131: 14640 | K131: 0 | L131: 122
A132: 12 | B132: 14736 | C132: 13 | D132: 14738 | E132: 24 | F132: 14756 | K132: 0 | L132: 112
A133: 21 | B133: 14854 | C133: 22 | D133: 14862 | E133: 24 | F133: 14867 | K133: 0 | L133: 222
A134: 21 | B134: 15039 | C134: 22 | D134: 15043 | E134: 24 | F134: 15047 | K134: 0 | L134: 222
A135: 21 | B135: 15177 | C135: 22 | D135: 15181 | E135: 24 | F135: 15184 | K135: 0 | L135: 222
A136: 21 | B136: 15365 | C136: 22 | D136: 15369 | E136: 24 | F136: 15376 | K136: 0 | L136: 222
A137: 21 | B137: 15481 | C137: 22 | D137: 15485 | E137: 24 | F137: 15490 | K137: 0 | L137: 222
A138: 21 | B138: 15592 | C138: 22 | D138: 15596 | E138: 24 | F138: 15600 | K138: 0 | L138: 222
A139: 12 | B139: 15700 | C139: 24 | D139: 15710 | E139: 24 | F139: 15715 | K139: 0 | L139: 122
A140: 21 | B140: 16029 | C140: 22 | D140: 16032 | E140: 24 | F140: 16037 | K140: 0 | L140: 222
A141: 21 | B141: 16165 | C141: 22 | D141: 16168 | E141: 24 | F141: 16173 | K141: 0 | L141: 222
A142: 21 | B142: 16751 | C142: 22 | D142: 16754 | E142: 24 | F142: 16758 | K142: 0 | L142: 222
A143: 21 | B143: 16943 | C143: 22 | D143: 16946 | E143: 24 | F143: 16950 | K143: 0 | L143: 222
A144: 21 | B144: 17097 | C144: 22 | D144: 17100 | E144: 24 | F144: 17105 | K144: 0 | L144: 222
A145: 21 | B145: 17205 | C145: 22 | D145: 17209 | E145: 24 | F145: 17225 | K145: 0 | L145: 222
A146: 21 | B146: 17343 | C146: 22 | D146: 17347 | E146: 24 | F146: 17351 | K146: 0 | L146: 222
A147: 21 | B147: 17524 | C147: 22 | D147: 17528 | E147: 24 | F147: 17531 | K147: 0 | L147: 222
A148: 21 | B148: 17653 | C148: 22 | D148: 17660 | E148: 24 | F148: 17665 | K148: 0 | L148: 222
A149: 21 | B149: 17787 | C149: 22 | D149: 17789 | E149: 24 | F149: 17795 | K149: 0 | L149: 222
A150: 21 | B150: 17906 | C150: 22 | D150: 17910 | E150: 24 | F150: 17914 | K150: 0 | L150: 222
A151: 21 | B151: 18019 | C151: 22 | D151: 18024 | E151: 24 | F151: 18032 | K151: 0 | L151: 222
A152: 21 | B152: 18227 | C152: 22 | D152: 18230 | E152: 24 | F152: 18235 | K152: 0 | L152: 222
A153: 21 | B153: 18334 | C153: 22 | D153: 18339 | E153: 24 | F153: 18344 | K153: 0 | L153: 222
A154: 21 | B154: 18440 | C154: 22 | D154: 18444 | E154: 24 | F154: 18448 | K154: 0 | L154: 222
A155: 21 | B155: 18636 | C155: 22 | D155: 18640 | E155: 24 | F155: 18645 | K155: 0 | L155: 222
A156: 21 | B156: 18753 | C156: 22 | D156: 18754 | E156: 24 | F156: 18760 | K156: 0 | L156: 222
A157: 21 | B157: 18939 | C157: 22 | D157: 18944 | E157: 24 | F157: 18948 | K157: 0 | L157: 222
A158: 21 | B158: 19050 | C158: 22 | D158: 19054 | E158: 24 | F158: 19059 | K158: 0 | L158: 222
A159: 21 | B159: 19159 | C159: 22 | D159: 19163 | E159: 24 | F159: 19172 | K159: 0 | L159: 222
A160: 21 | B160: 19276 | C160: 22 | D160: 19281 | E160: 24 | F160: 19287 | K160: 0 | L160: 222
A161: 21 | B161: 19386 | C161: 22 | D161: 19391 | E161: 24 | F161: 19394 | K161: 0 | L161: 222
A162: 21 | B162: 19533 | C162: 22 | D162: 19536 | E162: 24 | F162: 19541 | K162: 0 | L162: 222
A163: 21 | B163: 19742 | C163: 22 | D163: 19748 | E163: 24 | F163: 19752 | K163: 0 | L163: 222
A164: 12 | B164: 19844 | C164: 24 | D164: 19860 | E164: 24 | F164: 19865 | K164: 0 | L164: 122
A165: 21 | B165: 19972 | C165: 22 | D165: 19976 | E165: 24 | F165: 19979 | K165: 0 | L165: 222
A166: 21 | B166: 20081 | C166: 22 | D166: 20084 | E166: 24 | F166: 20089 | K166: 0 | L166: 222
A167: 21 | B167: 20233 | C167: 22 | D167: 20235 | E167: 24 | F167: 20237 | K167: 0 | L167: 222
A168: 21 | B168: 20397 | C168: 22 | D168: 20399 | E168: 24 | F168: 20405 | K168: 0 | L168: 222
A169: 21 | B169: 20558 | C169: 22 | D169: 20563 | E169: 24 | F169: 20573 | K169: 0 | L169: 222
A170: 21 | B170: 20783 | C170: 22 | D170: 20787 | E170: 24 | F170: 20791 | K170: 0 | L170: 222
A171: 21 | B171: 20996 | C171: 22 | D171: 20999 | E171: 24 | F171: 21002 | K171: 0 | L171: 222
A172: 21 | B172: 21161 | C172: 22 | D172: 21164 | E172: 24 | F172: 21170 | K172: 0 | L172: 222
A173: 21 | B173: 21262 | C173: 22 | D173: 21265 | E173: 24 | F173: 21270 | K173: 0 | L173: 222
A174: 21 | B174: 21378 | C174: 22 | D174: 21383 | E174: 24 | F174: 21389 | K174: 0 | L174: 222
A175: 21 | B175: 21574 | C175: 22 | D175: 21581 | E175: 24 | F175: 21585 | K175: 0 | L175: 222
A176: 21 | B176: 21969 | C176: 22 | D176: 21973 | E176: 24 | F176: 21981 | K176: 0 | L176: 222
A177: 21 | B177: 22185 | C177: 22 | D177: 22189 | E177: 24 | F177: 22194 | K177: 0 | L177: 222
A178: 21 | B178: 22439 | C178: 22 | D178: 22443 | E178: 24 | F178: 22449 | K178: 0 | L178: 222
A179: 21 | B179: 22548 | C179: 22 | D179: 22552 | E179: 24 | F179: 22557 | K179: 0 | L179: 222
A180: 21 | B180: 22658 | C180: 22 | D180: 22662 | E180: 24 | F180: 22667 | K180: 0 | L180: 222
A181: 21 | B181: 22803 | C181: 22 | D181: 22808 | E181: 24 | F181: 22812 | K181: 0 | L181: 222
A182: 21 | B182: 22952 | C182: 22 | D182: 22960 | E182: 24 | F182: 22964 | K182: 0 | L182: 222
A183: 12 | B183: 23059 | C183: 24 | D183: 23068 | E183: 24 | F183: 23074 | K183: 0 | L183: 122
A184: 21 | B184: 23176 | C184: 22 | D184: 23179 | E184: 24 | F184: 23184 | K184: 0 | L184: 222
A185: 21 | B185: 23297 | C185: 22 | D185: 23302 | E185: 24 | F185: 23307 | K185: 0 | L185: 222
A186: 21 | B186: 23439 | C186: 22 | D186: 23443 | E186: 24 | F186: 23448 | K186: 0 | L186: 222
A187: 21 | B187: 23550 | C187: 22 | D187: 23557 | E187: 24 | F187: 23563 | K187: 0 | L187: 222
A188: 21 | B188: 23671 | C188: 22 | D188: 23676 | E188: 24 | F188: 23681 | K188: 0 | L188: 222
A189: 21 | B189: 23783 | C189: 22 | D189: 23786 | E189: 24 | F189: 23790 | K189: 0 | L189: 222
A190: 21 | B190: 23889 | C190: 22 | D190: 23891 | E190: 24 | F190: 23895 | K190: 0 | L190: 222

Sheet !L907A4T.ayl
A1: Report for:!L907A4T.ayl
A2: Date: | B2: <date>
A3: Hen: | B3: <hen> | F3: Correct Sequence | G3: =Start!J2 -> 211 | P3: Total Sequences in Data | Q3: =4994-COUNTBLANK(L7:L5000) -> 198 | V3: Total Sequences in Block Data | W3: =COUNTA(L7:L39) -> 33 | AA3: Total Sequences in Block Data | AB3: =COUNTA(L40:L72) -> 33 | AF3: Total Sequences in Block Data | AG3: =COUNTA(L73:L105) -> 33 | AK3: Total Sequences in Block Data | AL3: =COUNTA(L106:L138) -> 33 | AP3: Total Sequences in Block Data | AQ3: =COUNTA(L139:L171) -> 33 | AU3: Total Sequences in Block Data | AV3: =COUNTA(L172:L204) -> 33
P4: Total Sequences in Summary | Q4: =SUM(O7:O14) -> 198 | V4: Total Sequences in Block Summary | W4: =SUM(U7:U14) -> 33 | AA4: Total Sequences in Block Summary | AB4: =SUM(Z7:Z14) -> 33 | AF4: Total Sequences in Block Summary | AG4: =SUM(AE7:AE14) -> 33 | AK4: Total Sequences in Block Summary | AL4: =SUM(AJ7:AJ14) -> 33 | AP4: Total Sequences in Block Summary | AQ4: =SUM(AO7:AO14) -> 33 | AU4: Total Sequences in Block Summary | AV4: =SUM(AT7:AT14) -> 33
T5: Block 1 | Y5: Block 2 | AD5: Block 3 | AI5: Block 4 | AN5: Block 5 | AS5: Block 6
A6: Sequence Component 1 | B6: Time 1 | C6: Sequence Component 2 | D6: Time 2 | E6: Sequence Component 3 | F6: Time 3 | G6: Sequence Component 4 | H6: Time 4 | I6: Sequence Component 5 | J6: Time 5 | K6: Correct? 0=No 1=Yes | L6: Sequence | N6: Frequency | P6: Relative Frequency | Q6: Variability | T6: Frequency | V6: Relative Frequency | W6: Variability | Y6: Frequency | AA6: Relative Frequency | AB6: Variability | AD6: Frequency | AF6: Relative Frequency | AG6: Variability | AI6: Frequency | AK6: Relative Frequency | AL6: Variability | AN6: Frequency | AP6: Relative Frequency | AQ6: Variability | AS6: Frequency | AU6: Relative Frequency | AV6: Variability
A7: 21 | B7: 17 | C7: 22 | D7: 21 | E7: 24 | F7: 26 | K7: 0 | L7: 222 | N7: 111 | O7: =COUNTIF($L$7:$L$500,N7) -> 0 | P7: =O7/$Q$4 -> 0 | Q7: =IF(P7=0,0,(P7*((LOG(P7))/LOG(2)))) -> 0 | T7: =N7 -> 111 | U7: =COUNTIF(L7:L39,T7) -> 0 | V7: =U7/(W4-U11) -> 0 | W7: =IF(V7=0,0,(V7*((LOG(V7))/LOG(2)))) -> 0 | Y7: =N7 -> 111 | Z7: =COUNTIF(L40:L72,Y7) -> 0 | AA7: =Z7/(AB4-Z11) -> 0 | AB7: =IF(AA7=0,0,(AA7*((LOG(AA7))/LOG(2)))) -> 0 | AD7: =N7 -> 111 | AE7: =COUNTIF(L73:L105,AD7) -> 0 | AF7: =AE7/(AG4-AE11) -> 0 | AG7: =IF(AF7=0,0,(AF7*((LOG(AF7))/LOG(2)))) -> 0 | AI7: =N7 -> 111 | AJ7: =COUNTIF(L106:L138,AI7) -> 0 | AK7: =AJ7/(AL4-AJ11) -> 0 | AL7: =IF(AK7=0,0,(AK7*((LOG(AK7))/LOG(2)))) -> 0 | AN7: =N7 -> 111 | AO7: =COUNTIF(L139:L171,AN7) -> 0 | AP7: =AO7/(AQ4-AO11) -> 0 | AQ7: =IF(AP7=0,0,(AP7*((LOG(AP7))/LOG(2)))) -> 0 | AS7: =N7 -> 111 | AT7: =COUNTIF(L172:L204,AS7) -> 0 | AU7: =AT7/(AV4-AT11) -> 0 | AV7: =IF(AU7=0,0,(AU7*((LOG(AU7))/LOG(2)))) -> 0
A8: 21 | B8: 130 | C8: 22 | D8: 141 | E8: 24 | F8: 147 | K8: 0 | L8: 222 | N8: 112 | O8: =COUNTIF($L$7:$L$500,N8) -> 3 | P8: =O8/$Q$4 -> 0.01515151515 | Q8: =IF(P8=0,0,(P8*((LOG(P8))/LOG(2)))) -> -0.09158172908 | T8: =N8 -> 112 | U8: =COUNTIF(L7:L39,T8) -> 0 | V8: =U8/(W4-U11) -> 0 | W8: =IF(V8=0,0,(V8*((LOG(V8))/LOG(2)))) -> 0 | Y8: =N8 -> 112 | Z8: =COUNTIF(L40:L72,Y8) -> 1 | AA8: =Z8/(AB4-Z11) -> 0.0303030303 | AB8: =IF(AA8=0,0,(AA8*((LOG(AA8))/LOG(2)))) -> -0.1528604279 | AD8: =N8 -> 112 | AE8: =COUNTIF(L73:L105,AD8) -> 2 | AF8: =AE8/(AG4-AE11) -> 0.06060606061 | AG8: =IF(AF8=0,0,(AF8*((LOG(AF8))/LOG(2)))) -> -0.2451147951 | AI8: =N8 -> 112 | AJ8: =COUNTIF(L106:L138,AI8) -> 0 | AK8: =AJ8/(AL4-AJ11) -> 0 | AL8: =IF(AK8=0,0,(AK8*((LOG(AK8))/LOG(2)))) -> 0 | AN8: =N8 -> 112 | AO8: =COUNTIF(L139:L171,AN8) -> 0 | AP8: =AO8/(AQ4-AO11) -> 0 | AQ8: =IF(AP8=0,0,(AP8*((LOG(AP8))/LOG(2)))) -> 0 | AS8: =N8 -> 112 | AT8: =COUNTIF(L172:L204,AS8) -> 0 | AU8: =AT8/(AV4-AT11) -> 0 | AV8: =IF(AU8=0,0,(AU8*((LOG(AU8))/LOG(2)))) -> 0
A9: 21 | B9: 281 | C9: 22 | D9: 285 | E9: 24 | F9: 287 | K9: 0 | L9: 222 | N9: 121 | O9: =COUNTIF($L$7:$L$500,N9) -> 0 | P9: =O9/$Q$4 -> 0 | Q9: =IF(P9=0,0,(P9*((LOG(P9))/LOG(2)))) -> 0 | T9: =N9 -> 121 | U9: =COUNTIF(L7:L39,T9) -> 0 | V9: =U9/(W4-U11) -> 0 | W9: =IF(V9=0,0,(V9*((LOG(V9))/LOG(2)))) -> 0 | Y9: =N9 -> 121 | Z9: =COUNTIF(L40:L72,Y9) -> 0 | AA9: =Z9/(AB4-Z11) -> 0 | AB9: =IF(AA9=0,0,(AA9*((LOG(AA9))/LOG(2)))) -> 0 | AD9: =N9 -> 121 | AE9: =COUNTIF(L73:L105,AD9) -> 0 | AF9: =AE9/(AG4-AE11) -> 0 | AG9: =IF(AF9=0,0,(AF9*((LOG(AF9))/LOG(2)))) -> 0 | AI9: =N9 -> 121 | AJ9: =COUNTIF(L106:L138,AI9) -> 0 | AK9: =AJ9/(AL4-AJ11) -> 0 | AL9: =IF(AK9=0,0,(AK9*((LOG(AK9))/LOG(2)))) -> 0 | AN9: =N9 -> 121 | AO9: =COUNTIF(L139:L171,AN9) -> 0 | AP9: =AO9/(AQ4-AO11) -> 0 | AQ9: =IF(AP9=0,0,(AP9*((LOG(AP9))/LOG(2)))) -> 0 | AS9: =N9 -> 121 | AT9: =COUNTIF(L172:L204,AS9) -> 0 | AU9: =AT9/(AV4-AT11) -> 0 | AV9: =IF(AU9=0,0,(AU9*((LOG(AU9))/LOG(2)))) -> 0
A10: 21 | B10: 410 | C10: 22 | D10: 416 | E10: 24 | F10: 420 | K10: 0 | L10: 222 | N10: 122 | O10: =COUNTIF($L$7:$L$500,N10) -> 69 | P10: =O10/$Q$4 -> 0.3484848485 | Q10: =IF(P10=0,0,(P10*((LOG(P10))/LOG(2)))) -> -0.529986966 | T10: =N10 -> 122 | U10: =COUNTIF(L7:L39,T10) -> 9 | V10: =U10/(W4-U11) -> 0.2727272727 | W10: =IF(V10=0,0,(V10*((LOG(V10))/LOG(2)))) -> -0.5112188503 | Y10: =N10 -> 122 | Z10: =COUNTIF(L40:L72,Y10) -> 18 | AA10: =Z10/(AB4-Z11) -> 0.5454545455 | AB10: =IF(AA10=0,0,(AA10*((LOG(AA10))/LOG(2)))) -> -0.4769831552 | AD10: =N10 -> 122 | AE10: =COUNTIF(L73:L105,AD10) -> 8 | AF10: =AE10/(AG4-AE11) -> 0.2424242424 | AG10: =IF(AF10=0,0,(AF10*((LOG(AF10))/LOG(2)))) -> -0.4956106956 | AI10: =N10 -> 122 | AJ10: =COUNTIF(L106:L138,AI10) -> 18 | AK10: =AJ10/(AL4-AJ11) -> 0.5454545455 | AL10: =IF(AK10=0,0,(AK10*((LOG(AK10))/LOG(2)))) -> -0.4769831552 | AN10: =N10 -> 122 | AO10: =COUNTIF(L139:L171,AN10) -> 6 | AP10: =AO10/(AQ4-AO11) -> 0.1818181818 | AQ10: =IF(AP10=0,0,(AP10*((LOG(AP10))/LOG(2)))) -> -0.4471693852 | AS10: =N10 -> 122 | AT10: =COUNTIF(L172:L204,AS10) -> 10 | AU10: =AT10/(AV4-AT11) -> 0.303030303 | AV10: =IF(AU10=0,0,(AU10*((LOG(AU10))/LOG(2)))) -> -0.5219594014
A11: 21 | B11: 525 | C11: 22 | D11: 529 | E11: 24 | F11: 533 | K11: 0 | L11: 222 | N11: 211 | O11: =COUNTIF($L$7:$L$500,N11) -> 0 | P11: =O11/$Q$4 -> 0 | Q11: =IF(P11=0,0,(P11*((LOG(P11))/LOG(2)))) -> 0 | T11: =N11 -> 211 | U11: =COUNTIF(L7:L39,T11) -> 0 | Y11: =N11 -> 211 | Z11: =COUNTIF(L40:L72,Y11) -> 0 | AD11: =N11 -> 211 | AE11: =COUNTIF(L73:L105,AD11) -> 0 | AI11: =N11 -> 211 | AJ11: =COUNTIF(L106:L138,AI11) -> 0 | AN11: =N11 -> 211 | AO11: =COUNTIF(L139:L171,AN11) -> 0 | AS11: =N11 -> 211 | AT11: =COUNTIF(L172:L204,AS11) -> 0
A12: 21 | B12: 726 | C12: 22 | D12: 730 | E12: 24 | F12: 752 | K12: 0 | L12: 222 | N12: 212 | O12: =COUNTIF($L$7:$L$500,N12) -> 0 | P12: =O12/$Q$4 -> 0 | Q12: =IF(P12=0,0,(P12*((LOG(P12))/LOG(2)))) -> 0 | T12: =N12 -> 212 | U12: =COUNTIF(L7:L39,T12) -> 0 | V12: =U12/(W4-U11) -> 0 | W12: =IF(V12=0,0,(V12*((LOG(V12))/LOG(2)))) -> 0 | Y12: =N12 -> 212 | Z12: =COUNTIF(L40:L72,Y12) -> 0 | AA12: =Z12/(AB4-Z11) -> 0 | AB12: =IF(AA12=0,0,(AA12*((LOG(AA12))/LOG(2)))) -> 0 | AD12: =N12 -> 212 | AE12: =COUNTIF(L73:L105,AD12) -> 0 | AF12: =AE12/(AG4-AE11) -> 0 | AG12: =IF(AF12=0,0,(AF12*((LOG(AF12))/LOG(2)))) -> 0 | AI12: =N12 -> 212 | AJ12: =COUNTIF(L106:L138,AI12) -> 0 | AK12: =AJ12/(AL4-AJ11) -> 0 | AL12: =IF(AK12=0,0,(AK12*((LOG(AK12))/LOG(2)))) -> 0 | AN12: =N12 -> 212 | AO12: =COUNTIF(L139:L171,AN12) -> 0 | AP12: =AO12/(AQ4-AO11) -> 0 | AQ12: =IF(AP12=0,0,(AP12*((LOG(AP12))/LOG(2)))) -> 0 | AS12: =N12 -> 212 | AT12: =COUNTIF(L172:L204,AS12) -> 0 | AU12: =AT12/(AV4-AT11) -> 0 | AV12: =IF(AU12=0,0,(AU12*((LOG(AU12))/LOG(2)))) -> 0
A13: 21 | B13: 853 | C13: 22 | D13: 855 | E13: 24 | F13: 860 | K13: 0 | L13: 222 | N13: 221 | O13: =COUNTIF($L$7:$L$500,N13) -> 0 | P13: =O13/$Q$4 -> 0 | Q13: =IF(P13=0,0,(P13*((LOG(P13))/LOG(2)))) -> 0 | T13: =N13 -> 221 | U13: =COUNTIF(L7:L39,T13) -> 0 | V13: =U13/(W4-U11) -> 0 | W13: =IF(V13=0,0,(V13*((LOG(V13))/LOG(2)))) -> 0 | Y13: =N13 -> 221 | Z13: =COUNTIF(L40:L72,Y13) -> 0 | AA13: =Z13/(AB4-Z11) -> 0 | AB13: =IF(AA13=0,0,(AA13*((LOG(AA13))/LOG(2)))) -> 0 | AD13: =N13 -> 221 | AE13: =COUNTIF(L73:L105,AD13) -> 0 | AF13: =AE13/(AG4-AE11) -> 0 | AG13: =IF(AF13=0,0,(AF13*((LOG(AF13))/LOG(2)))) -> 0 | AI13: =N13 -> 221 | AJ13: =COUNTIF(L106:L138,AI13) -> 0 | AK13: =AJ13/(AL4-AJ11) -> 0 | AL13: =IF(AK13=0,0,(AK13*((LOG(AK13))/LOG(2)))) -> 0 | AN13: =N13 -> 221 | AO13: =COUNTIF(L139:L171,AN13) -> 0 | AP13: =AO13/(AQ4-AO11) -> 0 | AQ13: =IF(AP13=0,0,(AP13*((LOG(AP13))/LOG(2)))) -> 0 | AS13: =N13 -> 221 | AT13: =COUNTIF(L172:L204,AS13) -> 0 | AU13: =AT13/(AV4-AT11) -> 0 | AV13: =IF(AU13=0,0,(AU13*((LOG(AU13))/LOG(2)))) -> 0
A14: 21 | B14: 976 | C14: 22 | D14: 980 | E14: 24 | F14: 988 | K14: 0 | L14: 222 | N14: 222 | O14: =COUNTIF($L$7:$L$500,N14) -> 126 | P14: =O14/$Q$4 -> 0.6363636364 | Q14: =IF(P14=0,0,(P14*((LOG(P14))/LOG(2)))) -> -0.4149578978 | T14: =N14 -> 222 | U14: =COUNTIF(L7:L39,T14) -> 24 | V14: =U14/(W4-U11) -> 0.7272727273 | W14: =IF(V14=0,0,(V14*((LOG(V14))/LOG(2)))) -> -0.3341320863 | Y14: =N14 -> 222 | Z14: =COUNTIF(L40:L72,Y14) -> 14 | AA14: =Z14/(AB4-Z11) -> 0.4242424242 | AB14: =IF(AA14=0,0,(AA14*((LOG(AA14))/LOG(2)))) -> -0.5248045079 | AD14: =N14 -> 222 | AE14: =COUNTIF(L73:L105,AD14) -> 23 | AF14: =AE14/(AG4-AE11) -> 0.696969697 | AG14: =IF(AF14=0,0,(AF14*((LOG(AF14))/LOG(2)))) -> -0.363004235 | AI14: =N14 -> 222 | AJ14: =COUNTIF(L106:L138,AI14) -> 15 | AK14: =AJ14/(AL4-AJ11) -> 0.4545454545 | AL14: =IF(AK14=0,0,(AK14*((LOG(AK14))/LOG(2)))) -> -0.5170470562 | AN14: =N14 -> 222 | AO14: =COUNTIF(L139:L171,AN14) -> 27 | AP14: =AO14/(AQ4-AO11) -> 0.8181818182 | AQ14: =IF(AP14=0,0,(AP14*((LOG(AP14))/LOG(2)))) -> -0.2368690504 | AS14: =N14 -> 222 | AT14: =COUNTIF(L172:L204,AS14) -> 23 | AU14: =AT14/(AV4-AT11) -> 0.696969697 | AV14: =IF(AU14=0,0,(AU14*((LOG(AU14))/LOG(2)))) -> -0.363004235
A15: 12 | B15: 1086 | C15: 24 | D15: 1096 | E15: 24 | F15: 1100 | K15: 0 | L15: 122 | P15: =SUM(P7:P14) -> 1 | Q15: =-SUM(Q7:Q14) -> 1.036526593 | V15: =SUM(V7:V14) -> 1 | W15: =-SUM(W7:W14) -> 0.8453509366 | AA15: =SUM(AA7:AA14) -> 1 | AB15: =-SUM(AB7:AB14) -> 1.154648091 | AF15: =SUM(AF7:AF14) -> 1 | AG15: =-SUM(AG7:AG14) -> 1.103729726 | AK15: =SUM(AK7:AK14) -> 1 | AL15: =-SUM(AL7:AL14) -> 0.9940302115 | AP15: =SUM(AP7:AP14) -> 1 | AQ15: =-SUM(AQ7:AQ14) -> 0.6840384356 | AU15: =SUM(AU7:AU14) -> 1 | AV15: =-SUM(AV7:AV14) -> 0.8849636364
A16: 21 | B16: 1201 | C16: 22 | D16: 1204 | E16: 24 | F16: 1207 | K16: 0 | L16: 222 | P16: U= | Q16: =Q15/(LOG(Q4)/LOG(2)) -> 0.1358602887 | V16: U1= | W16: =W15/(LOG(W4)/LOG(2)) -> 0.167582254 | AA16: U2= | AB16: =AB15/(LOG(AB4)/LOG(2)) -> 0.2288972796 | AF16: U3= | AG16: =AG15/(LOG(AG4)/LOG(2)) -> 0.2188032298 | AK16: U4= | AL16: =AL15/(LOG(AL4)/LOG(2)) -> 0.1970564131 | AP16: U5= | AQ16: =AQ15/(LOG(AQ4)/LOG(2)) -> 0.1356036859 | AU16: U6= | AV16: =AV15/(LOG(AV4)/LOG(2)) -> 0.1754350702
A17: 21 | B17: 1307 | C17: 22 | D17: 1312 | E17: 24 | F17: 1315 | K17: 0 | L17: 222
A18: 21 | B18: 1418 | C18: 22 | D18: 1426 | E18: 24 | F18: 1431 | K18: 0 | L18: 222
A19: 12 | B19: 1528 | C19: 24 | D19: 1538 | E19: 24 | F19: 1545 | K19: 0 | L19: 122 | N19: Total Target Seq
A20: 21 | B20: 1654 | C20: 22 | D20: 1655 | E20: 24 | F20: 1665 | K20: 0 | L20: 222 | N20: =COUNTIF(L7:L204,G3) -> 0 | P20: 33 | Q20: 33 | R20: 33 | S20: 33 | T20: 33 | U20: 33
A21: 21 | B21: 1770 | C21: 22 | D21: 1774 | E21: 24 | F21: 1778 | K21: 0 | L21: 222 | P21: % of reinforcement given in 6 equal intervals based on number of trials
A22: 12 | B22: 1874 | C22: 24 | D22: 1884 | E22: 24 | F22: 1887 | K22: 0 | L22: 122 | P22: %_1 | Q22: %_2 | R22: %_3 | S22: %_4 | T22: %_5 | U22: %_6
